Workbook

Sheet MatchDay
N1: Bib | O1: Midlands Premier North | P1: Northern Premier West | Q1: Northern 2 SE | R1: Northern 2 North | S1: Northern 2 West | T1: Southern Premier East | U1: Southern 2 West | V1: Southern 2 A24 | W1: Northern 2 SW | AA1: Leagues | AF1: Clubs | AG1: AW/POT
N2: A | O2: Birchfield | P2: Blackburn | R2: Jarrow | S2: Colwyn Bay | T2: Tonbridge | U2: Abingdon AC | V2: Dorking/Reigate Priory | W2: Blackley & N Manchester | AA2: =INDIRECT(AD2) -> Midlands Premier North | AB2: 2 | AC2: o | AD2: =CONCATENATE(AC2,1) -> o1 | AF2: 2DASH | AG2: DASH
B3: League | C3: Northern Premier East | F3: =IF(OR(C3=0,C3="",ISERROR(VLOOKUP(C3,$AA$2:$AB$33,2,FALSE)=TRUE)),"",VLOOKUP(C3,$AA$2:$AB$33,2,FALSE)) -> 5 | H3: League | I3: Northern 1 SE | L3: =IF(OR(I3=0,I3="",ISERROR(VLOOKUP(I3,$AA$2:$AB$33,2,FALSE)=TRUE)),"",VLOOKUP(I3,$AA$2:$AB$33,2,FALSE)) -> 7 | N3: B | O3: Cannock & Staffs | P3: Blackpool, Wyre & Fylde | Q3: Grimsby/Barton & District | R3: North Shield Poly | S3: Deeside | T3: Blackheath & Bromley | U3: City of Salisbury | V3: East Grinstead | W3: Longwood | AA3: =INDIRECT(AD3) -> Northern Premier West | AB3: 3 | AC3: p | AD3: =CONCATENATE(AC3,1) -> p1 | AF3: A.F.D. | AG3: AFD
N4: C | O4: Charnwood | P4: Liverpool Harr | Q4: Boston | R4: South Shields | S4: Halton & Frodsham | T4: City of Norwich AC | V4: Hercules Wimbledon | W4: Manchester Harr | AA4: Northern 2 SE | AB4: 4 | AC4: q | AD4: q1 | AF4: Abingdon AC | AG4: Abing
B5: Date | C5: Sunday 8th May 2011 | H5: Date | I5: =C5 -> Sunday 8th May 2011 | N5: D | O5: Mansfield | P5: Preston | R5: Sunderland Harr | S5: Isle of Man | T5: Croydon Harriers | U5: Guernsey / Jersey | V5: Holland Sports | W5: Oldham | AA5: Northern 2 North | AB5: 5 | AC5: r | AD5: r1 | AF5: Alnwick & Blyth | AG5: Aln & Blyth
N6: E | O6: City of Stoke | P6: Sale HM | Q6: Sleaford | R6: Tynedale | T6: Enfield & Haringey | V6: Sutton & District | W6: Salford | AA6: Northern 2 West | AB6: 6 | AC6: s | AD6: s1 | AF6: Altrincham & Dist | AG6: Alt
B7: Venue | C7: Thornes Park Stadium, Wakefield | H7: Venue | I7: =C7 -> Thornes Park Stadium, Wakefield | N7: F | O7: Coventry Godiva | P7: Crewe & Nantwich | S7: Maldwyn | T7: Havering Mayesbrook | V7: Walton | W7: Stockport | AA7: Southern Premier East | AB7: 7 | AC7: t | AD7: t1 | AF7: Ashford | AG7: Ashf
N8: G | O8: Wolverhampton & Bilston | P8: Warrington | S8: Menai | T8: Herne Hill Harriers | V8: Fleet & Crookham | W8: Leigh Harr | AA8: Southern 2 West | AB8: 8 | AC8: u | AD8: u1 | AF8: Barnsley | AG8: Barns
B9: Bib | C9: MATCH 1 | E9: AW | H9: Bib | I9: MATCH 2 | K9: AW | N9: H | O9: Nene Valley | P9: West Cheshire | T9: St Albans | AA9: Southern 2 A24 | AB9: 9 | AC9: v | AD9: v1 | AF9: Barton & District | AG9: Bart
N10: I | O10: Notts AC | P10: Horwich | T10: Woodford Gn / Essex Ld. | AA10: Northern 2 SW | AB10: 10 | AC10: w | AD10: w1 | AF10: Bedford & County AC | AG10: Bed C
A11: 1 | B11: 9 | C11: =IF(OR($F$3=0,$F$3="",B11=0,B11="",ISERROR(VLOOKUP(B11,clubs,$F$3,FALSE)=TRUE)),"",VLOOKUP(B11,clubs,$F$3,FALSE)) -> Wakefield | E11: =IF(OR(B11=0,B11=""),"",VLOOKUP(C11,teams_aw,2,FALSE)) -> Wake | G11: 4 | H11: 1 | I11: =IF(OR($L$3=0,$L$3="",H11=0,H11="",ISERROR(VLOOKUP(H11,clubs,$L$3,FALSE)=TRUE)),"",VLOOKUP(H11,clubs,$L$3,FALSE)) -> 2DASH | K11: =IF(OR(H11=0,H11=""),"",VLOOKUP(I11,teams_aw,2,FALSE)) -> DASH | AA11: Midland 1 SW | AB11: 2 | AC11: o | AD11: =CONCATENATE(AC11,12) -> o12 | AF11: Bexley | AG11: Bex
O12: Midland 1 SW | P12: Midland 1 NE | Q12: Northern 1 SW | R12: Northern 1 NE | S12: Northern 2 NE | T12: N2 West Central | V12: Southern 1 SW | W12: Southern 1 NE | X12: Southern 2 Thames | Y12: Midland 2 | AA12: Midland 1 NE | AB12: 3 | AC12: p | AD12: =CONCATENATE(AC12,12) -> p12 | AF12: Bicester Banbury | AG12: Bic & Banb
A13: 2 | B13: 8 | C13: =IF(OR($F$3=0,$F$3="",B13=0,B13="",ISERROR(VLOOKUP(B13,clubs,$F$3,FALSE)=TRUE)),"",VLOOKUP(B13,clubs,$F$3,FALSE)) -> City of York | E13: =IF(OR(B13=0,B13=""),"",VLOOKUP(C13,teams_aw,2,FALSE)) -> York | G13: 5 | H13: 2 | I13: =IF(OR($L$3=0,$L$3="",H13=0,H13="",ISERROR(VLOOKUP(H13,clubs,$L$3,FALSE)=TRUE)),"",VLOOKUP(H13,clubs,$L$3,FALSE)) -> Lincoln Wellington | K13: =IF(OR(H13=0,H13=""),"",VLOOKUP(I13,teams_aw,2,FALSE)) -> Linc W | N13: K | O13: Bridgend | P13: Burton | Q13: Deesdie | R13: Harrogate | S13: Darlington | T13: Burnley | V13: A.F.D. | W13: Cambridge Harriers | X13: Eton Manor | AA13: Northern 1 SW | AB13: 4 | AC13: q | AD13: q12 | AF13: Bingley | AG13: Bing
N14: L | O14: Bristol | P14: Corby | Q14: East Cheshire | R14: Birtley | S14: Durham City | T14: Holmfirth | V14: Walton | W14: Dartford | X14: Highgate | AA14: Northern 1 NE | AB14: 5 | AC14: r | AD14: r12 | AF14: Birchfield | AG14: Bir
A15: 3 | B15: 7 | C15: =IF(OR($F$3=0,$F$3="",B15=0,B15="",ISERROR(VLOOKUP(B15,clubs,$F$3,FALSE)=TRUE)),"",VLOOKUP(B15,clubs,$F$3,FALSE)) -> Leeds City | E15: =IF(OR(B15=0,B15=""),"",VLOOKUP(C15,teams_aw,2,FALSE)) -> Leeds C | G15: 6 | H15: 3 | I15: =IF(OR($L$3=0,$L$3="",H15=0,H15="",ISERROR(VLOOKUP(H15,clubs,$L$3,FALSE)=TRUE)),"",VLOOKUP(H15,clubs,$L$3,FALSE)) -> Hallamshire Harr | K15: =IF(OR(H15=0,H15=""),"",VLOOKUP(I15,teams_aw,2,FALSE)) -> Hallam | N15: M | O15: Carmarthen | P15: Daventry | Q15: Wirral | R15: Blaydon | S15: New Marske | T15: Hyndburn | V15: Guildford & Goldalming | W15: Herts Phoenix | X15: Ilford | AA15: Northern 2 NE | AB15: 6 | AC15: s | AD15: s12 | AF15: Birtley | AG15: Birt
N16: O | O16: City Of Plymouth | P16: Grantham | Q16: Macclesfield | R16: Chester-Le-Street | S16: Richmond & Zetland | T16: Kendal | V16: Abingdon AC | W16: Highgate | X16: London Heathside | AA16: N2 West Central | AB16: 7 | AC16: t | AD16: t12 | AF16: Blackburn | AG16: B'burn
C17: =IF(OR($F$3=0,$F$3="",B17=0,B17="",ISERROR(VLOOKUP(B17,clubs,$F$3,FALSE)=TRUE)),"",VLOOKUP(B17,clubs,$F$3,FALSE)) ->  | E17: =IF(OR(B17=0,B17=""),"",VLOOKUP(C17,teams_aw,2,FALSE)) ->  | I17: =IF(OR($F$3=0,$F$3="",H17=0,H17="",ISERROR(VLOOKUP(H17,clubs,$F$3,FALSE)=TRUE)),"",VLOOKUP(H17,clubs,$F$3,FALSE)) ->  | K17: =IF(OR(H17=0,H17=""),"",VLOOKUP(I17,teams_aw,2,FALSE)) ->  | N17: P | O17: Cwmbran | P17: Kettering | Q17: Liv Pem Sefton | R17: Alnwick & Blyth | S17: Shildon | T17: Pudsey & Bramley | V17: Bournemouth AC/Poole Runners | W17: Medway | X17: Vic Pk & Tower Hamlets | AA17: 0 | AB17: 8 | AC17: u | AD17: u12 | AF17: Blackheath & Bromley | AG17: B&B
N18: S | O18: Lllanelli Neath | P18: Leicester Coritanian | Q18: Southport Wat. | R18: New Marske | V18: Portsmouth | W18: Newham & Essex | X18: Queens Park H | AA18: Southern 1 SW | AB18: 9 | AC18: v | AD18: v12 | AF18: Blackley & N Manchester | AG18: Black NM
N19: T | O19: Newport | P19: Nene Valley | Q19: Colwyn Bay | R19: Barnsley | V19: New Forest | W19: Orion | AA19: Southern 1 NE | AB19: 10 | AC19: w | AD19: w12 | AF19: Blackpool, Wyre & Fylde | AG19: BWF
C20: IF YOU NEED ANY HELP SETTING UP OR ON THE DAY PLEASE PHONE 07507 853112 | N20: U | O20: Team Bath | P20: OWLS | Q20: Trafford | R20: Morpeth | V20: Winchester | W20: Basildon | AA20: Southern 2 Thames | AB20: 11 | AC20: x | AD20: x12 | AF20: Blaydon | AG20: Blay
N21: W | O21: Yeovil Olympiads AC | P21: Sutton-in-Ashfield | Q21: Wigan | R21: Jarrow | V21: Chichester | W21: Sutton & District | AA21: Midland 2 | AB21: 12 | AC21: y | AD21: y12 | AF21: Bolton | AG21: Bolt
N22: X | Y22: Kidderminster | AA22: Midland Premier South | AB22: 2 | AC22: o | AD22: =CONCATENATE(AC22,24) -> o24 | AF22: Border | AG22: Bord H
N23: Y | X23: Medway Park Phoenix | Y23: A.N OTHER | AA23: Midland 1 NW | AB23: 3 | AC23: p | AD23: =CONCATENATE(AC23,24) -> p24 | AF23: Boston | AG23: Bost
O24: Midland Premier South | P24: Midland 1 NW | Q24: Midland 1 SE | R24: Northern Premier East | S24: Northern 1 NW | T24: Northern 1 SE | U24: Southern Premier West | V24: Southern 1 NW | W24: Southern 1 SE | AA24: Midland 1 SE | AB24: 4 | AC24: q | AD24: q24 | AF24: Bournemouth AC / Poole Runners | AG24: B'mth & Poole R
N25: 1 | O25: Cardiff | P25: Bridgnorth | Q25: Bicester Banbury | R25: Gateshead | S25: Bingley | T25: 2DASH | U25: Brighton & Hove | V25: Hillingdon AC | W25: Ashford | AA25: Northern Premier East | AB25: 5 | AC25: r | AD25: r24 | AF25: Bracknell | AG25: Brack
N26: 2 | O26: Halesowen | P26: Telford | Q26: Kidderminster | R26: City of Sheffield | S26: Border | T26: Lincoln Wellington | U26: Bracknell | V26: Camberley | W26: Worthing | AA26: Northern 1 NW | AB26: 6 | AC26: s | AD26: s24 | AF26: Bridgend | AG26: B'end
N27: 3 | O27: Cheltenham | P27: Dudley & Stourbridge | Q27: Leamington | R27: Kingston-u-Hull | S27: Halifax Harr | T27: Hallamshire Harr | U27: Harrow | V27: Chiltern | W27: Crawley AC | AA27: Northern 1 SE | AB27: 7 | AC27: t | AD27: t24 | AF27: Bridgnorth | AG27: B'nth
N28: 4 | O28: Solihull & Small Heath | P28: Halesowen | Q28: Hereford/Worcester | R28: Doncaster | S28: Holmfirth | T28: Boston | U28: Bedford & County AC | V28: Ealing | W28: Bexley | AA28: Southern Premier West | AB28: 8 | AC28: u | AD28: u24 | AF28: Brighton & Hove | AG28: B&H
N29: 5 | O29: Rugby & Northampton | P29: Nuneaton | Q29: Gloucester | R29: Middlesbro Mandale | S29: Team North Cumbria | T29: Cleethorpes | U29: Reading AC | V29: Kingston Poly | W29: Epsom | AA29: Southern 1 NW | AB29: 9 | AC29: v | AD29: =CONCATENATE(AC29,24) -> v24 | AF29: Bristol | AG29: B&W
N30: 6 | O30: Swansea | P30: Oswestry | Q30: Oxford City | R30: Chesterfield | S30: Lancaster & Morecombe | T30: Rotherham | U30: Shaftesbury Barnet | V30: St Marys Richmond | W30: Hastings | AA30: Southern 1 SE | AB30: 10 | AC30: w | AD30: =CONCATENATE(AC30,24) -> w24 | AF30: Bromsgrove & Redditch | AG30: B&R
N31: 7 | O31: Telford | P31: Tamworth | Q31: Radley AC | R31: Leeds City | S31: Pendle | T31: Oldham | U31: Team Dorset | V31: Thames Vall Harr | W31: Horsham Blue Star | AF31: Burnley | AG31: Burn
N32: 8 | O32: Wolverhampton & Bilston | P32: Tipton | Q32: Stratford-u-Avon | R32: City of York | S32: Bolton | T32: Scunthorpe | U32: Southampton AC | V32: Woking | W32: Lewes | AF32: Burton | AG32: Burton
N33: 9 | O33: Yate & District | P33: Wrexham | Q33: Swindon | R33: Wakefield | S33: SKYRAC | T33: Spenborough | U33: WSEH | V33: Wycombe Phoenix | W33: South London | AF33: Bury AC | AG33: Bury
AF34: Camberley | AG34: C'ley
AF35: Cambridge Harriers | AG35: Camb H
B36: Bib | C36: MATCH 1 | E36: AW | H36: Bib | I36: MATCH 2 | K36: AW | AF36: Cannock & Staffs | AG36: C&S
AF37: Cardiff | AG37: Card
B38: =IF(OR(B11=0,B11=""),"",IF(T(B11)="",B11*11,CONCATENATE(B11,B11))) -> 99 | C38: =C11 -> Wakefield | E38: =IF(OR(B38=0,B38=""),"",VLOOKUP(C38,teams_aw,2,FALSE)) -> Wake | H38: =IF(OR(H11=0,H11=""),"",IF(T(H11)="",H11*11,CONCATENATE(H11,H11))) -> 11 | I38: =I11 -> 2DASH | K38: =IF(OR(H38=0,H38=""),"",VLOOKUP(I38,teams_aw,2,FALSE)) -> DASH | AF38: Carmarthen | AG38: Carm
AF39: Charnwood | AG39: Charn
B40: =IF(OR(B13=0,B13=""),"",IF(T(B13)="",B13*11,CONCATENATE(B13,B13))) -> 88 | C40: =C13 -> City of York | E40: =IF(OR(B40=0,B40=""),"",VLOOKUP(C40,teams_aw,2,FALSE)) -> York | H40: =IF(OR(H13=0,H13=""),"",IF(T(H13)="",H13*11,CONCATENATE(H13,H13))) -> 22 | I40: =I13 -> Lincoln Wellington | K40: =IF(OR(H40=0,H40=""),"",VLOOKUP(I40,teams_aw,2,FALSE)) -> Linc W | AF40: Cheltenham | AG40: Chelt
AF41: Chesterfield | AG41: C'field
B42: =IF(OR(B15=0,B15=""),"",IF(T(B15)="",B15*11,CONCATENATE(B15,B15))) -> 77 | C42: =C15 -> Leeds City | E42: =IF(OR(B42=0,B42=""),"",VLOOKUP(C42,teams_aw,2,FALSE)) -> Leeds C | H42: =IF(OR(H15=0,H15=""),"",IF(T(H15)="",H15*11,CONCATENATE(H15,H15))) -> 33 | I42: =I15 -> Hallamshire Harr | K42: =IF(OR(H42=0,H42=""),"",VLOOKUP(I42,teams_aw,2,FALSE)) -> Hallam | AF42: Chester-Le-Street | AG42: CleS
AF43: Chichester | AG43: Chich
B44: =IF(OR(B17=0,B17=""),"",IF(T(B17)="",B17*11,CONCATENATE(B17,B17))) ->  | C44: =IF(OR($F$3=0,$F$3="",B44=0,B44="",ISERROR(VLOOKUP(B44,clubs,$F$3,FALSE)=TRUE)),"",VLOOKUP(B44,clubs,$F$3,FALSE)) ->  | E44: =IF(OR(B44=0,B44=""),"",VLOOKUP(C44,teams_aw,2,FALSE)) ->  | H44: =IF(OR(H17=0,H17=""),"",IF(T(H17)="",H17*11,CONCATENATE(H17,H17))) ->  | I44: =I17 ->  | K44: =IF(OR(H44=0,H44=""),"",VLOOKUP(I44,teams_aw,2,FALSE)) ->  | AF44: Chiltern | AG44: Chilt
AF45: City of Norwich AC | AG45: Norw
AF46: City Of Plymouth | AG46: Ply
AF47: City of Salisbury | AG47: Salis
B48: posn | C48: points | AF48: City of Sheffield | AG48: Sheff
AF49: City of Stoke | AG49: Stoke
B50: 1 | C50: 6 | AF50: City of York | AG50: York
AF51: Cleethorpes | AG51: Clee
B52: 2 | C52: 5 | AF52: Colwyn Bay | AG52: Col B
AF53: Corby | AG53: Corby
B54: 3 | C54: 4 | AF54: Coventry Godiva | AG54: Cov
AF55: Crawley AC | AG55: Craw
B56: 4 | C56: 3 | AF56: Crewe & Nantwich | AG56: C&N
AF57: Croydon Harriers | AG57: Croy
B58: 5 | C58: 2 | AF58: Cwmbran | AG58: Cwmb
AF59: Darlington | AG59: Darl
B60: 6 | C60: 1 | AF60: Dartford | AG60: Dartf
AF61: Daventry | AG61: Dav
AF62: Deeside | AG62: Dees
AF63: Derby AC | AG63: Der
AF64: Doncaster | AG64: Don
AF65: Dorking/Reigate Priory | AG65: DMW & Reig
AF66: Dudley & Stourbridge | AG66: D&S
AF67: Durham City | AG67: Dur
AF68: Ealing | AG68: ESM
AF69: East Cheshire | AG69: E Ches
AF70: East Grinstead | AG70: E Grin
AF71: Eastbourne | AG71: E'bne
AF72: Enfield & Haringey | AG72: E&H
AF73: Epsom | AG73: E&E
AF74: Eton Manor | AG74: Eton M
AF75: Fleet & Crookham | AG75: Fleet
AF76: Gateshead | AG76: Gate
AF77: Gloucester | AG77: Glou
AF78: Grantham | AG78: Gran
AF79: Grimsby & Bart | AG79: Grim & Bart
AF80: Guernsey / Jersey | AG80: Guern & Jer
AF81: Guildford & Goldalming | AG81: G&G
AF82: Halesowen | AG82: Hale
AF83: Halifax Harr | AG83: Hal
AF84: Hallamshire Harr | AG84: Hallam
AF85: Halton & Frodsham | AG85: H&F
AF86: Harrogate | AG86: H'gate
AF87: Harrow | AG87: Harrow
AF88: Hastings | AG88: Hast
AF89: Havant | AG89: Havant
AF90: Havering Mayesbrook | AG90: Hav M
AF91: Hercules Wimbledon | AG91: HW
AF92: Hereford | AG92: Here
AF93: Herne Hill Harriers | AG93: Herne H
AF94: Herts Phoenix | AG94: Herts P
AF95: Highgate | AG95: High
AF96: Hillingdon AC | AG96: Hill
AF97: Holland Sports | AG97: Holl S
AF98: Holmfirth | AG98: Holm
AF99: Horsham Blue Star | AG99: Horsh BS
AF100: Horwich | AG100: Horw
AF101: Houghton AC | AG101: H&P
AF102: Hull Achilles | AG102: Hull A
AF103: Hyndburn | AG103: Hynd
AF104: Ilford | AG104: Ilf
AF105: Isle of Man | AG105: IOM
AF106: Isle of Wight | AG106: IOW
AF107: Jarrow | AG107: J&H
AF108: Kendal | AG108: Kend
AF109: Kettering | AG109: Kett
AF110: Kidderminster | AG110: K&S
AF111: Kingston Poly | AG111: K&P
AF112: Kingston-u-Hull | AG112: KuH
AF113: Lancaster & Morecombe | AG113: L&M
AF114: Leamington | AG114: Leam
AF115: Leeds City | AG115: Leeds C
AF116: Leicester Coritanian | AG116: Leic C
AF117: Leigh Harr | AG117: Leigh
AF118: Lewes | AG118: Lewes
AF119: Lincoln Wellington | AG119: Linc W
AF120: Liv Pem Sefton | AG120: Liv PS
AF121: Liverpool Harr | AG121: Liv H
AF122: Lllanelli Neath | AG122: L'nelli & Neath
AF123: London Heathside | AG123: Lon Hth
AF124: Longwood | AG124: Long
AF125: M.Milton Keynes | AG125: Mil K
AF126: Macclesfield | AG126: Macc
AF127: Maldwyn | AG127: Maldwyn
AF128: Manchester Harr | AG128: Manc H
AF129: Mansfield | AG129: Mans
AF130: Marlborough | AG130: Marl
AF131: Medway | AG131: M&M
AF132: Medway Pk Phoenix | AG132: MedPkP
AF133: Menai | AG133: Menai
AF134: Middlesbro Mandale | AG134: M'bro
AF135: Morpeth | AG135: Morp
AF136: Nene Valley | AG136: Nene V
AF137: New Forest | AG137: New FJ
AF138: New Marske | AG138: New M
AF139: Newham & Essex | AG139: NEB
AF140: Newport | AG140: Newp
AF141: North Shield Poly | AG141: NSP
AF142: Notts AC | AG142: Notts
AF143: Nuneaton | AG143: Nun
AF144: Oldham | AG144: O&R
AF145: Orion | AG145: Orion
AF146: Oswestry | AG146: Osw
AF147: OWLS | AG147: OWLS
AF148: Oxford City | AG148: Oxf C
AF149: Pendle | AG149: Pend
AF150: Pontefract AC | AG150: Pont
AF151: Portsmouth | AG151: Ports
AF152: Preston | AG152: Prest
AF153: Pudsey & Bramley | AG153: Pud & B
AF154: Queens Park H | AG154: QPH
AF155: Radley AC | AG155: Rad
AF156: Reading AC | AG156: Read
AF157: Ribble Valley | AG157: Ribb
AF158: Richmond & Zetland | AG158: R&Z
AF159: Rotherham | AG159: Roth
AF160: Royal Sutton Coldfield | AG160: RSC
AF161: Rugby & Northampton | AG161: R&N
AF162: Sale HM | AG162: Sale
AF163: Salford | AG163: Salf
AF164: Scarborough | AG164: Scar
AF165: Scunthorpe | AG165: Scun
AF166: Shaftesbury Barnet | AG166: SB
AF167: Shildon | AG167: Shild
AF168: SKYRAC | AG168: Sky
AF169: Sleaford | AG169: Slea
AF170: Solihull & Small Heath | AG170: SSH
AF171: South London | AG171: S Lon
AF172: South Shields | AG172: SSh
AF173: Southend | AG173: S'end
AF174: Southport Wat. | AG174: S'port W
AF175: Spenborough | AG175: Spen
AF176: St Albans | AG176: St Alb
AF177: St Helens | AG177: SHS
AF178: St Marys Richmond | AG178: SMR
AF179: Stockport | AG179: Stock H
AF180: Stratford-u-Avon | AG180: Strat
AF181: Sunderland Harr | AG181: Sun
AF182: Sutton & District | AG182: Sutt
AF183: Sutton-in-Ashfield | AG183: SinA
AF184: Swansea | AG184: Swan
AF185: Swindon | AG185: Swin
AF186: Tamworth | AG186: Tam
AF187: Team Bath | AG187: Bath
AF188: Team Dorset | AG188: Team D
AF189: Team North Cumbria | AG189: TNC
AF190: Southampton AC | AG190: Soton
AF191: Telford | AG191: Tel
AF192: Thames Vall Harr | AG192: TVH
AF193: Tipton | AG193: Tip
AF194: Tonbridge | AG194: Ton
AF195: Trafford | AG195: Traff
AF196: Tynedale | AG196: Tyne
AF197: Vic Pk & Tower Hamlets | AG197: VP&TH
AF198: Wakefield | AG198: Wake
AF199: Walton | AG199: Walt
AF200: Warrington | AG200: Warr
... 13 more rows

Sheet Track (Match 1)
B1: =CONCATENATE(MatchDay!C3,", ",MatchDay!C7) -> Northern Premier East, Thornes Park Stadium, Wakefield | K1: =MatchDay!C5 -> Sunday 8th May 2011 | W1: Points | X1: Points | Y1: Points | Z1: =MatchDay!E11 -> Wake | AA1: =MatchDay!E13 -> York | AB1: =MatchDay!E15 -> Leeds C | AC1: Scored | AD1: Validations | AF1: Posn | AG1: Points
V2: Track (Match 2) | W2: Col 1 | X2: Col 2 | Y2: Col 3 | Z2: =SUMIF($E$8:$E$200,Z$1,$W$8:$W$200)+SUMIF($L$8:$L$200,Z$1,$X$8:$X$200)+SUMIF($S$8:$S$200,Z$1,$Y$8:$Y$200) -> 314 | AA2: =SUMIF($E$8:$E$200,AA$1,$W$8:$W$200)+SUMIF($L$8:$L$200,AA$1,$X$8:$X$200)+SUMIF($S$8:$S$200,AA$1,$Y$8:$Y$200) -> 199 | AB2: =SUMIF($E$8:$E$200,AB$1,$W$8:$W$200)+SUMIF($L$8:$L$200,AB$1,$X$8:$X$200)+SUMIF($S$8:$S$200,AB$1,$Y$8:$Y$200) -> 254 | AC2: =COUNTIF($W$8:$W$200,"6")+COUNTIF($X$8:$X$200,"6")+COUNTIF($Y$8:$Y$200,"6") -> 38 | AG2: n | AH2: n= | AI2: n== | AJ2: n=== | AK2: n==== | AL2: n=====
B3: Club | E3: Match Points | F3: Posn | G3: League Points | K3: Match Statistics | P3: Athletes | S3: Events | AD3: =MatchDay!B11 -> 9 | AF3: =MatchDay!B50 -> 1 | AG3: =MatchDay!C50 -> 6 | AH3: =SUM(AG3:AG4)/LEN($AH$2) -> 5.5 | AI3: =SUM(AG3:AG5)/LEN($AI$2) -> 5 | AJ3: =SUM(AG3:AG6)/LEN($AJ$2) -> 4.5 | AK3: =SUM(AG3:AG7)/LEN($AK$2) -> 4 | AL3: =SUM(AG3:AG8)/LEN($AL$2) -> 3.5
B4: =MatchDay!C11 -> Wakefield | E4: =Z2+'Field (Match 1)'!AE2+'Relay (Match 1)'!M2 -> 678 | F4: =RANK(E4,$E$4:$E$6) -> 1 | G4: =IF(OR(F4=0,F4=""),"",VLOOKUP(F4,matchpoints,2,FALSE)) -> 3 | K4: New League Records | L4: =COUNTIF($G$8:$G$200,"LR")+COUNTIF($N$8:$N$200,"LR")+COUNTIF($U$8:$U$200,"LR")+COUNTIF('Field (Match 1)'!$H$7:$H$205,"LR")+COUNTIF('Field (Match 1)'!$P$7:$P$205,"LR")+COUNTIF('Field (Match 1)'!$X$7:$X$205,"LR")+COUNTIF('Relay (Match 1)'!$J$10:$J$208,"LR") -> 0 | M4: Grade 2 | N4: =COUNTIF($G$8:$G$200,"2")+COUNTIF($N$8:$N$200,"2")+COUNTIF($U$8:$U$200,"2")+COUNTIF('Field (Match 1)'!$H$7:$H$205,"2")+COUNTIF('Field (Match 1)'!$P$7:$P$205,"2")+COUNTIF('Field (Match 1)'!$X$7:$X$205,"2")+COUNTIF('Relay (Match 1)'!$J$10:$J$208,"2") -> 13 | P4: Boys | Q4: =COUNTA('Boys (Match 1)'!B4:B20,'Boys (Match 1)'!B24:B48,'Boys (Match 1)'!B52:B78,'Boys (Match 1)'!V52:V78,'Boys (Match 1)'!V4:V20,'Boys (Match 1)'!V24:V48,'Boys (Match 1)'!AP4:AP20,'Boys (Match 1)'!AP24:AP48,'Boys (Match 1)'!AP52:AP78) -> 82 | S4: Scored | T4: =AC2+'Field (Match 1)'!AH2+'Relay (Match 1)'!P2 -> 82 | V4: Field (Match 2) | AC4: Cancelled | AD4: =MatchDay!B13 -> 8 | AF4: =MatchDay!B52 -> 2 | AG4: =MatchDay!C52 -> 5 | AH4: =SUM(AG4:AG5)/LEN($AH$2) -> 4.5 | AI4: =SUM(AG4:AG6)/LEN($AI$2) -> 4 | AJ4: =SUM(AG4:AG7)/LEN($AJ$2) -> 3.5 | AK4: =SUM(AG4:AG8)/LEN($AK$2) -> 3 | AL4: -
B5: =MatchDay!C13 -> City of York | E5: =AA2+'Field (Match 1)'!AF2+'Relay (Match 1)'!N2 -> 402 | F5: =RANK(E5,$E$4:$E$6) -> 3 | G5: =IF(OR(F5=0,F5=""),"",VLOOKUP(F5,matchpoints,2,FALSE)) -> 1 | K5: = League Records | L5: =COUNTIF($G$8:$G$200,"LR=")+COUNTIF($N$8:$N$200,"LR=")+COUNTIF($U$8:$U$200,"LR=")+COUNTIF('Field (Match 1)'!$H$7:$H$205,"LR=")+COUNTIF('Field (Match 1)'!$P$7:$P$205,"LR=")+COUNTIF('Field (Match 1)'!$X$7:$X$205,"LR=")+COUNTIF('Relay (Match 1)'!$J$10:$J$208,"LR=") -> 0 | M5: Grade 3 | N5: =COUNTIF($G$8:$G$200,"3")+COUNTIF($N$8:$N$200,"3")+COUNTIF($U$8:$U$200,"3")+COUNTIF('Field (Match 1)'!$H$7:$H$205,"3")+COUNTIF('Field (Match 1)'!$P$7:$P$205,"3")+COUNTIF('Field (Match 1)'!$X$7:$X$205,"3")+COUNTIF('Relay (Match 1)'!$J$10:$J$208,"3") -> 22 | P5: Girls | Q5: =COUNTA('Girls (Match 1)'!B4:B20,'Girls (Match 1)'!B24:B48,'Girls (Match 1)'!B52:B78,'Girls (Match 1)'!V4:V20,'Girls (Match 1)'!V24:V48,'Girls (Match 1)'!V52:V78,'Girls (Match 1)'!AP4:AP20,'Girls (Match 1)'!AP24:AP48,'Girls (Match 1)'!AP52:AP78) -> 81 | S5: Not Held | T5: =AC5+'Field (Match 1)'!AH5+'Relay (Match 1)'!P5 -> 0 | AC5: =COUNTIF($C$8:$C$200,"101")+COUNTIF($J$8:$J$200,"101")+COUNTIF($Q$8:$Q$200,"101")+COUNTIF($C$8:$C$200,"102")+COUNTIF($J$8:$J$200,"102")+COUNTIF($Q$8:$Q$200,"102")+COUNTIF($C$8:$C$200,"103")+COUNTIF($J$8:$J$200,"103")+COUNTIF($Q$8:$Q$200,"103") -> 0 | AD5: =MatchDay!B15 -> 7 | AF5: =MatchDay!B54 -> 3 | AG5: =MatchDay!C54 -> 4 | AH5: =SUM(AG5:AG6)/LEN($AH$2) -> 3.5 | AI5: =SUM(AG5:AG7)/LEN($AI$2) -> 3 | AJ5: =SUM(AG5:AG8)/LEN($AJ$2) -> 2.5 | AK5: -
B6: =MatchDay!C15 -> Leeds City | E6: =AB2+'Field (Match 1)'!AG2+'Relay (Match 1)'!O2 -> 560 | F6: =RANK(E6,$E$4:$E$6) -> 2 | G6: =IF(OR(F6=0,F6=""),"",VLOOKUP(F6,matchpoints,2,FALSE)) -> 2 | K6: Grade 1 | L6: =COUNTIF($G$8:$G$200,"1")+COUNTIF($N$8:$N$200,"1")+COUNTIF($U$8:$U$200,"1")+COUNTIF('Field (Match 1)'!$H$7:$H$205,"1")+COUNTIF('Field (Match 1)'!$P$7:$P$205,"1")+COUNTIF('Field (Match 1)'!$X$7:$X$205,"1")+COUNTIF('Relay (Match 1)'!$J$10:$J$208,"1") -> 5 | M6: Grade 4 | N6: =COUNTIF($G$8:$G$200,"4")+COUNTIF($N$8:$N$200,"4")+COUNTIF($U$8:$U$200,"4")+COUNTIF('Field (Match 1)'!$H$7:$H$205,"4")+COUNTIF('Field (Match 1)'!$P$7:$P$205,"4")+COUNTIF('Field (Match 1)'!$X$7:$X$205,"4")+COUNTIF('Relay (Match 1)'!$J$10:$J$208,"4") -> 37 | S6: Not Scored | T6: =47+25+10-T4-T5 -> 0 | V6: Relay Match 2 | AD6: =IF(T(AD3)="",AD3*11,CONCATENATE(AD3,AD3)) -> 99 | AF6: =MatchDay!B56 -> 4 | AG6: =MatchDay!C56 -> 3 | AH6: =SUM(AG6:AG7)/LEN($AH$2) -> 2.5 | AI6: =SUM(AG6:AG8)/LEN($AI$2) -> 2 | AJ6: -
AD7: =IF(T(AD4)="",AD4*11,CONCATENATE(AD4,AD4)) -> 88 | AF7: =MatchDay!B58 -> 5 | AG7: =MatchDay!C58 -> 2 | AH7: =SUM(AG7:AG8)/LEN($AH$2) -> 1.5 | AI7: -
A8: =VLOOKUP(B8,eventno,5,FALSE) -> F | B8: T1 | C8: =VLOOKUP(B8,eventno,4,FALSE) -> U13G 70m H | E8: =IF(A11="W","Wind =","") -> Wind = | G8: =IF(OR(F10=0,F10="",A12=0,A12=""),"",IF(A10="T",IF(F10<A12,"LR",IF(F10=A12,"LR=","")))) ->  | H8: =VLOOKUP(I8,eventno,5,FALSE) -> M | I8: T2 | J8: =VLOOKUP(I8,eventno,4,FALSE) -> U13B 75m H | L8: =IF(H11="W","Wind =","") -> Wind = | N8: =IF(OR(M10=0,M10="",H12=0,H12=""),"",IF(H10="T",IF(M10<H12,"LR",IF(M10=H12,"LR=","")))) ->  | O8: =VLOOKUP(P8,eventno,5,FALSE) -> F | P8: T3 | Q8: =VLOOKUP(P8,eventno,4,FALSE) -> U15G 75m H | S8: =IF(O11="W","Wind =","") -> Wind = | U8: =IF(OR(T10=0,T10="",O12=0,O12=""),"",IF(O10="T",IF(T10<O12,"LR",IF(T10=O12,"LR=","")))) ->  | W8: =IF(OR(B8=0,B8="",C8=0,C8="",F8=0,F8="",LEFT(F8,1)="D"),0,VLOOKUP(B8,points,2,FALSE)) -> 0 | X8: =IF(OR(I8=0,I8="",J8=0,J8="",M8=0,M8="",LEFT(M8,1)="D"),0,VLOOKUP(I8,points,2,FALSE)) -> 0 | Y8: =IF(OR(P8=0,P8="",Q8=0,Q8="",T8=0,T8="",LEFT(T8,1)="D"),0,VLOOKUP(P8,points,2,FALSE)) -> 0 | AD8: =IF(T(AD5)="",AD5*11,CONCATENATE(AD5,AD5)) -> 77 | AF8: =MatchDay!B60 -> 6 | AG8: =MatchDay!C60 -> 1 | AH8: -
A9: =IF(A8="M",VLOOKUP(B8,males,15,FALSE),VLOOKUP(B8,females,15,FALSE)) -> 2 | B9: Posn | C9: Bib | D9: Athlete | E9: Club | F9: Perf | G9: Gr | H9: =IF(H8="M",VLOOKUP(I8,males,15,FALSE),VLOOKUP(I8,females,15,FALSE)) -> 2 | I9: Posn | J9: Bib | K9: Athlete | L9: Club | M9: Perf | N9: Gr | O9: =IF(O8="M",VLOOKUP(P8,males,15,FALSE),VLOOKUP(P8,females,15,FALSE)) -> 3 | P9: Posn | Q9: Bib | R9: Athlete | S9: Club | T9: Perf | U9: Gr | AD9: 101 | AF9: 1= | AG9: =AH3 -> 5.5
A10: =LEFT(B8,1) -> T | B10: 1 | C10: 8 | D10: =IF(OR(C10=0,C10=""),"",IF(A8="F",HLOOKUP(C10,females,A9,FALSE),IF(A8="M",HLOOKUP(C10,males,A9,FALSE),""))) -> Rachel White | E10: =IF(OR(C10=0,C10="",ISERROR(VLOOKUP(C10,match_teams,4,FALSE)=TRUE)),"",VLOOKUP(C10,match_teams,4,FALSE)) -> York | F10: 12.15 | G10: =IF(OR(F10=0,F10="",A13=0,A13="",A14=0,A14="",A15=0,A15="",A16=0,A16=""),"",IF(F10<=A13,1,IF(F10<=A14,2,IF(F10<=A15,3,IF(F10<=A16,4,""))))) -> 1 | H10: =LEFT(I8,1) -> T | I10: 1 | J10: 8 | K10: =IF(OR(J10=0,J10=""),"",IF(H8="F",HLOOKUP(J10,females,H9,FALSE),IF(H8="M",HLOOKUP(J10,males,H9,FALSE),""))) -> Alex Botterill | L10: =IF(OR(J10=0,J10="",ISERROR(VLOOKUP(J10,match_teams,4,FALSE)=TRUE)),"",VLOOKUP(J10,match_teams,4,FALSE)) -> York | M10: 15.48 | N10: =IF(OR(M10=0,M10="",H13=0,H13="",H14=0,H14="",H15=0,H15="",H16=0,H16=""),"",IF(M10<=H13,1,IF(M10<=H14,2,IF(M10<=H15,3,IF(M10<=H16,4,""))))) ->  | O10: =LEFT(P8,1) -> T | P10: 1 | Q10: 77 | R10: =IF(OR(Q10=0,Q10=""),"",IF(O8="F",HLOOKUP(Q10,females,O9,FALSE),IF(O8="M",HLOOKUP(Q10,males,O9,FALSE),""))) -> Caoimhe Crampton | S10: =IF(OR(Q10=0,Q10="",ISERROR(VLOOKUP(Q10,match_teams,4,FALSE)=TRUE)),"",VLOOKUP(Q10,match_teams,4,FALSE)) -> Leeds C | T10: 11.8 | U10: =IF(OR(T10=0,T10="",O13=0,O13="",O14=0,O14="",O15=0,O15="",O16=0,O16=""),"",IF(T10<=O13,1,IF(T10<=O14,2,IF(T10<=O15,3,IF(T10<=O16,4,""))))) -> 1 | W10: 6 | X10: 6 | Y10: 6 | AD10: 102 | AF10: 1== | AG10: =AI3 -> 5
A11: =VLOOKUP(B8,eventno,6,FALSE) -> W | B11: 2 | C11: 88 | D11: =IF(OR(C11=0,C11=""),"",IF(A8="F",HLOOKUP(C11,females,A9,FALSE),IF(A8="M",HLOOKUP(C11,males,A9,FALSE),""))) -> Charlotte Stamp | E11: York | F11: 13.3 | G11: =IF(OR(F11=0,F11="",A13=0,A13="",A14=0,A14="",A15=0,A15="",A16=0,A16=""),"",IF(F11<=A13,1,IF(F11<=A14,2,IF(F11<=A15,3,IF(F11<=A16,4,""))))) -> 4 | H11: =VLOOKUP(I8,eventno,6,FALSE) -> W | I11: 2 | J11: 9 | K11: =IF(OR(J11=0,J11=""),"",IF(H8="F",HLOOKUP(J11,females,H9,FALSE),IF(H8="M",HLOOKUP(J11,males,H9,FALSE),""))) -> Dylan Roberts | L11: Wake | M11: 15.91 | N11: =IF(OR(M11=0,M11="",H13=0,H13="",H14=0,H14="",H15=0,H15="",H16=0,H16=""),"",IF(M11<=H13,1,IF(M11<=H14,2,IF(M11<=H15,3,IF(M11<=H16,4,""))))) ->  | O11: =VLOOKUP(P8,eventno,6,FALSE) -> W | P11: 2 | Q11: 8 | R11: =IF(OR(Q11=0,Q11=""),"",IF(O8="F",HLOOKUP(Q11,females,O9,FALSE),IF(O8="M",HLOOKUP(Q11,males,O9,FALSE),""))) -> Josie Parry | S11: York | T11: 12 | U11: =IF(OR(T11=0,T11="",O13=0,O13="",O14=0,O14="",O15=0,O15="",O16=0,O16=""),"",IF(T11<=O13,1,IF(T11<=O14,2,IF(T11<=O15,3,IF(T11<=O16,4,""))))) -> 1 | W11: 5 | X11: 5 | Y11: 5 | AD11: 103 | AF11: 1=== | AG11: =AJ3 -> 4.5
A12: =VLOOKUP(B8,eventno,7,FALSE) -> 11.1 | B12: 3 | C12: 7 | D12: =IF(OR(C12=0,C12=""),"",IF(A8="F",HLOOKUP(C12,females,A9,FALSE),IF(A8="M",HLOOKUP(C12,males,A9,FALSE),""))) -> Jessica Barker | E12: Leeds C | F12: 13.83 | G12: =IF(OR(F12=0,F12="",A13=0,A13="",A14=0,A14="",A15=0,A15="",A16=0,A16=""),"",IF(F12<=A13,1,IF(F12<=A14,2,IF(F12<=A15,3,IF(F12<=A16,4,""))))) ->  | H12: =VLOOKUP(I8,eventno,7,FALSE) -> 11.9 | I12: 3 | J12: 7 | K12: =IF(OR(J12=0,J12=""),"",IF(H8="F",HLOOKUP(J12,females,H9,FALSE),IF(H8="M",HLOOKUP(J12,males,H9,FALSE),""))) -> Owen Sage | L12: Leeds C | M12: 16.71 | N12: =IF(OR(M12=0,M12="",H13=0,H13="",H14=0,H14="",H15=0,H15="",H16=0,H16=""),"",IF(M12<=H13,1,IF(M12<=H14,2,IF(M12<=H15,3,IF(M12<=H16,4,""))))) ->  | O12: =VLOOKUP(P8,eventno,7,FALSE) -> 11.1 | P12: 3 | Q12: 7 | R12: =IF(OR(Q12=0,Q12=""),"",IF(O8="F",HLOOKUP(Q12,females,O9,FALSE),IF(O8="M",HLOOKUP(Q12,males,O9,FALSE),""))) -> Melissa Fletcher | S12: Leeds C | T12: 12.23 | U12: =IF(OR(T12=0,T12="",O13=0,O13="",O14=0,O14="",O15=0,O15="",O16=0,O16=""),"",IF(T12<=O13,1,IF(T12<=O14,2,IF(T12<=O15,3,IF(T12<=O16,4,""))))) -> 2 | W12: 4 | X12: 4 | Y12: 4 | AD12: 104 | AF12: 1==== | AG12: =AK3 -> 4
A13: =VLOOKUP(B8,eventno,8,FALSE) -> 12.2 | B13: 4 | C13: 77 | D13: =IF(OR(C13=0,C13=""),"",IF(A8="F",HLOOKUP(C13,females,A9,FALSE),IF(A8="M",HLOOKUP(C13,males,A9,FALSE),""))) -> Megan Sanders | E13: Leeds C | F13: 13.83 | G13: =IF(OR(F13=0,F13="",A13=0,A13="",A14=0,A14="",A15=0,A15="",A16=0,A16=""),"",IF(F13<=A13,1,IF(F13<=A14,2,IF(F13<=A15,3,IF(F13<=A16,4,""))))) ->  | H13: =VLOOKUP(I8,eventno,8,FALSE) -> 13 | I13: 4 | J13: 99 | K13: =IF(OR(J13=0,J13=""),"",IF(H8="F",HLOOKUP(J13,females,H9,FALSE),IF(H8="M",HLOOKUP(J13,males,H9,FALSE),""))) -> Harry England | L13: Wake | M13: 16.87 | N13: =IF(OR(M13=0,M13="",H13=0,H13="",H14=0,H14="",H15=0,H15="",H16=0,H16=""),"",IF(M13<=H13,1,IF(M13<=H14,2,IF(M13<=H15,3,IF(M13<=H16,4,""))))) ->  | O13: =VLOOKUP(P8,eventno,8,FALSE) -> 12 | P13: 4 | Q13: 88 | R13: =IF(OR(Q13=0,Q13=""),"",IF(O8="F",HLOOKUP(Q13,females,O9,FALSE),IF(O8="M",HLOOKUP(Q13,males,O9,FALSE),""))) -> Chelsea Walker | S13: York | T13: 12.6 | U13: =IF(OR(T13=0,T13="",O13=0,O13="",O14=0,O14="",O15=0,O15="",O16=0,O16=""),"",IF(T13<=O13,1,IF(T13<=O14,2,IF(T13<=O15,3,IF(T13<=O16,4,""))))) -> 3 | W13: 3 | X13: 3 | Y13: 3 | AF13: 1===== | AG13: =AL3 -> 3.5
A14: =VLOOKUP(B8,eventno,9,FALSE) -> 12.5 | B14: 5 | C14: 9 | D14: =IF(OR(C14=0,C14=""),"",IF(A8="F",HLOOKUP(C14,females,A9,FALSE),IF(A8="M",HLOOKUP(C14,males,A9,FALSE),""))) -> Charlotte Sampson | E14: Wake | F14: 14.58 | G14: =IF(OR(F14=0,F14="",A13=0,A13="",A14=0,A14="",A15=0,A15="",A16=0,A16=""),"",IF(F14<=A13,1,IF(F14<=A14,2,IF(F14<=A15,3,IF(F14<=A16,4,""))))) ->  | H14: =VLOOKUP(I8,eventno,9,FALSE) -> 13.4 | I14: 5 | J14: 77 | K14: =IF(OR(J14=0,J14=""),"",IF(H8="F",HLOOKUP(J14,females,H9,FALSE),IF(H8="M",HLOOKUP(J14,males,H9,FALSE),""))) -> Khalil Abdelaziz | L14: Leeds C | M14: 17.36 | N14: =IF(OR(M14=0,M14="",H13=0,H13="",H14=0,H14="",H15=0,H15="",H16=0,H16=""),"",IF(M14<=H13,1,IF(M14<=H14,2,IF(M14<=H15,3,IF(M14<=H16,4,""))))) ->  | O14: =VLOOKUP(P8,eventno,9,FALSE) -> 12.3 | P14: 5 | R14: =IF(OR(Q14=0,Q14=""),"",IF(O8="F",HLOOKUP(Q14,females,O9,FALSE),IF(O8="M",HLOOKUP(Q14,males,O9,FALSE),""))) ->  | U14: =IF(OR(T14=0,T14="",O13=0,O13="",O14=0,O14="",O15=0,O15="",O16=0,O16=""),"",IF(T14<=O13,1,IF(T14<=O14,2,IF(T14<=O15,3,IF(T14<=O16,4,""))))) ->  | W14: 2 | X14: 2 | Y14: 0 | AF14: 2= | AG14: =AH4 -> 4.5
A15: =VLOOKUP(B8,eventno,10,FALSE) -> 12.8 | B15: 6 | C15: 99 | D15: =IF(OR(C15=0,C15=""),"",IF(A8="F",HLOOKUP(C15,females,A9,FALSE),IF(A8="M",HLOOKUP(C15,males,A9,FALSE),""))) -> Niamh Docherty | E15: Wake | F15: 16.46 | G15: =IF(OR(F15=0,F15="",A13=0,A13="",A14=0,A14="",A15=0,A15="",A16=0,A16=""),"",IF(F15<=A13,1,IF(F15<=A14,2,IF(F15<=A15,3,IF(F15<=A16,4,""))))) ->  | H15: =VLOOKUP(I8,eventno,10,FALSE) -> 14 | I15: 6 | K15: =IF(OR(J15=0,J15=""),"",IF(H8="F",HLOOKUP(J15,females,H9,FALSE),IF(H8="M",HLOOKUP(J15,males,H9,FALSE),""))) ->  | N15: =IF(OR(M15=0,M15="",H13=0,H13="",H14=0,H14="",H15=0,H15="",H16=0,H16=""),"",IF(M15<=H13,1,IF(M15<=H14,2,IF(M15<=H15,3,IF(M15<=H16,4,""))))) ->  | O15: =VLOOKUP(P8,eventno,10,FALSE) -> 12.7 | P15: 6 | R15: =IF(OR(Q15=0,Q15=""),"",IF(O8="F",HLOOKUP(Q15,females,O9,FALSE),IF(O8="M",HLOOKUP(Q15,males,O9,FALSE),""))) ->  | U15: =IF(OR(T15=0,T15="",O13=0,O13="",O14=0,O14="",O15=0,O15="",O16=0,O16=""),"",IF(T15<=O13,1,IF(T15<=O14,2,IF(T15<=O15,3,IF(T15<=O16,4,""))))) ->  | W15: =IF(OR(B15=0,B15="",C15=0,C15="",F15=0,F15="",LEFT(F15,1)="D"),0,VLOOKUP(B15,points,2,FALSE)) -> 1 | X15: =IF(OR(I15=0,I15="",J15=0,J15="",M15=0,M15="",LEFT(M15,1)="D"),0,VLOOKUP(I15,points,2,FALSE)) -> 0 | Y15: =IF(OR(P15=0,P15="",Q15=0,Q15="",T15=0,T15="",LEFT(T15,1)="D"),0,VLOOKUP(P15,points,2,FALSE)) -> 0 | AF15: 2== | AG15: =AI4 -> 4
A16: =VLOOKUP(B8,eventno,11,FALSE) -> 13.4 | H16: =VLOOKUP(I8,eventno,11,FALSE) -> 15.2 | O16: =VLOOKUP(P8,eventno,11,FALSE) -> 13.3 | W16: 0 | X16: 0 | Y16: 0 | AF16: 2=== | AG16: =AJ4 -> 3.5
A17: =VLOOKUP(B17,eventno,5,FALSE) -> F | B17: T4 | C17: =VLOOKUP(B17,eventno,4,FALSE) -> U17W 80m H | E17: =IF(A20="W","Wind =","") -> Wind = | G17: =IF(OR(F19=0,F19="",A21=0,A21=""),"",IF(A19="T",IF(F19<A21,"LR",IF(F19=A21,"LR=","")))) ->  | H17: =VLOOKUP(I17,eventno,5,FALSE) -> M | I17: T5 | J17: =VLOOKUP(I17,eventno,4,FALSE) -> U15B 80m H | L17: =IF(H20="W","Wind =","") -> Wind = | N17: =IF(OR(M19=0,M19="",H21=0,H21=""),"",IF(H19="T",IF(M19<H21,"LR",IF(M19=H21,"LR=","")))) ->  | O17: =VLOOKUP(P17,eventno,5,FALSE) -> M | P17: T6 | Q17: =VLOOKUP(P17,eventno,4,FALSE) -> U17M 100m H | S17: =IF(O20="W","Wind =","") -> Wind = | U17: =IF(OR(T19=0,T19="",O21=0,O21=""),"",IF(O19="T",IF(T19<O21,"LR",IF(T19=O21,"LR=","")))) ->  | W17: 0 | X17: 0 | Y17: 0 | AF17: 2==== | AG17: =AK4 -> 3
A18: =IF(A17="M",VLOOKUP(B17,males,15,FALSE),VLOOKUP(B17,females,15,FALSE)) -> 4 | B18: Posn | C18: Bib | D18: Athlete | E18: Club | F18: Perf | G18: Gr | H18: =IF(H17="M",VLOOKUP(I17,males,15,FALSE),VLOOKUP(I17,females,15,FALSE)) -> 3 | I18: Posn | J18: Bib | K18: Athlete | L18: Club | M18: Perf | N18: Gr | O18: =IF(O17="M",VLOOKUP(P17,males,15,FALSE),VLOOKUP(P17,females,15,FALSE)) -> 4 | P18: Posn | Q18: Bib | R18: Athlete | S18: Club | T18: Perf | U18: Gr | AF18: 3= | AG18: =AH5 -> 3.5
A19: =LEFT(B17,1) -> T | B19: 1 | C19: 9 | D19: =IF(OR(C19=0,C19=""),"",IF(A17="F",HLOOKUP(C19,females,A18,FALSE),IF(A17="M",HLOOKUP(C19,males,A18,FALSE),""))) -> Bethany Porter | E19: =IF(OR(C19=0,C19="",ISERROR(VLOOKUP(C19,match_teams,4,FALSE)=TRUE)),"",VLOOKUP(C19,match_teams,4,FALSE)) -> Wake | F19: 12.49 | G19: =IF(OR(F19=0,F19="",A22=0,A22="",A23=0,A23="",A24=0,A24="",A25=0,A25=""),"",IF(F19<=A22,1,IF(F19<=A23,2,IF(F19<=A24,3,IF(F19<=A25,4,""))))) -> 3 | H19: =LEFT(I17,1) -> T | I19: 1 | J19: 7 | K19: =IF(OR(J19=0,J19=""),"",IF(H17="F",HLOOKUP(J19,females,H18,FALSE),IF(H17="M",HLOOKUP(J19,males,H18,FALSE),""))) -> Jacob Fincham-Dukes | L19: =IF(OR(J19=0,J19="",ISERROR(VLOOKUP(J19,match_teams,4,FALSE)=TRUE)),"",VLOOKUP(J19,match_teams,4,FALSE)) -> Leeds C | M19: 12.51 | N19: =IF(OR(M19=0,M19="",H22=0,H22="",H23=0,H23="",H24=0,H24="",H25=0,H25=""),"",IF(M19<=H22,1,IF(M19<=H23,2,IF(M19<=H24,3,IF(M19<=H25,4,""))))) -> 3 | O19: =LEFT(P17,1) -> T | P19: 1 | Q19: 7 | R19: =IF(OR(Q19=0,Q19=""),"",IF(O17="F",HLOOKUP(Q19,females,O18,FALSE),IF(O17="M",HLOOKUP(Q19,males,O18,FALSE),""))) -> Matthew Campleman | S19: =IF(OR(Q19=0,Q19="",ISERROR(VLOOKUP(Q19,match_teams,4,FALSE)=TRUE)),"",VLOOKUP(Q19,match_teams,4,FALSE)) -> Leeds C | T19: 14.93 | U19: =IF(OR(T19=0,T19="",O22=0,O22="",O23=0,O23="",O24=0,O24="",O25=0,O25=""),"",IF(T19<=O22,1,IF(T19<=O23,2,IF(T19<=O24,3,IF(T19<=O25,4,""))))) -> 4 | W19: 6 | X19: 6 | Y19: 6 | AF19: 3== | AG19: =AI5 -> 3
A20: =VLOOKUP(B17,eventno,6,FALSE) -> W | B20: 2 | C20: 7 | D20: =IF(OR(C20=0,C20=""),"",IF(A17="F",HLOOKUP(C20,females,A18,FALSE),IF(A17="M",HLOOKUP(C20,males,A18,FALSE),""))) -> Hannah Ukandu | E20: Leeds C | F20: 13.36 | G20: =IF(OR(F20=0,F20="",A22=0,A22="",A23=0,A23="",A24=0,A24="",A25=0,A25=""),"",IF(F20<=A22,1,IF(F20<=A23,2,IF(F20<=A24,3,IF(F20<=A25,4,""))))) ->  | H20: =VLOOKUP(I17,eventno,6,FALSE) -> W | I20: 2 | J20: 9 | K20: =IF(OR(J20=0,J20=""),"",IF(H17="F",HLOOKUP(J20,females,H18,FALSE),IF(H17="M",HLOOKUP(J20,males,H18,FALSE),""))) -> Patrick Thackray | L20: Wake | M20: 13.8 | N20: =IF(OR(M20=0,M20="",H22=0,H22="",H23=0,H23="",H24=0,H24="",H25=0,H25=""),"",IF(M20<=H22,1,IF(M20<=H23,2,IF(M20<=H24,3,IF(M20<=H25,4,""))))) ->  | O20: =VLOOKUP(P17,eventno,6,FALSE) -> W | P20: 2 | Q20: 8 | R20: =IF(OR(Q20=0,Q20=""),"",IF(O17="F",HLOOKUP(Q20,females,O18,FALSE),IF(O17="M",HLOOKUP(Q20,males,O18,FALSE),""))) -> Adam Robinson | S20: York | T20: 15.58 | U20: =IF(OR(T20=0,T20="",O22=0,O22="",O23=0,O23="",O24=0,O24="",O25=0,O25=""),"",IF(T20<=O22,1,IF(T20<=O23,2,IF(T20<=O24,3,IF(T20<=O25,4,""))))) ->  | W20: 5 | X20: 5 | Y20: 5 | AF20: 3=== | AG20: =AJ5 -> 2.5
A21: =VLOOKUP(B17,eventno,7,FALSE) -> 11.2 | B21: 3 | C21: 99 | D21: =IF(OR(C21=0,C21=""),"",IF(A17="F",HLOOKUP(C21,females,A18,FALSE),IF(A17="M",HLOOKUP(C21,males,A18,FALSE),""))) -> Dannielle Anderson | E21: Wake | F21: 13.76 | G21: =IF(OR(F21=0,F21="",A22=0,A22="",A23=0,A23="",A24=0,A24="",A25=0,A25=""),"",IF(F21<=A22,1,IF(F21<=A23,2,IF(F21<=A24,3,IF(F21<=A25,4,""))))) ->  | H21: =VLOOKUP(I17,eventno,7,FALSE) -> 10.9 | I21: 3 | J21: 77 | K21: =IF(OR(J21=0,J21=""),"",IF(H17="F",HLOOKUP(J21,females,H18,FALSE),IF(H17="M",HLOOKUP(J21,males,H18,FALSE),""))) -> Jack Gape | L21: Leeds C | M21: 13.8 | N21: =IF(OR(M21=0,M21="",H22=0,H22="",H23=0,H23="",H24=0,H24="",H25=0,H25=""),"",IF(M21<=H22,1,IF(M21<=H23,2,IF(M21<=H24,3,IF(M21<=H25,4,""))))) ->  | O21: =VLOOKUP(P17,eventno,7,FALSE) -> 12.8 | P21: 3 | Q21: 9 | R21: =IF(OR(Q21=0,Q21=""),"",IF(O17="F",HLOOKUP(Q21,females,O18,FALSE),IF(O17="M",HLOOKUP(Q21,males,O18,FALSE),""))) -> George Brown | S21: Wake | T21: 16.37 | U21: =IF(OR(T21=0,T21="",O22=0,O22="",O23=0,O23="",O24=0,O24="",O25=0,O25=""),"",IF(T21<=O22,1,IF(T21<=O23,2,IF(T21<=O24,3,IF(T21<=O25,4,""))))) ->  | W21: 4 | X21: 4 | Y21: 4 | AF21: 4= | AG21: =AH6 -> 2.5
A22: =VLOOKUP(B17,eventno,8,FALSE) -> 12 | B22: 4 | C22: 88 | D22: =IF(OR(C22=0,C22=""),"",IF(A17="F",HLOOKUP(C22,females,A18,FALSE),IF(A17="M",HLOOKUP(C22,males,A18,FALSE),""))) -> Polly Morris | E22: York | F22: 14.91 | G22: =IF(OR(F22=0,F22="",A22=0,A22="",A23=0,A23="",A24=0,A24="",A25=0,A25=""),"",IF(F22<=A22,1,IF(F22<=A23,2,IF(F22<=A24,3,IF(F22<=A25,4,""))))) ->  | H22: =VLOOKUP(I17,eventno,8,FALSE) -> 11.9 | I22: 4 | J22: 99 | K22: =IF(OR(J22=0,J22=""),"",IF(H17="F",HLOOKUP(J22,females,H18,FALSE),IF(H17="M",HLOOKUP(J22,males,H18,FALSE),""))) -> Declan Sheehan | L22: Wake | M22: 15.16 | N22: =IF(OR(M22=0,M22="",H22=0,H22="",H23=0,H23="",H24=0,H24="",H25=0,H25=""),"",IF(M22<=H22,1,IF(M22<=H23,2,IF(M22<=H24,3,IF(M22<=H25,4,""))))) ->  | O22: =VLOOKUP(P17,eventno,8,FALSE) -> 13.7 | P22: 4 | Q22: 77 | R22: =IF(OR(Q22=0,Q22=""),"",IF(O17="F",HLOOKUP(Q22,females,O18,FALSE),IF(O17="M",HLOOKUP(Q22,males,O18,FALSE),""))) -> Andrew Russell | S22: Leeds C | T22: 16.95 | U22: =IF(OR(T22=0,T22="",O22=0,O22="",O23=0,O23="",O24=0,O24="",O25=0,O25=""),"",IF(T22<=O22,1,IF(T22<=O23,2,IF(T22<=O24,3,IF(T22<=O25,4,""))))) ->  | W22: 3 | X22: 3 | Y22: 3 | AF22: 4== | AG22: =AI6 -> 2
A23: =VLOOKUP(B17,eventno,9,FALSE) -> 12.2 | B23: 5 | C23: 77 | D23: =IF(OR(C23=0,C23=""),"",IF(A17="F",HLOOKUP(C23,females,A18,FALSE),IF(A17="M",HLOOKUP(C23,males,A18,FALSE),""))) -> Melody Peterson | E23: Leeds C | F23: 15.35 | G23: =IF(OR(F23=0,F23="",A22=0,A22="",A23=0,A23="",A24=0,A24="",A25=0,A25=""),"",IF(F23<=A22,1,IF(F23<=A23,2,IF(F23<=A24,3,IF(F23<=A25,4,""))))) ->  | H23: =VLOOKUP(I17,eventno,9,FALSE) -> 12.2 | I23: 5 | J23: 8 | K23: =IF(OR(J23=0,J23=""),"",IF(H17="F",HLOOKUP(J23,females,H18,FALSE),IF(H17="M",HLOOKUP(J23,males,H18,FALSE),""))) -> Tom Wood | L23: York | M23: 16.67 | N23: =IF(OR(M23=0,M23="",H22=0,H22="",H23=0,H23="",H24=0,H24="",H25=0,H25=""),"",IF(M23<=H22,1,IF(M23<=H23,2,IF(M23<=H24,3,IF(M23<=H25,4,""))))) ->  | O23: =VLOOKUP(P17,eventno,9,FALSE) -> 14 | P23: 5 | R23: =IF(OR(Q23=0,Q23=""),"",IF(O17="F",HLOOKUP(Q23,females,O18,FALSE),IF(O17="M",HLOOKUP(Q23,males,O18,FALSE),""))) ->  | U23: =IF(OR(T23=0,T23="",O22=0,O22="",O23=0,O23="",O24=0,O24="",O25=0,O25=""),"",IF(T23<=O22,1,IF(T23<=O23,2,IF(T23<=O24,3,IF(T23<=O25,4,""))))) ->  | W23: 2 | X23: 2 | Y23: 0 | AF23: 5= | AG23: =AH7 -> 1.5
A24: =VLOOKUP(B17,eventno,10,FALSE) -> 12.7 | B24: 6 | C24: 8 | D24: =IF(OR(C24=0,C24=""),"",IF(A17="F",HLOOKUP(C24,females,A18,FALSE),IF(A17="M",HLOOKUP(C24,males,A18,FALSE),""))) -> Megan Savage | E24: York | F24: 16.24 | G24: =IF(OR(F24=0,F24="",A22=0,A22="",A23=0,A23="",A24=0,A24="",A25=0,A25=""),"",IF(F24<=A22,1,IF(F24<=A23,2,IF(F24<=A24,3,IF(F24<=A25,4,""))))) ->  | H24: =VLOOKUP(I17,eventno,10,FALSE) -> 12.7 | I24: 6 | J24: 88 | K24: =IF(OR(J24=0,J24=""),"",IF(H17="F",HLOOKUP(J24,females,H18,FALSE),IF(H17="M",HLOOKUP(J24,males,H18,FALSE),""))) -> Phil Nesom | L24: York | M24: 18.33 | N24: =IF(OR(M24=0,M24="",H22=0,H22="",H23=0,H23="",H24=0,H24="",H25=0,H25=""),"",IF(M24<=H22,1,IF(M24<=H23,2,IF(M24<=H24,3,IF(M24<=H25,4,""))))) ->  | O24: =VLOOKUP(P17,eventno,10,FALSE) -> 14.6 | P24: 6 | R24: =IF(OR(Q24=0,Q24=""),"",IF(O17="F",HLOOKUP(Q24,females,O18,FALSE),IF(O17="M",HLOOKUP(Q24,males,O18,FALSE),""))) ->  | U24: =IF(OR(T24=0,T24="",O22=0,O22="",O23=0,O23="",O24=0,O24="",O25=0,O25=""),"",IF(T24<=O22,1,IF(T24<=O23,2,IF(T24<=O24,3,IF(T24<=O25,4,""))))) ->  | W24: 1 | X24: 1 | Y24: 0
A25: =VLOOKUP(B17,eventno,11,FALSE) -> 13.2 | H25: =VLOOKUP(I17,eventno,11,FALSE) -> 13.4 | O25: =VLOOKUP(P17,eventno,11,FALSE) -> 15.4 | W25: 0 | X25: 0 | Y25: 0 | AF25: Match
A26: =VLOOKUP(B26,eventno,5,FALSE) -> F | B26: T7 | C26: =VLOOKUP(B26,eventno,4,FALSE) -> U17W 800m | E26: =IF(A29="W","Wind =","") ->  | G26: =IF(OR(F28=0,F28="",A30=0,A30=""),"",IF(A28="T",IF(F28<A30,"LR",IF(F28=A30,"LR=","")))) ->  | H26: =VLOOKUP(I26,eventno,5,FALSE) -> F | I26: T8 | J26: =VLOOKUP(I26,eventno,4,FALSE) -> U15G 800m | L26: =IF(H29="W","Wind =","") ->  | N26: =IF(OR(M28=0,M28="",H30=0,H30=""),"",IF(H28="T",IF(M28<H30,"LR",IF(M28=H30,"LR=","")))) ->  | O26: =VLOOKUP(P26,eventno,5,FALSE) -> F | P26: T9 | Q26: =VLOOKUP(P26,eventno,4,FALSE) -> U13G 800m | S26: =IF(O29="W","Wind =","") ->  | U26: =IF(OR(T28=0,T28="",O30=0,O30=""),"",IF(O28="T",IF(T28<O30,"LR",IF(T28=O30,"LR=","")))) ->  | W26: 0 | X26: 0 | Y26: 0 | AF26: 1 | AG26: 3
A27: =IF(A26="M",VLOOKUP(B26,males,15,FALSE),VLOOKUP(B26,females,15,FALSE)) -> 5 | B27: Posn | C27: Bib | D27: Athlete | E27: Club | F27: Perf | G27: Gr | H27: =IF(H26="M",VLOOKUP(I26,males,15,FALSE),VLOOKUP(I26,females,15,FALSE)) -> 6 | I27: Posn | J27: Bib | K27: Athlete | L27: Club | M27: Perf | N27: Gr | O27: =IF(O26="M",VLOOKUP(P26,males,15,FALSE),VLOOKUP(P26,females,15,FALSE)) -> 7 | P27: Posn | Q27: Bib | R27: Athlete | S27: Club | T27: Perf | U27: Gr | AF27: 2 | AG27: 2
A28: =LEFT(B26,1) -> T | B28: 1 | C28: 8 | D28: =IF(OR(C28=0,C28=""),"",IF(A26="F",HLOOKUP(C28,females,A27,FALSE),IF(A26="M",HLOOKUP(C28,males,A27,FALSE),""))) -> Kate Harris | E28: =IF(OR(C28=0,C28="",ISERROR(VLOOKUP(C28,match_teams,4,FALSE)=TRUE)),"",VLOOKUP(C28,match_teams,4,FALSE)) -> York | F28: 00:02:25.230 | G28: =IF(OR(F28=0,F28="",A31=0,A31="",A32=0,A32="",A33=0,A33="",A34=0,A34=""),"",IF(F28<=A31,1,IF(F28<=A32,2,IF(F28<=A33,3,IF(F28<=A34,4,""))))) -> 4 | H28: =LEFT(I26,1) -> T | I28: 1 | J28: 9 | K28: =IF(OR(J28=0,J28=""),"",IF(H26="F",HLOOKUP(J28,females,H27,FALSE),IF(H26="M",HLOOKUP(J28,males,H27,FALSE),""))) -> Sophie Woollin | L28: =IF(OR(J28=0,J28="",ISERROR(VLOOKUP(J28,match_teams,4,FALSE)=TRUE)),"",VLOOKUP(J28,match_teams,4,FALSE)) -> Wake | M28: 00:02:27.310 | N28: =IF(OR(M28=0,M28="",H31=0,H31="",H32=0,H32="",H33=0,H33="",H34=0,H34=""),"",IF(M28<=H31,1,IF(M28<=H32,2,IF(M28<=H33,3,IF(M28<=H34,4,""))))) -> 4 | O28: =LEFT(P26,1) -> T | P28: 1 | Q28: 8 | R28: =IF(OR(Q28=0,Q28=""),"",IF(O26="F",HLOOKUP(Q28,females,O27,FALSE),IF(O26="M",HLOOKUP(Q28,males,O27,FALSE),""))) -> Nicole Grenier | S28: =IF(OR(Q28=0,Q28="",ISERROR(VLOOKUP(Q28,match_teams,4,FALSE)=TRUE)),"",VLOOKUP(Q28,match_teams,4,FALSE)) -> York | T28: 00:02:40.230 | U28: =IF(OR(T28=0,T28="",O31=0,O31="",O32=0,O32="",O33=0,O33="",O34=0,O34=""),"",IF(T28<=O31,1,IF(T28<=O32,2,IF(T28<=O33,3,IF(T28<=O34,4,""))))) -> 4 | W28: 6 | X28: 6 | Y28: 6 | AF28: 3 | AG28: 1
A29: =VLOOKUP(B26,eventno,6,FALSE) -> 0 | B29: 2 | C29: 9 | D29: =IF(OR(C29=0,C29=""),"",IF(A26="F",HLOOKUP(C29,females,A27,FALSE),IF(A26="M",HLOOKUP(C29,males,A27,FALSE),""))) -> Zoe Kerins | E29: Wake | F29: 00:02:25.430 | G29: =IF(OR(F29=0,F29="",A31=0,A31="",A32=0,A32="",A33=0,A33="",A34=0,A34=""),"",IF(F29<=A31,1,IF(F29<=A32,2,IF(F29<=A33,3,IF(F29<=A34,4,""))))) -> 4 | H29: =VLOOKUP(I26,eventno,6,FALSE) -> 0 | I29: 2 | J29: 99 | K29: =IF(OR(J29=0,J29=""),"",IF(H26="F",HLOOKUP(J29,females,H27,FALSE),IF(H26="M",HLOOKUP(J29,males,H27,FALSE),""))) -> Rebecca Firth | L29: Wake | M29: 00:02:31.930 | N29: =IF(OR(M29=0,M29="",H31=0,H31="",H32=0,H32="",H33=0,H33="",H34=0,H34=""),"",IF(M29<=H31,1,IF(M29<=H32,2,IF(M29<=H33,3,IF(M29<=H34,4,""))))) ->  | O29: =VLOOKUP(P26,eventno,6,FALSE) -> 0 | P29: 2 | Q29: 9 | R29: =IF(OR(Q29=0,Q29=""),"",IF(O26="F",HLOOKUP(Q29,females,O27,FALSE),IF(O26="M",HLOOKUP(Q29,males,O27,FALSE),""))) -> Olivia Theaker | S29: Wake | T29: 00:02:42.690 | U29: =IF(OR(T29=0,T29="",O31=0,O31="",O32=0,O32="",O33=0,O33="",O34=0,O34=""),"",IF(T29<=O31,1,IF(T29<=O32,2,IF(T29<=O33,3,IF(T29<=O34,4,""))))) ->  | W29: 5 | X29: 5 | Y29: 5
A30: =VLOOKUP(B26,eventno,7,FALSE) -> 0.00150462963 | B30: 3 | C30: 7 | D30: =IF(OR(C30=0,C30=""),"",IF(A26="F",HLOOKUP(C30,females,A27,FALSE),IF(A26="M",HLOOKUP(C30,males,A27,FALSE),""))) -> Georgia Yearby | E30: Leeds C | F30: 00:02:25.980 | G30: =IF(OR(F30=0,F30="",A31=0,A31="",A32=0,A32="",A33=0,A33="",A34=0,A34=""),"",IF(F30<=A31,1,IF(F30<=A32,2,IF(F30<=A33,3,IF(F30<=A34,4,""))))) ->  | H30: =VLOOKUP(I26,eventno,7,FALSE) -> 0.001530092593 | I30: 3 | J30: 88 | K30: =IF(OR(J30=0,J30=""),"",IF(H26="F",HLOOKUP(J30,females,H27,FALSE),IF(H26="M",HLOOKUP(J30,males,H27,FALSE),""))) -> Libby Brown | L30: York | M30: 00:02:42.810 | N30: =IF(OR(M30=0,M30="",H31=0,H31="",H32=0,H32="",H33=0,H33="",H34=0,H34=""),"",IF(M30<=H31,1,IF(M30<=H32,2,IF(M30<=H33,3,IF(M30<=H34,4,""))))) ->  | O30: =VLOOKUP(P26,eventno,7,FALSE) -> 0.001619212963 | P30: 3 | Q30: 99 | R30: =IF(OR(Q30=0,Q30=""),"",IF(O26="F",HLOOKUP(Q30,females,O27,FALSE),IF(O26="M",HLOOKUP(Q30,males,O27,FALSE),""))) -> Niamh Docherty | S30: Wake | T30: 00:03:03.140 | U30: =IF(OR(T30=0,T30="",O31=0,O31="",O32=0,O32="",O33=0,O33="",O34=0,O34=""),"",IF(T30<=O31,1,IF(T30<=O32,2,IF(T30<=O33,3,IF(T30<=O34,4,""))))) ->  | W30: 4 | X30: 4 | Y30: 4
A31: =VLOOKUP(B26,eventno,8,FALSE) -> 0.001560185185 | B31: 4 | C31: 99 | D31: =IF(OR(C31=0,C31=""),"",IF(A26="F",HLOOKUP(C31,females,A27,FALSE),IF(A26="M",HLOOKUP(C31,males,A27,FALSE),""))) -> Olivia Radcliffe | E31: Wake | F31: 00:02:26.550 | G31: =IF(OR(F31=0,F31="",A31=0,A31="",A32=0,A32="",A33=0,A33="",A34=0,A34=""),"",IF(F31<=A31,1,IF(F31<=A32,2,IF(F31<=A33,3,IF(F31<=A34,4,""))))) ->  | H31: =VLOOKUP(I26,eventno,8,FALSE) -> 0.001614583333 | I31: 4 | J31: 7 | K31: =IF(OR(J31=0,J31=""),"",IF(H26="F",HLOOKUP(J31,females,H27,FALSE),IF(H26="M",HLOOKUP(J31,males,H27,FALSE),""))) -> Nicola Sawyer | L31: Leeds C | M31: 00:02:55.780 | N31: =IF(OR(M31=0,M31="",H31=0,H31="",H32=0,H32="",H33=0,H33="",H34=0,H34=""),"",IF(M31<=H31,1,IF(M31<=H32,2,IF(M31<=H33,3,IF(M31<=H34,4,""))))) ->  | O31: =VLOOKUP(P26,eventno,8,FALSE) -> 0.001730324074 | P31: 4 | Q31: 7 | R31: =IF(OR(Q31=0,Q31=""),"",IF(O26="F",HLOOKUP(Q31,females,O27,FALSE),IF(O26="M",HLOOKUP(Q31,males,O27,FALSE),""))) -> Lois Fish | S31: Leeds C | T31: 00:03:15.730 | U31: =IF(OR(T31=0,T31="",O31=0,O31="",O32=0,O32="",O33=0,O33="",O34=0,O34=""),"",IF(T31<=O31,1,IF(T31<=O32,2,IF(T31<=O33,3,IF(T31<=O34,4,""))))) ->  | W31: 3 | X31: 3 | Y31: 3
A32: =VLOOKUP(B26,eventno,9,FALSE) -> 0.001591435185 | B32: 5 | D32: =IF(OR(C32=0,C32=""),"",IF(A26="F",HLOOKUP(C32,females,A27,FALSE),IF(A26="M",HLOOKUP(C32,males,A27,FALSE),""))) ->  | G32: =IF(OR(F32=0,F32="",A31=0,A31="",A32=0,A32="",A33=0,A33="",A34=0,A34=""),"",IF(F32<=A31,1,IF(F32<=A32,2,IF(F32<=A33,3,IF(F32<=A34,4,""))))) ->  | H32: =VLOOKUP(I26,eventno,9,FALSE) -> 0.001655092593 | I32: 5 | J32: 77 | K32: =IF(OR(J32=0,J32=""),"",IF(H26="F",HLOOKUP(J32,females,H27,FALSE),IF(H26="M",HLOOKUP(J32,males,H27,FALSE),""))) -> Jemma Ibbetson | L32: Leeds C | M32: 00:03:01.960 | N32: =IF(OR(M32=0,M32="",H31=0,H31="",H32=0,H32="",H33=0,H33="",H34=0,H34=""),"",IF(M32<=H31,1,IF(M32<=H32,2,IF(M32<=H33,3,IF(M32<=H34,4,""))))) ->  | O32: =VLOOKUP(P26,eventno,9,FALSE) -> 0.001753472222 | P32: 5 | R32: =IF(OR(Q32=0,Q32=""),"",IF(O26="F",HLOOKUP(Q32,females,O27,FALSE),IF(O26="M",HLOOKUP(Q32,males,O27,FALSE),""))) ->  | U32: =IF(OR(T32=0,T32="",O31=0,O31="",O32=0,O32="",O33=0,O33="",O34=0,O34=""),"",IF(T32<=O31,1,IF(T32<=O32,2,IF(T32<=O33,3,IF(T32<=O34,4,""))))) ->  | W32: 0 | X32: 2 | Y32: 0
A33: =VLOOKUP(B26,eventno,10,FALSE) -> 0.00162962963 | B33: 6 | D33: =IF(OR(C33=0,C33=""),"",IF(A26="F",HLOOKUP(C33,females,A27,FALSE),IF(A26="M",HLOOKUP(C33,males,A27,FALSE),""))) ->  | G33: =IF(OR(F33=0,F33="",A31=0,A31="",A32=0,A32="",A33=0,A33="",A34=0,A34=""),"",IF(F33<=A31,1,IF(F33<=A32,2,IF(F33<=A33,3,IF(F33<=A34,4,""))))) ->  | H33: =VLOOKUP(I26,eventno,10,FALSE) -> 0.001695601852 | I33: 6 | J33: 8 | K33: =IF(OR(J33=0,J33=""),"",IF(H26="F",HLOOKUP(J33,females,H27,FALSE),IF(H26="M",HLOOKUP(J33,males,H27,FALSE),""))) -> Georgie Fenny | L33: York | M33: 00:03:09.730 | N33: =IF(OR(M33=0,M33="",H31=0,H31="",H32=0,H32="",H33=0,H33="",H34=0,H34=""),"",IF(M33<=H31,1,IF(M33<=H32,2,IF(M33<=H33,3,IF(M33<=H34,4,""))))) ->  | O33: =VLOOKUP(P26,eventno,10,FALSE) -> 0.001799768519 | P33: 6 | R33: =IF(OR(Q33=0,Q33=""),"",IF(O26="F",HLOOKUP(Q33,females,O27,FALSE),IF(O26="M",HLOOKUP(Q33,males,O27,FALSE),""))) ->  | U33: =IF(OR(T33=0,T33="",O31=0,O31="",O32=0,O32="",O33=0,O33="",O34=0,O34=""),"",IF(T33<=O31,1,IF(T33<=O32,2,IF(T33<=O33,3,IF(T33<=O34,4,""))))) ->  | W33: 0 | X33: 1 | Y33: 0
A34: =VLOOKUP(B26,eventno,11,FALSE) -> 0.001688657407 | H34: =VLOOKUP(I26,eventno,11,FALSE) -> 0.001747685185 | O34: =VLOOKUP(P26,eventno,11,FALSE) -> 0.001863425926 | W34: 0 | X34: 0 | Y34: 0
A35: =VLOOKUP(B35,eventno,5,FALSE) -> M | B35: T10 | C35: =VLOOKUP(B35,eventno,4,FALSE) -> U13B 800m | E35: =IF(A38="W","Wind =","") ->  | G35: =IF(OR(F37=0,F37="",A39=0,A39=""),"",IF(A37="T",IF(F37<A39,"LR",IF(F37=A39,"LR=","")))) ->  | H35: =VLOOKUP(I35,eventno,5,FALSE) -> M | I35: T11 | J35: =VLOOKUP(I35,eventno,4,FALSE) -> U15B 800m | L35: =IF(H38="W","Wind =","") ->  | N35: =IF(OR(M37=0,M37="",H39=0,H39=""),"",IF(H37="T",IF(M37<H39,"LR",IF(M37=H39,"LR=","")))) ->  | O35: =VLOOKUP(P35,eventno,5,FALSE) -> M | P35: T12 | Q35: =VLOOKUP(P35,eventno,4,FALSE) -> U17M 800m | S35: =IF(O38="W","Wind =","") ->  | U35: =IF(OR(T37=0,T37="",O39=0,O39=""),"",IF(O37="T",IF(T37<O39,"LR",IF(T37=O39,"LR=","")))) ->  | W35: 0 | X35: 0 | Y35: 0
A36: =IF(A35="M",VLOOKUP(B35,males,15,FALSE),VLOOKUP(B35,females,15,FALSE)) -> 5 | B36: Posn | C36: Bib | D36: Athlete | E36: Club | F36: Perf | G36: Gr | H36: =IF(H35="M",VLOOKUP(I35,males,15,FALSE),VLOOKUP(I35,females,15,FALSE)) -> 6 | I36: Posn | J36: Bib | K36: Athlete | L36: Club | M36: Perf | N36: Gr | O36: =IF(O35="M",VLOOKUP(P35,males,15,FALSE),VLOOKUP(P35,females,15,FALSE)) -> 7 | P36: Posn | Q36: Bib | R36: Athlete | S36: Club | T36: Perf | U36: Gr
A37: =LEFT(B35,1) -> T | B37: 1 | C37: 7 | D37: =IF(OR(C37=0,C37=""),"",IF(A35="F",HLOOKUP(C37,females,A36,FALSE),IF(A35="M",HLOOKUP(C37,males,A36,FALSE),""))) -> Billy Dawson | E37: =IF(OR(C37=0,C37="",ISERROR(VLOOKUP(C37,match_teams,4,FALSE)=TRUE)),"",VLOOKUP(C37,match_teams,4,FALSE)) -> Leeds C | F37: 00:02:36.220 | G37: =IF(OR(F37=0,F37="",A40=0,A40="",A41=0,A41="",A42=0,A42="",A43=0,A43=""),"",IF(F37<=A40,1,IF(F37<=A41,2,IF(F37<=A42,3,IF(F37<=A43,4,""))))) ->  | H37: =LEFT(I35,1) -> T | I37: 1 | J37: 9 | K37: =IF(OR(J37=0,J37=""),"",IF(H35="F",HLOOKUP(J37,females,H36,FALSE),IF(H35="M",HLOOKUP(J37,males,H36,FALSE),""))) -> Sam Convery | L37: =IF(OR(J37=0,J37="",ISERROR(VLOOKUP(J37,match_teams,4,FALSE)=TRUE)),"",VLOOKUP(J37,match_teams,4,FALSE)) -> Wake | M37: 00:02:18.860 | N37: =IF(OR(M37=0,M37="",H40=0,H40="",H41=0,H41="",H42=0,H42="",H43=0,H43=""),"",IF(M37<=H40,1,IF(M37<=H41,2,IF(M37<=H42,3,IF(M37<=H43,4,""))))) ->  | O37: =LEFT(P35,1) -> T | P37: 1 | Q37: 9 | R37: =IF(OR(Q37=0,Q37=""),"",IF(O35="F",HLOOKUP(Q37,females,O36,FALSE),IF(O35="M",HLOOKUP(Q37,males,O36,FALSE),""))) -> Matthew O'Connnor | S37: =IF(OR(Q37=0,Q37="",ISERROR(VLOOKUP(Q37,match_teams,4,FALSE)=TRUE)),"",VLOOKUP(Q37,match_teams,4,FALSE)) -> Wake | T37: 00:02:00.770 | U37: =IF(OR(T37=0,T37="",O40=0,O40="",O41=0,O41="",O42=0,O42="",O43=0,O43=""),"",IF(T37<=O40,1,IF(T37<=O41,2,IF(T37<=O42,3,IF(T37<=O43,4,""))))) -> 3 | W37: 6 | X37: 6 | Y37: 6
A38: =VLOOKUP(B35,eventno,6,FALSE) -> 0 | B38: 2 | C38: 8 | D38: =IF(OR(C38=0,C38=""),"",IF(A35="F",HLOOKUP(C38,females,A36,FALSE),IF(A35="M",HLOOKUP(C38,males,A36,FALSE),""))) -> Alex Botterill | E38: York | F38: 00:02:40.030 | G38: =IF(OR(F38=0,F38="",A40=0,A40="",A41=0,A41="",A42=0,A42="",A43=0,A43=""),"",IF(F38<=A40,1,IF(F38<=A41,2,IF(F38<=A42,3,IF(F38<=A43,4,""))))) ->  | H38: =VLOOKUP(I35,eventno,6,FALSE) -> 0 | I38: 2 | J38: 7 | K38: =IF(OR(J38=0,J38=""),"",IF(H35="F",HLOOKUP(J38,females,H36,FALSE),IF(H35="M",HLOOKUP(J38,males,H36,FALSE),""))) -> John Hubball | L38: Leeds C | M38: 00:02:19.620 | N38: =IF(OR(M38=0,M38="",H40=0,H40="",H41=0,H41="",H42=0,H42="",H43=0,H43=""),"",IF(M38<=H40,1,IF(M38<=H41,2,IF(M38<=H42,3,IF(M38<=H43,4,""))))) ->  | O38: =VLOOKUP(P35,eventno,6,FALSE) -> 0 | P38: 2 | Q38: 99 | R38: =IF(OR(Q38=0,Q38=""),"",IF(O35="F",HLOOKUP(Q38,females,O36,FALSE),IF(O35="M",HLOOKUP(Q38,males,O36,FALSE),""))) -> James Saxton | S38: Wake | T38: 00:02:01.140 | U38: =IF(OR(T38=0,T38="",O40=0,O40="",O41=0,O41="",O42=0,O42="",O43=0,O43=""),"",IF(T38<=O40,1,IF(T38<=O41,2,IF(T38<=O42,3,IF(T38<=O43,4,""))))) -> 3 | W38: 5 | X38: 5 | Y38: 5
A39: =VLOOKUP(B35,eventno,7,FALSE) -> 0.00146412037 | B39: 3 | C39: 9 | D39: =IF(OR(C39=0,C39=""),"",IF(A35="F",HLOOKUP(C39,females,A36,FALSE),IF(A35="M",HLOOKUP(C39,males,A36,FALSE),""))) -> Carter Bower-Stead | E39: Wake | F39: 00:03:01.110 | G39: =IF(OR(F39=0,F39="",A40=0,A40="",A41=0,A41="",A42=0,A42="",A43=0,A43=""),"",IF(F39<=A40,1,IF(F39<=A41,2,IF(F39<=A42,3,IF(F39<=A43,4,""))))) ->  | H39: =VLOOKUP(I35,eventno,7,FALSE) -> 0.001362268519 | I39: 3 | J39: 77 | K39: =IF(OR(J39=0,J39=""),"",IF(H35="F",HLOOKUP(J39,females,H36,FALSE),IF(H35="M",HLOOKUP(J39,males,H36,FALSE),""))) -> Jack Allison | L39: Leeds C | M39: 00:02:22.630 | N39: =IF(OR(M39=0,M39="",H40=0,H40="",H41=0,H41="",H42=0,H42="",H43=0,H43=""),"",IF(M39<=H40,1,IF(M39<=H41,2,IF(M39<=H42,3,IF(M39<=H43,4,""))))) ->  | O39: =VLOOKUP(P35,eventno,7,FALSE) -> 0.001311342593 | P39: 3 | Q39: 7 | R39: =IF(OR(Q39=0,Q39=""),"",IF(O35="F",HLOOKUP(Q39,females,O36,FALSE),IF(O35="M",HLOOKUP(Q39,males,O36,FALSE),""))) -> Luke Cooper | S39: Leeds C | T39: 00:02:10.190 | U39: =IF(OR(T39=0,T39="",O40=0,O40="",O41=0,O41="",O42=0,O42="",O43=0,O43=""),"",IF(T39<=O40,1,IF(T39<=O41,2,IF(T39<=O42,3,IF(T39<=O43,4,""))))) ->  | W39: 4 | X39: 4 | Y39: 4
A40: =VLOOKUP(B35,eventno,8,FALSE) -> 0.001643518519 | B40: 4 | C40: 77 | D40: =IF(OR(C40=0,C40=""),"",IF(A35="F",HLOOKUP(C40,females,A36,FALSE),IF(A35="M",HLOOKUP(C40,males,A36,FALSE),""))) -> Owen Sage | E40: Leeds C | F40: 00:03:09.750 | G40: =IF(OR(F40=0,F40="",A40=0,A40="",A41=0,A41="",A42=0,A42="",A43=0,A43=""),"",IF(F40<=A40,1,IF(F40<=A41,2,IF(F40<=A42,3,IF(F40<=A43,4,""))))) ->  | H40: =VLOOKUP(I35,eventno,8,FALSE) -> 0.00146412037 | I40: 4 | J40: 99 | K40: =IF(OR(J40=0,J40=""),"",IF(H35="F",HLOOKUP(J40,females,H36,FALSE),IF(H35="M",HLOOKUP(J40,males,H36,FALSE),""))) -> Ben Read | L40: Wake | M40: 00:02:28.820 | N40: =IF(OR(M40=0,M40="",H40=0,H40="",H41=0,H41="",H42=0,H42="",H43=0,H43=""),"",IF(M40<=H40,1,IF(M40<=H41,2,IF(M40<=H42,3,IF(M40<=H43,4,""))))) ->  | O40: =VLOOKUP(P35,eventno,8,FALSE) -> 0.001354166667 | P40: 4 | Q40: 8 | R40: =IF(OR(Q40=0,Q40=""),"",IF(O35="F",HLOOKUP(Q40,females,O36,FALSE),IF(O35="M",HLOOKUP(Q40,males,O36,FALSE),""))) -> Peirre Weller | S40: York | T40: 00:02:15.040 | U40: =IF(OR(T40=0,T40="",O40=0,O40="",O41=0,O41="",O42=0,O42="",O43=0,O43=""),"",IF(T40<=O40,1,IF(T40<=O41,2,IF(T40<=O42,3,IF(T40<=O43,4,""))))) ->  | W40: =IF(OR(B40=0,B40="",C40=0,C40="",F40=0,F40="",LEFT(F40,1)="D"),0,VLOOKUP(B40,points,2,FALSE)) -> 3 | X40: =IF(OR(I40=0,I40="",J40=0,J40="",M40=0,M40="",LEFT(M40,1)="D"),0,VLOOKUP(I40,points,2,FALSE)) -> 3 | Y40: =IF(OR(P40=0,P40="",Q40=0,Q40="",T40=0,T40="",LEFT(T40,1)="D"),0,VLOOKUP(P40,points,2,FALSE)) -> 3
A41: =VLOOKUP(B35,eventno,9,FALSE) -> 0.001672453704 | B41: 5 | D41: =IF(OR(C41=0,C41=""),"",IF(A35="F",HLOOKUP(C41,females,A36,FALSE),IF(A35="M",HLOOKUP(C41,males,A36,FALSE),""))) ->  | G41: =IF(OR(F41=0,F41="",A40=0,A40="",A41=0,A41="",A42=0,A42="",A43=0,A43=""),"",IF(F41<=A40,1,IF(F41<=A41,2,IF(F41<=A42,3,IF(F41<=A43,4,""))))) ->  | H41: =VLOOKUP(I35,eventno,9,FALSE) -> 0.00150462963 | I41: 5 | J41: 88 | K41: =IF(OR(J41=0,J41=""),"",IF(H35="F",HLOOKUP(J41,females,H36,FALSE),IF(H35="M",HLOOKUP(J41,males,H36,FALSE),""))) -> Tom Hobson | L41: York | M41: 00:02:34.730 | N41: =IF(OR(M41=0,M41="",H40=0,H40="",H41=0,H41="",H42=0,H42="",H43=0,H43=""),"",IF(M41<=H40,1,IF(M41<=H41,2,IF(M41<=H42,3,IF(M41<=H43,4,""))))) ->  | O41: =VLOOKUP(P35,eventno,9,FALSE) -> 0.001383101852 | P41: 5 | R41: =IF(OR(Q41=0,Q41=""),"",IF(O35="F",HLOOKUP(Q41,females,O36,FALSE),IF(O35="M",HLOOKUP(Q41,males,O36,FALSE),""))) ->  | U41: =IF(OR(T41=0,T41="",O40=0,O40="",O41=0,O41="",O42=0,O42="",O43=0,O43=""),"",IF(T41<=O40,1,IF(T41<=O41,2,IF(T41<=O42,3,IF(T41<=O43,4,""))))) ->  | W41: 0 | X41: 2 | Y41: 0
A42: =VLOOKUP(B35,eventno,10,FALSE) -> 0.00171875 | B42: 6 | D42: =IF(OR(C42=0,C42=""),"",IF(A35="F",HLOOKUP(C42,females,A36,FALSE),IF(A35="M",HLOOKUP(C42,males,A36,FALSE),""))) ->  | G42: =IF(OR(F42=0,F42="",A40=0,A40="",A41=0,A41="",A42=0,A42="",A43=0,A43=""),"",IF(F42<=A40,1,IF(F42<=A41,2,IF(F42<=A42,3,IF(F42<=A43,4,""))))) ->  | H42: =VLOOKUP(I35,eventno,10,FALSE) -> 0.001545138889 | I42: 6 | J42: 8 | K42: =IF(OR(J42=0,J42=""),"",IF(H35="F",HLOOKUP(J42,females,H36,FALSE),IF(H35="M",HLOOKUP(J42,males,H36,FALSE),""))) -> Phil Nesom | L42: York | M42: 00:02:38 | N42: =IF(OR(M42=0,M42="",H40=0,H40="",H41=0,H41="",H42=0,H42="",H43=0,H43=""),"",IF(M42<=H40,1,IF(M42<=H41,2,IF(M42<=H42,3,IF(M42<=H43,4,""))))) ->  | O42: =VLOOKUP(P35,eventno,10,FALSE) -> 0.001412037037 | P42: 6 | R42: =IF(OR(Q42=0,Q42=""),"",IF(O35="F",HLOOKUP(Q42,females,O36,FALSE),IF(O35="M",HLOOKUP(Q42,males,O36,FALSE),""))) ->  | U42: =IF(OR(T42=0,T42="",O40=0,O40="",O41=0,O41="",O42=0,O42="",O43=0,O43=""),"",IF(T42<=O40,1,IF(T42<=O41,2,IF(T42<=O42,3,IF(T42<=O43,4,""))))) ->  | W42: 0 | X42: 1 | Y42: 0
A43: =VLOOKUP(B35,eventno,11,FALSE) -> 0.001788194444 | H43: =VLOOKUP(I35,eventno,11,FALSE) -> 0.001603009259 | O43: =VLOOKUP(P35,eventno,11,FALSE) -> 0.00146412037 | W43: 0 | X43: 0 | Y43: 0
A44: =VLOOKUP(B44,eventno,5,FALSE) -> F | B44: T13 | C44: =VLOOKUP(B44,eventno,4,FALSE) -> U13G 75m | E44: =IF(A47="W","Wind =","") -> Wind = | G44: =IF(OR(F46=0,F46="",A48=0,A48=""),"",IF(A46="T",IF(F46<A48,"LR",IF(F46=A48,"LR=","")))) ->  | H44: =VLOOKUP(I44,eventno,5,FALSE) -> F | I44: T14 | J44: =VLOOKUP(I44,eventno,4,FALSE) -> U17W 100m | L44: =IF(H47="W","Wind =","") -> Wind = | N44: =IF(OR(M46=0,M46="",H48=0,H48=""),"",IF(H46="T",IF(M46<H48,"LR",IF(M46=H48,"LR=","")))) ->  | O44: =VLOOKUP(P44,eventno,5,FALSE) -> F | P44: T15 | Q44: =VLOOKUP(P44,eventno,4,FALSE) -> U15G 100m | S44: =IF(O47="W","Wind =","") -> Wind = | U44: =IF(OR(T46=0,T46="",O48=0,O48=""),"",IF(O46="T",IF(T46<O48,"LR",IF(T46=O48,"LR=","")))) ->  | W44: 0 | X44: 0 | Y44: 0
A45: =IF(A44="M",VLOOKUP(B44,males,15,FALSE),VLOOKUP(B44,females,15,FALSE)) -> 8 | B45: Posn | C45: Bib | D45: Athlete | E45: Club | F45: Perf | G45: Gr | H45: =IF(H44="M",VLOOKUP(I44,males,15,FALSE),VLOOKUP(I44,females,15,FALSE)) -> 9 | I45: Posn | J45: Bib | K45: Athlete | L45: Club | M45: Perf | N45: Gr | O45: =IF(O44="M",VLOOKUP(P44,males,15,FALSE),VLOOKUP(P44,females,15,FALSE)) -> 10 | P45: Posn | Q45: Bib | R45: Athlete | S45: Club | T45: Perf | U45: Gr
A46: =LEFT(B44,1) -> T | B46: 1 | C46: 8 | D46: =IF(OR(C46=0,C46=""),"",IF(A44="F",HLOOKUP(C46,females,A45,FALSE),IF(A44="M",HLOOKUP(C46,males,A45,FALSE),""))) -> Rachel White | E46: =IF(OR(C46=0,C46="",ISERROR(VLOOKUP(C46,match_teams,4,FALSE)=TRUE)),"",VLOOKUP(C46,match_teams,4,FALSE)) -> York | F46: 10.89 | G46: =IF(OR(F46=0,F46="",A49=0,A49="",A50=0,A50="",A51=0,A51="",A52=0,A52=""),"",IF(F46<=A49,1,IF(F46<=A50,2,IF(F46<=A51,3,IF(F46<=A52,4,""))))) -> 3 | H46: =LEFT(I44,1) -> T | I46: 1 | J46: 9 | K46: =IF(OR(J46=0,J46=""),"",IF(H44="F",HLOOKUP(J46,females,H45,FALSE),IF(H44="M",HLOOKUP(J46,males,H45,FALSE),""))) -> Grace Eyles | L46: =IF(OR(J46=0,J46="",ISERROR(VLOOKUP(J46,match_teams,4,FALSE)=TRUE)),"",VLOOKUP(J46,match_teams,4,FALSE)) -> Wake | M46: 12.52 | N46: =IF(OR(M46=0,M46="",H49=0,H49="",H50=0,H50="",H51=0,H51="",H52=0,H52=""),"",IF(M46<=H49,1,IF(M46<=H50,2,IF(M46<=H51,3,IF(M46<=H52,4,""))))) -> 2 | O46: =LEFT(P44,1) -> T | P46: 1 | Q46: 99 | R46: =IF(OR(Q46=0,Q46=""),"",IF(O44="F",HLOOKUP(Q46,females,O45,FALSE),IF(O44="M",HLOOKUP(Q46,males,O45,FALSE),""))) -> Lauren Higson | S46: =IF(OR(Q46=0,Q46="",ISERROR(VLOOKUP(Q46,match_teams,4,FALSE)=TRUE)),"",VLOOKUP(Q46,match_teams,4,FALSE)) -> Wake | T46: 13.47 | U46: =IF(OR(T46=0,T46="",O49=0,O49="",O50=0,O50="",O51=0,O51="",O52=0,O52=""),"",IF(T46<=O49,1,IF(T46<=O50,2,IF(T46<=O51,3,IF(T46<=O52,4,""))))) -> 4 | W46: 6 | X46: 6 | Y46: 6
A47: =VLOOKUP(B44,eventno,6,FALSE) -> W | B47: 2 | C47: 9 | D47: =IF(OR(C47=0,C47=""),"",IF(A44="F",HLOOKUP(C47,females,A45,FALSE),IF(A44="M",HLOOKUP(C47,males,A45,FALSE),""))) -> Madeleine Gerrard | E47: Wake | F47: 11.04 | G47: =IF(OR(F47=0,F47="",A49=0,A49="",A50=0,A50="",A51=0,A51="",A52=0,A52=""),"",IF(F47<=A49,1,IF(F47<=A50,2,IF(F47<=A51,3,IF(F47<=A52,4,""))))) -> 4 | H47: =VLOOKUP(I44,eventno,6,FALSE) -> W | I47: 2 | J47: 8 | K47: =IF(OR(J47=0,J47=""),"",IF(H44="F",HLOOKUP(J47,females,H45,FALSE),IF(H44="M",HLOOKUP(J47,males,H45,FALSE),""))) -> Emily Haigh | L47: York | M47: 13.32 | N47: =IF(OR(M47=0,M47="",H49=0,H49="",H50=0,H50="",H51=0,H51="",H52=0,H52=""),"",IF(M47<=H49,1,IF(M47<=H50,2,IF(M47<=H51,3,IF(M47<=H52,4,""))))) ->  | O47: =VLOOKUP(P44,eventno,6,FALSE) -> W | P47: 2 | Q47: 8 | R47: =IF(OR(Q47=0,Q47=""),"",IF(O44="F",HLOOKUP(Q47,females,O45,FALSE),IF(O44="M",HLOOKUP(Q47,males,O45,FALSE),""))) -> Chloe Hopper | S47: York | T47: 13.51 | U47: =IF(OR(T47=0,T47="",O49=0,O49="",O50=0,O50="",O51=0,O51="",O52=0,O52=""),"",IF(T47<=O49,1,IF(T47<=O50,2,IF(T47<=O51,3,IF(T47<=O52,4,""))))) ->  | W47: 5 | X47: 5 | Y47: 5
A48: =VLOOKUP(B44,eventno,7,FALSE) -> 9.5 | B48: 3 | C48: 99 | D48: =IF(OR(C48=0,C48=""),"",IF(A44="F",HLOOKUP(C48,females,A45,FALSE),IF(A44="M",HLOOKUP(C48,males,A45,FALSE),""))) -> Charlotte Sampson | E48: Wake | F48: 11.1 | G48: =IF(OR(F48=0,F48="",A49=0,A49="",A50=0,A50="",A51=0,A51="",A52=0,A52=""),"",IF(F48<=A49,1,IF(F48<=A50,2,IF(F48<=A51,3,IF(F48<=A52,4,""))))) -> 4 | H48: =VLOOKUP(I44,eventno,7,FALSE) -> 11.7 | I48: 3 | J48: 7 | K48: =IF(OR(J48=0,J48=""),"",IF(H44="F",HLOOKUP(J48,females,H45,FALSE),IF(H44="M",HLOOKUP(J48,males,H45,FALSE),""))) -> India Wilson | L48: Leeds C | M48: 13.32 | N48: =IF(OR(M48=0,M48="",H49=0,H49="",H50=0,H50="",H51=0,H51="",H52=0,H52=""),"",IF(M48<=H49,1,IF(M48<=H50,2,IF(M48<=H51,3,IF(M48<=H52,4,""))))) ->  | O48: =VLOOKUP(P44,eventno,7,FALSE) -> 11.9 | P48: 3 | Q48: 9 | R48: =IF(OR(Q48=0,Q48=""),"",IF(O44="F",HLOOKUP(Q48,females,O45,FALSE),IF(O44="M",HLOOKUP(Q48,males,O45,FALSE),""))) -> Jessica Fisher | S48: Wake | T48: 13.86 | U48: =IF(OR(T48=0,T48="",O49=0,O49="",O50=0,O50="",O51=0,O51="",O52=0,O52=""),"",IF(T48<=O49,1,IF(T48<=O50,2,IF(T48<=O51,3,IF(T48<=O52,4,""))))) ->  | W48: 4 | X48: 4 | Y48: 4
A49: =VLOOKUP(B44,eventno,8,FALSE) -> 10.4 | B49: 4 | C49: 88 | D49: =IF(OR(C49=0,C49=""),"",IF(A44="F",HLOOKUP(C49,females,A45,FALSE),IF(A44="M",HLOOKUP(C49,males,A45,FALSE),""))) -> Annabel Ashton | E49: York | F49: 11.28 | G49: =IF(OR(F49=0,F49="",A49=0,A49="",A50=0,A50="",A51=0,A51="",A52=0,A52=""),"",IF(F49<=A49,1,IF(F49<=A50,2,IF(F49<=A51,3,IF(F49<=A52,4,""))))) -> 4 | H49: =VLOOKUP(I44,eventno,8,FALSE) -> 12.4 | I49: 4 | J49: 77 | K49: =IF(OR(J49=0,J49=""),"",IF(H44="F",HLOOKUP(J49,females,H45,FALSE),IF(H44="M",HLOOKUP(J49,males,H45,FALSE),""))) -> Melody Peterson | L49: Leeds C | M49: 13.93 | N49: =IF(OR(M49=0,M49="",H49=0,H49="",H50=0,H50="",H51=0,H51="",H52=0,H52=""),"",IF(M49<=H49,1,IF(M49<=H50,2,IF(M49<=H51,3,IF(M49<=H52,4,""))))) ->  | O49: =VLOOKUP(P44,eventno,8,FALSE) -> 12.8 | P49: 4 | Q49: 77 | R49: =IF(OR(Q49=0,Q49=""),"",IF(O44="F",HLOOKUP(Q49,females,O45,FALSE),IF(O44="M",HLOOKUP(Q49,males,O45,FALSE),""))) -> Sian Gilmartin-Green | S49: Leeds C | T49: 14.07 | U49: =IF(OR(T49=0,T49="",O49=0,O49="",O50=0,O50="",O51=0,O51="",O52=0,O52=""),"",IF(T49<=O49,1,IF(T49<=O50,2,IF(T49<=O51,3,IF(T49<=O52,4,""))))) ->  | W49: 3 | X49: 3 | Y49: 3
A50: =VLOOKUP(B44,eventno,9,FALSE) -> 10.6 | B50: 5 | C50: 7 | D50: =IF(OR(C50=0,C50=""),"",IF(A44="F",HLOOKUP(C50,females,A45,FALSE),IF(A44="M",HLOOKUP(C50,males,A45,FALSE),""))) -> Jessie Mogridge | E50: Leeds C | F50: 12.12 | G50: =IF(OR(F50=0,F50="",A49=0,A49="",A50=0,A50="",A51=0,A51="",A52=0,A52=""),"",IF(F50<=A49,1,IF(F50<=A50,2,IF(F50<=A51,3,IF(F50<=A52,4,""))))) ->  | H50: =VLOOKUP(I44,eventno,9,FALSE) -> 12.6 | I50: 5 | J50: 99 | K50: =IF(OR(J50=0,J50=""),"",IF(H44="F",HLOOKUP(J50,females,H45,FALSE),IF(H44="M",HLOOKUP(J50,males,H45,FALSE),""))) -> Emily Wadge | L50: Wake | M50: 14.86 | N50: =IF(OR(M50=0,M50="",H49=0,H49="",H50=0,H50="",H51=0,H51="",H52=0,H52=""),"",IF(M50<=H49,1,IF(M50<=H50,2,IF(M50<=H51,3,IF(M50<=H52,4,""))))) ->  | O50: =VLOOKUP(P44,eventno,9,FALSE) -> 12.9 | P50: 5 | Q50: 88 | R50: =IF(OR(Q50=0,Q50=""),"",IF(O44="F",HLOOKUP(Q50,females,O45,FALSE),IF(O44="M",HLOOKUP(Q50,males,O45,FALSE),""))) -> Jenny Harrison | S50: York | T50: 14.17 | U50: =IF(OR(T50=0,T50="",O49=0,O49="",O50=0,O50="",O51=0,O51="",O52=0,O52=""),"",IF(T50<=O49,1,IF(T50<=O50,2,IF(T50<=O51,3,IF(T50<=O52,4,""))))) ->  | W50: 2 | X50: 2 | Y50: 2
A51: =VLOOKUP(B44,eventno,10,FALSE) -> 10.9 | B51: 6 | C51: 77 | D51: =IF(OR(C51=0,C51=""),"",IF(A44="F",HLOOKUP(C51,females,A45,FALSE),IF(A44="M",HLOOKUP(C51,males,A45,FALSE),""))) -> Chloe Brooks | E51: Leeds C | F51: 12.97 | G51: =IF(OR(F51=0,F51="",A49=0,A49="",A50=0,A50="",A51=0,A51="",A52=0,A52=""),"",IF(F51<=A49,1,IF(F51<=A50,2,IF(F51<=A51,3,IF(F51<=A52,4,""))))) ->  | H51: =VLOOKUP(I44,eventno,10,FALSE) -> 12.8 | I51: 6 | K51: =IF(OR(J51=0,J51=""),"",IF(H44="F",HLOOKUP(J51,females,H45,FALSE),IF(H44="M",HLOOKUP(J51,males,H45,FALSE),""))) ->  | N51: =IF(OR(M51=0,M51="",H49=0,H49="",H50=0,H50="",H51=0,H51="",H52=0,H52=""),"",IF(M51<=H49,1,IF(M51<=H50,2,IF(M51<=H51,3,IF(M51<=H52,4,""))))) ->  | O51: =VLOOKUP(P44,eventno,10,FALSE) -> 13.1 | P51: 6 | Q51: 7 | R51: =IF(OR(Q51=0,Q51=""),"",IF(O44="F",HLOOKUP(Q51,females,O45,FALSE),IF(O44="M",HLOOKUP(Q51,males,O45,FALSE),""))) -> Molly Yearby | S51: Leeds C | T51: 14.59 | U51: =IF(OR(T51=0,T51="",O49=0,O49="",O50=0,O50="",O51=0,O51="",O52=0,O52=""),"",IF(T51<=O49,1,IF(T51<=O50,2,IF(T51<=O51,3,IF(T51<=O52,4,""))))) ->  | W51: 1 | X51: 0 | Y51: 1
A52: =VLOOKUP(B44,eventno,11,FALSE) -> 11.3 | H52: =VLOOKUP(I44,eventno,11,FALSE) -> 13.1 | O52: =VLOOKUP(P44,eventno,11,FALSE) -> 13.5 | W52: 0 | X52: 0 | Y52: 0
A53: =VLOOKUP(B53,eventno,5,FALSE) -> M | B53: T16 | C53: =VLOOKUP(B53,eventno,4,FALSE) -> U17M 100m | E53: =IF(A56="W","Wind =","") -> Wind = | G53: =IF(OR(F55=0,F55="",A57=0,A57=""),"",IF(A55="T",IF(F55<A57,"LR",IF(F55=A57,"LR=","")))) ->  | H53: =VLOOKUP(I53,eventno,5,FALSE) -> M | I53: T17 | J53: =VLOOKUP(I53,eventno,4,FALSE) -> U15B 100m | L53: =IF(H56="W","Wind =","") -> Wind = | N53: =IF(OR(M55=0,M55="",H57=0,H57=""),"",IF(H55="T",IF(M55<H57,"LR",IF(M55=H57,"LR=","")))) ->  | O53: =VLOOKUP(P53,eventno,5,FALSE) -> M | P53: T18 | Q53: =VLOOKUP(P53,eventno,4,FALSE) -> U13B 100m | S53: =IF(O56="W","Wind =","") -> Wind = | U53: =IF(OR(T55=0,T55="",O57=0,O57=""),"",IF(O55="T",IF(T55<O57,"LR",IF(T55=O57,"LR=","")))) ->  | W53: 0 | X53: 0 | Y53: 0
A54: =IF(A53="M",VLOOKUP(B53,males,15,FALSE),VLOOKUP(B53,females,15,FALSE)) -> 8 | B54: Posn | C54: Bib | D54: Athlete | E54: Club | F54: Perf | G54: Gr | H54: =IF(H53="M",VLOOKUP(I53,males,15,FALSE),VLOOKUP(I53,females,15,FALSE)) -> 9 | I54: Posn | J54: Bib | K54: Athlete | L54: Club | M54: Perf | N54: Gr | O54: =IF(O53="M",VLOOKUP(P53,males,15,FALSE),VLOOKUP(P53,females,15,FALSE)) -> 10 | P54: Posn | Q54: Bib | R54: Athlete | S54: Club | T54: Perf | U54: Gr
A55: =LEFT(B53,1) -> T | B55: 1 | C55: 7 | D55: =IF(OR(C55=0,C55=""),"",IF(A53="F",HLOOKUP(C55,females,A54,FALSE),IF(A53="M",HLOOKUP(C55,males,A54,FALSE),""))) -> Elliott Hurley | E55: =IF(OR(C55=0,C55="",ISERROR(VLOOKUP(C55,match_teams,4,FALSE)=TRUE)),"",VLOOKUP(C55,match_teams,4,FALSE)) -> Leeds C | F55: 11.3 | G55: =IF(OR(F55=0,F55="",A58=0,A58="",A59=0,A59="",A60=0,A60="",A61=0,A61=""),"",IF(F55<=A58,1,IF(F55<=A59,2,IF(F55<=A60,3,IF(F55<=A61,4,""))))) -> 2 | H55: =LEFT(I53,1) -> T | I55: 1 | J55: 8 | K55: =IF(OR(J55=0,J55=""),"",IF(H53="F",HLOOKUP(J55,females,H54,FALSE),IF(H53="M",HLOOKUP(J55,males,H54,FALSE),""))) -> Chris Searle | L55: =IF(OR(J55=0,J55="",ISERROR(VLOOKUP(J55,match_teams,4,FALSE)=TRUE)),"",VLOOKUP(J55,match_teams,4,FALSE)) -> York | M55: 11.73 | N55: =IF(OR(M55=0,M55="",H58=0,H58="",H59=0,H59="",H60=0,H60="",H61=0,H61=""),"",IF(M55<=H58,1,IF(M55<=H59,2,IF(M55<=H60,3,IF(M55<=H61,4,""))))) -> 2 | O55: =LEFT(P53,1) -> T | P55: 1 | Q55: 7 | R55: =IF(OR(Q55=0,Q55=""),"",IF(O53="F",HLOOKUP(Q55,females,O54,FALSE),IF(O53="M",HLOOKUP(Q55,males,O54,FALSE),""))) -> Lewis Renton | S55: =IF(OR(Q55=0,Q55="",ISERROR(VLOOKUP(Q55,match_teams,4,FALSE)=TRUE)),"",VLOOKUP(Q55,match_teams,4,FALSE)) -> Leeds C | T55: 13.21 | U55: =IF(OR(T55=0,T55="",O58=0,O58="",O59=0,O59="",O60=0,O60="",O61=0,O61=""),"",IF(T55<=O58,1,IF(T55<=O59,2,IF(T55<=O60,3,IF(T55<=O61,4,""))))) -> 3 | W55: 6 | X55: 6 | Y55: 6
A56: =VLOOKUP(B53,eventno,6,FALSE) -> W | B56: 2 | C56: 9 | D56: =IF(OR(C56=0,C56=""),"",IF(A53="F",HLOOKUP(C56,females,A54,FALSE),IF(A53="M",HLOOKUP(C56,males,A54,FALSE),""))) -> James McBorrough | E56: Wake | F56: 11.67 | G56: =IF(OR(F56=0,F56="",A58=0,A58="",A59=0,A59="",A60=0,A60="",A61=0,A61=""),"",IF(F56<=A58,1,IF(F56<=A59,2,IF(F56<=A60,3,IF(F56<=A61,4,""))))) -> 4 | H56: =VLOOKUP(I53,eventno,6,FALSE) -> W | I56: 2 | J56: 77 | K56: =IF(OR(J56=0,J56=""),"",IF(H53="F",HLOOKUP(J56,females,H54,FALSE),IF(H53="M",HLOOKUP(J56,males,H54,FALSE),""))) -> Finlay Fuller | L56: Leeds C | M56: 12.08 | N56: =IF(OR(M56=0,M56="",H58=0,H58="",H59=0,H59="",H60=0,H60="",H61=0,H61=""),"",IF(M56<=H58,1,IF(M56<=H59,2,IF(M56<=H60,3,IF(M56<=H61,4,""))))) -> 3 | O56: =VLOOKUP(P53,eventno,6,FALSE) -> W | P56: 2 | Q56: 9 | R56: =IF(OR(Q56=0,Q56=""),"",IF(O53="F",HLOOKUP(Q56,females,O54,FALSE),IF(O53="M",HLOOKUP(Q56,males,O54,FALSE),""))) -> Harry England | S56: Wake | T56: 14.06 | U56: =IF(OR(T56=0,T56="",O58=0,O58="",O59=0,O59="",O60=0,O60="",O61=0,O61=""),"",IF(T56<=O58,1,IF(T56<=O59,2,IF(T56<=O60,3,IF(T56<=O61,4,""))))) ->  | W56: 5 | X56: 5 | Y56: 5
A57: =VLOOKUP(B53,eventno,7,FALSE) -> 10.5 | B57: 3 | C57: 8 | D57: =IF(OR(C57=0,C57=""),"",IF(A53="F",HLOOKUP(C57,females,A54,FALSE),IF(A53="M",HLOOKUP(C57,males,A54,FALSE),""))) -> Ash Hart | E57: York | F57: 11.74 | G57: =IF(OR(F57=0,F57="",A58=0,A58="",A59=0,A59="",A60=0,A60="",A61=0,A61=""),"",IF(F57<=A58,1,IF(F57<=A59,2,IF(F57<=A60,3,IF(F57<=A61,4,""))))) -> 4 | H57: =VLOOKUP(I53,eventno,7,FALSE) -> 10.9 | I57: 3 | J57: 7 | K57: =IF(OR(J57=0,J57=""),"",IF(H53="F",HLOOKUP(J57,females,H54,FALSE),IF(H53="M",HLOOKUP(J57,males,H54,FALSE),""))) -> Jack Gape | L57: Leeds C | M57: 12.54 | N57: =IF(OR(M57=0,M57="",H58=0,H58="",H59=0,H59="",H60=0,H60="",H61=0,H61=""),"",IF(M57<=H58,1,IF(M57<=H59,2,IF(M57<=H60,3,IF(M57<=H61,4,""))))) ->  | O57: =VLOOKUP(P53,eventno,7,FALSE) -> 11.71 | P57: 3 | Q57: 77 | R57: =IF(OR(Q57=0,Q57=""),"",IF(O53="F",HLOOKUP(Q57,females,O54,FALSE),IF(O53="M",HLOOKUP(Q57,males,O54,FALSE),""))) -> Dominic Peterson | S57: Leeds C | T57: 14.21 | U57: =IF(OR(T57=0,T57="",O58=0,O58="",O59=0,O59="",O60=0,O60="",O61=0,O61=""),"",IF(T57<=O58,1,IF(T57<=O59,2,IF(T57<=O60,3,IF(T57<=O61,4,""))))) ->  | W57: 4 | X57: 4 | Y57: 4
A58: =VLOOKUP(B53,eventno,8,FALSE) -> 11.2 | B58: 4 | C58: 99 | D58: =IF(OR(C58=0,C58=""),"",IF(A53="F",HLOOKUP(C58,females,A54,FALSE),IF(A53="M",HLOOKUP(C58,males,A54,FALSE),""))) -> Oliver Edmunds | E58: Wake | F58: 12.03 | G58: =IF(OR(F58=0,F58="",A58=0,A58="",A59=0,A59="",A60=0,A60="",A61=0,A61=""),"",IF(F58<=A58,1,IF(F58<=A59,2,IF(F58<=A60,3,IF(F58<=A61,4,""))))) ->  | H58: =VLOOKUP(I53,eventno,8,FALSE) -> 11.7 | I58: 4 | J58: 88 | K58: =IF(OR(J58=0,J58=""),"",IF(H53="F",HLOOKUP(J58,females,H54,FALSE),IF(H53="M",HLOOKUP(J58,males,H54,FALSE),""))) -> Luke Nichols | L58: York | M58: 13.03 | N58: =IF(OR(M58=0,M58="",H58=0,H58="",H59=0,H59="",H60=0,H60="",H61=0,H61=""),"",IF(M58<=H58,1,IF(M58<=H59,2,IF(M58<=H60,3,IF(M58<=H61,4,""))))) ->  | O58: =VLOOKUP(P53,eventno,8,FALSE) -> 12.9 | P58: 4 | Q58: 99 | R58: =IF(OR(Q58=0,Q58=""),"",IF(O53="F",HLOOKUP(Q58,females,O54,FALSE),IF(O53="M",HLOOKUP(Q58,males,O54,FALSE),""))) -> Edward Dunbavin | S58: Wake | T58: 15.99 | U58: =IF(OR(T58=0,T58="",O58=0,O58="",O59=0,O59="",O60=0,O60="",O61=0,O61=""),"",IF(T58<=O58,1,IF(T58<=O59,2,IF(T58<=O60,3,IF(T58<=O61,4,""))))) ->  | W58: 3 | X58: 3 | Y58: 3
A59: =VLOOKUP(B53,eventno,9,FALSE) -> 11.4 | B59: 5 | C59: 77 | D59: =IF(OR(C59=0,C59=""),"",IF(A53="F",HLOOKUP(C59,females,A54,FALSE),IF(A53="M",HLOOKUP(C59,males,A54,FALSE),""))) -> Lamar Lewis | E59: Leeds C | F59: 12.99 | G59: =IF(OR(F59=0,F59="",A58=0,A58="",A59=0,A59="",A60=0,A60="",A61=0,A61=""),"",IF(F59<=A58,1,IF(F59<=A59,2,IF(F59<=A60,3,IF(F59<=A61,4,""))))) ->  | H59: =VLOOKUP(I53,eventno,9,FALSE) -> 11.9 | I59: 5 | J59: 9 | K59: =IF(OR(J59=0,J59=""),"",IF(H53="F",HLOOKUP(J59,females,H54,FALSE),IF(H53="M",HLOOKUP(J59,males,H54,FALSE),""))) -> Declan Sheehan | L59: Wake | M59: 13.1 | N59: =IF(OR(M59=0,M59="",H58=0,H58="",H59=0,H59="",H60=0,H60="",H61=0,H61=""),"",IF(M59<=H58,1,IF(M59<=H59,2,IF(M59<=H60,3,IF(M59<=H61,4,""))))) ->  | O59: =VLOOKUP(P53,eventno,9,FALSE) -> 13.1 | P59: 5 | Q59: 8 | R59: =IF(OR(Q59=0,Q59=""),"",IF(O53="F",HLOOKUP(Q59,females,O54,FALSE),IF(O53="M",HLOOKUP(Q59,males,O54,FALSE),""))) -> Matt Hobson | S59: York | T59: 16.35 | U59: =IF(OR(T59=0,T59="",O58=0,O58="",O59=0,O59="",O60=0,O60="",O61=0,O61=""),"",IF(T59<=O58,1,IF(T59<=O59,2,IF(T59<=O60,3,IF(T59<=O61,4,""))))) ->  | W59: 2 | X59: 2 | Y59: 2
A60: =VLOOKUP(B53,eventno,10,FALSE) -> 11.5 | B60: 6 | C60: 88 | D60: =IF(OR(C60=0,C60=""),"",IF(A53="F",HLOOKUP(C60,females,A54,FALSE),IF(A53="M",HLOOKUP(C60,males,A54,FALSE),""))) -> James Stanton | E60: York | F60: 13.05 | G60: =IF(OR(F60=0,F60="",A58=0,A58="",A59=0,A59="",A60=0,A60="",A61=0,A61=""),"",IF(F60<=A58,1,IF(F60<=A59,2,IF(F60<=A60,3,IF(F60<=A61,4,""))))) ->  | H60: =VLOOKUP(I53,eventno,10,FALSE) -> 12.1 | I60: 6 | J60: 99 | K60: =IF(OR(J60=0,J60=""),"",IF(H53="F",HLOOKUP(J60,females,H54,FALSE),IF(H53="M",HLOOKUP(J60,males,H54,FALSE),""))) -> Robert Sanderson | L60: Wake | M60: 13.21 | N60: =IF(OR(M60=0,M60="",H58=0,H58="",H59=0,H59="",H60=0,H60="",H61=0,H61=""),"",IF(M60<=H58,1,IF(M60<=H59,2,IF(M60<=H60,3,IF(M60<=H61,4,""))))) ->  | O60: =VLOOKUP(P53,eventno,10,FALSE) -> 13.4 | P60: 6 | R60: =IF(OR(Q60=0,Q60=""),"",IF(O53="F",HLOOKUP(Q60,females,O54,FALSE),IF(O53="M",HLOOKUP(Q60,males,O54,FALSE),""))) ->  | U60: =IF(OR(T60=0,T60="",O58=0,O58="",O59=0,O59="",O60=0,O60="",O61=0,O61=""),"",IF(T60<=O58,1,IF(T60<=O59,2,IF(T60<=O60,3,IF(T60<=O61,4,""))))) ->  | W60: 1 | X60: 1 | Y60: 0
A61: =VLOOKUP(B53,eventno,11,FALSE) -> 11.8 | H61: =VLOOKUP(I53,eventno,11,FALSE) -> 12.5 | O61: =VLOOKUP(P53,eventno,11,FALSE) -> 13.9 | W61: 0 | X61: 0 | Y61: 0
A62: =VLOOKUP(B62,eventno,5,FALSE) -> M | B62: T19 | C62: =VLOOKUP(B62,eventno,4,FALSE) -> U17M 3000m | E62: =IF(A65="W","Wind =","") ->  | G62: =IF(OR(F64=0,F64="",A66=0,A66=""),"",IF(A64="T",IF(F64<A66,"LR",IF(F64=A66,"LR=","")))) ->  | H62: =VLOOKUP(I62,eventno,5,FALSE) -> F | I62: T20 | J62: =VLOOKUP(I62,eventno,4,FALSE) -> U17W 3000m | L62: =IF(H65="W","Wind =","") ->  | N62: =IF(OR(M64=0,M64="",H66=0,H66=""),"",IF(H64="T",IF(M64<H66,"LR",IF(M64=H66,"LR=","")))) ->  | W62: 0 | X62: 0 | Y62: 0
A63: =IF(A62="M",VLOOKUP(B62,males,15,FALSE),VLOOKUP(B62,females,15,FALSE)) -> 11 | B63: Posn | C63: Bib | D63: Athlete | E63: Club | F63: Perf | G63: Gr | H63: =IF(H62="M",VLOOKUP(I62,males,15,FALSE),VLOOKUP(I62,females,15,FALSE)) -> 11 | I63: Posn | J63: Bib | K63: Athlete | L63: Club | M63: Perf | N63: Gr | Y63: 0
A64: =LEFT(B62,1) -> T | B64: 1 | C64: 7 | D64: =IF(OR(C64=0,C64=""),"",IF(A62="F",HLOOKUP(C64,females,A63,FALSE),IF(A62="M",HLOOKUP(C64,males,A63,FALSE),""))) -> Daniel Harrison | E64: =IF(OR(C64=0,C64="",ISERROR(VLOOKUP(C64,match_teams,4,FALSE)=TRUE)),"",VLOOKUP(C64,match_teams,4,FALSE)) -> Leeds C | F64: 00:11:44.830 | G64: =IF(OR(F64=0,F64="",A67=0,A67="",A68=0,A68="",A69=0,A69="",A70=0,A70=""),"",IF(F64<=A67,1,IF(F64<=A68,2,IF(F64<=A69,3,IF(F64<=A70,4,""))))) ->  | H64: =LEFT(I62,1) -> T | I64: 1 | J64: 8 | K64: =IF(OR(J64=0,J64=""),"",IF(H62="F",HLOOKUP(J64,females,H63,FALSE),IF(H62="M",HLOOKUP(J64,males,H63,FALSE),""))) -> Katy Wood | L64: =IF(OR(J64=0,J64="",ISERROR(VLOOKUP(J64,match_teams,4,FALSE)=TRUE)),"",VLOOKUP(J64,match_teams,4,FALSE)) -> York | M64: 00:11:06.490 | N64: =IF(OR(M64=0,M64="",H67=0,H67="",H68=0,H68="",H69=0,H69="",H70=0,H70=""),"",IF(M64<=H67,1,IF(M64<=H68,2,IF(M64<=H69,3,IF(M64<=H70,4,""))))) -> 4 | W64: 6 | X64: 6 | Y64: 0
A65: =VLOOKUP(B62,eventno,6,FALSE) -> 0 | B65: 2 | D65: =IF(OR(C65=0,C65=""),"",IF(A62="F",HLOOKUP(C65,females,A63,FALSE),IF(A62="M",HLOOKUP(C65,males,A63,FALSE),""))) ->  | G65: =IF(OR(F65=0,F65="",A67=0,A67="",A68=0,A68="",A69=0,A69="",A70=0,A70=""),"",IF(F65<=A67,1,IF(F65<=A68,2,IF(F65<=A69,3,IF(F65<=A70,4,""))))) ->  | H65: =VLOOKUP(I62,eventno,6,FALSE) -> 0 | I65: 2 | J65: 9 | K65: =IF(OR(J65=0,J65=""),"",IF(H62="F",HLOOKUP(J65,females,H63,FALSE),IF(H62="M",HLOOKUP(J65,males,H63,FALSE),""))) -> Jessica Timmins | L65: Wake | M65: 00:12:50.260 | N65: =IF(OR(M65=0,M65="",H67=0,H67="",H68=0,H68="",H69=0,H69="",H70=0,H70=""),"",IF(M65<=H67,1,IF(M65<=H68,2,IF(M65<=H69,3,IF(M65<=H70,4,""))))) ->  | W65: 0 | X65: 5 | Y65: 0
A66: =VLOOKUP(B62,eventno,7,FALSE) -> 0.005905092593 | B66: 3 | D66: =IF(OR(C66=0,C66=""),"",IF(A62="F",HLOOKUP(C66,females,A63,FALSE),IF(A62="M",HLOOKUP(C66,males,A63,FALSE),""))) ->  | G66: =IF(OR(F66=0,F66="",A67=0,A67="",A68=0,A68="",A69=0,A69="",A70=0,A70=""),"",IF(F66<=A67,1,IF(F66<=A68,2,IF(F66<=A69,3,IF(F66<=A70,4,""))))) ->  | H66: =VLOOKUP(I62,eventno,7,FALSE) -> 0.006717592593 | I66: 3 | J66: 7 | K66: =IF(OR(J66=0,J66=""),"",IF(H62="F",HLOOKUP(J66,females,H63,FALSE),IF(H62="M",HLOOKUP(J66,males,H63,FALSE),""))) -> Ellie Dooley | L66: Leeds C | M66: 13.:21.70 | N66: =IF(OR(M66=0,M66="",H67=0,H67="",H68=0,H68="",H69=0,H69="",H70=0,H70=""),"",IF(M66<=H67,1,IF(M66<=H68,2,IF(M66<=H69,3,IF(M66<=H70,4,""))))) ->  | W66: 0 | X66: 4 | Y66: 0
A67: =VLOOKUP(B62,eventno,8,FALSE) -> 0.006128472222 | B67: 4 | D67: =IF(OR(C67=0,C67=""),"",IF(A62="F",HLOOKUP(C67,females,A63,FALSE),IF(A62="M",HLOOKUP(C67,males,A63,FALSE),""))) ->  | G67: =IF(OR(F67=0,F67="",A67=0,A67="",A68=0,A68="",A69=0,A69="",A70=0,A70=""),"",IF(F67<=A67,1,IF(F67<=A68,2,IF(F67<=A69,3,IF(F67<=A70,4,""))))) ->  | H67: =VLOOKUP(I62,eventno,8,FALSE) -> 0.007042824074 | I67: 4 | K67: =IF(OR(J67=0,J67=""),"",IF(H62="F",HLOOKUP(J67,females,H63,FALSE),IF(H62="M",HLOOKUP(J67,males,H63,FALSE),""))) ->  | N67: =IF(OR(M67=0,M67="",H67=0,H67="",H68=0,H68="",H69=0,H69="",H70=0,H70=""),"",IF(M67<=H67,1,IF(M67<=H68,2,IF(M67<=H69,3,IF(M67<=H70,4,""))))) ->  | W67: 0 | X67: 0 | Y67: 0
A68: =VLOOKUP(B62,eventno,9,FALSE) -> 0.006261574074 | B68: 5 | D68: =IF(OR(C68=0,C68=""),"",IF(A62="F",HLOOKUP(C68,females,A63,FALSE),IF(A62="M",HLOOKUP(C68,males,A63,FALSE),""))) ->  | G68: =IF(OR(F68=0,F68="",A67=0,A67="",A68=0,A68="",A69=0,A69="",A70=0,A70=""),"",IF(F68<=A67,1,IF(F68<=A68,2,IF(F68<=A69,3,IF(F68<=A70,4,""))))) ->  | H68: =VLOOKUP(I62,eventno,9,FALSE) -> 0.007303240741 | I68: 5 | K68: =IF(OR(J68=0,J68=""),"",IF(H62="F",HLOOKUP(J68,females,H63,FALSE),IF(H62="M",HLOOKUP(J68,males,H63,FALSE),""))) ->  | N68: =IF(OR(M68=0,M68="",H67=0,H67="",H68=0,H68="",H69=0,H69="",H70=0,H70=""),"",IF(M68<=H67,1,IF(M68<=H68,2,IF(M68<=H69,3,IF(M68<=H70,4,""))))) ->  | W68: 0 | X68: 0 | Y68: 0
A69: =VLOOKUP(B62,eventno,10,FALSE) -> 0.006429398148 | B69: 6 | D69: =IF(OR(C69=0,C69=""),"",IF(A62="F",HLOOKUP(C69,females,A63,FALSE),IF(A62="M",HLOOKUP(C69,males,A63,FALSE),""))) ->  | G69: =IF(OR(F69=0,F69="",A67=0,A67="",A68=0,A68="",A69=0,A69="",A70=0,A70=""),"",IF(F69<=A67,1,IF(F69<=A68,2,IF(F69<=A69,3,IF(F69<=A70,4,""))))) ->  | H69: =VLOOKUP(I62,eventno,10,FALSE) -> 0.007528935185 | I69: 6 | K69: =IF(OR(J69=0,J69=""),"",IF(H62="F",HLOOKUP(J69,females,H63,FALSE),IF(H62="M",HLOOKUP(J69,males,H63,FALSE),""))) ->  | N69: =IF(OR(M69=0,M69="",H67=0,H67="",H68=0,H68="",H69=0,H69="",H70=0,H70=""),"",IF(M69<=H67,1,IF(M69<=H68,2,IF(M69<=H69,3,IF(M69<=H70,4,""))))) ->  | W69: 0 | X69: 0 | Y69: 0
A70: =VLOOKUP(B62,eventno,11,FALSE) -> 0.006695601852 | H70: =VLOOKUP(I62,eventno,11,FALSE) -> 0.007957175926 | W70: 0 | X70: 0 | Y70: 0
A71: =VLOOKUP(B71,eventno,5,FALSE) -> F | B71: T21 | C71: =VLOOKUP(B71,eventno,4,FALSE) -> U17W 300m H | E71: =IF(A74="W","Wind =","") ->  | G71: =IF(OR(F73=0,F73="",A75=0,A75=""),"",IF(A73="T",IF(F73<A75,"LR",IF(F73=A75,"LR=","")))) ->  | H71: =VLOOKUP(I71,eventno,5,FALSE) -> M | I71: T22 | J71: =VLOOKUP(I71,eventno,4,FALSE) -> U17M 400m H | L71: =IF(H74="W","Wind =","") ->  | N71: =IF(OR(M73=0,M73="",H75=0,H75=""),"",IF(H73="T",IF(M73<H75,"LR",IF(M73=H75,"LR=","")))) ->  | W71: 0 | X71: 0 | Y71: 0
A72: =IF(A71="M",VLOOKUP(B71,males,15,FALSE),VLOOKUP(B71,females,15,FALSE)) -> 12 | B72: Posn | C72: Bib | D72: Athlete | E72: Club | F72: Perf | G72: Gr | H72: =IF(H71="M",VLOOKUP(I71,males,15,FALSE),VLOOKUP(I71,females,15,FALSE)) -> 12 | I72: Posn | J72: Bib | K72: Athlete | L72: Club | M72: Perf | N72: Gr | W72: =IF(OR(B72=0,B72="",C72=0,C72="",F72=0,F72="",LEFT(F72,1)="D"),0,VLOOKUP(B72,points,2,FALSE)) ->  | X72: =IF(OR(I72=0,I72="",J72=0,J72="",M72=0,M72="",LEFT(M72,1)="D"),0,VLOOKUP(I72,points,2,FALSE)) ->  | Y72: =IF(OR(P72=0,P72="",Q72=0,Q72="",T72=0,T72="",LEFT(T72,1)="D"),0,VLOOKUP(P72,points,2,FALSE)) -> 0
A73: =LEFT(B71,1) -> T | B73: 1 | C73: 9 | D73: =IF(OR(C73=0,C73=""),"",IF(A71="F",HLOOKUP(C73,females,A72,FALSE),IF(A71="M",HLOOKUP(C73,males,A72,FALSE),""))) -> Bethany Sharp | E73: =IF(OR(C73=0,C73="",ISERROR(VLOOKUP(C73,match_teams,4,FALSE)=TRUE)),"",VLOOKUP(C73,match_teams,4,FALSE)) -> Wake | F73: 45.87 | G73: =IF(OR(F73=0,F73="",A76=0,A76="",A77=0,A77="",A78=0,A78="",A79=0,A79=""),"",IF(F73<=A76,1,IF(F73<=A77,2,IF(F73<=A78,3,IF(F73<=A79,4,""))))) -> 2 | H73: =LEFT(I71,1) -> T | I73: 1 | J73: 9 | K73: =IF(OR(J73=0,J73=""),"",IF(H71="F",HLOOKUP(J73,females,H72,FALSE),IF(H71="M",HLOOKUP(J73,males,H72,FALSE),""))) -> George Brown | L73: =IF(OR(J73=0,J73="",ISERROR(VLOOKUP(J73,match_teams,4,FALSE)=TRUE)),"",VLOOKUP(J73,match_teams,4,FALSE)) -> Wake | M73: 63.42 | N73: =IF(OR(M73=0,M73="",H76=0,H76="",H77=0,H77="",H78=0,H78="",H79=0,H79=""),"",IF(M73<=H76,1,IF(M73<=H77,2,IF(M73<=H78,3,IF(M73<=H79,4,""))))) ->  | W73: 6 | X73: 6 | Y73: 0
A74: =VLOOKUP(B71,eventno,6,FALSE) -> 0 | B74: 2 | C74: 99 | D74: =IF(OR(C74=0,C74=""),"",IF(A71="F",HLOOKUP(C74,females,A72,FALSE),IF(A71="M",HLOOKUP(C74,males,A72,FALSE),""))) -> Leanne Barraclough | E74: Wake | F74: 55.2 | G74: =IF(OR(F74=0,F74="",A76=0,A76="",A77=0,A77="",A78=0,A78="",A79=0,A79=""),"",IF(F74<=A76,1,IF(F74<=A77,2,IF(F74<=A78,3,IF(F74<=A79,4,""))))) ->  | H74: =VLOOKUP(I71,eventno,6,FALSE) -> 0 | I74: 2 | J74: 99 | K74: =IF(OR(J74=0,J74=""),"",IF(H71="F",HLOOKUP(J74,females,H72,FALSE),IF(H71="M",HLOOKUP(J74,males,H72,FALSE),""))) -> Oliver Edmunds | L74: Wake | M74: 68.36 | N74: =IF(OR(M74=0,M74="",H76=0,H76="",H77=0,H77="",H78=0,H78="",H79=0,H79=""),"",IF(M74<=H76,1,IF(M74<=H77,2,IF(M74<=H78,3,IF(M74<=H79,4,""))))) ->  | W74: 5 | X74: 5 | Y74: 0
A75: =VLOOKUP(B71,eventno,7,FALSE) -> 43.76 | B75: 3 | C75: 8 | D75: =IF(OR(C75=0,C75=""),"",IF(A71="F",HLOOKUP(C75,females,A72,FALSE),IF(A71="M",HLOOKUP(C75,males,A72,FALSE),""))) -> Megan Savage | E75: York | F75: 56.58 | G75: =IF(OR(F75=0,F75="",A76=0,A76="",A77=0,A77="",A78=0,A78="",A79=0,A79=""),"",IF(F75<=A76,1,IF(F75<=A77,2,IF(F75<=A78,3,IF(F75<=A79,4,""))))) ->  | H75: =VLOOKUP(I71,eventno,7,FALSE) -> 53.6 | I75: 3 | J75: 8 | K75: =IF(OR(J75=0,J75=""),"",IF(H71="F",HLOOKUP(J75,females,H72,FALSE),IF(H71="M",HLOOKUP(J75,males,H72,FALSE),""))) -> James Stanton | L75: York | M75: 71.09 | N75: =IF(OR(M75=0,M75="",H76=0,H76="",H77=0,H77="",H78=0,H78="",H79=0,H79=""),"",IF(M75<=H76,1,IF(M75<=H77,2,IF(M75<=H78,3,IF(M75<=H79,4,""))))) ->  | W75: 4 | X75: 4 | Y75: 0
A76: =VLOOKUP(B71,eventno,8,FALSE) -> 45.5 | B76: 4 | D76: =IF(OR(C76=0,C76=""),"",IF(A71="F",HLOOKUP(C76,females,A72,FALSE),IF(A71="M",HLOOKUP(C76,males,A72,FALSE),""))) ->  | G76: =IF(OR(F76=0,F76="",A76=0,A76="",A77=0,A77="",A78=0,A78="",A79=0,A79=""),"",IF(F76<=A76,1,IF(F76<=A77,2,IF(F76<=A78,3,IF(F76<=A79,4,""))))) ->  | H76: =VLOOKUP(I71,eventno,8,FALSE) -> 56.5 | I76: 4 | K76: =IF(OR(J76=0,J76=""),"",IF(H71="F",HLOOKUP(J76,females,H72,FALSE),IF(H71="M",HLOOKUP(J76,males,H72,FALSE),""))) ->  | N76: =IF(OR(M76=0,M76="",H76=0,H76="",H77=0,H77="",H78=0,H78="",H79=0,H79=""),"",IF(M76<=H76,1,IF(M76<=H77,2,IF(M76<=H78,3,IF(M76<=H79,4,""))))) ->  | W76: 0 | X76: 0 | Y76: 0
A77: =VLOOKUP(B71,eventno,9,FALSE) -> 46.7 | B77: 5 | D77: =IF(OR(C77=0,C77=""),"",IF(A71="F",HLOOKUP(C77,females,A72,FALSE),IF(A71="M",HLOOKUP(C77,males,A72,FALSE),""))) ->  | G77: =IF(OR(F77=0,F77="",A76=0,A76="",A77=0,A77="",A78=0,A78="",A79=0,A79=""),"",IF(F77<=A76,1,IF(F77<=A77,2,IF(F77<=A78,3,IF(F77<=A79,4,""))))) ->  | H77: =VLOOKUP(I71,eventno,9,FALSE) -> 58.5 | I77: 5 | K77: =IF(OR(J77=0,J77=""),"",IF(H71="F",HLOOKUP(J77,females,H72,FALSE),IF(H71="M",HLOOKUP(J77,males,H72,FALSE),""))) ->  | N77: =IF(OR(M77=0,M77="",H76=0,H76="",H77=0,H77="",H78=0,H78="",H79=0,H79=""),"",IF(M77<=H76,1,IF(M77<=H77,2,IF(M77<=H78,3,IF(M77<=H79,4,""))))) ->  | W77: 0 | X77: 0 | Y77: 0
A78: =VLOOKUP(B71,eventno,10,FALSE) -> 47.9 | B78: 6 | D78: =IF(OR(C78=0,C78=""),"",IF(A71="F",HLOOKUP(C78,females,A72,FALSE),IF(A71="M",HLOOKUP(C78,males,A72,FALSE),""))) ->  | G78: =IF(OR(F78=0,F78="",A76=0,A76="",A77=0,A77="",A78=0,A78="",A79=0,A79=""),"",IF(F78<=A76,1,IF(F78<=A77,2,IF(F78<=A78,3,IF(F78<=A79,4,""))))) ->  | H78: =VLOOKUP(I71,eventno,10,FALSE) -> 60.5 | I78: 6 | K78: =IF(OR(J78=0,J78=""),"",IF(H71="F",HLOOKUP(J78,females,H72,FALSE),IF(H71="M",HLOOKUP(J78,males,H72,FALSE),""))) ->  | N78: =IF(OR(M78=0,M78="",H76=0,H76="",H77=0,H77="",H78=0,H78="",H79=0,H79=""),"",IF(M78<=H76,1,IF(M78<=H77,2,IF(M78<=H78,3,IF(M78<=H79,4,""))))) ->  | W78: 0 | X78: 0 | Y78: 0
A79: =VLOOKUP(B71,eventno,11,FALSE) -> 50 | H79: =VLOOKUP(I71,eventno,11,FALSE) -> 62.5 | W79: 0 | X79: 0 | Y79: 0
A80: =VLOOKUP(B80,eventno,5,FALSE) -> F | B80: T23 | C80: =VLOOKUP(B80,eventno,4,FALSE) -> U13G 150m | E80: =IF(A83="W","Wind =","") -> Wind = | G80: =IF(OR(F82=0,F82="",A84=0,A84=""),"",IF(A82="T",IF(F82<A84,"LR",IF(F82=A84,"LR=","")))) ->  | H80: =VLOOKUP(I80,eventno,5,FALSE) -> M | I80: T24 | J80: =VLOOKUP(I80,eventno,4,FALSE) -> U13B 200m | L80: =IF(H83="W","Wind =","") -> Wind = | N80: =IF(OR(M82=0,M82="",H84=0,H84=""),"",IF(H82="T",IF(M82<H84,"LR",IF(M82=H84,"LR=","")))) ->  | O80: =VLOOKUP(P80,eventno,5,FALSE) -> F | P80: T25 | Q80: =VLOOKUP(P80,eventno,4,FALSE) -> U15G 200m | S80: =IF(O83="W","Wind =","") -> Wind = | U80: =IF(OR(T82=0,T82="",O84=0,O84=""),"",IF(O82="T",IF(T82<O84,"LR",IF(T82=O84,"LR=","")))) ->  | W80: 0 | X80: 0 | Y80: 0
A81: =IF(A80="M",VLOOKUP(B80,males,15,FALSE),VLOOKUP(B80,females,15,FALSE)) -> 13 | B81: Posn | C81: Bib | D81: Athlete | E81: Club | F81: Perf | G81: Gr | H81: =IF(H80="M",VLOOKUP(I80,males,15,FALSE),VLOOKUP(I80,females,15,FALSE)) -> 13 | I81: Posn | J81: Bib | K81: Athlete | L81: Club | M81: Perf | N81: Gr | O81: =IF(O80="M",VLOOKUP(P80,males,15,FALSE),VLOOKUP(P80,females,15,FALSE)) -> 14 | P81: Posn | Q81: Bib | R81: Athlete | S81: Club | T81: Perf | U81: Gr
A82: =LEFT(B80,1) -> T | B82: 1 | C82: 9 | D82: =IF(OR(C82=0,C82=""),"",IF(A80="F",HLOOKUP(C82,females,A81,FALSE),IF(A80="M",HLOOKUP(C82,males,A81,FALSE),""))) -> Madeleine Gerrard | E82: =IF(OR(C82=0,C82="",ISERROR(VLOOKUP(C82,match_teams,4,FALSE)=TRUE)),"",VLOOKUP(C82,match_teams,4,FALSE)) -> Wake | F82: 21.46 | G82: =IF(OR(F82=0,F82="",A85=0,A85="",A86=0,A86="",A87=0,A87="",A88=0,A88=""),"",IF(F82<=A85,1,IF(F82<=A86,2,IF(F82<=A87,3,IF(F82<=A88,4,""))))) -> 3 | H82: =LEFT(I80,1) -> T | I82: 1 | J82: 7 | K82: =IF(OR(J82=0,J82=""),"",IF(H80="F",HLOOKUP(J82,females,H81,FALSE),IF(H80="M",HLOOKUP(J82,males,H81,FALSE),""))) -> Lewis Renton | L82: =IF(OR(J82=0,J82="",ISERROR(VLOOKUP(J82,match_teams,4,FALSE)=TRUE)),"",VLOOKUP(J82,match_teams,4,FALSE)) -> Leeds C | M82: 27.01 | N82: =IF(OR(M82=0,M82="",H85=0,H85="",H86=0,H86="",H87=0,H87="",H88=0,H88=""),"",IF(M82<=H85,1,IF(M82<=H86,2,IF(M82<=H87,3,IF(M82<=H88,4,""))))) -> 2 | O82: =LEFT(P80,1) -> T | P82: 1 | Q82: 9 | R82: =IF(OR(Q82=0,Q82=""),"",IF(O80="F",HLOOKUP(Q82,females,O81,FALSE),IF(O80="M",HLOOKUP(Q82,males,O81,FALSE),""))) -> Holly Marshall | S82: =IF(OR(Q82=0,Q82="",ISERROR(VLOOKUP(Q82,match_teams,4,FALSE)=TRUE)),"",VLOOKUP(Q82,match_teams,4,FALSE)) -> Wake | T82: 27.02 | U82: =IF(OR(T82=0,T82="",O85=0,O85="",O86=0,O86="",O87=0,O87="",O88=0,O88=""),"",IF(T82<=O85,1,IF(T82<=O86,2,IF(T82<=O87,3,IF(T82<=O88,4,""))))) -> 3 | W82: 6 | X82: 6 | Y82: 6
A83: =VLOOKUP(B80,eventno,6,FALSE) -> W | B83: 2 | C83: 88 | D83: =IF(OR(C83=0,C83=""),"",IF(A80="F",HLOOKUP(C83,females,A81,FALSE),IF(A80="M",HLOOKUP(C83,males,A81,FALSE),""))) -> Charlotte Stamp | E83: York | F83: 22.41 | G83: =IF(OR(F83=0,F83="",A85=0,A85="",A86=0,A86="",A87=0,A87="",A88=0,A88=""),"",IF(F83<=A85,1,IF(F83<=A86,2,IF(F83<=A87,3,IF(F83<=A88,4,""))))) ->  | H83: =VLOOKUP(I80,eventno,6,FALSE) -> W | I83: 2 | J83: 9 | K83: =IF(OR(J83=0,J83=""),"",IF(H80="F",HLOOKUP(J83,females,H81,FALSE),IF(H80="M",HLOOKUP(J83,males,H81,FALSE),""))) -> Alexander Rogers | L83: Wake | M83: 27.46 | N83: =IF(OR(M83=0,M83="",H85=0,H85="",H86=0,H86="",H87=0,H87="",H88=0,H88=""),"",IF(M83<=H85,1,IF(M83<=H86,2,IF(M83<=H87,3,IF(M83<=H88,4,""))))) -> 2 | O83: =VLOOKUP(P80,eventno,6,FALSE) -> W | P83: 2 | Q83: 77 | R83: =IF(OR(Q83=0,Q83=""),"",IF(O80="F",HLOOKUP(Q83,females,O81,FALSE),IF(O80="M",HLOOKUP(Q83,males,O81,FALSE),""))) -> Caoimhe Crampton | S83: Leeds C | T83: 27.89 | U83: =IF(OR(T83=0,T83="",O85=0,O85="",O86=0,O86="",O87=0,O87="",O88=0,O88=""),"",IF(T83<=O85,1,IF(T83<=O86,2,IF(T83<=O87,3,IF(T83<=O88,4,""))))) -> 4 | W83: 5 | X83: 5 | Y83: 5
A84: =VLOOKUP(B80,eventno,7,FALSE) -> 18.8 | B84: 3 | C84: 8 | D84: =IF(OR(C84=0,C84=""),"",IF(A80="F",HLOOKUP(C84,females,A81,FALSE),IF(A80="M",HLOOKUP(C84,males,A81,FALSE),""))) -> Lucy Hadaway | E84: York | F84: 22.97 | G84: =IF(OR(F84=0,F84="",A85=0,A85="",A86=0,A86="",A87=0,A87="",A88=0,A88=""),"",IF(F84<=A85,1,IF(F84<=A86,2,IF(F84<=A87,3,IF(F84<=A88,4,""))))) ->  | H84: =VLOOKUP(I80,eventno,7,FALSE) -> 23.7 | I84: 3 | J84: 8 | K84: =IF(OR(J84=0,J84=""),"",IF(H80="F",HLOOKUP(J84,females,H81,FALSE),IF(H80="M",HLOOKUP(J84,males,H81,FALSE),""))) -> Alex Botterill | L84: York | M84: 30.25 | N84: =IF(OR(M84=0,M84="",H85=0,H85="",H86=0,H86="",H87=0,H87="",H88=0,H88=""),"",IF(M84<=H85,1,IF(M84<=H86,2,IF(M84<=H87,3,IF(M84<=H88,4,""))))) ->  | O84: =VLOOKUP(P80,eventno,7,FALSE) -> 24.18 | P84: 3 | Q84: 99 | R84: =IF(OR(Q84=0,Q84=""),"",IF(O80="F",HLOOKUP(Q84,females,O81,FALSE),IF(O80="M",HLOOKUP(Q84,males,O81,FALSE),""))) -> Jessica Eyles | S84: Wake | T84: 28.51 | U84: =IF(OR(T84=0,T84="",O85=0,O85="",O86=0,O86="",O87=0,O87="",O88=0,O88=""),"",IF(T84<=O85,1,IF(T84<=O86,2,IF(T84<=O87,3,IF(T84<=O88,4,""))))) ->  | W84: 4 | X84: 4 | Y84: 4
A85: =VLOOKUP(B80,eventno,8,FALSE) -> 20.6 | B85: 4 | C85: 99 | D85: =IF(OR(C85=0,C85=""),"",IF(A80="F",HLOOKUP(C85,females,A81,FALSE),IF(A80="M",HLOOKUP(C85,males,A81,FALSE),""))) -> Georgia Green | E85: Wake | F85: 23.38 | G85: =IF(OR(F85=0,F85="",A85=0,A85="",A86=0,A86="",A87=0,A87="",A88=0,A88=""),"",IF(F85<=A85,1,IF(F85<=A86,2,IF(F85<=A87,3,IF(F85<=A88,4,""))))) ->  | H85: =VLOOKUP(I80,eventno,8,FALSE) -> 26.7 | I85: 4 | J85: 77 | K85: =IF(OR(J85=0,J85=""),"",IF(H80="F",HLOOKUP(J85,females,H81,FALSE),IF(H80="M",HLOOKUP(J85,males,H81,FALSE),""))) -> Billy Dawson | L85: Leeds C | M85: 30.44 | N85: =IF(OR(M85=0,M85="",H85=0,H85="",H86=0,H86="",H87=0,H87="",H88=0,H88=""),"",IF(M85<=H85,1,IF(M85<=H86,2,IF(M85<=H87,3,IF(M85<=H88,4,""))))) ->  | O85: =VLOOKUP(P80,eventno,8,FALSE) -> 26.3 | P85: 4 | Q85: 88 | R85: =IF(OR(Q85=0,Q85=""),"",IF(O80="F",HLOOKUP(Q85,females,O81,FALSE),IF(O80="M",HLOOKUP(Q85,males,O81,FALSE),""))) -> Anna Richardson | S85: York | T85: 29.55 | U85: =IF(OR(T85=0,T85="",O85=0,O85="",O86=0,O86="",O87=0,O87="",O88=0,O88=""),"",IF(T85<=O85,1,IF(T85<=O86,2,IF(T85<=O87,3,IF(T85<=O88,4,""))))) ->  | W85: 3 | X85: 3 | Y85: 3
A86: =VLOOKUP(B80,eventno,9,FALSE) -> 21 | B86: 5 | C86: 7 | D86: =IF(OR(C86=0,C86=""),"",IF(A80="F",HLOOKUP(C86,females,A81,FALSE),IF(A80="M",HLOOKUP(C86,males,A81,FALSE),""))) -> Jessie Mogridge | E86: Leeds C | F86: 25.02 | G86: =IF(OR(F86=0,F86="",A85=0,A85="",A86=0,A86="",A87=0,A87="",A88=0,A88=""),"",IF(F86<=A85,1,IF(F86<=A86,2,IF(F86<=A87,3,IF(F86<=A88,4,""))))) ->  | H86: =VLOOKUP(I80,eventno,9,FALSE) -> 27.6 | I86: 5 | J86: 99 | K86: =IF(OR(J86=0,J86=""),"",IF(H80="F",HLOOKUP(J86,females,H81,FALSE),IF(H80="M",HLOOKUP(J86,males,H81,FALSE),""))) -> Carter Bower-Stead | L86: Wake | M86: 32.89 | N86: =IF(OR(M86=0,M86="",H85=0,H85="",H86=0,H86="",H87=0,H87="",H88=0,H88=""),"",IF(M86<=H85,1,IF(M86<=H86,2,IF(M86<=H87,3,IF(M86<=H88,4,""))))) ->  | O86: =VLOOKUP(P80,eventno,9,FALSE) -> 26.7 | P86: 5 | Q86: 7 | R86: =IF(OR(Q86=0,Q86=""),"",IF(O80="F",HLOOKUP(Q86,females,O81,FALSE),IF(O80="M",HLOOKUP(Q86,males,O81,FALSE),""))) -> Molly Yearby | S86: Leeds C | T86: 30.63 | U86: =IF(OR(T86=0,T86="",O85=0,O85="",O86=0,O86="",O87=0,O87="",O88=0,O88=""),"",IF(T86<=O85,1,IF(T86<=O86,2,IF(T86<=O87,3,IF(T86<=O88,4,""))))) ->  | W86: 2 | X86: 2 | Y86: 2
A87: =VLOOKUP(B80,eventno,10,FALSE) -> 21.5 | B87: 6 | C87: 77 | D87: =IF(OR(C87=0,C87=""),"",IF(A80="F",HLOOKUP(C87,females,A81,FALSE),IF(A80="M",HLOOKUP(C87,males,A81,FALSE),""))) -> Chloe Brooks | E87: Leeds C | F87: 27.06 | G87: =IF(OR(F87=0,F87="",A85=0,A85="",A86=0,A86="",A87=0,A87="",A88=0,A88=""),"",IF(F87<=A85,1,IF(F87<=A86,2,IF(F87<=A87,3,IF(F87<=A88,4,""))))) ->  | H87: =VLOOKUP(I80,eventno,10,FALSE) -> 28 | I87: 6 | K87: =IF(OR(J87=0,J87=""),"",IF(H80="F",HLOOKUP(J87,females,H81,FALSE),IF(H80="M",HLOOKUP(J87,males,H81,FALSE),""))) ->  | N87: =IF(OR(M87=0,M87="",H85=0,H85="",H86=0,H86="",H87=0,H87="",H88=0,H88=""),"",IF(M87<=H85,1,IF(M87<=H86,2,IF(M87<=H87,3,IF(M87<=H88,4,""))))) ->  | O87: =VLOOKUP(P80,eventno,10,FALSE) -> 27.2 | P87: 6 | Q87: 8 | R87: =IF(OR(Q87=0,Q87=""),"",IF(O80="F",HLOOKUP(Q87,females,O81,FALSE),IF(O80="M",HLOOKUP(Q87,males,O81,FALSE),""))) -> Jade Kerrison | S87: York | T87: 32.59 | U87: =IF(OR(T87=0,T87="",O85=0,O85="",O86=0,O86="",O87=0,O87="",O88=0,O88=""),"",IF(T87<=O85,1,IF(T87<=O86,2,IF(T87<=O87,3,IF(T87<=O88,4,""))))) ->  | W87: 1 | X87: 0 | Y87: 1
A88: =VLOOKUP(B80,eventno,11,FALSE) -> 22.4 | H88: =VLOOKUP(I80,eventno,11,FALSE) -> 29 | O88: =VLOOKUP(P80,eventno,11,FALSE) -> 28 | W88: 0 | X88: 0 | Y88: 0
A89: =VLOOKUP(B89,eventno,5,FALSE) -> M | B89: T26 | C89: =VLOOKUP(B89,eventno,4,FALSE) -> U15B 200m | E89: =IF(A92="W","Wind =","") -> Wind = | G89: =IF(OR(F91=0,F91="",A93=0,A93=""),"",IF(A91="T",IF(F91<A93,"LR",IF(F91=A93,"LR=","")))) ->  | H89: =VLOOKUP(I89,eventno,5,FALSE) -> F | I89: T27 | J89: =VLOOKUP(I89,eventno,4,FALSE) -> U17W 200m | L89: =IF(H92="W","Wind =","") -> Wind = | N89: =IF(OR(M91=0,M91="",H93=0,H93=""),"",IF(H91="T",IF(M91<H93,"LR",IF(M91=H93,"LR=","")))) ->  | O89: =VLOOKUP(P89,eventno,5,FALSE) -> M | P89: T28 | Q89: =VLOOKUP(P89,eventno,4,FALSE) -> U17M 200m | S89: =IF(O92="W","Wind =","") -> Wind = | U89: =IF(OR(T91=0,T91="",O93=0,O93=""),"",IF(O91="T",IF(T91<O93,"LR",IF(T91=O93,"LR=","")))) ->  | W89: 0 | X89: 0 | Y89: 0
A90: =IF(A89="M",VLOOKUP(B89,males,15,FALSE),VLOOKUP(B89,females,15,FALSE)) -> 14 | B90: Posn | C90: Bib | D90: Athlete | E90: Club | F90: Perf | G90: Gr | H90: =IF(H89="M",VLOOKUP(I89,males,15,FALSE),VLOOKUP(I89,females,15,FALSE)) -> 15 | I90: Posn | J90: Bib | K90: Athlete | L90: Club | M90: Perf | N90: Gr | O90: =IF(O89="M",VLOOKUP(P89,males,15,FALSE),VLOOKUP(P89,females,15,FALSE)) -> 15 | P90: Posn | Q90: Bib | R90: Athlete | S90: Club | T90: Perf | U90: Gr
A91: =LEFT(B89,1) -> T | B91: 1 | C91: 7 | D91: =IF(OR(C91=0,C91=""),"",IF(A89="F",HLOOKUP(C91,females,A90,FALSE),IF(A89="M",HLOOKUP(C91,males,A90,FALSE),""))) -> Finlay Fuller | E91: =IF(OR(C91=0,C91="",ISERROR(VLOOKUP(C91,match_teams,4,FALSE)=TRUE)),"",VLOOKUP(C91,match_teams,4,FALSE)) -> Leeds C | F91: 24.62 | G91: =IF(OR(F91=0,F91="",A94=0,A94="",A95=0,A95="",A96=0,A96="",A97=0,A97=""),"",IF(F91<=A94,1,IF(F91<=A95,2,IF(F91<=A96,3,IF(F91<=A97,4,""))))) -> 3 | H91: =LEFT(I89,1) -> T | I91: 1 | J91: 9 | K91: =IF(OR(J91=0,J91=""),"",IF(H89="F",HLOOKUP(J91,females,H90,FALSE),IF(H89="M",HLOOKUP(J91,males,H90,FALSE),""))) -> Zoe Kerins | L91: =IF(OR(J91=0,J91="",ISERROR(VLOOKUP(J91,match_teams,4,FALSE)=TRUE)),"",VLOOKUP(J91,match_teams,4,FALSE)) -> Wake | M91: 26.84 | N91: =IF(OR(M91=0,M91="",H94=0,H94="",H95=0,H95="",H96=0,H96="",H97=0,H97=""),"",IF(M91<=H94,1,IF(M91<=H95,2,IF(M91<=H96,3,IF(M91<=H97,4,""))))) -> 4 | O91: =LEFT(P89,1) -> T | P91: 1 | Q91: 7 | R91: =IF(OR(Q91=0,Q91=""),"",IF(O89="F",HLOOKUP(Q91,females,O90,FALSE),IF(O89="M",HLOOKUP(Q91,males,O90,FALSE),""))) -> Aqib Javed | S91: =IF(OR(Q91=0,Q91="",ISERROR(VLOOKUP(Q91,match_teams,4,FALSE)=TRUE)),"",VLOOKUP(Q91,match_teams,4,FALSE)) -> Leeds C | T91: 23.42 | U91: =IF(OR(T91=0,T91="",O94=0,O94="",O95=0,O95="",O96=0,O96="",O97=0,O97=""),"",IF(T91<=O94,1,IF(T91<=O95,2,IF(T91<=O96,3,IF(T91<=O97,4,""))))) -> 3 | W91: 6 | X91: 6 | Y91: 6
A92: =VLOOKUP(B89,eventno,6,FALSE) -> W | B92: 2 | C92: 8 | D92: =IF(OR(C92=0,C92=""),"",IF(A89="F",HLOOKUP(C92,females,A90,FALSE),IF(A89="M",HLOOKUP(C92,males,A90,FALSE),""))) -> Chris Searle | E92: York | F92: 25.15 | G92: =IF(OR(F92=0,F92="",A94=0,A94="",A95=0,A95="",A96=0,A96="",A97=0,A97=""),"",IF(F92<=A94,1,IF(F92<=A95,2,IF(F92<=A96,3,IF(F92<=A97,4,""))))) -> 4 | H92: =VLOOKUP(I89,eventno,6,FALSE) -> W | I92: 2 | J92: 7 | K92: =IF(OR(J92=0,J92=""),"",IF(H89="F",HLOOKUP(J92,females,H90,FALSE),IF(H89="M",HLOOKUP(J92,males,H90,FALSE),""))) -> India Wilson | L92: Leeds C | M92: 27.43 | N92: =IF(OR(M92=0,M92="",H94=0,H94="",H95=0,H95="",H96=0,H96="",H97=0,H97=""),"",IF(M92<=H94,1,IF(M92<=H95,2,IF(M92<=H96,3,IF(M92<=H97,4,""))))) ->  | O92: =VLOOKUP(P89,eventno,6,FALSE) -> W | P92: 2 | Q92: 9 | R92: =IF(OR(Q92=0,Q92=""),"",IF(O89="F",HLOOKUP(Q92,females,O90,FALSE),IF(O89="M",HLOOKUP(Q92,males,O90,FALSE),""))) -> James McBorrough | S92: Wake | T92: 23.86 | U92: =IF(OR(T92=0,T92="",O94=0,O94="",O95=0,O95="",O96=0,O96="",O97=0,O97=""),"",IF(T92<=O94,1,IF(T92<=O95,2,IF(T92<=O96,3,IF(T92<=O97,4,""))))) -> 4 | W92: 5 | X92: 5 | Y92: 5
A93: =VLOOKUP(B89,eventno,7,FALSE) -> 22.3 | B93: 3 | C93: 9 | D93: =IF(OR(C93=0,C93=""),"",IF(A89="F",HLOOKUP(C93,females,A90,FALSE),IF(A89="M",HLOOKUP(C93,males,A90,FALSE),""))) -> Patrick Thackray | E93: Wake | F93: 25.36 | G93: =IF(OR(F93=0,F93="",A94=0,A94="",A95=0,A95="",A96=0,A96="",A97=0,A97=""),"",IF(F93<=A94,1,IF(F93<=A95,2,IF(F93<=A96,3,IF(F93<=A97,4,""))))) -> 4 | H93: =VLOOKUP(I89,eventno,7,FALSE) -> 24.1 | I93: 3 | J93: 8 | K93: =IF(OR(J93=0,J93=""),"",IF(H89="F",HLOOKUP(J93,females,H90,FALSE),IF(H89="M",HLOOKUP(J93,males,H90,FALSE),""))) -> Emily Haigh | L93: York | M93: 28.5 | N93: =IF(OR(M93=0,M93="",H94=0,H94="",H95=0,H95="",H96=0,H96="",H97=0,H97=""),"",IF(M93<=H94,1,IF(M93<=H95,2,IF(M93<=H96,3,IF(M93<=H97,4,""))))) ->  | O93: =VLOOKUP(P89,eventno,7,FALSE) -> 21.33 | P93: 3 | Q93: 77 | R93: =IF(OR(Q93=0,Q93=""),"",IF(O89="F",HLOOKUP(Q93,females,O90,FALSE),IF(O89="M",HLOOKUP(Q93,males,O90,FALSE),""))) -> Liam Braithwaite | S93: Leeds C | T93: 24.7 | U93: =IF(OR(T93=0,T93="",O94=0,O94="",O95=0,O95="",O96=0,O96="",O97=0,O97=""),"",IF(T93<=O94,1,IF(T93<=O95,2,IF(T93<=O96,3,IF(T93<=O97,4,""))))) ->  | W93: 4 | X93: 4 | Y93: 4
A94: =VLOOKUP(B89,eventno,8,FALSE) -> 24 | B94: 4 | C94: 77 | D94: =IF(OR(C94=0,C94=""),"",IF(A89="F",HLOOKUP(C94,females,A90,FALSE),IF(A89="M",HLOOKUP(C94,males,A90,FALSE),""))) -> Thomas Harrison | E94: Leeds C | F94: 28.33 | G94: =IF(OR(F94=0,F94="",A94=0,A94="",A95=0,A95="",A96=0,A96="",A97=0,A97=""),"",IF(F94<=A94,1,IF(F94<=A95,2,IF(F94<=A96,3,IF(F94<=A97,4,""))))) ->  | H94: =VLOOKUP(I89,eventno,8,FALSE) -> 25.4 | I94: 4 | J94: 77 | K94: =IF(OR(J94=0,J94=""),"",IF(H89="F",HLOOKUP(J94,females,H90,FALSE),IF(H89="M",HLOOKUP(J94,males,H90,FALSE),""))) -> Katie Ward | L94: Leeds C | M94: 29.28 | N94: =IF(OR(M94=0,M94="",H94=0,H94="",H95=0,H95="",H96=0,H96="",H97=0,H97=""),"",IF(M94<=H94,1,IF(M94<=H95,2,IF(M94<=H96,3,IF(M94<=H97,4,""))))) ->  | O94: =VLOOKUP(P89,eventno,8,FALSE) -> 22.8 | P94: 4 | R94: =IF(OR(Q94=0,Q94=""),"",IF(O89="F",HLOOKUP(Q94,females,O90,FALSE),IF(O89="M",HLOOKUP(Q94,males,O90,FALSE),""))) ->  | U94: =IF(OR(T94=0,T94="",O94=0,O94="",O95=0,O95="",O96=0,O96="",O97=0,O97=""),"",IF(T94<=O94,1,IF(T94<=O95,2,IF(T94<=O96,3,IF(T94<=O97,4,""))))) ->  | W94: 3 | X94: 3 | Y94: 0
A95: =VLOOKUP(B89,eventno,9,FALSE) -> 24.4 | B95: 5 | C95: 99 | D95: =IF(OR(C95=0,C95=""),"",IF(A89="F",HLOOKUP(C95,females,A90,FALSE),IF(A89="M",HLOOKUP(C95,males,A90,FALSE),""))) -> Ben Read | E95: Wake | F95: 29.12 | G95: =IF(OR(F95=0,F95="",A94=0,A94="",A95=0,A95="",A96=0,A96="",A97=0,A97=""),"",IF(F95<=A94,1,IF(F95<=A95,2,IF(F95<=A96,3,IF(F95<=A97,4,""))))) ->  | H95: =VLOOKUP(I89,eventno,9,FALSE) -> 25.8 | I95: 5 | J95: 99 | K95: =IF(OR(J95=0,J95=""),"",IF(H89="F",HLOOKUP(J95,females,H90,FALSE),IF(H89="M",HLOOKUP(J95,males,H90,FALSE),""))) -> Emily Wadge | L95: Wake | M95: 31.04 | N95: =IF(OR(M95=0,M95="",H94=0,H94="",H95=0,H95="",H96=0,H96="",H97=0,H97=""),"",IF(M95<=H94,1,IF(M95<=H95,2,IF(M95<=H96,3,IF(M95<=H97,4,""))))) ->  | O95: =VLOOKUP(P89,eventno,9,FALSE) -> 23.1 | P95: 5 | R95: =IF(OR(Q95=0,Q95=""),"",IF(O89="F",HLOOKUP(Q95,females,O90,FALSE),IF(O89="M",HLOOKUP(Q95,males,O90,FALSE),""))) ->  | U95: =IF(OR(T95=0,T95="",O94=0,O94="",O95=0,O95="",O96=0,O96="",O97=0,O97=""),"",IF(T95<=O94,1,IF(T95<=O95,2,IF(T95<=O96,3,IF(T95<=O97,4,""))))) ->  | W95: 2 | X95: 2 | Y95: 0
A96: =VLOOKUP(B89,eventno,10,FALSE) -> 24.9 | B96: 6 | C96: 88 | D96: =IF(OR(C96=0,C96=""),"",IF(A89="F",HLOOKUP(C96,females,A90,FALSE),IF(A89="M",HLOOKUP(C96,males,A90,FALSE),""))) -> Tom Hobson | E96: York | F96: 30 | G96: =IF(OR(F96=0,F96="",A94=0,A94="",A95=0,A95="",A96=0,A96="",A97=0,A97=""),"",IF(F96<=A94,1,IF(F96<=A95,2,IF(F96<=A96,3,IF(F96<=A97,4,""))))) ->  | H96: =VLOOKUP(I89,eventno,10,FALSE) -> 26.3 | I96: 6 | K96: =IF(OR(J96=0,J96=""),"",IF(H89="F",HLOOKUP(J96,females,H90,FALSE),IF(H89="M",HLOOKUP(J96,males,H90,FALSE),""))) ->  | N96: =IF(OR(M96=0,M96="",H94=0,H94="",H95=0,H95="",H96=0,H96="",H97=0,H97=""),"",IF(M96<=H94,1,IF(M96<=H95,2,IF(M96<=H96,3,IF(M96<=H97,4,""))))) ->  | O96: =VLOOKUP(P89,eventno,10,FALSE) -> 23.5 | P96: 6 | R96: =IF(OR(Q96=0,Q96=""),"",IF(O89="F",HLOOKUP(Q96,females,O90,FALSE),IF(O89="M",HLOOKUP(Q96,males,O90,FALSE),""))) ->  | U96: =IF(OR(T96=0,T96="",O94=0,O94="",O95=0,O95="",O96=0,O96="",O97=0,O97=""),"",IF(T96<=O94,1,IF(T96<=O95,2,IF(T96<=O96,3,IF(T96<=O97,4,""))))) ->  | W96: 1 | X96: 0 | Y96: 0
A97: =VLOOKUP(B89,eventno,11,FALSE) -> 25.6 | H97: =VLOOKUP(I89,eventno,11,FALSE) -> 27.1 | O97: =VLOOKUP(P89,eventno,11,FALSE) -> 24.1 | W97: 0 | X97: 0 | Y97: 0
A98: =VLOOKUP(B98,eventno,5,FALSE) -> F | B98: T29 | C98: =VLOOKUP(B98,eventno,4,FALSE) -> U13G 1200m | E98: =IF(A101="W","Wind =","") ->  | G98: =IF(OR(F100=0,F100="",A102=0,A102=""),"",IF(A100="T",IF(F100<A102,"LR",IF(F100=A102,"LR=","")))) ->  | H98: =VLOOKUP(I98,eventno,5,FALSE) -> M | I98: T30 | J98: =VLOOKUP(I98,eventno,4,FALSE) -> U13B 1500m | L98: =IF(H101="W","Wind =","") ->  | N98: =IF(OR(M100=0,M100="",H102=0,H102=""),"",IF(H100="T",IF(M100<H102,"LR",IF(M100=H102,"LR=","")))) ->  | O98: =VLOOKUP(P98,eventno,5,FALSE) -> F | P98: T31 | Q98: =VLOOKUP(P98,eventno,4,FALSE) -> U15G 1500m | S98: =IF(O101="W","Wind =","") ->  | U98: =IF(OR(T100=0,T100="",O102=0,O102=""),"",IF(O100="T",IF(T100<O102,"LR",IF(T100=O102,"LR=","")))) ->  | W98: 0 | X98: 0 | Y98: 0
A99: =IF(A98="M",VLOOKUP(B98,males,15,FALSE),VLOOKUP(B98,females,15,FALSE)) -> 16 | B99: Posn | C99: Bib | D99: Athlete | E99: Club | F99: Perf | G99: Gr | H99: =IF(H98="M",VLOOKUP(I98,males,15,FALSE),VLOOKUP(I98,females,15,FALSE)) -> 16 | I99: Posn | J99: Bib | K99: Athlete | L99: Club | M99: Perf | N99: Gr | O99: =IF(O98="M",VLOOKUP(P98,males,15,FALSE),VLOOKUP(P98,females,15,FALSE)) -> 17 | P99: Posn | Q99: Bib | R99: Athlete | S99: Club | T99: Perf | U99: Gr
A100: =LEFT(B98,1) -> T | B100: 1 | C100: 9 | D100: =IF(OR(C100=0,C100=""),"",IF(A98="F",HLOOKUP(C100,females,A99,FALSE),IF(A98="M",HLOOKUP(C100,males,A99,FALSE),""))) -> Beth Oates | E100: =IF(OR(C100=0,C100="",ISERROR(VLOOKUP(C100,match_teams,4,FALSE)=TRUE)),"",VLOOKUP(C100,match_teams,4,FALSE)) -> Wake | F100: 00:04:18.480 | G100: =IF(OR(F100=0,F100="",A103=0,A103="",A104=0,A104="",A105=0,A105="",A106=0,A106=""),"",IF(F100<=A103,1,IF(F100<=A104,2,IF(F100<=A105,3,IF(F100<=A106,4,""))))) ->  | H100: =LEFT(I98,1) -> T | I100: 1 | J100: 77 | K100: =IF(OR(J100=0,J100=""),"",IF(H98="F",HLOOKUP(J100,females,H99,FALSE),IF(H98="M",HLOOKUP(J100,males,H99,FALSE),""))) -> Dominic Peterson | L100: =IF(OR(J100=0,J100="",ISERROR(VLOOKUP(J100,match_teams,4,FALSE)=TRUE)),"",VLOOKUP(J100,match_teams,4,FALSE)) -> Leeds C | M100: 00:05:13.220 | N100: =IF(OR(M100=0,M100="",H103=0,H103="",H104=0,H104="",H105=0,H105="",H106=0,H106=""),"",IF(M100<=H103,1,IF(M100<=H104,2,IF(M100<=H105,3,IF(M100<=H106,4,""))))) -> 4 | O100: =LEFT(P98,1) -> T | P100: 1 | Q100: 7 | R100: =IF(OR(Q100=0,Q100=""),"",IF(O98="F",HLOOKUP(Q100,females,O99,FALSE),IF(O98="M",HLOOKUP(Q100,males,O99,FALSE),""))) -> Gemma Keir | S100: =IF(OR(Q100=0,Q100="",ISERROR(VLOOKUP(Q100,match_teams,4,FALSE)=TRUE)),"",VLOOKUP(Q100,match_teams,4,FALSE)) -> Leeds C | T100: 00:04:52.460 | U100: =IF(OR(T100=0,T100="",O103=0,O103="",O104=0,O104="",O105=0,O105="",O106=0,O106=""),"",IF(T100<=O103,1,IF(T100<=O104,2,IF(T100<=O105,3,IF(T100<=O106,4,""))))) -> 2 | W100: 6 | X100: 6 | Y100: 6
A101: =VLOOKUP(B98,eventno,6,FALSE) -> 0 | B101: 2 | C101: 99 | D101: =IF(OR(C101=0,C101=""),"",IF(A98="F",HLOOKUP(C101,females,A99,FALSE),IF(A98="M",HLOOKUP(C101,males,A99,FALSE),""))) -> Laura Sanderson | E101: Wake | F101: 00:04:25.670 | G101: =IF(OR(F101=0,F101="",A103=0,A103="",A104=0,A104="",A105=0,A105="",A106=0,A106=""),"",IF(F101<=A103,1,IF(F101<=A104,2,IF(F101<=A105,3,IF(F101<=A106,4,""))))) ->  | H101: =VLOOKUP(I98,eventno,6,FALSE) -> 0 | I101: 2 | J101: 9 | K101: =IF(OR(J101=0,J101=""),"",IF(H98="F",HLOOKUP(J101,females,H99,FALSE),IF(H98="M",HLOOKUP(J101,males,H99,FALSE),""))) -> Edward Dunbavin | L101: Wake | M101: 00:05:21.920 | N101: =IF(OR(M101=0,M101="",H103=0,H103="",H104=0,H104="",H105=0,H105="",H106=0,H106=""),"",IF(M101<=H103,1,IF(M101<=H104,2,IF(M101<=H105,3,IF(M101<=H106,4,""))))) ->  | O101: =VLOOKUP(P98,eventno,6,FALSE) -> 0 | P101: 2 | Q101: 9 | R101: =IF(OR(Q101=0,Q101=""),"",IF(O98="F",HLOOKUP(Q101,females,O99,FALSE),IF(O98="M",HLOOKUP(Q101,males,O99,FALSE),""))) -> Stephanie Rodgers | S101: Wake | T101: 00:05:07.470 | U101: =IF(OR(T101=0,T101="",O103=0,O103="",O104=0,O104="",O105=0,O105="",O106=0,O106=""),"",IF(T101<=O103,1,IF(T101<=O104,2,IF(T101<=O105,3,IF(T101<=O106,4,""))))) -> 4 | W101: 5 | X101: 5 | Y101: 5
A102: =VLOOKUP(B98,eventno,7,FALSE) -> 0.00256712963 | B102: 3 | C102: 88 | D102: =IF(OR(C102=0,C102=""),"",IF(A98="F",HLOOKUP(C102,females,A99,FALSE),IF(A98="M",HLOOKUP(C102,males,A99,FALSE),""))) -> Felicity Edwards | E102: York | F102: 00:04:41.980 | G102: =IF(OR(F102=0,F102="",A103=0,A103="",A104=0,A104="",A105=0,A105="",A106=0,A106=""),"",IF(F102<=A103,1,IF(F102<=A104,2,IF(F102<=A105,3,IF(F102<=A106,4,""))))) ->  | H102: =VLOOKUP(I98,eventno,7,FALSE) -> 0.003052083333 | I102: 3 | J102: 7 | K102: =IF(OR(J102=0,J102=""),"",IF(H98="F",HLOOKUP(J102,females,H99,FALSE),IF(H98="M",HLOOKUP(J102,males,H99,FALSE),""))) -> Alex Booth | L102: Leeds C | M102: 00:05:24.440 | N102: =IF(OR(M102=0,M102="",H103=0,H103="",H104=0,H104="",H105=0,H105="",H106=0,H106=""),"",IF(M102<=H103,1,IF(M102<=H104,2,IF(M102<=H105,3,IF(M102<=H106,4,""))))) ->  | O102: =VLOOKUP(P98,eventno,7,FALSE) -> 0.003198611111 | P102: 3 | Q102: 8 | R102: =IF(OR(Q102=0,Q102=""),"",IF(O98="F",HLOOKUP(Q102,females,O99,FALSE),IF(O98="M",HLOOKUP(Q102,males,O99,FALSE),""))) -> Chelsea Walker | S102: York | T102: 00:05:24.620 | U102: =IF(OR(T102=0,T102="",O103=0,O103="",O104=0,O104="",O105=0,O105="",O106=0,O106=""),"",IF(T102<=O103,1,IF(T102<=O104,2,IF(T102<=O105,3,IF(T102<=O106,4,""))))) ->  | W102: 4 | X102: 4 | Y102: 4
A103: =VLOOKUP(B98,eventno,8,FALSE) -> 0.002743055556 | B103: 4 | C103: 8 | D103: =IF(OR(C103=0,C103=""),"",IF(A98="F",HLOOKUP(C103,females,A99,FALSE),IF(A98="M",HLOOKUP(C103,males,A99,FALSE),""))) -> Georgie Hogarth | E103: York | F103: 00:05:09.310 | G103: =IF(OR(F103=0,F103="",A103=0,A103="",A104=0,A104="",A105=0,A105="",A106=0,A106=""),"",IF(F103<=A103,1,IF(F103<=A104,2,IF(F103<=A105,3,IF(F103<=A106,4,""))))) ->  | H103: =VLOOKUP(I98,eventno,8,FALSE) -> 0.003362268519 | I103: 4 | K103: =IF(OR(J103=0,J103=""),"",IF(H98="F",HLOOKUP(J103,females,H99,FALSE),IF(H98="M",HLOOKUP(J103,males,H99,FALSE),""))) ->  | N103: =IF(OR(M103=0,M103="",H103=0,H103="",H104=0,H104="",H105=0,H105="",H106=0,H106=""),"",IF(M103<=H103,1,IF(M103<=H104,2,IF(M103<=H105,3,IF(M103<=H106,4,""))))) ->  | O103: =VLOOKUP(P98,eventno,8,FALSE) -> 0.003362268519 | P103: 4 | Q103: 99 | R103: =IF(OR(Q103=0,Q103=""),"",IF(O98="F",HLOOKUP(Q103,females,O99,FALSE),IF(O98="M",HLOOKUP(Q103,males,O99,FALSE),""))) -> Saskia Lewis | S103: Wake | T103: 00:05:35.230 | U103: =IF(OR(T103=0,T103="",O103=0,O103="",O104=0,O104="",O105=0,O105="",O106=0,O106=""),"",IF(T103<=O103,1,IF(T103<=O104,2,IF(T103<=O105,3,IF(T103<=O106,4,""))))) ->  | W103: 3 | X103: 0 | Y103: 3
A104: =VLOOKUP(B98,eventno,9,FALSE) -> 0.002789351852 | B104: 5 | D104: =IF(OR(C104=0,C104=""),"",IF(A98="F",HLOOKUP(C104,females,A99,FALSE),IF(A98="M",HLOOKUP(C104,males,A99,FALSE),""))) ->  | G104: =IF(OR(F104=0,F104="",A103=0,A103="",A104=0,A104="",A105=0,A105="",A106=0,A106=""),"",IF(F104<=A103,1,IF(F104<=A104,2,IF(F104<=A105,3,IF(F104<=A106,4,""))))) ->  | H104: =VLOOKUP(I98,eventno,9,FALSE) -> 0.003431712963 | I104: 5 | K104: =IF(OR(J104=0,J104=""),"",IF(H98="F",HLOOKUP(J104,females,H99,FALSE),IF(H98="M",HLOOKUP(J104,males,H99,FALSE),""))) ->  | N104: =IF(OR(M104=0,M104="",H103=0,H103="",H104=0,H104="",H105=0,H105="",H106=0,H106=""),"",IF(M104<=H103,1,IF(M104<=H104,2,IF(M104<=H105,3,IF(M104<=H106,4,""))))) ->  | O104: =VLOOKUP(P98,eventno,9,FALSE) -> 0.003443287037 | P104: 5 | R104: =IF(OR(Q104=0,Q104=""),"",IF(O98="F",HLOOKUP(Q104,females,O99,FALSE),IF(O98="M",HLOOKUP(Q104,males,O99,FALSE),""))) ->  | U104: =IF(OR(T104=0,T104="",O103=0,O103="",O104=0,O104="",O105=0,O105="",O106=0,O106=""),"",IF(T104<=O103,1,IF(T104<=O104,2,IF(T104<=O105,3,IF(T104<=O106,4,""))))) ->  | W104: =IF(OR(B104=0,B104="",C104=0,C104="",F104=0,F104="",LEFT(F104,1)="D"),0,VLOOKUP(B104,points,2,FALSE)) -> 0 | X104: =IF(OR(I104=0,I104="",J104=0,J104="",M104=0,M104="",LEFT(M104,1)="D"),0,VLOOKUP(I104,points,2,FALSE)) -> 0 | Y104: =IF(OR(P104=0,P104="",Q104=0,Q104="",T104=0,T104="",LEFT(T104,1)="D"),0,VLOOKUP(P104,points,2,FALSE)) -> 0
A105: =VLOOKUP(B98,eventno,10,FALSE) -> 0.002858796296 | B105: 6 | D105: =IF(OR(C105=0,C105=""),"",IF(A98="F",HLOOKUP(C105,females,A99,FALSE),IF(A98="M",HLOOKUP(C105,males,A99,FALSE),""))) ->  | G105: =IF(OR(F105=0,F105="",A103=0,A103="",A104=0,A104="",A105=0,A105="",A106=0,A106=""),"",IF(F105<=A103,1,IF(F105<=A104,2,IF(F105<=A105,3,IF(F105<=A106,4,""))))) ->  | H105: =VLOOKUP(I98,eventno,10,FALSE) -> 0.003512731481 | I105: 6 | K105: =IF(OR(J105=0,J105=""),"",IF(H98="F",HLOOKUP(J105,females,H99,FALSE),IF(H98="M",HLOOKUP(J105,males,H99,FALSE),""))) ->  | N105: =IF(OR(M105=0,M105="",H103=0,H103="",H104=0,H104="",H105=0,H105="",H106=0,H106=""),"",IF(M105<=H103,1,IF(M105<=H104,2,IF(M105<=H105,3,IF(M105<=H106,4,""))))) ->  | O105: =VLOOKUP(P98,eventno,10,FALSE) -> 0.00353587963 | P105: 6 | R105: =IF(OR(Q105=0,Q105=""),"",IF(O98="F",HLOOKUP(Q105,females,O99,FALSE),IF(O98="M",HLOOKUP(Q105,males,O99,FALSE),""))) ->  | U105: =IF(OR(T105=0,T105="",O103=0,O103="",O104=0,O104="",O105=0,O105="",O106=0,O106=""),"",IF(T105<=O103,1,IF(T105<=O104,2,IF(T105<=O105,3,IF(T105<=O106,4,""))))) ->  | W105: 0 | X105: 0 | Y105: 0
A106: =VLOOKUP(B98,eventno,11,FALSE) -> 0.002951388889 | H106: =VLOOKUP(I98,eventno,11,FALSE) -> 0.003657407407 | O106: =VLOOKUP(P98,eventno,11,FALSE) -> 0.003668981481 | W106: 0 | X106: 0 | Y106: 0
A107: =VLOOKUP(B107,eventno,5,FALSE) -> M | B107: T32 | C107: =VLOOKUP(B107,eventno,4,FALSE) -> U15B 1500m | E107: =IF(A110="W","Wind =","") ->  | G107: =IF(OR(F109=0,F109="",A111=0,A111=""),"",IF(A109="T",IF(F109<A111,"LR",IF(F109=A111,"LR=","")))) ->  | H107: =VLOOKUP(I107,eventno,5,FALSE) -> F | I107: T33 | J107: =VLOOKUP(I107,eventno,4,FALSE) -> U17W 1500m | L107: =IF(H110="W","Wind =","") ->  | N107: =IF(OR(M109=0,M109="",H111=0,H111=""),"",IF(H109="T",IF(M109<H111,"LR",IF(M109=H111,"LR=","")))) ->  | O107: =VLOOKUP(P107,eventno,5,FALSE) -> M | P107: T34 | Q107: =VLOOKUP(P107,eventno,4,FALSE) -> U17M 1500m | S107: =IF(O110="W","Wind =","") ->  | U107: =IF(OR(T109=0,T109="",O111=0,O111=""),"",IF(O109="T",IF(T109<O111,"LR",IF(T109=O111,"LR=","")))) ->  | W107: 0 | X107: 0 | Y107: 0
A108: =IF(A107="M",VLOOKUP(B107,males,15,FALSE),VLOOKUP(B107,females,15,FALSE)) -> 17 | B108: Posn | C108: Bib | D108: Athlete | E108: Club | F108: Perf | G108: Gr | H108: =IF(H107="M",VLOOKUP(I107,males,15,FALSE),VLOOKUP(I107,females,15,FALSE)) -> 18 | I108: Posn | J108: Bib | K108: Athlete | L108: Club | M108: Perf | N108: Gr | O108: =IF(O107="M",VLOOKUP(P107,males,15,FALSE),VLOOKUP(P107,females,15,FALSE)) -> 18 | P108: Posn | Q108: Bib | R108: Athlete | S108: Club | T108: Perf | U108: Gr
A109: =LEFT(B107,1) -> T | B109: 1 | C109: 77 | D109: =IF(OR(C109=0,C109=""),"",IF(A107="F",HLOOKUP(C109,females,A108,FALSE),IF(A107="M",HLOOKUP(C109,males,A108,FALSE),""))) -> Kieran Savage | E109: =IF(OR(C109=0,C109="",ISERROR(VLOOKUP(C109,match_teams,4,FALSE)=TRUE)),"",VLOOKUP(C109,match_teams,4,FALSE)) -> Leeds C | F109: 00:04:44.890 | G109: =IF(OR(F109=0,F109="",A112=0,A112="",A113=0,A113="",A114=0,A114="",A115=0,A115=""),"",IF(F109<=A112,1,IF(F109<=A113,2,IF(F109<=A114,3,IF(F109<=A115,4,""))))) -> 4 | H109: =LEFT(I107,1) -> T | I109: 1 | J109: 8 | K109: =IF(OR(J109=0,J109=""),"",IF(H107="F",HLOOKUP(J109,females,H108,FALSE),IF(H107="M",HLOOKUP(J109,males,H108,FALSE),""))) -> Zoe Robson | L109: =IF(OR(J109=0,J109="",ISERROR(VLOOKUP(J109,match_teams,4,FALSE)=TRUE)),"",VLOOKUP(J109,match_teams,4,FALSE)) -> York | M109: 00:05:47.750 | N109: =IF(OR(M109=0,M109="",H112=0,H112="",H113=0,H113="",H114=0,H114="",H115=0,H115=""),"",IF(M109<=H112,1,IF(M109<=H113,2,IF(M109<=H114,3,IF(M109<=H115,4,""))))) ->  | O109: =LEFT(P107,1) -> T | P109: 1 | Q109: 9 | R109: =IF(OR(Q109=0,Q109=""),"",IF(O107="F",HLOOKUP(Q109,females,O108,FALSE),IF(O107="M",HLOOKUP(Q109,males,O108,FALSE),""))) -> Steven Eastwood | S109: =IF(OR(Q109=0,Q109="",ISERROR(VLOOKUP(Q109,match_teams,4,FALSE)=TRUE)),"",VLOOKUP(Q109,match_teams,4,FALSE)) -> Wake | T109: 00:04:26.760 | U109: =IF(OR(T109=0,T109="",O112=0,O112="",O113=0,O113="",O114=0,O114="",O115=0,O115=""),"",IF(T109<=O112,1,IF(T109<=O113,2,IF(T109<=O114,3,IF(T109<=O115,4,""))))) ->  | W109: 6 | X109: 6 | Y109: 6
A110: =VLOOKUP(B107,eventno,6,FALSE) -> 0 | B110: 2 | C110: 9 | D110: =IF(OR(C110=0,C110=""),"",IF(A107="F",HLOOKUP(C110,females,A108,FALSE),IF(A107="M",HLOOKUP(C110,males,A108,FALSE),""))) -> William Ingram | E110: Wake | F110: 00:04:46.620 | G110: =IF(OR(F110=0,F110="",A112=0,A112="",A113=0,A113="",A114=0,A114="",A115=0,A115=""),"",IF(F110<=A112,1,IF(F110<=A113,2,IF(F110<=A114,3,IF(F110<=A115,4,""))))) ->  | H110: =VLOOKUP(I107,eventno,6,FALSE) -> 0 | I110: 2 | J110: 99 | K110: =IF(OR(J110=0,J110=""),"",IF(H107="F",HLOOKUP(J110,females,H108,FALSE),IF(H107="M",HLOOKUP(J110,males,H108,FALSE),""))) -> Olivia Radcliffe | L110: Wake | M110: 00:05:50.660 | N110: =IF(OR(M110=0,M110="",H112=0,H112="",H113=0,H113="",H114=0,H114="",H115=0,H115=""),"",IF(M110<=H112,1,IF(M110<=H113,2,IF(M110<=H114,3,IF(M110<=H115,4,""))))) ->  | O110: =VLOOKUP(P107,eventno,6,FALSE) -> 0 | P110: 2 | Q110: 99 | R110: =IF(OR(Q110=0,Q110=""),"",IF(O107="F",HLOOKUP(Q110,females,O108,FALSE),IF(O107="M",HLOOKUP(Q110,males,O108,FALSE),""))) -> Daniel Franks | S110: Wake | T110: 00:04:41.770 | U110: =IF(OR(T110=0,T110="",O112=0,O112="",O113=0,O113="",O114=0,O114="",O115=0,O115=""),"",IF(T110<=O112,1,IF(T110<=O113,2,IF(T110<=O114,3,IF(T110<=O115,4,""))))) ->  | W110: 5 | X110: 5 | Y110: 5
A111: =VLOOKUP(B107,eventno,7,FALSE) -> 0.002820601852 | B111: 3 | C111: 99 | D111: =IF(OR(C111=0,C111=""),"",IF(A107="F",HLOOKUP(C111,females,A108,FALSE),IF(A107="M",HLOOKUP(C111,males,A108,FALSE),""))) -> George Heppinstall | E111: Wake | F111: 00:04:47.990 | G111: =IF(OR(F111=0,F111="",A112=0,A112="",A113=0,A113="",A114=0,A114="",A115=0,A115=""),"",IF(F111<=A112,1,IF(F111<=A113,2,IF(F111<=A114,3,IF(F111<=A115,4,""))))) ->  | H111: =VLOOKUP(I107,eventno,7,FALSE) -> 0.003135416667 | I111: 3 | J111: 9 | K111: =IF(OR(J111=0,J111=""),"",IF(H107="F",HLOOKUP(J111,females,H108,FALSE),IF(H107="M",HLOOKUP(J111,males,H108,FALSE),""))) -> Hannah Marsh | L111: Wake | M111: 00:05:51.080 | N111: =IF(OR(M111=0,M111="",H112=0,H112="",H113=0,H113="",H114=0,H114="",H115=0,H115=""),"",IF(M111<=H112,1,IF(M111<=H113,2,IF(M111<=H114,3,IF(M111<=H115,4,""))))) ->  | O111: =VLOOKUP(P107,eventno,7,FALSE) -> 0.002727546296 | P111: 3 | Q111: 7 | R111: =IF(OR(Q111=0,Q111=""),"",IF(O107="F",HLOOKUP(Q111,females,O108,FALSE),IF(O107="M",HLOOKUP(Q111,males,O108,FALSE),""))) -> Sean Flanagan | S111: Leeds C | T111: 00:04:53.030 | U111: =IF(OR(T111=0,T111="",O112=0,O112="",O113=0,O113="",O114=0,O114="",O115=0,O115=""),"",IF(T111<=O112,1,IF(T111<=O113,2,IF(T111<=O114,3,IF(T111<=O115,4,""))))) ->  | W111: 4 | X111: 4 | Y111: 4
A112: =VLOOKUP(B107,eventno,8,FALSE) -> 0.003043981481 | B112: 4 | C112: 8 | D112: =IF(OR(C112=0,C112=""),"",IF(A107="F",HLOOKUP(C112,females,A108,FALSE),IF(A107="M",HLOOKUP(C112,males,A108,FALSE),""))) -> Ben Lewis | E112: York | F112: 00:04:55.980 | G112: =IF(OR(F112=0,F112="",A112=0,A112="",A113=0,A113="",A114=0,A114="",A115=0,A115=""),"",IF(F112<=A112,1,IF(F112<=A113,2,IF(F112<=A114,3,IF(F112<=A115,4,""))))) ->  | H112: =VLOOKUP(I107,eventno,8,FALSE) -> 0.003252314815 | I112: 4 | J112: 7 | K112: =IF(OR(J112=0,J112=""),"",IF(H107="F",HLOOKUP(J112,females,H108,FALSE),IF(H107="M",HLOOKUP(J112,males,H108,FALSE),""))) -> Ellie Dooley | L112: Leeds C | M112: 00:06:02.500 | N112: =IF(OR(M112=0,M112="",H112=0,H112="",H113=0,H113="",H114=0,H114="",H115=0,H115=""),"",IF(M112<=H112,1,IF(M112<=H113,2,IF(M112<=H114,3,IF(M112<=H115,4,""))))) ->  | O112: =VLOOKUP(P107,eventno,8,FALSE) -> 0.002847222222 | P112: 4 | Q112: 77 | R112: =IF(OR(Q112=0,Q112=""),"",IF(O107="F",HLOOKUP(Q112,females,O108,FALSE),IF(O107="M",HLOOKUP(Q112,males,O108,FALSE),""))) -> Daniel Harrison | S112: Leeds C | T112: 00:05:42.510 | U112: =IF(OR(T112=0,T112="",O112=0,O112="",O113=0,O113="",O114=0,O114="",O115=0,O115=""),"",IF(T112<=O112,1,IF(T112<=O113,2,IF(T112<=O114,3,IF(T112<=O115,4,""))))) ->  | W112: 3 | X112: 3 | Y112: 3
A113: =VLOOKUP(B107,eventno,9,FALSE) -> 0.003101851852 | B113: 5 | C113: 7 | D113: =IF(OR(C113=0,C113=""),"",IF(A107="F",HLOOKUP(C113,females,A108,FALSE),IF(A107="M",HLOOKUP(C113,males,A108,FALSE),""))) -> Ben Tootle | E113: Leeds C | F113: 00:04:59.090 | G113: =IF(OR(F113=0,F113="",A112=0,A112="",A113=0,A113="",A114=0,A114="",A115=0,A115=""),"",IF(F113<=A112,1,IF(F113<=A113,2,IF(F113<=A114,3,IF(F113<=A115,4,""))))) ->  | H113: =VLOOKUP(I107,eventno,9,FALSE) -> 0.003321759259 | I113: 5 | K113: =IF(OR(J113=0,J113=""),"",IF(H107="F",HLOOKUP(J113,females,H108,FALSE),IF(H107="M",HLOOKUP(J113,males,H108,FALSE),""))) ->  | N113: =IF(OR(M113=0,M113="",H112=0,H112="",H113=0,H113="",H114=0,H114="",H115=0,H115=""),"",IF(M113<=H112,1,IF(M113<=H113,2,IF(M113<=H114,3,IF(M113<=H115,4,""))))) ->  | O113: =VLOOKUP(P107,eventno,9,FALSE) -> 0.002905092593 | P113: 5 | R113: =IF(OR(Q113=0,Q113=""),"",IF(O107="F",HLOOKUP(Q113,females,O108,FALSE),IF(O107="M",HLOOKUP(Q113,males,O108,FALSE),""))) ->  | U113: =IF(OR(T113=0,T113="",O112=0,O112="",O113=0,O113="",O114=0,O114="",O115=0,O115=""),"",IF(T113<=O112,1,IF(T113<=O113,2,IF(T113<=O114,3,IF(T113<=O115,4,""))))) ->  | W113: 2 | X113: 0 | Y113: 0
A114: =VLOOKUP(B107,eventno,10,FALSE) -> 0.003188657407 | B114: 6 | C114: 88 | D114: =IF(OR(C114=0,C114=""),"",IF(A107="F",HLOOKUP(C114,females,A108,FALSE),IF(A107="M",HLOOKUP(C114,males,A108,FALSE),""))) -> James Wright | E114: York | F114: 00:05:20.760 | G114: =IF(OR(F114=0,F114="",A112=0,A112="",A113=0,A113="",A114=0,A114="",A115=0,A115=""),"",IF(F114<=A112,1,IF(F114<=A113,2,IF(F114<=A114,3,IF(F114<=A115,4,""))))) ->  | H114: =VLOOKUP(I107,eventno,10,FALSE) -> 0.003400462963 | I114: 6 | K114: =IF(OR(J114=0,J114=""),"",IF(H107="F",HLOOKUP(J114,females,H108,FALSE),IF(H107="M",HLOOKUP(J114,males,H108,FALSE),""))) ->  | N114: =IF(OR(M114=0,M114="",H112=0,H112="",H113=0,H113="",H114=0,H114="",H115=0,H115=""),"",IF(M114<=H112,1,IF(M114<=H113,2,IF(M114<=H114,3,IF(M114<=H115,4,""))))) ->  | O114: =VLOOKUP(P107,eventno,10,FALSE) -> 0.002974537037 | P114: 6 | R114: =IF(OR(Q114=0,Q114=""),"",IF(O107="F",HLOOKUP(Q114,females,O108,FALSE),IF(O107="M",HLOOKUP(Q114,males,O108,FALSE),""))) ->  | U114: =IF(OR(T114=0,T114="",O112=0,O112="",O113=0,O113="",O114=0,O114="",O115=0,O115=""),"",IF(T114<=O112,1,IF(T114<=O113,2,IF(T114<=O114,3,IF(T114<=O115,4,""))))) ->  | W114: 1 | X114: 0 | Y114: 0
A115: =VLOOKUP(B107,eventno,11,FALSE) -> 0.003315972222 | H115: =VLOOKUP(I107,eventno,11,FALSE) -> 0.003527777778 | O115: =VLOOKUP(P107,eventno,11,FALSE) -> 0.003084490741 | W115: 0 | X115: 0 | Y115: 0
A116: =VLOOKUP(B116,eventno,5,FALSE) -> F | B116: T35 | C116: =VLOOKUP(B116,eventno,4,FALSE) -> U17W 300m | E116: =IF(A119="W","Wind =","") ->  | G116: =IF(OR(F118=0,F118="",A120=0,A120=""),"",IF(A118="T",IF(F118<A120,"LR",IF(F118=A120,"LR=","")))) ->  | H116: =VLOOKUP(I116,eventno,5,FALSE) -> M | I116: T36 | J116: =VLOOKUP(I116,eventno,4,FALSE) -> U15B 400m | L116: =IF(H119="W","Wind =","") ->  | N116: =IF(OR(M118=0,M118="",H120=0,H120=""),"",IF(H118="T",IF(M118<H120,"LR",IF(M118=H120,"LR=","")))) ->  | O116: =VLOOKUP(P116,eventno,5,FALSE) -> M | P116: T37 | Q116: =VLOOKUP(P116,eventno,4,FALSE) -> U17M 400m | S116: =IF(O119="W","Wind =","") ->  | U116: =IF(OR(T118=0,T118="",O120=0,O120=""),"",IF(O118="T",IF(T118<O120,"LR",IF(T118=O120,"LR=","")))) ->  | W116: 0 | X116: 0 | Y116: 0
A117: =IF(A116="M",VLOOKUP(B116,males,15,FALSE),VLOOKUP(B116,females,15,FALSE)) -> 20 | B117: Posn | C117: Bib | D117: Athlete | E117: Club | F117: Perf | G117: Gr | H117: =IF(H116="M",VLOOKUP(I116,males,15,FALSE),VLOOKUP(I116,females,15,FALSE)) -> 19 | I117: Posn | J117: Bib | K117: Athlete | L117: Club | M117: Perf | N117: Gr | O117: =IF(O116="M",VLOOKUP(P116,males,15,FALSE),VLOOKUP(P116,females,15,FALSE)) -> 20 | P117: Posn | Q117: Bib | R117: Athlete | S117: Club | T117: Perf | U117: Gr
A118: =LEFT(B116,1) -> T | B118: 1 | C118: 9 | D118: =IF(OR(C118=0,C118=""),"",IF(A116="F",HLOOKUP(C118,females,A117,FALSE),IF(A116="M",HLOOKUP(C118,males,A117,FALSE),""))) -> Grace Eyles | E118: =IF(OR(C118=0,C118="",ISERROR(VLOOKUP(C118,match_teams,4,FALSE)=TRUE)),"",VLOOKUP(C118,match_teams,4,FALSE)) -> Wake | F118: 40.15 | G118: =IF(OR(F118=0,F118="",A121=0,A121="",A122=0,A122="",A123=0,A123="",A124=0,A124=""),"",IF(F118<=A121,1,IF(F118<=A122,2,IF(F118<=A123,3,IF(F118<=A124,4,""))))) -> 1 | H118: =LEFT(I116,1) -> T | I118: 1 | J118: 7 | K118: =IF(OR(J118=0,J118=""),"",IF(H116="F",HLOOKUP(J118,females,H117,FALSE),IF(H116="M",HLOOKUP(J118,males,H117,FALSE),""))) -> Jack Allison | L118: =IF(OR(J118=0,J118="",ISERROR(VLOOKUP(J118,match_teams,4,FALSE)=TRUE)),"",VLOOKUP(J118,match_teams,4,FALSE)) -> Leeds C | M118: 59.57 | N118: =IF(OR(M118=0,M118="",H121=0,H121="",H122=0,H122="",H123=0,H123="",H124=0,H124=""),"",IF(M118<=H121,1,IF(M118<=H122,2,IF(M118<=H123,3,IF(M118<=H124,4,""))))) ->  | O118: =LEFT(P116,1) -> T | P118: 1 | Q118: 8 | R118: =IF(OR(Q118=0,Q118=""),"",IF(O116="F",HLOOKUP(Q118,females,O117,FALSE),IF(O116="M",HLOOKUP(Q118,males,O117,FALSE),""))) -> Ash Hart | S118: =IF(OR(Q118=0,Q118="",ISERROR(VLOOKUP(Q118,match_teams,4,FALSE)=TRUE)),"",VLOOKUP(Q118,match_teams,4,FALSE)) -> York | T118: 53.29 | U118: =IF(OR(T118=0,T118="",O121=0,O121="",O122=0,O122="",O123=0,O123="",O124=0,O124=""),"",IF(T118<=O121,1,IF(T118<=O122,2,IF(T118<=O123,3,IF(T118<=O124,4,""))))) -> 4 | W118: 6 | X118: 6 | Y118: 6
A119: =VLOOKUP(B116,eventno,6,FALSE) -> 0 | B119: 2 | C119: 7 | D119: =IF(OR(C119=0,C119=""),"",IF(A116="F",HLOOKUP(C119,females,A117,FALSE),IF(A116="M",HLOOKUP(C119,males,A117,FALSE),""))) -> Georgia Yearby | E119: Leeds C | F119: 42 | G119: =IF(OR(F119=0,F119="",A121=0,A121="",A122=0,A122="",A123=0,A123="",A124=0,A124=""),"",IF(F119<=A121,1,IF(F119<=A122,2,IF(F119<=A123,3,IF(F119<=A124,4,""))))) -> 2 | H119: =VLOOKUP(I116,eventno,6,FALSE) -> 0 | I119: 2 | J119: 9 | K119: =IF(OR(J119=0,J119=""),"",IF(H116="F",HLOOKUP(J119,females,H117,FALSE),IF(H116="M",HLOOKUP(J119,males,H117,FALSE),""))) -> Robert Sanderson | L119: Wake | M119: 60.38 | N119: =IF(OR(M119=0,M119="",H121=0,H121="",H122=0,H122="",H123=0,H123="",H124=0,H124=""),"",IF(M119<=H121,1,IF(M119<=H122,2,IF(M119<=H123,3,IF(M119<=H124,4,""))))) ->  | O119: =VLOOKUP(P116,eventno,6,FALSE) -> 0 | P119: 2 | Q119: 9 | R119: =IF(OR(Q119=0,Q119=""),"",IF(O116="F",HLOOKUP(Q119,females,O117,FALSE),IF(O116="M",HLOOKUP(Q119,males,O117,FALSE),""))) -> Matthew O'Connnor | S119: Wake | T119: 53.8 | U119: =IF(OR(T119=0,T119="",O121=0,O121="",O122=0,O122="",O123=0,O123="",O124=0,O124=""),"",IF(T119<=O121,1,IF(T119<=O122,2,IF(T119<=O123,3,IF(T119<=O124,4,""))))) -> 4 | W119: 5 | X119: 5 | Y119: 5
A120: =VLOOKUP(B116,eventno,7,FALSE) -> 38.3 | B120: 3 | C120: 99 | D120: =IF(OR(C120=0,C120=""),"",IF(A116="F",HLOOKUP(C120,females,A117,FALSE),IF(A116="M",HLOOKUP(C120,males,A117,FALSE),""))) -> Bethany Sharp | E120: Wake | F120: 43.45 | G120: =IF(OR(F120=0,F120="",A121=0,A121="",A122=0,A122="",A123=0,A123="",A124=0,A124=""),"",IF(F120<=A121,1,IF(F120<=A122,2,IF(F120<=A123,3,IF(F120<=A124,4,""))))) -> 4 | H120: =VLOOKUP(I116,eventno,7,FALSE) -> 50.1 | I120: 3 | J120: 77 | K120: =IF(OR(J120=0,J120=""),"",IF(H116="F",HLOOKUP(J120,females,H117,FALSE),IF(H116="M",HLOOKUP(J120,males,H117,FALSE),""))) -> John Hubball | L120: Leeds C | M120: 61.1 | N120: =IF(OR(M120=0,M120="",H121=0,H121="",H122=0,H122="",H123=0,H123="",H124=0,H124=""),"",IF(M120<=H121,1,IF(M120<=H122,2,IF(M120<=H123,3,IF(M120<=H124,4,""))))) ->  | O120: =VLOOKUP(P116,eventno,7,FALSE) -> 48.2 | P120: 3 | Q120: 99 | R120: =IF(OR(Q120=0,Q120=""),"",IF(O116="F",HLOOKUP(Q120,females,O117,FALSE),IF(O116="M",HLOOKUP(Q120,males,O117,FALSE),""))) -> James Saxton | S120: Wake | T120: 55.44 | U120: =IF(OR(T120=0,T120="",O121=0,O121="",O122=0,O122="",O123=0,O123="",O124=0,O124=""),"",IF(T120<=O121,1,IF(T120<=O122,2,IF(T120<=O123,3,IF(T120<=O124,4,""))))) ->  | W120: 4 | X120: 4 | Y120: 4
A121: =VLOOKUP(B116,eventno,8,FALSE) -> 41.4 | B121: 4 | C121: 8 | D121: =IF(OR(C121=0,C121=""),"",IF(A116="F",HLOOKUP(C121,females,A117,FALSE),IF(A116="M",HLOOKUP(C121,males,A117,FALSE),""))) -> Kate Harris | E121: York | F121: 45.32 | G121: =IF(OR(F121=0,F121="",A121=0,A121="",A122=0,A122="",A123=0,A123="",A124=0,A124=""),"",IF(F121<=A121,1,IF(F121<=A122,2,IF(F121<=A123,3,IF(F121<=A124,4,""))))) ->  | H121: =VLOOKUP(I116,eventno,8,FALSE) -> 54.7 | I121: 4 | J121: 99 | K121: =IF(OR(J121=0,J121=""),"",IF(H116="F",HLOOKUP(J121,females,H117,FALSE),IF(H116="M",HLOOKUP(J121,males,H117,FALSE),""))) -> Logan Gibb | L121: Wake | M121: 61.36 | N121: =IF(OR(M121=0,M121="",H121=0,H121="",H122=0,H122="",H123=0,H123="",H124=0,H124=""),"",IF(M121<=H121,1,IF(M121<=H122,2,IF(M121<=H123,3,IF(M121<=H124,4,""))))) ->  | O121: =VLOOKUP(P116,eventno,8,FALSE) -> 51 | P121: 4 | Q121: 7 | R121: =IF(OR(Q121=0,Q121=""),"",IF(O116="F",HLOOKUP(Q121,females,O117,FALSE),IF(O116="M",HLOOKUP(Q121,males,O117,FALSE),""))) -> Luke Cooper | S121: Leeds C | T121: 56.8 | U121: =IF(OR(T121=0,T121="",O121=0,O121="",O122=0,O122="",O123=0,O123="",O124=0,O124=""),"",IF(T121<=O121,1,IF(T121<=O122,2,IF(T121<=O123,3,IF(T121<=O124,4,""))))) ->  | W121: 3 | X121: 3 | Y121: 3
A122: =VLOOKUP(B116,eventno,9,FALSE) -> 42.2 | B122: 5 | C122: 88 | D122: =IF(OR(C122=0,C122=""),"",IF(A116="F",HLOOKUP(C122,females,A117,FALSE),IF(A116="M",HLOOKUP(C122,males,A117,FALSE),""))) -> Olivia Swain | E122: York | F122: 52.68 | G122: =IF(OR(F122=0,F122="",A121=0,A121="",A122=0,A122="",A123=0,A123="",A124=0,A124=""),"",IF(F122<=A121,1,IF(F122<=A122,2,IF(F122<=A123,3,IF(F122<=A124,4,""))))) ->  | H122: =VLOOKUP(I116,eventno,9,FALSE) -> 55.7 | I122: 5 | J122: 8 | K122: =IF(OR(J122=0,J122=""),"",IF(H116="F",HLOOKUP(J122,females,H117,FALSE),IF(H116="M",HLOOKUP(J122,males,H117,FALSE),""))) -> Tom Wood | L122: York | M122: 62.42 | N122: =IF(OR(M122=0,M122="",H121=0,H121="",H122=0,H122="",H123=0,H123="",H124=0,H124=""),"",IF(M122<=H121,1,IF(M122<=H122,2,IF(M122<=H123,3,IF(M122<=H124,4,""))))) ->  | O122: =VLOOKUP(P116,eventno,9,FALSE) -> 51.8 | P122: 5 | Q122: 77 | R122: =IF(OR(Q122=0,Q122=""),"",IF(O116="F",HLOOKUP(Q122,females,O117,FALSE),IF(O116="M",HLOOKUP(Q122,males,O117,FALSE),""))) -> Liam Braithwaite | S122: Leeds C | T122: 57.93 | U122: =IF(OR(T122=0,T122="",O121=0,O121="",O122=0,O122="",O123=0,O123="",O124=0,O124=""),"",IF(T122<=O121,1,IF(T122<=O122,2,IF(T122<=O123,3,IF(T122<=O124,4,""))))) ->  | W122: 2 | X122: 2 | Y122: 2
A123: =VLOOKUP(B116,eventno,10,FALSE) -> 43 | B123: 6 | D123: =IF(OR(C123=0,C123=""),"",IF(A116="F",HLOOKUP(C123,females,A117,FALSE),IF(A116="M",HLOOKUP(C123,males,A117,FALSE),""))) ->  | G123: =IF(OR(F123=0,F123="",A121=0,A121="",A122=0,A122="",A123=0,A123="",A124=0,A124=""),"",IF(F123<=A121,1,IF(F123<=A122,2,IF(F123<=A123,3,IF(F123<=A124,4,""))))) ->  | H123: =VLOOKUP(I116,eventno,10,FALSE) -> 57 | I123: 6 | J123: 88 | K123: =IF(OR(J123=0,J123=""),"",IF(H116="F",HLOOKUP(J123,females,H117,FALSE),IF(H116="M",HLOOKUP(J123,males,H117,FALSE),""))) -> Phil Nesom | L123: York | M123: 68.91 | N123: =IF(OR(M123=0,M123="",H121=0,H121="",H122=0,H122="",H123=0,H123="",H124=0,H124=""),"",IF(M123<=H121,1,IF(M123<=H122,2,IF(M123<=H123,3,IF(M123<=H124,4,""))))) ->  | O123: =VLOOKUP(P116,eventno,10,FALSE) -> 52.9 | P123: 6 | Q123: 88 | R123: =IF(OR(Q123=0,Q123=""),"",IF(O116="F",HLOOKUP(Q123,females,O117,FALSE),IF(O116="M",HLOOKUP(Q123,males,O117,FALSE),""))) -> Peirre Weller | S123: York | T123: 59.49 | U123: =IF(OR(T123=0,T123="",O121=0,O121="",O122=0,O122="",O123=0,O123="",O124=0,O124=""),"",IF(T123<=O121,1,IF(T123<=O122,2,IF(T123<=O123,3,IF(T123<=O124,4,""))))) ->  | W123: 0 | X123: 1 | Y123: 1
A124: =VLOOKUP(B116,eventno,11,FALSE) -> 44.4 | H124: =VLOOKUP(I116,eventno,11,FALSE) -> 59 | O124: =VLOOKUP(P116,eventno,11,FALSE) -> 54.4 | W124: 0 | X124: 0 | Y124: 0
A125: =VLOOKUP(B125,eventno,5,FALSE) -> M | B125: T45 | C125: =VLOOKUP(B125,eventno,4,FALSE) -> U17M 1500m S/Chase | E125: =IF(A128="W","Wind =","") ->  | G125: =IF(OR(F127=0,F127="",A129=0,A129=""),"",IF(A127="T",IF(F127<A129,"LR",IF(F127=A129,"LR=","")))) ->  | P125: TRACK JUDGE & TIMEKEEPER | W125: 0 | X125: 0 | Y125: 0
A126: =IF(A125="M",VLOOKUP(B125,males,15,FALSE),VLOOKUP(B125,females,15,FALSE)) -> 27 | B126: Posn | C126: Bib | D126: Athlete | E126: Club | F126: Perf | G126: Gr | Q126: Bib | S126: Club | T126: Number | X126: 0 | Y126: 0
A127: =LEFT(B125,1) -> T | B127: 1 | C127: 9 | D127: =IF(OR(C127=0,C127=""),"",IF(A125="F",HLOOKUP(C127,females,A126,FALSE),IF(A125="M",HLOOKUP(C127,males,A126,FALSE),""))) -> Jake Worton | E127: =IF(OR(C127=0,C127="",ISERROR(VLOOKUP(C127,match_teams,4,FALSE)=TRUE)),"",VLOOKUP(C127,match_teams,4,FALSE)) -> Wake | F127: 00:04:46.340 | G127: =IF(OR(F127=0,F127="",A130=0,A130="",A131=0,A131="",A132=0,A132="",A133=0,A133=""),"",IF(F127<=A130,1,IF(F127<=A131,2,IF(F127<=A132,3,IF(F127<=A133,4,""))))) -> 3 | Q127: =AD3 -> 9 | S127: =IF(OR(Q127=0,Q127="",ISERROR(VLOOKUP(Q127,match_teams,4,FALSE)=TRUE)),"",VLOOKUP(Q127,match_teams,4,FALSE)) -> Wake | T127: 2 | W127: 6 | X127: 0 | Y127: =T127*10 -> 20
A128: =VLOOKUP(B125,eventno,6,FALSE) -> 0 | B128: 2 | C128: 99 | D128: =IF(OR(C128=0,C128=""),"",IF(A125="F",HLOOKUP(C128,females,A126,FALSE),IF(A125="M",HLOOKUP(C128,males,A126,FALSE),""))) -> Jordan Turner | E128: Wake | F128: 00:05:00.050 | G128: =IF(OR(F128=0,F128="",A130=0,A130="",A131=0,A131="",A132=0,A132="",A133=0,A133=""),"",IF(F128<=A130,1,IF(F128<=A131,2,IF(F128<=A132,3,IF(F128<=A133,4,""))))) -> 4 | Q128: =AD4 -> 8 | S128: =IF(OR(Q128=0,Q128="",ISERROR(VLOOKUP(Q128,match_teams,4,FALSE)=TRUE)),"",VLOOKUP(Q128,match_teams,4,FALSE)) -> York | T128: 2 | W128: 5 | X128: 0 | Y128: =T128*10 -> 20
A129: =VLOOKUP(B125,eventno,7,FALSE) -> 0.002944444444 | B129: 3 | D129: =IF(OR(C129=0,C129=""),"",IF(A125="F",HLOOKUP(C129,females,A126,FALSE),IF(A125="M",HLOOKUP(C129,males,A126,FALSE),""))) ->  | G129: =IF(OR(F129=0,F129="",A130=0,A130="",A131=0,A131="",A132=0,A132="",A133=0,A133=""),"",IF(F129<=A130,1,IF(F129<=A131,2,IF(F129<=A132,3,IF(F129<=A133,4,""))))) ->  | Q129: =AD5 -> 7 | S129: =IF(OR(Q129=0,Q129="",ISERROR(VLOOKUP(Q129,match_teams,4,FALSE)=TRUE)),"",VLOOKUP(Q129,match_teams,4,FALSE)) -> Leeds C | T129: 2 | W129: 0 | X129: 0 | Y129: =T129*10 -> 20
A130: =VLOOKUP(B125,eventno,8,FALSE) -> 0.003136574074 | B130: 4 | D130: =IF(OR(C130=0,C130=""),"",IF(A125="F",HLOOKUP(C130,females,A126,FALSE),IF(A125="M",HLOOKUP(C130,males,A126,FALSE),""))) ->  | G130: =IF(OR(F130=0,F130="",A130=0,A130="",A131=0,A131="",A132=0,A132="",A133=0,A133=""),"",IF(F130<=A130,1,IF(F130<=A131,2,IF(F130<=A132,3,IF(F130<=A133,4,""))))) ->  | W130: 0 | X130: 0 | Y130: 0
A131: =VLOOKUP(B125,eventno,9,FALSE) -> 0.003206018519 | B131: 5 | D131: =IF(OR(C131=0,C131=""),"",IF(A125="F",HLOOKUP(C131,females,A126,FALSE),IF(A125="M",HLOOKUP(C131,males,A126,FALSE),""))) ->  | G131: =IF(OR(F131=0,F131="",A130=0,A130="",A131=0,A131="",A132=0,A132="",A133=0,A133=""),"",IF(F131<=A130,1,IF(F131<=A131,2,IF(F131<=A132,3,IF(F131<=A133,4,""))))) ->  | W131: 0 | X131: 0 | Y131: 0
A132: =VLOOKUP(B125,eventno,10,FALSE) -> 0.003321759259 | B132: 6 | D132: =IF(OR(C132=0,C132=""),"",IF(A125="F",HLOOKUP(C132,females,A126,FALSE),IF(A125="M",HLOOKUP(C132,males,A126,FALSE),""))) ->  | G132: =IF(OR(F132=0,F132="",A130=0,A130="",A131=0,A131="",A132=0,A132="",A133=0,A133=""),"",IF(F132<=A130,1,IF(F132<=A131,2,IF(F132<=A132,3,IF(F132<=A133,4,""))))) ->  | W132: 0 | X132: 0 | Y132: 0
A133: =VLOOKUP(B125,eventno,11,FALSE) -> 0.00349537037

Sheet Field (Match 1)
C1: =CONCATENATE(MatchDay!C3,", ",MatchDay!C7) -> Northern Premier East, Thornes Park Stadium, Wakefield | K1: =MatchDay!C5 -> Sunday 8th May 2011 | AB1: Points | AC1: Points | AD1: Points | AE1: =MatchDay!E11 -> Wake | AF1: =MatchDay!E13 -> York | AG1: =MatchDay!E15 -> Leeds C | AH1: Scored | AI1: Validations
Y2: Track (Match 2) | AB2: Col 1 | AC2: Col 2 | AD2: Col 3 | AE2: =SUMIF($F$8:$F$205,AE$1,$AB$8:$AB$205)+SUMIF($N$8:$N$205,AE$1,$AC$8:$AC$205)+SUMIF($V$8:$V$205,AE$1,$AD$8:$AD$205) -> 314 | AF2: =SUMIF($F$8:$F$205,AF$1,$AB$8:$AB$205)+SUMIF($N$8:$N$205,AF$1,$AC$8:$AC$205)+SUMIF($V$8:$V$205,AF$1,$AD$8:$AD$205) -> 178 | AG2: =SUMIF($F$8:$F$205,AG$1,$AB$8:$AB$205)+SUMIF($N$8:$N$205,AG$1,$AC$8:$AC$205)+SUMIF($V$8:$V$205,AG$1,$AD$8:$AD$205) -> 258 | AH2: =COUNTIF($AB$8:$AB$205,"6")+COUNTIF($AC$8:$AC$205,"6")+COUNTIF($AD$8:$AD$205,"6") -> 35
C3: Club | F3: Match Points | G3: Posn | H3: League Points | M3: Match Statistics | T3: Athletes | W3: Events | AI3: =MatchDay!B11 -> 9
C4: =MatchDay!C11 -> Wakefield | F4: ='Track (Match 1)'!E4 -> 678 | G4: ='Track (Match 1)'!F4 -> 1 | H4: ='Track (Match 1)'!G4 -> 3 | M4: ='Track (Match 1)'!K4 -> New League Records | N4: ='Track (Match 1)'!L4 -> 0 | O4: ='Track (Match 1)'!M4 -> Grade 2 | P4: ='Track (Match 1)'!N4 -> 13 | T4: ='Track (Match 1)'!P4 -> Boys | U4: ='Track (Match 1)'!Q4 -> 82 | W4: ='Track (Match 1)'!S4 -> Scored | X4: ='Track (Match 1)'!T4 -> 82 | Y4: Field (Match 2) | AH4: Cancelled | AI4: =MatchDay!B13 -> 8
C5: =MatchDay!C13 -> City of York | F5: ='Track (Match 1)'!E5 -> 402 | G5: ='Track (Match 1)'!F5 -> 3 | H5: ='Track (Match 1)'!G5 -> 1 | M5: ='Track (Match 1)'!K5 -> = League Records | N5: ='Track (Match 1)'!L5 -> 0 | O5: ='Track (Match 1)'!M5 -> Grade 3 | P5: ='Track (Match 1)'!N5 -> 22 | T5: ='Track (Match 1)'!P5 -> Girls | U5: ='Track (Match 1)'!Q5 -> 81 | W5: ='Track (Match 1)'!S5 -> Not Held | X5: ='Track (Match 1)'!T5 -> 0 | AH5: =COUNTIF($D$8:$D$205,"101")+COUNTIF($L$8:$L$205,"101")+COUNTIF($T$8:$T$205,"101")+COUNTIF($D$8:$D$205,"102")+COUNTIF($L$8:$L$205,"102")+COUNTIF($T$8:$T$205,"102")+COUNTIF($D$8:$D$205,"103")+COUNTIF($L$8:$L$205,"103")+COUNTIF($T$8:$T$205,"103") -> 0 | AI5: =MatchDay!B15 -> 7
C6: =MatchDay!C15 -> Leeds City | F6: ='Track (Match 1)'!E6 -> 560 | G6: ='Track (Match 1)'!F6 -> 2 | H6: ='Track (Match 1)'!G6 -> 2 | M6: ='Track (Match 1)'!K6 -> Grade 1 | N6: ='Track (Match 1)'!L6 -> 5 | O6: ='Track (Match 1)'!M6 -> Grade 4 | P6: ='Track (Match 1)'!N6 -> 37 | W6: Not Scored | X6: ='Track (Match 1)'!T6 -> 0 | Y6: Relay Match 2 | AI6: =CONCATENATE(AI3,AI3) -> 99
AI7: =CONCATENATE(AI4,AI4) -> 88
A8: =VLOOKUP(C8,eventno,5,FALSE) -> M | C8: F1 | D8: =VLOOKUP(C8,eventno,4,FALSE) -> U13B Long Jump | F8: =IF(A11="W","Wind =","") ->  | H8: =IF(OR(G10=0,G10="",$A$12=0,$A$12=""),"",IF($A$10="F",IF(G10>$A$12,"LR",IF(G10=$A$12,"LR=","")))) ->  | I8: =VLOOKUP(K8,eventno,5,FALSE) -> M | K8: F2 | L8: =VLOOKUP(K8,eventno,4,FALSE) -> U17M High Jump | N8: =IF(I11="W","Wind =","") ->  | P8: =IF(OR(O10=0,O10="",$I$12=0,$I$12=""),"",IF($I$10="F",IF(O10>$I$12,"LR",IF(O10=$I$12,"LR=","")))) ->  | Q8: =VLOOKUP(S8,eventno,5,FALSE) -> M | S8: F3 | T8: =VLOOKUP(S8,eventno,4,FALSE) -> U15B High Jump | V8: =IF(Q11="W","Wind =","") ->  | X8: =IF(OR(W10=0,W10="",$Q$12=0,$Q$12=""),"",IF($Q$10="F",IF(W10>$Q$12,"LR",IF(W10=$Q$12,"LR=","")))) ->  | Z8: Event | AA8: Reason | AB8: =IF(OR(C8=0,C8="",D8=0,D8="",G8=0,G8="",LEFT(G8,1)="D"),0,VLOOKUP(C8,points,2,FALSE)) -> 0 | AC8: =IF(OR(K8=0,K8="",L8=0,L8="",O8=0,O8="",LEFT(O8,1)="D"),0,VLOOKUP(K8,points,2,FALSE)) -> 0 | AD8: =IF(OR(S8=0,S8="",T8=0,T8="",W8=0,W8="",LEFT(W8,1)="D"),0,VLOOKUP(S8,points,2,FALSE)) -> 0 | AI8: =CONCATENATE(AI5,AI5) -> 77
A9: =IF(A8="M",VLOOKUP(C8,males,15,FALSE),VLOOKUP(C8,females,15,FALSE)) -> 32 | C9: Posn | D9: Bib | E9: Athlete | F9: Club | G9: Perf | H9: Gr | I9: =IF(I8="M",VLOOKUP(K8,males,15,FALSE),VLOOKUP(K8,females,15,FALSE)) -> 33 | K9: Posn | L9: Bib | M9: Athlete | N9: Club | O9: Perf | P9: Gr | Q9: =IF(Q8="M",VLOOKUP(S8,males,15,FALSE),VLOOKUP(S8,females,15,FALSE)) -> 34 | S9: Posn | T9: Bib | U9: Athlete | V9: Club | W9: Perf | X9: Gr | Z9: F1 | AI9: 101 | AJ9: 101 Event Cancelled
A10: =LEFT(C8,1) -> F | B10: 1 | C10: =IF(OR(G10=0,G10="",T(G10)<>""),"",RANK(G10,$G$10:$G$15,0)) -> 2 | D10: =IF($AA$9="",Distance!$B$14,VALUE(LEFT($AA$9,3))) -> 9 | E10: =IF(OR(D10=0,D10="",D10=" "),"",IF($A$8="F",HLOOKUP(D10,females,$A$9,FALSE),IF($A$8="M",HLOOKUP(D10,males,$A$9,FALSE),""))) -> Harry England | F10: =IF(OR(D10=0,D10="",D10=" ",ISERROR(VLOOKUP(D10,match_teams,4,FALSE)=TRUE)),"",VLOOKUP(D10,match_teams,4,FALSE)) -> Wake | G10: 3.87 | H10: =IF(OR(G10=0,G10="",$A$13=0,$A$13="",$A$14=0,$A$14="",$A$15=0,$A$15="",$A$16=0,$A$16=""),"",IF(G10>=$A$13,1,IF(G10>=$A$14,2,IF(G10>=$A$15,3,IF(G10>=$A$16,4,""))))) ->  | I10: =LEFT(K8,1) -> F | J10: 1 | K10: =IF(OR(O10=0,O10="",T(O10)<>"",O10="NHC"),"",RANK(O10,$O$10:$O$15,0)) ->  | L10: =IF($AA$10="",Height!$B$10,VALUE(LEFT($AA$10,3))) -> 8 | M10: =IF(OR(L10=0,L10="",L10=" "),"",IF($I$8="F",HLOOKUP(L10,females,$I$9,FALSE),IF($I$8="M",HLOOKUP(L10,males,$I$9,FALSE),""))) -> - | N10: =IF(OR(L10=0,L10="",ISERROR(VLOOKUP(L10,match_teams,4,FALSE)=TRUE)),"",VLOOKUP(L10,match_teams,4,FALSE)) -> York | P10: =IF(OR(O10=0,O10="",O10="NHC",$I$13=0,$I$13="",$I$14=0,$I$14="",$I$15=0,$I$15="",$I$16=0,$I$16=""),"",IF(O10>=$I$13,1,IF(O10>=$I$14,2,IF(O10>=$I$15,3,IF(O10>=$I$16,4,""))))) ->  | Q10: =LEFT(S8,1) -> F | R10: 1 | S10: =IF(OR(W10=0,W10="",T(W10)<>"",W10="NHC"),"",RANK(W10,$W$10:$W$15,0)) -> 1 | T10: =IF($AA$11="",Height!$B$42,VALUE(LEFT($AA$11,3))) -> 7 | U10: =IF(OR(T10=0,T10="",T10=" "),"",IF($Q$8="F",HLOOKUP(T10,females,$Q$9,FALSE),IF($Q$8="M",HLOOKUP(T10,males,$Q$9,FALSE),""))) -> Jacob Fincham-Dukes | V10: =IF(OR(T10=0,T10="",ISERROR(VLOOKUP(T10,match_teams,4,FALSE)=TRUE)),"",VLOOKUP(T10,match_teams,4,FALSE)) -> Leeds C | W10: 1.67 | X10: =IF(OR(W10=0,W10="",W10="NHC",$Q$13=0,$Q$13="",$Q$14=0,$Q$14="",$Q$15=0,$Q$15="",$Q$16=0,$Q$16=""),"",IF(W10>=$Q$13,1,IF(W10>=$Q$14,2,IF(W10>=$Q$15,3,IF(W10>=$Q$16,4,""))))) -> 2 | Z10: F2 | AB10: 5 | AC10: 0 | AD10: 6 | AI10: 102 | AJ10: 102 No Competitors
A11: =VLOOKUP(C8,eventno,6,FALSE) -> 0 | B11: 2 | C11: 5 | D11: =IF($AA$9="",Distance!$B$15," ") -> 8 | E11: Matt Hobson | F11: York | G11: 2.96 | I11: =VLOOKUP(K8,eventno,6,FALSE) -> 0 | J11: 2 | K11: 2 | L11: =IF($AA$10="",Height!$B$11," ") -> 7 | M11: Connor Morley | N11: Leeds C | O11: 1.65 | Q11: =VLOOKUP(S8,eventno,6,FALSE) -> 0 | R11: 2 | Z11: F3 | AB11: 2 | AC11: 5 | AD11: 0 | AI11: 103 | AJ11: 103 Opening Height Not Cleared
A12: =VLOOKUP(C8,eventno,7,FALSE) -> 5.76 | B12: 3 | C12: 1 | D12: =IF($AA$9="",Distance!$B$16," ") -> 7 | E12: Lewis Renton | F12: Leeds C | G12: 4.18 | H12: 4 | I12: =VLOOKUP(K8,eventno,7,FALSE) -> 2.1 | J12: 3 | K12: 3 | L12: =IF($AA$10="",Height!$B$12," ") -> 9 | M12: Mark Stringer | N12: Wake | O12: 1.35 | Q12: =VLOOKUP(S8,eventno,7,FALSE) -> 1.97 | R12: 3 | S12: 3 | T12: =IF($AA$11="",Height!$B$44," ") -> 8 | U12: James Wright | V12: York | W12: 1.35 | Z12: F4 | AB12: 6 | AC12: 4 | AD12: 4 | AI12: 104
A13: =VLOOKUP(C8,eventno,8,FALSE) -> 4.7 | B13: 4 | C13: 3 | D13: =IF($AA$9="",Distance!$B$17," ") -> 99 | E13: Barnaby Drew | F13: Wake | G13: 3.61 | I13: =VLOOKUP(K8,eventno,8,FALSE) -> 1.85 | J13: 4 | L13: =IF($AA$10="",Height!$B$13," ") -> 88 | M13: - | N13: York | Q13: =VLOOKUP(S8,eventno,8,FALSE) -> 1.7 | R13: 4 | S13: 2 | T13: =IF($AA$11="",Height!$B$45," ") -> 77 | U13: Jack Gape | V13: Leeds C | W13: 1.4 | Z13: F5 | AB13: 4 | AC13: 0 | AD13: 5
A14: =VLOOKUP(C8,eventno,9,FALSE) -> 4.6 | B14: 5 | D14: =IF($AA$9="",Distance!$B$18," ") -> 88 | E14: - | F14: York | I14: =VLOOKUP(K8,eventno,9,FALSE) -> 1.82 | J14: 5 | K14: 1 | L14: =IF($AA$10="",Height!$B$14," ") -> 77 | M14: Dylan Bradley | N14: Leeds C | O14: 1.71 | P14: 4 | Q14: =VLOOKUP(S8,eventno,9,FALSE) -> 1.66 | R14: 5 | S14: 4 | T14: =IF($AA$11="",Height!$B$46," ") -> 99 | U14: George Heppinstall | V14: Wake | W14: 1.35 | Z14: F6 | AB14: 0 | AC14: 6 | AD14: 3
A15: =VLOOKUP(C8,eventno,10,FALSE) -> 4.5 | B15: 6 | C15: 4 | D15: =IF($AA$9="",Distance!$B$19," ") -> 77 | E15: Khalil Abdelaziz | F15: Leeds C | G15: 3.34 | I15: =VLOOKUP(K8,eventno,10,FALSE) -> 1.75 | J15: 6 | L15: =IF($AA$10="",Height!$B$15," ") -> 99 | M15: - | N15: Wake | Q15: =VLOOKUP(S8,eventno,10,FALSE) -> 1.6 | R15: 6 | S15: 5 | T15: =IF($AA$11="",Height!$B$47," ") -> 88 | U15: Matthew Richardson | V15: York | W15: 1.25 | Z15: F7 | AB15: 3 | AC15: 0 | AD15: 2
A16: =VLOOKUP(C8,eventno,11,FALSE) -> 4.15 | I16: =VLOOKUP(K8,eventno,11,FALSE) -> 1.7 | Q16: =VLOOKUP(S8,eventno,11,FALSE) -> 1.55 | Z16: F8 | AB16: 0 | AC16: 0 | AD16: 0
A17: =VLOOKUP(C17,eventno,5,FALSE) -> M | C17: F4 | D17: =VLOOKUP(C17,eventno,4,FALSE) -> U15B Hammer | F17: =IF(A20="W","Wind =","") ->  | H17: =IF(OR(G19=0,G19="",$A$21=0,$A$21=""),"",IF($A$19="F",IF(G19>$A$21,"LR",IF(G19=$A$21,"LR=","")))) ->  | I17: =VLOOKUP(K17,eventno,5,FALSE) -> M | K17: F5 | L17: =VLOOKUP(K17,eventno,4,FALSE) -> U17M Hammer | N17: =IF(I20="W","Wind =","") ->  | P17: =IF(OR(O19=0,O19="",$I$21=0,$I$21=""),"",IF($I$19="F",IF(O19>$I$21,"LR",IF(O19=$I$21,"LR=","")))) ->  | Q17: =VLOOKUP(S17,eventno,5,FALSE) -> F | S17: F6 | T17: =VLOOKUP(S17,eventno,4,FALSE) -> U17W Hammer | V17: =IF(Q20="W","Wind =","") ->  | X17: =IF(OR(W19=0,W19="",$Q$21=0,$Q$21=""),"",IF($Q$19="F",IF(W19>$Q$21,"LR",IF(W19=$Q$21,"LR=","")))) ->  | Z17: F9 | AB17: 0 | AC17: 0 | AD17: 0
A18: =IF(A17="M",VLOOKUP(C17,males,15,FALSE),VLOOKUP(C17,females,15,FALSE)) -> 35 | C18: Posn | D18: Bib | E18: Athlete | F18: Club | G18: Perf | H18: Gr | I18: =IF(I17="M",VLOOKUP(K17,males,15,FALSE),VLOOKUP(K17,females,15,FALSE)) -> 36 | K18: Posn | L18: Bib | M18: Athlete | N18: Club | O18: Perf | P18: Gr | Q18: =IF(Q17="M",VLOOKUP(S17,males,15,FALSE),VLOOKUP(S17,females,15,FALSE)) -> 36 | S18: Posn | T18: Bib | U18: Athlete | V18: Club | W18: Perf | X18: Gr | Z18: F10
A19: =LEFT(C17,1) -> F | B19: 1 | C19: =IF(OR(G19=0,G19="",T(G19)<>""),"",RANK(G19,$G$19:$G$24,0)) -> 1 | D19: =IF($AA$12="",Distance!$B$46,VALUE(LEFT($AA$12,3))) -> 7 | E19: =IF(OR(D19=0,D19="",D19=" "),"",IF($A$17="F",HLOOKUP(D19,females,$A$18,FALSE),IF($A$17="M",HLOOKUP(D19,males,$A$18,FALSE),""))) -> George Armstrong | F19: =IF(OR(D19=0,D19="",ISERROR(VLOOKUP(D19,match_teams,4,FALSE)=TRUE)),"",VLOOKUP(D19,match_teams,4,FALSE)) -> Leeds C | G19: 24.81 | H19: =IF(OR(G19=0,G19="",$A$22=0,$A$22="",$A$23=0,$A$23="",$A$24=0,$A$24="",$A$25=0,$A$25=""),"",IF(G19>=$A$22,1,IF(G19>=$A$23,2,IF(G19>=$A$24,3,IF(G19>=$A$25,4,""))))) ->  | I19: =LEFT(K17,1) -> F | J19: 1 | K19: =IF(OR(O19=0,O19="",T(O19)<>""),"",RANK(O19,$O$19:$O$24,0)) ->  | L19: =IF($AA$13="",Distance!$B$78,VALUE(LEFT($AA$13,3))) -> 8 | M19: =IF(OR(L19=0,L19="",L19=" "),"",IF($I$17="F",HLOOKUP(L19,females,$I$18,FALSE),IF($I$17="M",HLOOKUP(L19,males,$I$18,FALSE),""))) -> - | N19: =IF(OR(L19=0,L19="",ISERROR(VLOOKUP(L19,match_teams,4,FALSE)=TRUE)),"",VLOOKUP(L19,match_teams,4,FALSE)) -> York | P19: =IF(OR(O19=0,O19="",$I$22=0,$I$22="",$I$23=0,$I$23="",$I$24=0,$I$24="",$I$25=0,$I$25=""),"",IF(O19>=$I$22,1,IF(O19>=$I$23,2,IF(O19>=$I$24,3,IF(O19>=$I$25,4,""))))) ->  | Q19: =LEFT(S17,1) -> F | R19: 1 | S19: =IF(OR(W19=0,W19="",T(W19)<>""),"",RANK(W19,$W$19:$W$24,0)) -> 1 | T19: =IF($AA$14="",Distance!$B$110,VALUE(LEFT($AA$14,3))) -> 9 | U19: =IF(OR(T19=0,T19="",T19=" "),"",IF($Q$17="F",HLOOKUP(T19,females,$Q$18,FALSE),IF($Q$17="M",HLOOKUP(T19,males,$Q$18,FALSE),""))) -> Hannah Yates | V19: =IF(OR(T19=0,T19="",ISERROR(VLOOKUP(T19,match_teams,4,FALSE)=TRUE)),"",VLOOKUP(T19,match_teams,4,FALSE)) -> Wake | W19: 24.87 | X19: =IF(OR(W19=0,W19="",$Q$22=0,$Q$22="",$Q$23=0,$Q$23="",$Q$24=0,$Q$24="",$Q$25=0,$Q$25=""),"",IF(W19>=$Q$22,1,IF(W19>=$Q$23,2,IF(W19>=$Q$24,3,IF(W19>=$Q$25,4,""))))) -> 4 | Z19: F11 | AB19: 6 | AC19: 0 | AD19: 6
A20: =VLOOKUP(C17,eventno,6,FALSE) -> 0 | B20: 2 | C20: 4 | D20: =IF($AA$12="",Distance!$B$47," ") -> 9 | E20: Andrew Jones | F20: Wake | G20: 19.83 | I20: =VLOOKUP(K17,eventno,6,FALSE) -> 0 | J20: 2 | K20: 3 | L20: =IF($AA$13="",Distance!$B$79," ") -> 7 | M20: Max Ansell-Wood | N20: Leeds C | O20: 19.98 | Q20: =VLOOKUP(S17,eventno,6,FALSE) -> 0 | R20: 2 | T20: =IF($AA$14="",Distance!$B$111," ") -> 8 | U20: - | V20: York | Z20: F12 | AB20: 3 | AC20: 4 | AD20: 0
A21: =VLOOKUP(C17,eventno,7,FALSE) -> 69.04 | B21: 3 | C21: 6 | D21: =IF($AA$12="",Distance!$B$48," ") -> 8 | E21: Jonny Swain | F21: York | G21: 11.6 | I21: =VLOOKUP(K17,eventno,7,FALSE) -> 74.8 | J21: 3 | K21: 1 | L21: =IF($AA$13="",Distance!$B$80," ") -> 9 | M21: Kieran Thackray | N21: Wake | O21: 28.8 | Q21: =VLOOKUP(S17,eventno,7,FALSE) -> 52.37 | R21: 3 | T21: =IF($AA$14="",Distance!$B$112," ") -> 7 | U21: - | V21: Leeds C | Z21: F13 | AB21: 1 | AC21: 6 | AD21: 0
A22: =VLOOKUP(C17,eventno,8,FALSE) -> 46.2 | B22: 4 | C22: 2 | D22: =IF($AA$12="",Distance!$B$49," ") -> 77 | E22: Harris Hameed | F22: Leeds C | G22: 23.59 | I22: =VLOOKUP(K17,eventno,8,FALSE) -> 58 | J22: 4 | L22: =IF($AA$13="",Distance!$B$81," ") -> 88 | M22: - | N22: York | Q22: =VLOOKUP(S17,eventno,8,FALSE) -> 40.7 | R22: 4 | S22: 2 | T22: =IF($AA$14="",Distance!$B$113," ") -> 99 | U22: Samantha Lancaster | V22: Wake | W22: 17.39 | Z22: F14 | AB22: 5 | AC22: 0 | AD22: 5
A23: =VLOOKUP(C17,eventno,9,FALSE) -> 41.1 | B23: 5 | C23: 3 | D23: =IF($AA$12="",Distance!$B$50," ") -> 99 | E23: William Ingram | F23: Wake | G23: 21.09 | I23: =VLOOKUP(K17,eventno,9,FALSE) -> 48.6 | J23: 5 | L23: =IF($AA$13="",Distance!$B$82," ") -> 77 | M23: Lamar Lewis | N23: Leeds C | Q23: =VLOOKUP(S17,eventno,9,FALSE) -> 36.85 | R23: 5 | T23: =IF($AA$14="",Distance!$B$114," ") -> 88 | U23: - | V23: York | Z23: F15 | AB23: 4 | AC23: 0 | AD23: 0
A24: =VLOOKUP(C17,eventno,10,FALSE) -> 34.2 | B24: 6 | C24: 5 | D24: =IF($AA$12="",Distance!$B$51," ") -> 88 | E24: Ben Lewis | F24: York | G24: 14.16 | I24: =VLOOKUP(K17,eventno,10,FALSE) -> 39.25 | J24: 6 | K24: 2 | L24: =IF($AA$13="",Distance!$B$83," ") -> 99 | M24: Michael Jones | N24: Wake | O24: 25.62 | Q24: =VLOOKUP(S17,eventno,10,FALSE) -> 31.6 | R24: 6 | T24: =IF($AA$14="",Distance!$B$115," ") -> 77 | U24: - | V24: Leeds C | Z24: F16 | AB24: 2 | AC24: 5 | AD24: 0
A25: =VLOOKUP(C17,eventno,11,FALSE) -> 27.8 | I25: =VLOOKUP(K17,eventno,11,FALSE) -> 29.3 | Q25: =VLOOKUP(S17,eventno,11,FALSE) -> 22.6 | Z25: F17 | AB25: 0 | AC25: 0 | AD25: 0
A26: =VLOOKUP(C26,eventno,5,FALSE) -> F | C26: F7 | D26: =VLOOKUP(C26,eventno,4,FALSE) -> U17W Long Jump | F26: =IF(A29="W","Wind =","") ->  | H26: =IF(OR(G28=0,G28="",$A$30=0,$A$30=""),"",IF($A$28="F",IF(G28>$A$30,"LR",IF(G28=$A$30,"LR=","")))) ->  | I26: =VLOOKUP(K26,eventno,5,FALSE) -> M | K26: F8 | L26: =VLOOKUP(K26,eventno,4,FALSE) -> U15B Shot | N26: =IF(I29="W","Wind =","") ->  | P26: =IF(OR(O28=0,O28="",$I$30=0,$I$30=""),"",IF($I$28="F",IF(O28>$I$30,"LR",IF(O28=$I$30,"LR=","")))) ->  | Q26: =VLOOKUP(S26,eventno,5,FALSE) -> F | S26: F9 | T26: =VLOOKUP(S26,eventno,4,FALSE) -> U13G Long Jump | V26: =IF(Q29="W","Wind =","") ->  | X26: =IF(OR(W28=0,W28="",$Q$30=0,$Q$30=""),"",IF($Q$28="F",IF(W28>$Q$30,"LR",IF(W28=$Q$30,"LR=","")))) ->  | Z26: F18 | AB26: 0 | AC26: 0 | AD26: 0
A27: =IF(A26="M",VLOOKUP(C26,males,15,FALSE),VLOOKUP(C26,females,15,FALSE)) -> 43 | C27: Posn | D27: Bib | E27: Athlete | F27: Club | G27: Perf | H27: Gr | I27: =IF(I26="M",VLOOKUP(K26,males,15,FALSE),VLOOKUP(K26,females,15,FALSE)) -> 37 | K27: Posn | L27: Bib | M27: Athlete | N27: Club | O27: Perf | P27: Gr | Q27: =IF(Q26="M",VLOOKUP(S26,males,15,FALSE),VLOOKUP(S26,females,15,FALSE)) -> 32 | S27: Posn | T27: Bib | U27: Athlete | V27: Club | W27: Perf | X27: Gr | Z27: F19
A28: =LEFT(C26,1) -> F | B28: 1 | C28: =IF(OR(G28=0,G28="",T(G28)<>""),"",RANK(G28,$G$28:$G$33,0)) -> 1 | D28: =IF($AA$15="",Distance!$B$142,VALUE(LEFT($AA$15,3))) -> 9 | E28: =IF(OR(D28=0,D28="",D28=" "),"",IF($A$26="F",HLOOKUP(D28,females,$A$27,FALSE),IF($A$26="M",HLOOKUP(D28,males,$A$27,FALSE),""))) -> Grace Eyles | F28: =IF(OR(D28=0,D28="",ISERROR(VLOOKUP(D28,match_teams,4,FALSE)=TRUE)),"",VLOOKUP(D28,match_teams,4,FALSE)) -> Wake | G28: 5.18 | H28: =IF(OR(G28=0,G28="",$A$31=0,$A$31="",$A$32=0,$A$32="",$A$33=0,$A$33="",$A$34=0,$A$34=""),"",IF(G28>=$A$31,1,IF(G28>=$A$32,2,IF(G28>=$A$33,3,IF(G28>=$A$34,4,""))))) -> 3 | I28: =LEFT(K26,1) -> F | J28: 1 | K28: =IF(OR(O28=0,O28="",T(O28)<>""),"",RANK(O28,$O$28:$O$33,0)) -> 4 | L28: =IF($AA$16="",Distance!$B$174,VALUE(LEFT($AA$16,3))) -> 8 | M28: =IF(OR(L28=0,L28="",L28=" "),"",IF($I$26="F",HLOOKUP(L28,females,$I$27,FALSE),IF($I$26="M",HLOOKUP(L28,males,$I$27,FALSE),""))) -> Jonny Swain | N28: =IF(OR(L28=0,L28="",ISERROR(VLOOKUP(L28,match_teams,4,FALSE)=TRUE)),"",VLOOKUP(L28,match_teams,4,FALSE)) -> York | O28: 6.74 | P28: =IF(OR(O28=0,O28="",$I$31=0,$I$31="",$I$32=0,$I$32="",$I$33=0,$I$33="",$I$34=0,$I$34=""),"",IF(O28>=$I$31,1,IF(O28>=$I$32,2,IF(O28>=$I$33,3,IF(O28>=$I$34,4,""))))) ->  | Q28: =LEFT(S26,1) -> F | R28: 1 | S28: =IF(OR(W28=0,W28="",T(W28)<>""),"",RANK(W28,$W$28:$W$33,0)) -> 6 | T28: =IF($AA$17="",Distance!$B$206,VALUE(LEFT($AA$17,3))) -> 7 | U28: =IF(OR(T28=0,T28="",T28=" "),"",IF($Q$26="F",HLOOKUP(T28,females,$Q$27,FALSE),IF($Q$26="M",HLOOKUP(T28,males,$Q$27,FALSE),""))) -> Millie Bradbury | V28: =IF(OR(T28=0,T28="",ISERROR(VLOOKUP(T28,match_teams,4,FALSE)=TRUE)),"",VLOOKUP(T28,match_teams,4,FALSE)) -> Leeds C | W28: 2.67 | X28: =IF(OR(W28=0,W28="",$Q$31=0,$Q$31="",$Q$32=0,$Q$32="",$Q$33=0,$Q$33="",$Q$34=0,$Q$34=""),"",IF(W28>=$Q$31,1,IF(W28>=$Q$32,2,IF(W28>=$Q$33,3,IF(W28>=$Q$34,4,""))))) ->  | Z28: F20 | AB28: 6 | AC28: 3 | AD28: 1
A29: =VLOOKUP(C26,eventno,6,FALSE) -> 0 | B29: 2 | C29: 4 | D29: =IF($AA$15="",Distance!$B$143," ") -> 8 | E29: Olivia Swain | F29: York | G29: 4.3 | I29: =VLOOKUP(K26,eventno,6,FALSE) -> 0 | J29: 2 | K29: 1 | L29: =IF($AA$16="",Distance!$B$175," ") -> 7 | M29: Harris Hameed | N29: Leeds C | O29: 9.25 | Q29: =VLOOKUP(S26,eventno,6,FALSE) -> 0 | R29: 2 | S29: 3 | T29: =IF($AA$17="",Distance!$B$207," ") -> 9 | U29: Jessica Matthews | V29: Wake | W29: 3.56 | Z29: F21 | AB29: 3 | AC29: 6 | AD29: 4
A30: =VLOOKUP(C26,eventno,7,FALSE) -> 6.15 | B30: 3 | C30: 3 | D30: =IF($AA$15="",Distance!$B$144," ") -> 7 | E30: Amena Abdelaziz | F30: Leeds C | G30: 4.59 | I30: =VLOOKUP(K26,eventno,7,FALSE) -> 18.5 | J30: 3 | K30: 3 | L30: =IF($AA$16="",Distance!$B$176," ") -> 9 | M30: William Ingram | N30: Wake | O30: 7.37 | Q30: =VLOOKUP(S26,eventno,7,FALSE) -> 5.35 | R30: 3 | S30: 5 | T30: =IF($AA$17="",Distance!$B$208," ") -> 8 | U30: Lucy Hadaway | V30: York | W30: 3.28 | Z30: F22 | AB30: 4 | AC30: 4 | AD30: 2
A31: =VLOOKUP(C26,eventno,8,FALSE) -> 5.35 | B31: 4 | C31: 2 | D31: =IF($AA$15="",Distance!$B$145," ") -> 99 | E31: Leanne Barraclough | F31: Wake | G31: 4.67 | I31: =VLOOKUP(K26,eventno,8,FALSE) -> 12.35 | J31: 4 | K31: 5 | L31: =IF($AA$16="",Distance!$B$177," ") -> 88 | M31: Matthew Richardson | N31: York | O31: 6.38 | Q31: =VLOOKUP(S26,eventno,8,FALSE) -> 4.45 | R31: 4 | S31: 1 | T31: =IF($AA$17="",Distance!$B$209," ") -> 77 | U31: Megan Sanders | V31: Leeds C | W31: 3.88 | Z31: F23 | AB31: 5 | AC31: 2 | AD31: 6
A32: =VLOOKUP(C26,eventno,9,FALSE) -> 5.2 | B32: 5 | C32: 6 | D32: =IF($AA$15="",Distance!$B$146," ") -> 88 | E32: Kate Harris | F32: York | G32: 4.09 | I32: =VLOOKUP(K26,eventno,9,FALSE) -> 11.75 | J32: 5 | K32: 2 | L32: =IF($AA$16="",Distance!$B$178," ") -> 77 | M32: Thomas Harrison | N32: Leeds C | O32: 7.47 | Q32: =VLOOKUP(S26,eventno,9,FALSE) -> 4.35 | R32: 5 | S32: 4 | T32: =IF($AA$17="",Distance!$B$210," ") -> 99 | U32: Ella Liefeith | V32: Wake | W32: 3.5 | Z32: F24 | AB32: 1 | AC32: 5 | AD32: 3
A33: =VLOOKUP(C26,eventno,10,FALSE) -> 5.05 | B33: 6 | C33: 5 | D33: =IF($AA$15="",Distance!$B$147," ") -> 77 | E33: Melody Peterson | F33: Leeds C | G33: 4.22 | I33: =VLOOKUP(K26,eventno,10,FALSE) -> 10.95 | J33: 6 | K33: 6 | L33: =IF($AA$16="",Distance!$B$179," ") -> 99 | M33: Adam Lofthouse | N33: Wake | O33: 5.55 | Q33: =VLOOKUP(S26,eventno,10,FALSE) -> 4.2 | R33: 6 | S33: 2 | T33: =IF($AA$17="",Distance!$B$211," ") -> 88 | U33: Charlotte Stamp | V33: York | W33: 3.79 | Z33: F25 | AB33: 2 | AC33: 1 | AD33: 5
A34: =VLOOKUP(C26,eventno,11,FALSE) -> 4.75 | I34: =VLOOKUP(K26,eventno,11,FALSE) -> 10.15 | Q34: =VLOOKUP(S26,eventno,11,FALSE) -> 3.95 | Z34: F26 | AB34: 0 | AC34: 0 | AD34: 0
A35: =VLOOKUP(C35,eventno,5,FALSE) -> M | C35: F10 | D35: =VLOOKUP(C35,eventno,4,FALSE) -> U15B Javelin | F35: =IF(A38="W","Wind =","") ->  | H35: =IF(OR(G37=0,G37="",$A$39=0,$A$39=""),"",IF($A$37="F",IF(G37>$A$39,"LR",IF(G37=$A$39,"LR=","")))) ->  | I35: =VLOOKUP(K35,eventno,5,FALSE) -> M | K35: F11 | L35: =VLOOKUP(K35,eventno,4,FALSE) -> U17M Javelin | N35: =IF(I38="W","Wind =","") ->  | P35: =IF(OR(O37=0,O37="",$I$39=0,$I$39=""),"",IF($I$37="F",IF(O37>$I$39,"LR",IF(O37=$I$39,"LR=","")))) ->  | Q35: =VLOOKUP(S35,eventno,5,FALSE) -> M | S35: F12 | T35: =VLOOKUP(S35,eventno,4,FALSE) -> U13B High Jump | V35: =IF(Q38="W","Wind =","") ->  | X35: =IF(OR(W37=0,W37="",$Q$39=0,$Q$39=""),"",IF($Q$37="F",IF(W37>$Q$39,"LR",IF(W37=$Q$39,"LR=","")))) ->  | Z35: F27 | AB35: 0 | AC35: 0 | AD35: 0
A36: =IF(A35="M",VLOOKUP(C35,males,15,FALSE),VLOOKUP(C35,females,15,FALSE)) -> 38 | C36: Posn | D36: Bib | E36: Athlete | F36: Club | G36: Perf | H36: Gr | I36: =IF(I35="M",VLOOKUP(K35,males,15,FALSE),VLOOKUP(K35,females,15,FALSE)) -> 39 | K36: Posn | L36: Bib | M36: Athlete | N36: Club | O36: Perf | P36: Gr | Q36: =IF(Q35="M",VLOOKUP(S35,males,15,FALSE),VLOOKUP(S35,females,15,FALSE)) -> 40 | S36: Posn | T36: Bib | U36: Athlete | V36: Club | W36: Perf | X36: Gr | Z36: F28
A37: =LEFT(C35,1) -> F | B37: 1 | C37: =IF(OR(G37=0,G37="",T(G37)<>""),"",RANK(G37,$G$37:$G$42,0)) -> 2 | D37: =IF($AA$18="",Distance!$B$238,VALUE(LEFT($AA$18,3))) -> 7 | E37: =IF(OR(D37=0,D37="",D37=" "),"",IF($A$35="F",HLOOKUP(D37,females,$A$36,FALSE),IF($A$35="M",HLOOKUP(D37,males,$A$36,FALSE),""))) -> George Armstrong | F37: =IF(OR(D37=0,D37="",ISERROR(VLOOKUP(D37,match_teams,4,FALSE)=TRUE)),"",VLOOKUP(D37,match_teams,4,FALSE)) -> Leeds C | G37: 26.86 | H37: =IF(OR(G37=0,G37="",$A$40=0,$A$40="",$A$41=0,$A$41="",$A$42=0,$A$42="",$A$43=0,$A$43=""),"",IF(G37>=$A$40,1,IF(G37>=$A$41,2,IF(G37>=$A$42,3,IF(G37>=$A$43,4,""))))) ->  | I37: =LEFT(K35,1) -> F | J37: 1 | K37: =IF(OR(O37=0,O37="",T(O37)<>""),"",RANK(O37,$O$37:$O$42,0)) ->  | L37: =IF($AA$19="",Distance!$B$270,VALUE(LEFT($AA$19,3))) -> 8 | M37: =IF(OR(L37=0,L37="",L37=" "),"",IF($I$35="F",HLOOKUP(L37,females,$I$36,FALSE),IF($I$35="M",HLOOKUP(L37,males,$I$36,FALSE),""))) -> - | N37: =IF(OR(L37=0,L37="",ISERROR(VLOOKUP(L37,match_teams,4,FALSE)=TRUE)),"",VLOOKUP(L37,match_teams,4,FALSE)) -> York | P37: =IF(OR(O37=0,O37="",$I$40=0,$I$40="",$I$41=0,$I$41="",$I$42=0,$I$42="",$I$43=0,$I$43=""),"",IF(O37>=$I$40,1,IF(O37>=$I$41,2,IF(O37>=$I$42,3,IF(O37>=$I$43,4,""))))) ->  | Q37: =LEFT(S35,1) -> F | R37: 1 | S37: =IF(OR(W37=0,W37="",T(W37)<>"",W37="NHC"),"",RANK(W37,$W$37:$W$42,0)) ->  | T37: =IF($AA$20="",Height!$B$74,VALUE(LEFT($AA$20,3))) -> 8 | U37: =IF(OR(T37=0,T37="",T37=" "),"",IF($Q$35="F",HLOOKUP(T37,females,$Q$36,FALSE),IF($Q$35="M",HLOOKUP(T37,males,$Q$36,FALSE),""))) -> - | V37: =IF(OR(T37=0,T37="",ISERROR(VLOOKUP(T37,match_teams,4,FALSE)=TRUE)),"",VLOOKUP(T37,match_teams,4,FALSE)) -> York | X37: =IF(OR(W37=0,W37="",W37="NHC",$Q$40=0,$Q$40="",$Q$41=0,$Q$41="",$Q$42=0,$Q$42="",$Q$43=0,$Q$43=""),"",IF(W37>=$Q$40,1,IF(W37>=$Q$41,2,IF(W37>=$Q$42,3,IF(W37>=$Q$43,4,""))))) ->  | Z37: F29 | AB37: 5 | AC37: 0 | AD37: 0
A38: =VLOOKUP(C35,eventno,6,FALSE) -> 0 | B38: 2 | C38: 6 | D38: =IF($AA$18="",Distance!$B$239," ") -> 8 | E38: Jonny Swain | F38: York | G38: 11 | I38: =VLOOKUP(K35,eventno,6,FALSE) -> 0 | J38: 2 | K38: 3 | L38: =IF($AA$19="",Distance!$B$271," ") -> 7 | M38: Matthew Campleman | N38: Leeds C | O38: 30.92 | Q38: =VLOOKUP(S35,eventno,6,FALSE) -> 0 | R38: 2 | S38: 3 | T38: =IF($AA$20="",Height!$B$75," ") -> 7 | U38: Alex Booth | V38: Leeds C | W38: 1.1 | Z38: F30 | AB38: 1 | AC38: 4 | AD38: 4
A39: =VLOOKUP(C35,eventno,7,FALSE) -> 57.67 | B39: 3 | C39: 1 | D39: =IF($AA$18="",Distance!$B$240," ") -> 9 | E39: Patrick Thackray | F39: Wake | G39: 30.23 | I39: =VLOOKUP(K35,eventno,7,FALSE) -> 70.22 | J39: 3 | K39: 2 | L39: =IF($AA$19="",Distance!$B$272," ") -> 9 | M39: Ethan Plumb | N39: Wake | O39: 32.66 | Q39: =VLOOKUP(S35,eventno,7,FALSE) -> 1.65 | R39: 3 | S39: 1 | T39: =IF($AA$20="",Height!$B$76," ") -> 9 | U39: Dylan Roberts | V39: Wake | W39: 1.36 | X39: 3 | Z39: F31 | AB39: 6 | AC39: 5 | AD39: 6
A40: =VLOOKUP(C35,eventno,8,FALSE) -> 42.55 | B40: 4 | C40: 4 | D40: =IF($AA$18="",Distance!$B$241," ") -> 77 | E40: Kieran Savage | F40: Leeds C | G40: 20.68 | I40: =VLOOKUP(K35,eventno,8,FALSE) -> 50.55 | J40: 4 | L40: =IF($AA$19="",Distance!$B$273," ") -> 88 | M40: - | N40: York | Q40: =VLOOKUP(S35,eventno,8,FALSE) -> 1.45 | R40: 4 | T40: =IF($AA$20="",Height!$B$77," ") -> 88 | U40: - | V40: York | Z40: F32 | AB40: =IF(OR(C40=0,C40="",D40=0,D40="",G40=0,G40="",LEFT(G40,1)="D"),0,VLOOKUP(C40,points,2,FALSE)) -> 3 | AC40: =IF(OR(K40=0,K40="",L40=0,L40="",O40=0,O40="",LEFT(O40,1)="D"),0,VLOOKUP(K40,points,2,FALSE)) -> 0 | AD40: =IF(OR(S40=0,S40="",T40=0,T40="",W40=0,W40="",LEFT(W40,1)="D"),0,VLOOKUP(S40,points,2,FALSE)) -> 0
A41: =VLOOKUP(C35,eventno,9,FALSE) -> 39.9 | B41: 5 | C41: 5 | D41: =IF($AA$18="",Distance!$B$242," ") -> 88 | E41: Luke Nichols | F41: York | G41: 12.7 | I41: =VLOOKUP(K35,eventno,9,FALSE) -> 47 | J41: 5 | K41: 4 | L41: =IF($AA$19="",Distance!$B$274," ") -> 77 | M41: Andrew Russell | N41: Leeds C | O41: 27.56 | Q41: =VLOOKUP(S35,eventno,9,FALSE) -> 1.4 | R41: 5 | T41: =IF($AA$20="",Height!$B$78," ") -> 77 | U41: - | V41: Leeds C | W41: NHC | Z41: F33 | AB41: 2 | AC41: 3 | AD41: 0
A42: =VLOOKUP(C35,eventno,10,FALSE) -> 37 | B42: 6 | C42: 3 | D42: =IF($AA$18="",Distance!$B$243," ") -> 99 | E42: Sam Convery | F42: Wake | G42: 24.72 | I42: =VLOOKUP(K35,eventno,10,FALSE) -> 43.3 | J42: 6 | K42: 1 | L42: =IF($AA$19="",Distance!$B$275," ") -> 99 | M42: Andrew Lorkins | N42: Wake | O42: 35.99 | Q42: =VLOOKUP(S35,eventno,10,FALSE) -> 1.35 | R42: 6 | S42: 2 | T42: =IF($AA$20="",Height!$B$79," ") -> 99 | U42: Carter Bower-Stead | V42: Wake | W42: 1.28 | Z42: F34 | AB42: 4 | AC42: 6 | AD42: 5
A43: =VLOOKUP(C35,eventno,11,FALSE) -> 32.65 | I43: =VLOOKUP(K35,eventno,11,FALSE) -> 38.1 | Q43: =VLOOKUP(S35,eventno,11,FALSE) -> 1.3 | Z43: F35 | AB43: 0 | AC43: 0 | AD43: 0
A44: =VLOOKUP(C44,eventno,5,FALSE) -> F | C44: F13 | D44: =VLOOKUP(C44,eventno,4,FALSE) -> U13G High Jump | F44: =IF(A47="W","Wind =","") ->  | H44: =IF(OR(G46=0,G46="",$A$48=0,$A$48=""),"",IF($A$46="F",IF(G46>$A$48,"LR",IF(G46=$A$48,"LR=","")))) ->  | I44: =VLOOKUP(K44,eventno,5,FALSE) -> M | K44: F14 | L44: =VLOOKUP(K44,eventno,4,FALSE) -> U15B Pole Vault | N44: =IF(I47="W","Wind =","") ->  | P44: =IF(OR(O46=0,O46="",$I$48=0,$I$48=""),"",IF($I$46="F",IF(O46>$I$48,"LR",IF(O46=$I$48,"LR=","")))) ->  | Q44: =VLOOKUP(S44,eventno,5,FALSE) -> M | S44: F15 | T44: =VLOOKUP(S44,eventno,4,FALSE) -> U17M Pole Vault | V44: =IF(Q47="W","Wind =","") ->  | X44: =IF(OR(W46=0,W46="",$Q$48=0,$Q$48=""),"",IF($Q$46="F",IF(W46>$Q$48,"LR",IF(W46=$Q$48,"LR=","")))) ->  | AB44: 0 | AC44: 0 | AD44: 0
A45: =IF(A44="M",VLOOKUP(C44,males,15,FALSE),VLOOKUP(C44,females,15,FALSE)) -> 40 | C45: Posn | D45: Bib | E45: Athlete | F45: Club | G45: Perf | H45: Gr | I45: =IF(I44="M",VLOOKUP(K44,males,15,FALSE),VLOOKUP(K44,females,15,FALSE)) -> 41 | K45: Posn | L45: Bib | M45: Athlete | N45: Club | O45: Perf | P45: Gr | Q45: =IF(Q44="M",VLOOKUP(S44,males,15,FALSE),VLOOKUP(S44,females,15,FALSE)) -> 42 | S45: Posn | T45: Bib | U45: Athlete | V45: Club | W45: Perf | X45: Gr
A46: =LEFT(C44,1) -> F | B46: 1 | C46: =IF(OR(G46=0,G46="",T(G46)<>"",G46="NHC"),"",RANK(G46,$G$46:$G$51,0)) -> 3 | D46: =IF($AA$21="",Height!$B$106,VALUE(LEFT($AA$21,3))) -> 7 | E46: =IF(OR(D46=0,D46="",D46=" "),"",IF($A$44="F",HLOOKUP(D46,females,$A$45,FALSE),IF($A$44="M",HLOOKUP(D46,males,$A$45,FALSE),""))) -> Megan Sanders | F46: =IF(OR(D46=0,D46="",ISERROR(VLOOKUP(D46,match_teams,4,FALSE)=TRUE)),"",VLOOKUP(D46,match_teams,4,FALSE)) -> Leeds C | G46: 1.1 | H46: =IF(OR(G46=0,G46="",G46="NHC",$A$49=0,$A$49="",$A$50=0,$A$50="",$A$51=0,$A$51="",$A$52=0,$A$52=""),"",IF(G46>=$A$49,1,IF(G46>=$A$50,2,IF(G46>=$A$51,3,IF(G46>=$A$52,4,""))))) ->  | I46: =LEFT(K44,1) -> F | J46: 1 | K46: =IF(OR(O46=0,O46="",T(O46)<>"",O46="NHC"),"",RANK(O46,$O$46:$O$51,0)) ->  | L46: =IF($AA$22="",Height!$B$138,VALUE(LEFT($AA$22,3))) -> 8 | M46: =IF(OR(L46=0,L46="",L46=" "),"",IF($I$44="F",HLOOKUP(L46,females,$I$45,FALSE),IF($I$44="M",HLOOKUP(L46,males,$I$45,FALSE),""))) -> - | N46: =IF(OR(L46=0,L46="",ISERROR(VLOOKUP(L46,match_teams,4,FALSE)=TRUE)),"",VLOOKUP(L46,match_teams,4,FALSE)) -> York | P46: =IF(OR(O46=0,O46="",O46="NHC",$I$49=0,$I$49="",$I$50=0,$I$50="",$I$51=0,$I$51="",$I$52=0,$I$52=""),"",IF(O46>=$I$49,1,IF(O46>=$I$50,2,IF(O46>=$I$51,3,IF(O46>=$I$52,4,""))))) ->  | Q46: =LEFT(S44,1) -> F | R46: 1 | S46: =IF(OR(W46=0,W46="",T(W46)<>"",W46="NHC"),"",RANK(W46,$W$46:$W$51,0)) ->  | T46: =IF($AA$23="",Height!$B$170,VALUE(LEFT($AA$23,3))) -> 8 | U46: =IF(OR(T46=0,T46="",T46=" "),"",IF($Q$44="F",HLOOKUP(T46,females,$Q$45,FALSE),IF($Q$44="M",HLOOKUP(T46,males,$Q$45,FALSE),""))) -> - | V46: =IF(OR(T46=0,T46="",ISERROR(VLOOKUP(T46,match_teams,4,FALSE)=TRUE)),"",VLOOKUP(T46,match_teams,4,FALSE)) -> York | X46: =IF(OR(W46=0,W46="",W46="NHC",$Q$49=0,$Q$49="",$Q$50=0,$Q$50="",$Q$51=0,$Q$51="",$Q$52=0,$Q$52=""),"",IF(W46>=$Q$49,1,IF(W46>=$Q$50,2,IF(W46>=$Q$51,3,IF(W46>=$Q$52,4,""))))) ->  | AB46: 4 | AC46: 0 | AD46: 0
A47: =VLOOKUP(C44,eventno,6,FALSE) -> 0 | B47: 2 | C47: =IF(OR(G47=0,G47="",T(G47)<>"",G47="NHC"),"",RANK(G47,$G$46:$G$51,0)) ->  | D47: =IF($AA$21="",Height!$B$107," ") -> 9 | E47: - | F47: Wake | I47: =VLOOKUP(K44,eventno,6,FALSE) -> 0 | J47: 2 | K47: 1 | L47: =IF($AA$22="",Height!$B$139," ") -> 9 | M47: Andrew Jones | N47: Wake | O47: 3 | P47: 2 | Q47: =VLOOKUP(S44,eventno,6,FALSE) -> 0 | R47: 2 | S47: 1 | T47: =IF($AA$23="",Height!$B$171," ") -> 7 | U47: Andrew Russell | V47: Leeds C | W47: 3.55 | X47: 3 | AB47: 0 | AC47: 6 | AD47: 6
A48: =VLOOKUP(C44,eventno,7,FALSE) -> 1.62 | B48: 3 | C48: =IF(OR(G48=0,G48="",T(G48)<>"",G48="NHC"),"",RANK(G48,$G$46:$G$51,0)) -> 4 | D48: =IF($AA$21="",Height!$B$108," ") -> 8 | E48: Felicity Edwards | F48: York | G48: 1.05 | I48: =VLOOKUP(K44,eventno,7,FALSE) -> 4.2 | J48: 3 | L48: =IF($AA$22="",Height!$B$140," ") -> 7 | M48: Jonathan Webster | N48: Leeds C | Q48: =VLOOKUP(S44,eventno,7,FALSE) -> 5.2 | R48: 3 | S48: 2 | T48: =IF($AA$23="",Height!$B$172," ") -> 9 | U48: Michael Jones | V48: Wake | W48: 2.25 | AB48: 3 | AC48: 0 | AD48: 5
A49: =VLOOKUP(C44,eventno,8,FALSE) -> 1.4 | B49: 4 | C49: 5 | D49: =IF($AA$21="",Height!$B$109," ") -> 77 | E49: - | F49: Leeds C | I49: =VLOOKUP(K44,eventno,8,FALSE) -> 3.2 | J49: 4 | L49: =IF($AA$22="",Height!$B$141," ") -> 88 | M49: - | N49: York | Q49: =VLOOKUP(S44,eventno,8,FALSE) -> 4 | R49: 4 | T49: =IF($AA$23="",Height!$B$173," ") -> 88 | U49: - | V49: York | AB49: 0 | AC49: 0 | AD49: 0
A50: =VLOOKUP(C44,eventno,9,FALSE) -> 1.35 | B50: 5 | C50: =IF(OR(G50=0,G50="",T(G50)<>"",G50="NHC"),"",RANK(G50,$G$46:$G$51,0)) -> 2 | D50: =IF($AA$21="",Height!$B$110," ") -> 99 | E50: Ella Liefeith | F50: Wake | G50: 1.13 | I50: =VLOOKUP(K44,eventno,9,FALSE) -> 3 | J50: 5 | L50: =IF($AA$22="",Height!$B$142," ") -> 99 | M50: - | N50: Wake | Q50: =VLOOKUP(S44,eventno,9,FALSE) -> 3.65 | R50: 5 | T50: =IF($AA$23="",Height!$B$174," ") -> 77 | U50: - | V50: Leeds C | AB50: 5 | AC50: 0 | AD50: 0
A51: =VLOOKUP(C44,eventno,10,FALSE) -> 1.3 | B51: 6 | C51: 1 | D51: =IF($AA$21="",Height!$B$111," ") -> 88 | E51: Annabel Ashton | F51: York | G51: 1.25 | H51: 4 | I51: =VLOOKUP(K44,eventno,10,FALSE) -> 2.8 | J51: 6 | L51: =IF($AA$22="",Height!$B$143," ") -> 77 | M51: - | N51: Leeds C | Q51: =VLOOKUP(S44,eventno,10,FALSE) -> 3.5 | R51: 6 | T51: =IF($AA$23="",Height!$B$175," ") -> 99 | U51: - | V51: Wake | AB51: 6 | AC51: 0 | AD51: 0
A52: =VLOOKUP(C44,eventno,11,FALSE) -> 1.25 | I52: =VLOOKUP(K44,eventno,11,FALSE) -> 2.4 | Q52: =VLOOKUP(S44,eventno,11,FALSE) -> 3 | AB52: 0 | AC52: 0 | AD52: 0
A53: =VLOOKUP(C53,eventno,5,FALSE) -> F | C53: F16 | D53: =VLOOKUP(C53,eventno,4,FALSE) -> U15G Pole Vault | F53: =IF(A56="W","Wind =","") ->  | H53: =IF(OR(G55=0,G55="",$A$57=0,$A$57=""),"",IF($A$55="F",IF(G55>$A$57,"LR",IF(G55=$A$57,"LR=","")))) ->  | I53: =VLOOKUP(K53,eventno,5,FALSE) -> F | K53: F17 | L53: =VLOOKUP(K53,eventno,4,FALSE) -> U17W Pole Vault | N53: =IF(I56="W","Wind =","") ->  | P53: =IF(OR(O55=0,O55="",$I$57=0,$I$57=""),"",IF($I$55="F",IF(O55>$I$57,"LR",IF(O55=$I$57,"LR=","")))) ->  | Q53: =VLOOKUP(S53,eventno,5,FALSE) -> F | S53: F18 | T53: =VLOOKUP(S53,eventno,4,FALSE) -> U17W Shot | V53: =IF(Q56="W","Wind =","") ->  | X53: =IF(OR(W55=0,W55="",$Q$57=0,$Q$57=""),"",IF($Q$55="F",IF(W55>$Q$57,"LR",IF(W55=$Q$57,"LR=","")))) ->  | AB53: 0 | AC53: 0 | AD53: 0
A54: =IF(A53="M",VLOOKUP(C53,males,15,FALSE),VLOOKUP(C53,females,15,FALSE)) -> 41 | C54: Posn | D54: Bib | E54: Athlete | F54: Club | G54: Perf | H54: Gr | I54: =IF(I53="M",VLOOKUP(K53,males,15,FALSE),VLOOKUP(K53,females,15,FALSE)) -> 42 | K54: Posn | L54: Bib | M54: Athlete | N54: Club | O54: Perf | P54: Gr | Q54: =IF(Q53="M",VLOOKUP(S53,males,15,FALSE),VLOOKUP(S53,females,15,FALSE)) -> 48 | S54: Posn | T54: Bib | U54: Athlete | V54: Club | W54: Perf | X54: Gr
A55: =LEFT(C53,1) -> F | B55: 1 | C55: =IF(OR(G55=0,G55="",T(G55)<>"",G55="NHC"),"",RANK(G55,$G$55:$G$60,0)) -> 2 | D55: =IF($AA$24="",Height!$B$202,VALUE(LEFT($AA$24,3))) -> 7 | E55: =IF(OR(D55=0,D55="",D55=" "),"",IF($A$53="F",HLOOKUP(D55,females,$A$54,FALSE),IF($A$53="M",HLOOKUP(D55,males,$A$54,FALSE),""))) -> Vikki Adams | F55: =IF(OR(D55=0,D55="",ISERROR(VLOOKUP(D55,match_teams,4,FALSE)=TRUE)),"",VLOOKUP(D55,match_teams,4,FALSE)) -> Leeds C | G55: 1.7 | H55: =IF(OR(G55=0,G55="",G55="NHC",$A$58=0,$A$58="",$A$59=0,$A$59="",$A$60=0,$A$60="",$A$61=0,$A$61=""),"",IF(G55>=$A$58,1,IF(G55>=$A$59,2,IF(G55>=$A$60,3,IF(G55>=$A$61,4,""))))) ->  | I55: =LEFT(K53,1) -> F | J55: 1 | K55: =IF(OR(O55=0,O55="",T(O55)<>"",O55="NHC"),"",RANK(O55,$O$55:$O$60,0)) ->  | L55: =IF($AA$25="",Height!$B$234,VALUE(LEFT($AA$25,3))) -> 8 | M55: =IF(OR(L55=0,L55="",L55=" "),"",IF($I$53="F",HLOOKUP(L55,females,$I$54,FALSE),IF($I$53="M",HLOOKUP(L55,males,$I$54,FALSE),""))) -> - | N55: =IF(OR(L55=0,L55="",ISERROR(VLOOKUP(L55,match_teams,4,FALSE)=TRUE)),"",VLOOKUP(L55,match_teams,4,FALSE)) -> York | P55: =IF(OR(O55=0,O55="",O55="NHC",$I$58=0,$I$58="",$I$59=0,$I$59="",$I$60=0,$I$60="",$I$61=0,$I$61=""),"",IF(O55>=$I$58,1,IF(O55>=$I$59,2,IF(O55>=$I$60,3,IF(O55>=$I$61,4,""))))) ->  | Q55: =LEFT(S53,1) -> F | R55: 2 | S55: =IF(OR(W55=0,W55="",T(W55)<>""),"",RANK(W55,$W$55:$W$60,0)) -> 2 | T55: =IF($AA$26="",Distance!$B$303," ") -> 7 | U55: =IF(OR(T55=0,T55="",T55=" "),"",IF($Q$53="F",HLOOKUP(T55,females,$Q$54,FALSE),IF($Q$53="M",HLOOKUP(T55,males,$Q$54,FALSE),""))) -> Hannah Ukandu | V55: =IF(OR(T55=0,T55="",ISERROR(VLOOKUP(T55,match_teams,4,FALSE)=TRUE)),"",VLOOKUP(T55,match_teams,4,FALSE)) -> Leeds C | W55: 8.95 | X55: =IF(OR(W55=0,W55="",$Q$58=0,$Q$58="",$Q$59=0,$Q$59="",$Q$60=0,$Q$60="",$Q$61=0,$Q$61=""),"",IF(W55>=$Q$58,1,IF(W55>=$Q$59,2,IF(W55>=$Q$60,3,IF(W55>=$Q$61,4,""))))) -> 3 | AB55: 5 | AC55: 0 | AD55: 5
A56: =VLOOKUP(C53,eventno,6,FALSE) -> 0 | B56: 2 | C56: 1 | D56: =IF($AA$24="",Height!$B$203," ") -> 9 | E56: Abigail Roberts | F56: Wake | G56: 2.9 | H56: 1 | I56: =VLOOKUP(K53,eventno,6,FALSE) -> 0 | J56: 2 | L56: =IF($AA$25="",Height!$B$235," ") -> 7 | M56: - | N56: Leeds C | Q56: =VLOOKUP(S53,eventno,6,FALSE) -> 0 | R56: 1 | S56: 3 | T56: =IF($AA$26="",Distance!$B$302,VALUE(LEFT($AA$26,3))) -> 9 | U56: Hannah Yates | V56: Wake | W56: 7.98 | X56: 4 | AB56: 6 | AC56: 0 | AD56: 4
A57: =VLOOKUP(C53,eventno,7,FALSE) -> 3.3 | B57: 3 | D57: =IF($AA$24="",Height!$B$204," ") -> 8 | E57: - | F57: York | I57: =VLOOKUP(K53,eventno,7,FALSE) -> 4.03 | J57: 3 | K57: 2 | L57: =IF($AA$25="",Height!$B$236," ") -> 9 | M57: Sally Spurr | N57: Wake | O57: 2 | Q57: =VLOOKUP(S53,eventno,7,FALSE) -> 13.57 | R57: 3 | S57: 1 | T57: =IF($AA$26="",Distance!$B$304," ") -> 8 | U57: Becky Tunnicliffe | V57: York | W57: 9.31 | X57: 3 | AB57: 0 | AC57: 5 | AD57: 6
A58: =VLOOKUP(C53,eventno,8,FALSE) -> 2.9 | B58: 4 | D58: =IF($AA$24="",Height!$B$205," ") -> 77 | E58: - | F58: Leeds C | I58: =VLOOKUP(K53,eventno,8,FALSE) -> 3.4 | J58: 4 | L58: =IF($AA$25="",Height!$B$237," ") -> 88 | M58: - | N58: York | Q58: =VLOOKUP(S53,eventno,8,FALSE) -> 9.95 | R58: 4 | S58: 4 | T58: =IF($AA$26="",Distance!$B$305," ") -> 99 | U58: Samantha Lancaster | V58: Wake | W58: 7.79 | AB58: 0 | AC58: 0 | AD58: 3
A59: =VLOOKUP(C53,eventno,9,FALSE) -> 2.8 | B59: 5 | D59: =IF($AA$24="",Height!$B$206," ") -> 99 | E59: Bethany Taylor | F59: Wake | I59: =VLOOKUP(K53,eventno,9,FALSE) -> 3.2 | J59: 5 | L59: =IF($AA$25="",Height!$B$238," ") -> 77 | M59: - | N59: Leeds C | Q59: =VLOOKUP(S53,eventno,9,FALSE) -> 9.35 | R59: 5 | S59: 5 | T59: =IF($AA$26="",Distance!$B$306," ") -> 77 | U59: Grace Coburn | V59: Leeds C | W59: 5.57 | AB59: 0 | AC59: 0 | AD59: 2
A60: =VLOOKUP(C53,eventno,10,FALSE) -> 2.5 | B60: 6 | D60: =IF($AA$24="",Height!$B$207," ") -> 88 | E60: - | F60: York | I60: =VLOOKUP(K53,eventno,10,FALSE) -> 2.9 | J60: 6 | K60: 1 | L60: =IF($AA$25="",Height!$B$239," ") -> 99 | M60: Alice Cusworth | N60: Wake | O60: 2.25 | Q60: =VLOOKUP(S53,eventno,10,FALSE) -> 8.7 | R60: 6 | S60: 6 | T60: =IF($AA$26="",Distance!$B$307," ") -> 88 | U60: Emily Haigh | V60: York | W60: 4.55 | AB60: 0 | AC60: 6 | AD60: 1
A61: =VLOOKUP(C53,eventno,11,FALSE) -> 2.2 | I61: =VLOOKUP(K53,eventno,11,FALSE) -> 2.5 | Q61: =VLOOKUP(S53,eventno,11,FALSE) -> 7.8 | AB61: 0 | AC61: 0 | AD61: 0
A62: =VLOOKUP(C62,eventno,5,FALSE) -> M | C62: F19 | D62: =VLOOKUP(C62,eventno,4,FALSE) -> U17M Long Jump | F62: =IF(A65="W","Wind =","") ->  | H62: =IF(OR(G64=0,G64="",$A$66=0,$A$66=""),"",IF($A$64="F",IF(G64>$A$66,"LR",IF(G64=$A$66,"LR=","")))) ->  | I62: =VLOOKUP(K62,eventno,5,FALSE) -> F | K62: F20 | L62: =VLOOKUP(K62,eventno,4,FALSE) -> U15G Discus | N62: =IF(I65="W","Wind =","") ->  | P62: =IF(OR(O64=0,O64="",$I$66=0,$I$66=""),"",IF($I$64="F",IF(O64>$I$66,"LR",IF(O64=$I$66,"LR=","")))) ->  | Q62: =VLOOKUP(S62,eventno,5,FALSE) -> F | S62: F21 | T62: =VLOOKUP(S62,eventno,4,FALSE) -> U17W Discus | V62: =IF(Q65="W","Wind =","") ->  | X62: =IF(OR(W64=0,W64="",$Q$66=0,$Q$66=""),"",IF($Q$64="F",IF(W64>$Q$66,"LR",IF(W64=$Q$66,"LR=","")))) ->  | AB62: 0 | AC62: 0 | AD62: 0
A63: =IF(A62="M",VLOOKUP(C62,males,15,FALSE),VLOOKUP(C62,females,15,FALSE)) -> 43 | C63: Posn | D63: Bib | E63: Athlete | F63: Club | G63: Perf | H63: Gr | I63: =IF(I62="M",VLOOKUP(K62,males,15,FALSE),VLOOKUP(K62,females,15,FALSE)) -> 46 | K63: Posn | L63: Bib | M63: Athlete | N63: Club | O63: Perf | P63: Gr | Q63: =IF(Q62="M",VLOOKUP(S62,males,15,FALSE),VLOOKUP(S62,females,15,FALSE)) -> 47 | S63: Posn | T63: Bib | U63: Athlete | V63: Club | W63: Perf | X63: Gr
A64: =LEFT(C62,1) -> F | B64: 4 | C64: =IF(OR(G64=0,G64="",T(G64)<>""),"",RANK(G64,$G$64:$G$69,0)) -> 2 | D64: =IF($AA$27="",Distance!$B$337," ") -> 77 | E64: =IF(OR(D64=0,D64="",D64=" "),"",IF($A$62="F",HLOOKUP(D64,females,$A$63,FALSE),IF($A$62="M",HLOOKUP(D64,males,$A$63,FALSE),""))) -> Matthew Campleman | F64: =IF(OR(D64=0,D64="",ISERROR(VLOOKUP(D64,match_teams,4,FALSE)=TRUE)),"",VLOOKUP(D64,match_teams,4,FALSE)) -> Leeds C | G64: 6.03 | H64: =IF(OR(G64=0,G64="",$A$67=0,$A$67="",$A$68=0,$A$68="",$A$69=0,$A$69="",$A$70=0,$A$70=""),"",IF(G64>=$A$67,1,IF(G64>=$A$68,2,IF(G64>=$A$69,3,IF(G64>=$A$70,4,""))))) ->  | I64: =LEFT(K62,1) -> F | J64: 2 | K64: =IF(OR(O64=0,O64="",T(O64)<>""),"",RANK(O64,$O$64:$O$69,0)) -> 1 | L64: =IF($AA$28="",Distance!$B$367," ") -> 7 | M64: =IF(OR(L64=0,L64="",L64=" "),"",IF($I$62="F",HLOOKUP(L64,females,$I$63,FALSE),IF($I$62="M",HLOOKUP(L64,males,$I$63,FALSE),""))) -> Nicola Sawyer | N64: =IF(OR(L64=0,L64="",ISERROR(VLOOKUP(L64,match_teams,4,FALSE)=TRUE)),"",VLOOKUP(L64,match_teams,4,FALSE)) -> Leeds C | O64: 22.86 | P64: =IF(OR(O64=0,O64="",$I$67=0,$I$67="",$I$68=0,$I$68="",$I$69=0,$I$69="",$I$70=0,$I$70=""),"",IF(O64>=$I$67,1,IF(O64>=$I$68,2,IF(O64>=$I$69,3,IF(O64>=$I$70,4,""))))) -> 3 | Q64: =LEFT(S62,1) -> F | R64: 3 | S64: =IF(OR(W64=0,W64="",T(W64)<>""),"",RANK(W64,$W$64:$W$69,0)) -> 5 | T64: =IF($AA$29="",Distance!$B$400," ") -> 7 | U64: =IF(OR(T64=0,T64="",T64=" "),"",IF($Q$62="F",HLOOKUP(T64,females,$Q$63,FALSE),IF($Q$62="M",HLOOKUP(T64,males,$Q$63,FALSE),""))) -> Georgia Yearby | V64: =IF(OR(T64=0,T64="",ISERROR(VLOOKUP(T64,match_teams,4,FALSE)=TRUE)),"",VLOOKUP(T64,match_teams,4,FALSE)) -> Leeds C | W64: 14.96 | X64: =IF(OR(W64=0,W64="",$Q$67=0,$Q$67="",$Q$68=0,$Q$68="",$Q$69=0,$Q$69="",$Q$70=0,$Q$70=""),"",IF(W64>=$Q$67,1,IF(W64>=$Q$68,2,IF(W64>=$Q$69,3,IF(W64>=$Q$70,4,""))))) ->  | AB64: 5 | AC64: 6 | AD64: 2
A65: =VLOOKUP(C62,eventno,6,FALSE) -> 0 | B65: 2 | D65: =IF($AA$27="",Distance!$B$335," ") -> 9 | E65: Jake Worton | F65: Wake | I65: =VLOOKUP(K62,eventno,6,FALSE) -> 0 | J65: 3 | K65: 5 | L65: =IF($AA$28="",Distance!$B$368," ") -> 9 | M65: Alyce McCurdie | N65: Wake | O65: 13.16 | Q65: =VLOOKUP(S62,eventno,6,FALSE) -> 0 | R65: 1 | S65: 1 | T65: =IF($AA$29="",Distance!$B$398,VALUE(LEFT($AA$29,3))) -> 9 | U65: Hannah Yates | V65: Wake | W65: 28.35 | X65: 3 | AB65: 0 | AC65: 2 | AD65: 6
A66: =VLOOKUP(C62,eventno,7,FALSE) -> 7.45 | B66: 5 | C66: 4 | D66: =IF($AA$27="",Distance!$B$338," ") -> 99 | E66: Andrew Lorkins | F66: Wake | G66: 5.33 | I66: =VLOOKUP(K62,eventno,7,FALSE) -> 39.47 | J66: 1 | K66: 2 | L66: =IF($AA$28="",Distance!$B$366,VALUE(LEFT($AA$28,3))) -> 8 | M66: Chelsea Walker | N66: York | O66: 16.52 | Q66: =VLOOKUP(S62,eventno,7,FALSE) -> 45.48 | R66: 2 | S66: 2 | T66: =IF($AA$29="",Distance!$B$399," ") -> 8 | U66: Becky Tunnicliffe | V66: York | W66: 20.29 | AB66: 3 | AC66: 5 | AD66: 5
A67: =VLOOKUP(C62,eventno,8,FALSE) -> 0 | B67: 1 | C67: 1 | D67: =IF($AA$27="",Distance!$B$334,VALUE(LEFT($AA$27,3))) -> 7 | E67: Elliott Hurley | F67: Leeds C | G67: 6.35 | I67: =VLOOKUP(K62,eventno,8,FALSE) -> 27.3 | J67: 6 | K67: 4 | L67: =IF($AA$28="",Distance!$B$371," ") -> 99 | M67: Bethany Taylor | N67: Wake | O67: 14.98 | Q67: =VLOOKUP(S62,eventno,8,FALSE) -> 33.25 | R67: 5 | S67: 6 | T67: =IF($AA$29="",Distance!$B$402," ") -> 88 | U67: Zoe Robson | V67: York | W67: 12.33 | AB67: 6 | AC67: 3 | AD67: 1
A68: =VLOOKUP(C62,eventno,9,FALSE) -> 0 | B68: 3 | C68: 3 | D68: =IF($AA$27="",Distance!$B$336," ") -> 8 | E68: Adam Robinson | F68: York | G68: 5.79 | I68: =VLOOKUP(K62,eventno,9,FALSE) -> 25.05 | J68: 4 | K68: 6 | L68: =IF($AA$28="",Distance!$B$369," ") -> 88 | M68: Jade Kerrison | N68: York | O68: 9.71 | Q68: =VLOOKUP(S62,eventno,9,FALSE) -> 31.5 | R68: 6 | S68: 4 | T68: =IF($AA$29="",Distance!$B$403," ") -> 77 | U68: Grace Coburn | V68: Leeds C | W68: 15.18 | AB68: 4 | AC68: 1 | AD68: 3
A69: =VLOOKUP(C62,eventno,10,FALSE) -> 0 | B69: 6 | C69: 5 | D69: =IF($AA$27="",Distance!$B$339," ") -> 88 | E69: Peirre Weller | F69: York | G69: 3.53 | I69: =VLOOKUP(K62,eventno,10,FALSE) -> 22.3 | J69: 5 | K69: 3 | L69: =IF($AA$28="",Distance!$B$370," ") -> 77 | M69: Melissa Fletcher | N69: Leeds C | O69: 15.81 | Q69: =VLOOKUP(S62,eventno,10,FALSE) -> 27.9 | R69: 4 | S69: 3 | T69: =IF($AA$29="",Distance!$B$401," ") -> 99 | U69: Samantha Lancaster | V69: Wake | W69: 15.82 | AB69: 2 | AC69: 4 | AD69: 4
A70: =VLOOKUP(C62,eventno,11,FALSE) -> 0 | I70: =VLOOKUP(K62,eventno,11,FALSE) -> 19.65 | Q70: =VLOOKUP(S62,eventno,11,FALSE) -> 23.25 | AB70: 0 | AC70: 0 | AD70: 0
A71: =VLOOKUP(C71,eventno,5,FALSE) -> M | C71: F22 | D71: =VLOOKUP(C71,eventno,4,FALSE) -> U13B Shot | F71: =IF(A74="W","Wind =","") ->  | H71: =IF(OR(G73=0,G73="",$A$75=0,$A$75=""),"",IF($A$73="F",IF(G73>$A$75,"LR",IF(G73=$A$75,"LR=","")))) ->  | I71: =VLOOKUP(K71,eventno,5,FALSE) -> F | K71: F23 | L71: =VLOOKUP(K71,eventno,4,FALSE) -> U15G Long Jump | N71: =IF(I74="W","Wind =","") ->  | P71: =IF(OR(O73=0,O73="",$I$75=0,$I$75=""),"",IF($I$73="F",IF(O73>$I$75,"LR",IF(O73=$I$75,"LR=","")))) ->  | Q71: =VLOOKUP(S71,eventno,5,FALSE) -> F | S71: F24 | T71: =VLOOKUP(S71,eventno,4,FALSE) -> U15G Shot | V71: =IF(Q74="W","Wind =","") ->  | X71: =IF(OR(W73=0,W73="",$Q$75=0,$Q$75=""),"",IF($Q$73="F",IF(W73>$Q$75,"LR",IF(W73=$Q$75,"LR=","")))) ->  | AB71: 0 | AC71: 0 | AD71: 0
A72: =IF(A71="M",VLOOKUP(C71,males,15,FALSE),VLOOKUP(C71,females,15,FALSE)) -> 44 | C72: Posn | D72: Bib | E72: Athlete | F72: Club | G72: Perf | H72: Gr | I72: =IF(I71="M",VLOOKUP(K71,males,15,FALSE),VLOOKUP(K71,females,15,FALSE)) -> 45 | K72: Posn | L72: Bib | M72: Athlete | N72: Club | O72: Perf | P72: Gr | Q72: =IF(Q71="M",VLOOKUP(S71,males,15,FALSE),VLOOKUP(S71,females,15,FALSE)) -> 37 | S72: Posn | T72: Bib | U72: Athlete | V72: Club | W72: Perf | X72: Gr | AB72: =IF(OR(C72=0,C72="",D72=0,D72="",G72=0,G72="",LEFT(G72,1)="D"),0,VLOOKUP(C72,points,2,FALSE)) ->  | AC72: =IF(OR(K72=0,K72="",L72=0,L72="",O72=0,O72="",LEFT(O72,1)="D"),0,VLOOKUP(K72,points,2,FALSE)) ->  | AD72: =IF(OR(S72=0,S72="",T72=0,T72="",W72=0,W72="",LEFT(W72,1)="D"),0,VLOOKUP(S72,points,2,FALSE)) -> 
A73: =LEFT(C71,1) -> F | B73: 1 | C73: =IF(OR(G73=0,G73="",T(G73)<>""),"",RANK(G73,$G$73:$G$78,0)) -> 4 | D73: =IF($AA$30="",Distance!$B$430,VALUE(LEFT($AA$30,3))) -> 8 | E73: =IF(OR(D73=0,D73="",D73=" "),"",IF($A$71="F",HLOOKUP(D73,females,$A$72,FALSE),IF($A$71="M",HLOOKUP(D73,males,$A$72,FALSE),""))) -> Matt Hobson | F73: =IF(OR(D73=0,D73="",ISERROR(VLOOKUP(D73,match_teams,4,FALSE)=TRUE)),"",VLOOKUP(D73,match_teams,4,FALSE)) -> York | G73: 5.27 | H73: =IF(OR(G73=0,G73="",$A$76=0,$A$76="",$A$77=0,$A$77="",$A$78=0,$A$78="",$A$79=0,$A$79=""),"",IF(G73>=$A$76,1,IF(G73>=$A$77,2,IF(G73>=$A$78,3,IF(G73>=$A$79,4,""))))) ->  | I73: =LEFT(K71,1) -> F | J73: 1 | K73: =IF(OR(O73=0,O73="",T(O73)<>""),"",RANK(O73,$O$73:$O$78,0)) -> 6 | L73: =IF($AA$31="",Distance!$B$462,VALUE(LEFT($AA$31,3))) -> 7 | M73: =IF(OR(L73=0,L73="",L73=" "),"",IF($I$71="F",HLOOKUP(L73,females,$I$72,FALSE),IF($I$71="M",HLOOKUP(L73,males,$I$72,FALSE),""))) -> Sian Gilmartin-Green | N73: =IF(OR(L73=0,L73="",ISERROR(VLOOKUP(L73,match_teams,4,FALSE)=TRUE)),"",VLOOKUP(L73,match_teams,4,FALSE)) -> Leeds C | O73: 3.35 | P73: =IF(OR(O73=0,O73="",$I$76=0,$I$76="",$I$77=0,$I$77="",$I$78=0,$I$78="",$I$79=0,$I$79=""),"",IF(O73>=$I$76,1,IF(O73>=$I$77,2,IF(O73>=$I$78,3,IF(O73>=$I$79,4,""))))) ->  | Q73: =LEFT(S71,1) -> F | R73: 2 | S73: =IF(OR(W73=0,W73="",T(W73)<>""),"",RANK(W73,$W$73:$W$78,0)) -> 2 | T73: =IF($AA$32="",Distance!$B$495," ") -> 9 | U73: =IF(OR(T73=0,T73="",T73=" "),"",IF($Q$71="F",HLOOKUP(T73,females,$Q$72,FALSE),IF($Q$71="M",HLOOKUP(T73,males,$Q$72,FALSE),""))) -> Alyce McCurdie | V73: =IF(OR(T73=0,T73="",ISERROR(VLOOKUP(T73,match_teams,4,FALSE)=TRUE)),"",VLOOKUP(T73,match_teams,4,FALSE)) -> Wake | W73: 7.78 | X73: =IF(OR(W73=0,W73="",$Q$76=0,$Q$76="",$Q$77=0,$Q$77="",$Q$78=0,$Q$78="",$Q$79=0,$Q$79=""),"",IF(W73>=$Q$76,1,IF(W73>=$Q$77,2,IF(W73>=$Q$78,3,IF(W73>=$Q$79,4,""))))) ->  | AB73: 3 | AC73: 1 | AD73: 5
A74: =VLOOKUP(C71,eventno,6,FALSE) -> 0 | B74: 2 | C74: 2 | D74: =IF($AA$30="",Distance!$B$431," ") -> 9 | E74: Dylan Roberts | F74: Wake | G74: 6.66 | I74: =VLOOKUP(K71,eventno,6,FALSE) -> 0 | J74: 2 | K74: 2 | L74: =IF($AA$31="",Distance!$B$463," ") -> 9 | M74: Jessica Eyles | N74: Wake | O74: 4.23 | Q74: =VLOOKUP(S71,eventno,6,FALSE) -> 0 | R74: 1 | S74: 3 | T74: =IF($AA$32="",Distance!$B$494,VALUE(LEFT($AA$32,3))) -> 7 | U74: Caoimhe Crampton | V74: Leeds C | W74: 7.76 | AB74: 5 | AC74: 5 | AD74: 4
A75: =VLOOKUP(C71,eventno,7,FALSE) -> 14.47 | B75: 3 | C75: 3 | D75: =IF($AA$30="",Distance!$B$432," ") -> 7 | E75: Owen Sage | F75: Leeds C | G75: 5.69 | I75: =VLOOKUP(K71,eventno,7,FALSE) -> 6.07 | J75: 3 | K75: 1 | L75: =IF($AA$31="",Distance!$B$464," ") -> 8 | M75: Josie Parry | N75: York | O75: 4.76 | P75: 3 | Q75: =VLOOKUP(S71,eventno,7,FALSE) -> 13.75 | R75: 3 | S75: 1 | T75: =IF($AA$32="",Distance!$B$496," ") -> 8 | U75: Georgie Fenny | V75: York | W75: 8.4 | X75: 4 | AB75: 4 | AC75: 6 | AD75: 6
A76: =VLOOKUP(C71,eventno,8,FALSE) -> 9.55 | B76: 4 | D76: =IF($AA$30="",Distance!$B$433," ") -> 88 | E76: - | F76: York | I76: =VLOOKUP(K71,eventno,8,FALSE) -> 5 | J76: 4 | K76: 4 | L76: =IF($AA$31="",Distance!$B$465," ") -> 77 | M76: Jemma Ibbetson | N76: Leeds C | O76: 3.71 | Q76: =VLOOKUP(S71,eventno,8,FALSE) -> 9.85 | R76: 4 | S76: 6 | T76: =IF($AA$32="",Distance!$B$497," ") -> 77 | U76: Jemma Ibbetson | V76: Leeds C | W76: 5.45 | AB76: 0 | AC76: 3 | AD76: 1
A77: =VLOOKUP(C71,eventno,9,FALSE) -> 8.95 | B77: 5 | C77: 1 | D77: =IF($AA$30="",Distance!$B$434," ") -> 99 | E77: Barnaby Drew | F77: Wake | G77: 6.89 | I77: =VLOOKUP(K71,eventno,9,FALSE) -> 4.85 | J77: 5 | K77: 2 | L77: =IF($AA$31="",Distance!$B$466," ") -> 99 | M77: Olivia Walker | N77: Wake | O77: 4.23 | Q77: =VLOOKUP(S71,eventno,9,FALSE) -> 9.15 | R77: 5 | S77: 4 | T77: =IF($AA$32="",Distance!$B$498," ") -> 99 | U77: Jessica Eyles | V77: Wake | W77: 7.62 | AB77: 6 | AC77: 5 | AD77: 3
A78: =VLOOKUP(C71,eventno,10,FALSE) -> 8.1 | B78: 6 | C78: 5 | D78: =IF($AA$30="",Distance!$B$435," ") -> 77 | E78: Alex Booth | F78: Leeds C | G78: 4.64 | I78: =VLOOKUP(K71,eventno,10,FALSE) -> 4.7 | J78: 6 | K78: 5 | L78: =IF($AA$31="",Distance!$B$467," ") -> 88 | M78: Libby Brown | N78: York | O78: 3.41 | Q78: =VLOOKUP(S71,eventno,10,FALSE) -> 8.6 | R78: 6 | S78: 5 | T78: =IF($AA$32="",Distance!$B$499," ") -> 88 | U78: Chloe Hopper | V78: York | W78: 5.64 | AB78: 2 | AC78: 2 | AD78: 2
A79: =VLOOKUP(C71,eventno,11,FALSE) -> 7.1 | I79: =VLOOKUP(K71,eventno,11,FALSE) -> 4.45 | Q79: =VLOOKUP(S71,eventno,11,FALSE) -> 7.85 | AB79: 0 | AC79: 0 | AD79: 0
A80: =VLOOKUP(C80,eventno,5,FALSE) -> M | C80: F25 | D80: =VLOOKUP(C80,eventno,4,FALSE) -> U15B Long Jump | F80: =IF(A83="W","Wind =","") ->  | H80: =IF(OR(G82=0,G82="",$A$84=0,$A$84=""),"",IF($A$82="F",IF(G82>$A$84,"LR",IF(G82=$A$84,"LR=","")))) ->  | I80: =VLOOKUP(K80,eventno,5,FALSE) -> M | K80: F26 | L80: =VLOOKUP(K80,eventno,4,FALSE) -> U15B Discus | N80: =IF(I83="W","Wind =","") ->  | P80: =IF(OR(O82=0,O82="",$I$84=0,$I$84=""),"",IF($I$82="F",IF(O82>$I$84,"LR",IF(O82=$I$84,"LR=","")))) ->  | Q80: =VLOOKUP(S80,eventno,5,FALSE) -> M | S80: F27 | T80: =VLOOKUP(S80,eventno,4,FALSE) -> U17M Discus | V80: =IF(Q83="W","Wind =","") ->  | X80: =IF(OR(W82=0,W82="",$Q$84=0,$Q$84=""),"",IF($Q$82="F",IF(W82>$Q$84,"LR",IF(W82=$Q$84,"LR=","")))) ->  | AB80: 0 | AC80: 0 | AD80: 0
A81: =IF(A80="M",VLOOKUP(C80,males,15,FALSE),VLOOKUP(C80,females,15,FALSE)) -> 45 | C81: Posn | D81: Bib | E81: Athlete | F81: Club | G81: Perf | H81: Gr | I81: =IF(I80="M",VLOOKUP(K80,males,15,FALSE),VLOOKUP(K80,females,15,FALSE)) -> 46 | K81: Posn | L81: Bib | M81: Athlete | N81: Club | O81: Perf | P81: Gr | Q81: =IF(Q80="M",VLOOKUP(S80,males,15,FALSE),VLOOKUP(S80,females,15,FALSE)) -> 47 | S81: Posn | T81: Bib | U81: Athlete | V81: Club | W81: Perf | X81: Gr
A82: =LEFT(C80,1) -> F | B82: 6 | C82: =IF(OR(G82=0,G82="",T(G82)<>""),"",RANK(G82,$G$82:$G$87,0)) -> 5 | D82: =IF($AA$33="",Distance!$B$531," ") -> 99 | E82: =IF(OR(D82=0,D82="",D82=" "),"",IF($A$80="F",HLOOKUP(D82,females,$A$81,FALSE),IF($A$80="M",HLOOKUP(D82,males,$A$81,FALSE),""))) -> Ben Read | F82: =IF(OR(D82=0,D82="",ISERROR(VLOOKUP(D82,match_teams,4,FALSE)=TRUE)),"",VLOOKUP(D82,match_teams,4,FALSE)) -> Wake | G82: 4.44 | H82: =IF(OR(G82=0,G82="",$A$85=0,$A$85="",$A$86=0,$A$86="",$A$87=0,$A$87="",$A$88=0,$A$88=""),"",IF(G82>=$A$85,1,IF(G82>=$A$86,2,IF(G82>=$A$87,3,IF(G82>=$A$88,4,""))))) ->  | I82: =LEFT(K80,1) -> F | J82: 1 | K82: =IF(OR(O82=0,O82="",T(O82)<>""),"",RANK(O82,$O$82:$O$87,0)) -> 4 | L82: =IF($AA$34="",Distance!$B$558,VALUE(LEFT($AA$34,3))) -> 9 | M82: =IF(OR(L82=0,L82="",L82=" "),"",IF($I$80="F",HLOOKUP(L82,females,$I$81,FALSE),IF($I$80="M",HLOOKUP(L82,males,$I$81,FALSE),""))) -> Andrew Jones | N82: =IF(OR(L82=0,L82="",ISERROR(VLOOKUP(L82,match_teams,4,FALSE)=TRUE)),"",VLOOKUP(L82,match_teams,4,FALSE)) -> Wake | O82: 14.2 | P82: =IF(OR(O82=0,O82="",$I$85=0,$I$85="",$I$86=0,$I$86="",$I$87=0,$I$87="",$I$88=0,$I$88=""),"",IF(O82>=$I$85,1,IF(O82>=$I$86,2,IF(O82>=$I$87,3,IF(O82>=$I$88,4,""))))) ->  | Q82: =LEFT(S80,1) -> F | R82: 3 | S82: =IF(OR(W82=0,W82="",T(W82)<>""),"",RANK(W82,$W$82:$W$87,0)) -> 2 | T82: =IF($AA$35="",Distance!$B$592," ") -> 9 | U82: =IF(OR(T82=0,T82="",T82=" "),"",IF($Q$80="F",HLOOKUP(T82,females,$Q$81,FALSE),IF($Q$80="M",HLOOKUP(T82,males,$Q$81,FALSE),""))) -> Kieran Thackray | V82: =IF(OR(T82=0,T82="",ISERROR(VLOOKUP(T82,match_teams,4,FALSE)=TRUE)),"",VLOOKUP(T82,match_teams,4,FALSE)) -> Wake | W82: 26.2 | X82: =IF(OR(W82=0,W82="",$Q$85=0,$Q$85="",$Q$86=0,$Q$86="",$Q$87=0,$Q$87="",$Q$88=0,$Q$88=""),"",IF(W82>=$Q$85,1,IF(W82>=$Q$86,2,IF(W82>=$Q$87,3,IF(W82>=$Q$88,4,""))))) ->  | AB82: 2 | AC82: 3 | AD82: 5
A83: =VLOOKUP(C80,eventno,6,FALSE) -> 0 | B83: 5 | C83: 4 | D83: =IF($AA$33="",Distance!$B$530," ") -> 77 | E83: Thomas Harrison | F83: Leeds C | G83: 4.6 | I83: =VLOOKUP(K80,eventno,6,FALSE) -> 0 | J83: 6 | K83: 2 | L83: =IF($AA$34="",Distance!$B$563," ") -> 77 | M83: Harris Hameed | N83: Leeds C | O83: 18.85 | Q83: =VLOOKUP(S80,eventno,6,FALSE) -> 0 | R83: 1 | S83: 3 | T83: =IF($AA$35="",Distance!$B$590,VALUE(LEFT($AA$35,3))) -> 8 | U83: Adam Robinson | V83: York | W83: 23.51 | AB83: 3 | AC83: 5 | AD83: 4
A84: =VLOOKUP(C80,eventno,7,FALSE) -> 6.72 | B84: 1 | C84: 2 | D84: =IF($AA$33="",Distance!$B$526,VALUE(LEFT($AA$33,3))) -> 8 | E84: Chris Searle | F84: York | G84: 4.87 | I84: =VLOOKUP(K80,eventno,7,FALSE) -> 53.93 | J84: 4 | K84: 3 | L84: =IF($AA$34="",Distance!$B$561," ") -> 99 | M84: George Heppinstall | N84: Wake | O84: 16.04 | Q84: =VLOOKUP(S80,eventno,7,FALSE) -> 58.24 | R84: 6 | S84: 1 | T84: =IF($AA$35="",Distance!$B$595," ") -> 99 | U84: Ethan Plumb | V84: Wake | W84: 29.94 | X84: 4 | AB84: 5 | AC84: 4 | AD84: 6
A85: =VLOOKUP(C80,eventno,8,FALSE) -> 5.7 | B85: 3 | C85: 3 | D85: =IF($AA$33="",Distance!$B$528," ") -> 9 | E85: Declan Sheehan | F85: Wake | G85: 4.71 | I85: =VLOOKUP(K80,eventno,8,FALSE) -> 34.5 | J85: 2 | K85: 5 | L85: =IF($AA$34="",Distance!$B$559," ") -> 8 | M85: Luke Nichols | N85: York | O85: 13.26 | Q85: =VLOOKUP(S80,eventno,8,FALSE) -> 40.95 | R85: 2 | S85: 4 | T85: =IF($AA$35="",Distance!$B$591," ") -> 7 | U85: Connor Morley | V85: Leeds C | W85: 20.36 | AB85: 4 | AC85: 2 | AD85: 3
A86: =VLOOKUP(C80,eventno,9,FALSE) -> 5.55 | B86: 2 | C86: 1 | D86: =IF($AA$33="",Distance!$B$527," ") -> 7 | E86: Finlay Fuller | F86: Leeds C | G86: 5.57 | H86: 2 | I86: =VLOOKUP(K80,eventno,9,FALSE) -> 32.15 | J86: 3 | K86: 1 | L86: =IF($AA$34="",Distance!$B$560," ") -> 7 | M86: George Armstrong | N86: Leeds C | O86: 32.55 | P86: 2 | Q86: =VLOOKUP(S80,eventno,9,FALSE) -> 37.1 | R86: 4 | T86: =IF($AA$35="",Distance!$B$593," ") -> 88 | U86: - | V86: York | AB86: 6 | AC86: 6 | AD86: 0
A87: =VLOOKUP(C80,eventno,10,FALSE) -> 5.32 | B87: 4 | C87: 6 | D87: =IF($AA$33="",Distance!$B$529," ") -> 88 | E87: Matthew Richardson | F87: York | G87: 4.39 | I87: =VLOOKUP(K80,eventno,10,FALSE) -> 28.9 | J87: 5 | L87: =IF($AA$34="",Distance!$B$562," ") -> 88 | M87: - | N87: York | Q87: =VLOOKUP(S80,eventno,10,FALSE) -> 32.7 | R87: 5 | S87: 5 | T87: =IF($AA$35="",Distance!$B$594," ") -> 77 | U87: Max Ansell-Wood | V87: Leeds C | W87: 17.91 | AB87: 1 | AC87: 0 | AD87: 2
A88: =VLOOKUP(C80,eventno,11,FALSE) -> 5 | I88: =VLOOKUP(K80,eventno,11,FALSE) -> 25.55 | Q88: =VLOOKUP(S80,eventno,11,FALSE) -> 28.1 | AB88: 0 | AC88: 0 | AD88: 0
A89: =VLOOKUP(C89,eventno,5,FALSE) -> F | C89: F28 | D89: =VLOOKUP(C89,eventno,4,FALSE) -> U15G High Jump | F89: =IF(A92="W","Wind =","") ->  | H89: =IF(OR(G91=0,G91="",$A$93=0,$A$93=""),"",IF($A$91="F",IF(G91>$A$93,"LR",IF(G91=$A$93,"LR=","")))) ->  | I89: =VLOOKUP(K89,eventno,5,FALSE) -> F | K89: F29 | L89: =VLOOKUP(K89,eventno,4,FALSE) -> U17W High Jump | N89: =IF(I92="W","Wind =","") ->  | P89: =IF(OR(O91=0,O91="",$I$93=0,$I$93=""),"",IF($I$91="F",IF(O91>$I$93,"LR",IF(O91=$I$93,"LR=","")))) ->  | Q89: =VLOOKUP(S89,eventno,5,FALSE) -> M | S89: F30 | T89: =VLOOKUP(S89,eventno,4,FALSE) -> U17M Shot | V89: =IF(Q92="W","Wind =","") ->  | X89: =IF(OR(W91=0,W91="",$Q$93=0,$Q$93=""),"",IF($Q$91="F",IF(W91>$Q$93,"LR",IF(W91=$Q$93,"LR=","")))) ->  | AB89: 0 | AC89: 0 | AD89: 0
A90: =IF(A89="M",VLOOKUP(C89,males,15,FALSE),VLOOKUP(C89,females,15,FALSE)) -> 34 | C90: Posn | D90: Bib | E90: Athlete | F90: Club | G90: Perf | H90: Gr | I90: =IF(I89="M",VLOOKUP(K89,males,15,FALSE),VLOOKUP(K89,females,15,FALSE)) -> 33 | K90: Posn | L90: Bib | M90: Athlete | N90: Club | O90: Perf | P90: Gr | Q90: =IF(Q89="M",VLOOKUP(S89,males,15,FALSE),VLOOKUP(S89,females,15,FALSE)) -> 48 | S90: Posn | T90: Bib | U90: Athlete | V90: Club | W90: Perf | X90: Gr
A91: =LEFT(C89,1) -> F | B91: 1 | C91: =IF(OR(G91=0,G91="",T(G91)<>"",G91="NHC"),"",RANK(G91,$G$91:$G$96,0)) -> 2 | D91: =IF($AA$36="",Height!$B$266,VALUE(LEFT($AA$36,3))) -> 7 | E91: =IF(OR(D91=0,D91="",D91=" "),"",IF($A$89="F",HLOOKUP(D91,females,$A$90,FALSE),IF($A$89="M",HLOOKUP(D91,males,$A$90,FALSE),""))) -> Melissa Fletcher | F91: =IF(OR(D91=0,D91="",ISERROR(VLOOKUP(D91,match_teams,4,FALSE)=TRUE)),"",VLOOKUP(D91,match_teams,4,FALSE)) -> Leeds C | G91: 1.4 | H91: =IF(OR(G91=0,G91="",G91="NHC",$A$94=0,$A$94="",$A$95=0,$A$95="",$A$96=0,$A$96="",$A$97=0,$A$97=""),"",IF(G91>=$A$94,1,IF(G91>=$A$95,2,IF(G91>=$A$96,3,IF(G91>=$A$97,4,""))))) -> 4 | I91: =LEFT(K89,1) -> F | J91: 1 | K91: =IF(OR(O91=0,O91="",T(O91)<>"",O91="NHC"),"",RANK(O91,$O$91:$O$96,0)) ->  | L91: =IF($AA$37="",Height!$B$298,VALUE(LEFT($AA$37,3))) -> 8 | M91: =IF(OR(L91=0,L91="",L91=" "),"",IF($I$89="F",HLOOKUP(L91,females,$I$90,FALSE),IF($I$89="M",HLOOKUP(L91,males,$I$90,FALSE),""))) -> Katy Wood | N91: =IF(OR(L91=0,L91="",ISERROR(VLOOKUP(L91,match_teams,4,FALSE)=TRUE)),"",VLOOKUP(L91,match_teams,4,FALSE)) -> York | P91: =IF(OR(O91=0,O91="",O91="NHC",$I$94=0,$I$94="",$I$95=0,$I$95="",$I$96=0,$I$96="",$I$97=0,$I$97=""),"",IF(O91>=$I$94,1,IF(O91>=$I$95,2,IF(O91>=$I$96,3,IF(O91>=$I$97,4,""))))) ->  | Q91: =LEFT(S89,1) -> F | R91: 1 | S91: =IF(OR(W91=0,W91="",T(W91)<>""),"",RANK(W91,$W$91:$W$96,0)) -> 3 | T91: =IF($AA$38="",Distance!$B$622,VALUE(LEFT($AA$38,3))) -> 9 | U91: =IF(OR(T91=0,T91="",T91=" "),"",IF($Q$89="F",HLOOKUP(T91,females,$Q$90,FALSE),IF($Q$89="M",HLOOKUP(T91,males,$Q$90,FALSE),""))) -> Kieran Thackray | V91: =IF(OR(T91=0,T91="",ISERROR(VLOOKUP(T91,match_teams,4,FALSE)=TRUE)),"",VLOOKUP(T91,match_teams,4,FALSE)) -> Wake | W91: 9.23 | X91: =IF(OR(W91=0,W91="",$Q$94=0,$Q$94="",$Q$95=0,$Q$95="",$Q$96=0,$Q$96="",$Q$97=0,$Q$97=""),"",IF(W91>=$Q$94,1,IF(W91>=$Q$95,2,IF(W91>=$Q$96,3,IF(W91>=$Q$97,4,""))))) ->  | AB91: 5 | AC91: 0 | AD91: 4
A92: =VLOOKUP(C89,eventno,6,FALSE) -> 0 | B92: 2 | C92: 1 | D92: =IF($AA$36="",Height!$B$267," ") -> 9 | E92: Abigail Roberts | F92: Wake | G92: 1.43 | H92: 4 | I92: =VLOOKUP(K89,eventno,6,FALSE) -> 0 | J92: 2 | K92: 3 | L92: =IF($AA$37="",Height!$B$299," ") -> 7 | M92: Hannah Ukandu | N92: Leeds C | O92: 1.45 | Q92: =VLOOKUP(S89,eventno,6,FALSE) -> 0 | R92: 2 | T92: =IF($AA$38="",Distance!$B$623," ") -> 8 | U92: - | V92: York | AB92: 6 | AC92: 4 | AD92: 0
A93: =VLOOKUP(C89,eventno,7,FALSE) -> 1.76 | B93: 3 | C93: 4 | D93: =IF($AA$36="",Height!$B$268," ") -> 8 | E93: Anna Richardson | F93: York | G93: 1.25 | I93: =VLOOKUP(K89,eventno,7,FALSE) -> 1.78 | J93: 3 | K93: 2 | L93: =IF($AA$37="",Height!$B$300," ") -> 9 | M93: Dannielle Anderson | N93: Wake | O93: 1.45 | Q93: =VLOOKUP(S89,eventno,7,FALSE) -> 20.35 | R93: 3 | S93: 1 | T93: =IF($AA$38="",Distance!$B$624," ") -> 7 | U93: Dylan Bradley | V93: Leeds C | W93: 10.33 | AB93: 3 | AC93: 5 | AD93: 6
A94: =VLOOKUP(C89,eventno,8,FALSE) -> 1.55 | B94: 4 | D94: =IF($AA$36="",Height!$B$269," ") -> 77 | E94: Sian Gilmartin-Green | F94: Leeds C | I94: =VLOOKUP(K89,eventno,8,FALSE) -> 1.65 | J94: 4 | K94: 4 | L94: =IF($AA$37="",Height!$B$301," ") -> 88 | M94: Polly Morris | N94: York | O94: 1.4 | Q94: =VLOOKUP(S89,eventno,8,FALSE) -> 13.35 | R94: 4 | S94: 2 | T94: =IF($AA$38="",Distance!$B$625," ") -> 99 | U94: Andrew Lorkins | V94: Wake | W94: 9.78 | AB94: 0 | AC94: 3 | AD94: 5
A95: =VLOOKUP(C89,eventno,9,FALSE) -> 1.5 | B95: 5 | D95: =IF($AA$36="",Height!$B$270," ") -> 99 | E95: - | F95: Wake | I95: =VLOOKUP(K89,eventno,9,FALSE) -> 1.61 | J95: 5 | L95: =IF($AA$37="",Height!$B$302," ") -> 77 | M95: - | N95: Leeds C | Q95: =VLOOKUP(S89,eventno,9,FALSE) -> 12.65 | R95: 5 | T95: =IF($AA$38="",Distance!$B$626," ") -> 88 | U95: - | V95: York | AB95: 0 | AC95: 0 | AD95: 0
A96: =VLOOKUP(C89,eventno,10,FALSE) -> 1.45 | B96: 6 | C96: 3 | D96: =IF($AA$36="",Height!$B$271," ") -> 88 | E96: Jade Kerrison | F96: York | G96: 1.3 | I96: =VLOOKUP(K89,eventno,10,FALSE) -> 1.55 | J96: 6 | K96: 1 | L96: =IF($AA$37="",Height!$B$303," ") -> 99 | M96: Bethany Porter | N96: Wake | O96: 1.45 | Q96: =VLOOKUP(S89,eventno,10,FALSE) -> 11.85 | R96: 6 | AB96: 4 | AC96: 6 | AD96: 0
A97: =VLOOKUP(C89,eventno,11,FALSE) -> 1.4 | I97: =VLOOKUP(K89,eventno,11,FALSE) -> 1.48 | Q97: =VLOOKUP(S89,eventno,11,FALSE) -> 10.7 | AB97: 0 | AC97: 0 | AD97: 0
A98: =VLOOKUP(C98,eventno,5,FALSE) -> M | C98: F31 | D98: =VLOOKUP(C98,eventno,4,FALSE) -> U17M Triple Jump | F98: =IF(A101="W","Wind =","") ->  | H98: =IF(OR(G100=0,G100="",$A$102=0,$A$102=""),"",IF($A$100="F",IF(G100>$A$102,"LR",IF(G100=$A$102,"LR=","")))) ->  | I98: =VLOOKUP(K98,eventno,5,FALSE) -> F | K98: F32 | L98: =VLOOKUP(K98,eventno,4,FALSE) -> U17W Triple Jump | N98: =IF(I101="W","Wind =","") ->  | P98: =IF(OR(O100=0,O100="",$I$102=0,$I$102=""),"",IF($I$100="F",IF(O100>$I$102,"LR",IF(O100=$I$102,"LR=","")))) ->  | Q98: =VLOOKUP(S98,eventno,5,FALSE) -> F | S98: F33 | T98: =VLOOKUP(S98,eventno,4,FALSE) -> U15G Javelin | V98: =IF(Q101="W","Wind =","") ->  | X98: =IF(OR(W100=0,W100="",$Q$102=0,$Q$102=""),"",IF($Q$100="F",IF(W100>$Q$102,"LR",IF(W100=$Q$102,"LR=","")))) ->  | AB98: 0 | AC98: 0 | AD98: 0
A99: =IF(A98="M",VLOOKUP(C98,males,15,FALSE),VLOOKUP(C98,females,15,FALSE)) -> 49 | C99: Posn | D99: Bib | E99: Athlete | F99: Club | G99: Perf | H99: Gr | I99: =IF(I98="M",VLOOKUP(K98,males,15,FALSE),VLOOKUP(K98,females,15,FALSE)) -> 49 | K99: Posn | L99: Bib | M99: Athlete | N99: Club | O99: Perf | P99: Gr | Q99: =IF(Q98="M",VLOOKUP(S98,males,15,FALSE),VLOOKUP(S98,females,15,FALSE)) -> 38 | S99: Posn | T99: Bib | U99: Athlete | V99: Club | W99: Perf | X99: Gr
A100: =LEFT(C98,1) -> F | B100: 1 | C100: =IF(OR(G100=0,G100="",T(G100)<>""),"",RANK(G100,$G$100:$G$105,0)) -> 2 | D100: =IF($AA$39="",Distance!$B$654,VALUE(LEFT($AA$39,3))) -> 8 | E100: =IF(OR(D100=0,D100="",D100=" "),"",IF($A$98="F",HLOOKUP(D100,females,$A$99,FALSE),IF($A$98="M",HLOOKUP(D100,males,$A$99,FALSE),""))) -> James Stanton | F100: =IF(OR(D100=0,D100="",ISERROR(VLOOKUP(D100,match_teams,4,FALSE)=TRUE)),"",VLOOKUP(D100,match_teams,4,FALSE)) -> York | G100: 10.63 | H100: =IF(OR(G100=0,G100="",$A$103=0,$A$103="",$A$104=0,$A$104="",$A$105=0,$A$105="",$A$106=0,$A$106=""),"",IF(G100>=$A$103,1,IF(G100>=$A$104,2,IF(G100>=$A$105,3,IF(G100>=$A$106,4,""))))) ->  | I100: =LEFT(K98,1) -> F | J100: 1 | K100: =IF(OR(O100=0,O100="",T(O100)<>""),"",RANK(O100,$O$100:$O$105,0)) -> 1 | L100: =IF($AA$40="",Distance!$B$686,VALUE(LEFT($AA$40,3))) -> 9 | M100: =IF(OR(L100=0,L100="",L100=" "),"",IF($I$98="F",HLOOKUP(L100,females,$I$99,FALSE),IF($I$98="M",HLOOKUP(L100,males,$I$99,FALSE),""))) -> Dannielle Anderson | N100: =IF(OR(L100=0,L100="",ISERROR(VLOOKUP(L100,match_teams,4,FALSE)=TRUE)),"",VLOOKUP(L100,match_teams,4,FALSE)) -> Wake | O100: 9.93 | P100: =IF(OR(O100=0,O100="",$I$103=0,$I$103="",$I$104=0,$I$104="",$I$105=0,$I$105="",$I$106=0,$I$106=""),"",IF(O100>=$I$103,1,IF(O100>=$I$104,2,IF(O100>=$I$105,3,IF(O100>=$I$106,4,""))))) -> 4 | Q100: =LEFT(S98,1) -> F | R100: 1 | S100: =IF(OR(W100=0,W100="",T(W100)<>""),"",RANK(W100,$W$100:$W$105,0)) -> 1 | T100: =IF($AA$41="",Distance!$B$718,VALUE(LEFT($AA$41,3))) -> 9 | U100: =IF(OR(T100=0,T100="",T100=" "),"",IF($Q$98="F",HLOOKUP(T100,females,$Q$99,FALSE),IF($Q$98="M",HLOOKUP(T100,males,$Q$99,FALSE),""))) -> Abigail Roberts | V100: =IF(OR(T100=0,T100="",ISERROR(VLOOKUP(T100,match_teams,4,FALSE)=TRUE)),"",VLOOKUP(T100,match_teams,4,FALSE)) -> Wake | W100: 21.42 | X100: =IF(OR(W100=0,W100="",$Q$103=0,$Q$103="",$Q$104=0,$Q$104="",$Q$105=0,$Q$105="",$Q$106=0,$Q$106=""),"",IF(W100>=$Q$103,1,IF(W100>=$Q$104,2,IF(W100>=$Q$105,3,IF(W100>=$Q$106,4,""))))) -> 4 | AB100: 5 | AC100: 6 | AD100: 6
A101: =VLOOKUP(C98,eventno,6,FALSE) -> 0 | B101: 2 | C101: 1 | D101: =IF($AA$39="",Distance!$B$655," ") -> 7 | E101: Max Ansell-Wood | F101: Leeds C | G101: 11.04 | I101: =VLOOKUP(K98,eventno,6,FALSE) -> 0 | J101: 2 | K101: 3 | L101: =IF($AA$40="",Distance!$B$687," ") -> 7 | M101: Katie Ward | N101: Leeds C | O101: 9.08 | Q101: =VLOOKUP(S98,eventno,6,FALSE) -> 0 | R101: 2 | S101: 3 | T101: =IF($AA$41="",Distance!$B$719," ") -> 7 | U101: Nicola Sawyer | V101: Leeds C | W101: 19.56 | AB101: 6 | AC101: 4 | AD101: 4
A102: =VLOOKUP(C98,eventno,7,FALSE) -> 15.58 | B102: 3 | C102: 3 | D102: =IF($AA$39="",Distance!$B$656," ") -> 9 | E102: George Brown | F102: Wake | G102: 10.5 | I102: =VLOOKUP(K98,eventno,7,FALSE) -> 11.84 | J102: 3 | K102: 4 | L102: =IF($AA$40="",Distance!$B$688," ") -> 8 | M102: Olivia Swain | N102: York | O102: 8.53 | Q102: =VLOOKUP(S98,eventno,7,FALSE) -> 42.31 | R102: 3 | S102: 2 | T102: =IF($AA$41="",Distance!$B$720," ") -> 8 | U102: Georgie Fenny | V102: York | W102: 20.05 | AB102: 4 | AC102: 3 | AD102: 5
A103: =VLOOKUP(C98,eventno,8,FALSE) -> 0 | B103: 4 | D103: =IF($AA$39="",Distance!$B$657," ") -> 88 | E103: - | F103: York | I103: =VLOOKUP(K98,eventno,8,FALSE) -> 10.9 | J103: 4 | K103: 2 | L103: =IF($AA$40="",Distance!$B$689," ") -> 99 | M103: Leanne Barraclough | N103: Wake | O103: 9.14 | Q103: =VLOOKUP(S98,eventno,8,FALSE) -> 28.8 | R103: 4 | S103: 6 | T103: =IF($AA$41="",Distance!$B$721," ") -> 99 | U103: Alyce McCurdie | V103: Wake | W103: 5.18 | AB103: 0 | AC103: 5 | AD103: 1
A104: =VLOOKUP(C98,eventno,9,FALSE) -> 0 | B104: 5 | D104: =IF($AA$39="",Distance!$B$658," ") -> 77 | E104: - | F104: Leeds C | I104: =VLOOKUP(K98,eventno,9,FALSE) -> 10.6 | J104: 5 | L104: =IF($AA$40="",Distance!$B$690," ") -> 77 | M104: - | N104: Leeds C | Q104: =VLOOKUP(S98,eventno,9,FALSE) -> 26.35 | R104: 5 | S104: 4 | T104: =IF($AA$41="",Distance!$B$722," ") -> 77 | U104: Gemma Keir | V104: Leeds C | W104: 16.21 | AB104: =IF(OR(C104=0,C104="",D104=0,D104="",G104=0,G104="",LEFT(G104,1)="D"),0,VLOOKUP(C104,points,2,FALSE)) -> 0 | AC104: =IF(OR(K104=0,K104="",L104=0,L104="",O104=0,O104="",LEFT(O104,1)="D"),0,VLOOKUP(K104,points,2,FALSE)) -> 0 | AD104: 3
A105: =VLOOKUP(C98,eventno,10,FALSE) -> 0 | B105: 6 | D105: =IF($AA$39="",Distance!$B$659," ") -> 99 | E105: - | F105: Wake | I105: =VLOOKUP(K98,eventno,10,FALSE) -> 10.1 | J105: 6 | L105: =IF($AA$40="",Distance!$B$691," ") -> 88 | M105: - | N105: York | Q105: =VLOOKUP(S98,eventno,10,FALSE) -> 23.85 | R105: 6 | S105: 5 | T105: =IF($AA$41="",Distance!$B$723," ") -> 88 | U105: Jenny Harrison | V105: York | W105: 6.91 | AB105: 0 | AC105: 0 | AD105: 2
A106: =VLOOKUP(C98,eventno,11,FALSE) -> 0 | I106: =VLOOKUP(K98,eventno,11,FALSE) -> 9.4 | Q106: =VLOOKUP(S98,eventno,11,FALSE) -> 20.4 | AB106: 0 | AC106: 0 | AD106: 0
A107: =VLOOKUP(C107,eventno,5,FALSE) -> F | C107: F34 | D107: =VLOOKUP(C107,eventno,4,FALSE) -> U17W Javelin | F107: =IF(A110="W","Wind =","") ->  | H107: =IF(OR(G109=0,G109="",$A$111=0,$A$111=""),"",IF($A$109="F",IF(G109>$A$111,"LR",IF(G109=$A$111,"LR=","")))) ->  | I107: =VLOOKUP(K107,eventno,5,FALSE) -> F | K107: F35 | L107: =VLOOKUP(K107,eventno,4,FALSE) -> U13G Shot | N107: =IF(I110="W","Wind =","") ->  | P107: =IF(OR(O109=0,O109="",$I$111=0,$I$111=""),"",IF($I$109="F",IF(O109>$I$111,"LR",IF(O109=$I$111,"LR=","")))) ->  | S107: FIELD OFFICIALS | AB107: 0 | AC107: 0 | AD107: 0
A108: =IF(A107="M",VLOOKUP(C107,males,15,FALSE),VLOOKUP(C107,females,15,FALSE)) -> 39 | C108: Posn | D108: Bib | E108: Athlete | F108: Club | G108: Perf | H108: Gr | I108: =IF(I107="M",VLOOKUP(K107,males,15,FALSE),VLOOKUP(K107,females,15,FALSE)) -> 44 | K108: Posn | L108: Bib | M108: Athlete | N108: Club | O108: Perf | P108: Gr | T108: Bib | V108: Club | W108: Number | AD108: 0
A109: =LEFT(C107,1) -> F | B109: 1 | C109: =IF(OR(G109=0,G109="",T(G109)<>""),"",RANK(G109,$G$109:$G$114,0)) -> 1 | D109: =IF($AA$42="",Distance!$B$750,VALUE(LEFT($AA$42,3))) -> 8 | E109: =IF(OR(D109=0,D109="",D109=" "),"",IF($A$107="F",HLOOKUP(D109,females,$A$108,FALSE),IF($A$107="M",HLOOKUP(D109,males,$A$108,FALSE),""))) -> Becky Tunnicliffe | F109: =IF(OR(D109=0,D109="",ISERROR(VLOOKUP(D109,match_teams,4,FALSE)=TRUE)),"",VLOOKUP(D109,match_teams,4,FALSE)) -> York | G109: 31.57 | H109: =IF(OR(G109=0,G109="",$A$112=0,$A$112="",$A$113=0,$A$113="",$A$114=0,$A$114="",$A$115=0,$A$115=""),"",IF(G109>=$A$112,1,IF(G109>=$A$113,2,IF(G109>=$A$114,3,IF(G109>=$A$115,4,""))))) -> 3 | I109: =LEFT(K107,1) -> F | J109: 1 | K109: =IF(OR(O109=0,O109="",T(O109)<>""),"",RANK(O109,$O$109:$O$114,0)) -> 2 | L109: =IF($AA$43="",Distance!$B$782,VALUE(LEFT($AA$43,3))) -> 9 | M109: =IF(OR(L109=0,L109="",L109=" "),"",IF($I$107="F",HLOOKUP(L109,females,$I$108,FALSE),IF($I$107="M",HLOOKUP(L109,males,$I$108,FALSE),""))) -> Jessica Matthews | N109: =IF(OR(L109=0,L109="",ISERROR(VLOOKUP(L109,match_teams,4,FALSE)=TRUE)),"",VLOOKUP(L109,match_teams,4,FALSE)) -> Wake | O109: 5.47 | P109: =IF(OR(O109=0,O109="",$I$112=0,$I$112="",$I$113=0,$I$113="",$I$114=0,$I$114="",$I$115=0,$I$115=""),"",IF(O109>=$I$112,1,IF(O109>=$I$113,2,IF(O109>=$I$114,3,IF(O109>=$I$115,4,""))))) ->  | T109: =AI3 -> 9 | V109: =IF(OR(T109=0,T109="",ISERROR(VLOOKUP(T109,match_teams,4,FALSE)=TRUE)),"",VLOOKUP(T109,match_teams,4,FALSE)) -> Wake | W109: 4 | AB109: 6 | AC109: 5 | AD109: =IF(OR(T109=0,T109="",W109=0,W109="",LEFT(W109,1)="D"),0,W109*10) -> 40
A110: =VLOOKUP(C107,eventno,6,FALSE) -> 0 | B110: 2 | C110: 3 | D110: =IF($AA$42="",Distance!$B$751," ") -> 7 | E110: Amena Abdelaziz | F110: Leeds C | G110: 14.09 | I110: =VLOOKUP(K107,eventno,6,FALSE) -> 0 | J110: 2 | K110: 1 | L110: =IF($AA$43="",Distance!$B$783," ") -> 8 | M110: Rachel White | N110: York | O110: 6.03 | T110: =AI4 -> 8 | V110: =IF(OR(T110=0,T110="",ISERROR(VLOOKUP(T110,match_teams,4,FALSE)=TRUE)),"",VLOOKUP(T110,match_teams,4,FALSE)) -> York | W110: 4 | AB110: 4 | AC110: 6 | AD110: =IF(OR(T110=0,T110="",W110=0,W110="",LEFT(W110,1)="D"),0,W110*10) -> 40
A111: =VLOOKUP(C107,eventno,7,FALSE) -> 44.36 | B111: 3 | C111: 2 | D111: =IF($AA$42="",Distance!$B$752," ") -> 9 | E111: Bethany Porter | F111: Wake | G111: 26.51 | H111: 4 | I111: =VLOOKUP(K107,eventno,7,FALSE) -> 12.31 | J111: 3 | K111: 4 | L111: =IF($AA$43="",Distance!$B$784," ") -> 7 | M111: Lois Fish | N111: Leeds C | O111: 4.58 | T111: =AI5 -> 7 | V111: =IF(OR(T111=0,T111="",ISERROR(VLOOKUP(T111,match_teams,4,FALSE)=TRUE)),"",VLOOKUP(T111,match_teams,4,FALSE)) -> Leeds C | W111: 4 | AB111: 5 | AC111: 3 | AD111: =IF(OR(T111=0,T111="",W111=0,W111="",LEFT(W111,1)="D"),0,W111*10) -> 40
A112: =VLOOKUP(C107,eventno,8,FALSE) -> 38.3 | B112: 4 | C112: 5 | D112: =IF($AA$42="",Distance!$B$753," ") -> 88 | E112: Katy Wood | F112: York | G112: 8.73 | I112: =VLOOKUP(K107,eventno,8,FALSE) -> 8.35 | J112: 4 | K112: 5 | L112: =IF($AA$43="",Distance!$B$785," ") -> 99 | M112: Abigail Cove-Mullins | N112: Wake | O112: 3.83 | AB112: 2 | AC112: 2 | AD112: =IF(OR(S112=0,S112="",T112=0,T112="",W112=0,W112="",LEFT(W112,1)="D"),0,VLOOKUP(S112,points,2,FALSE)) -> 0
A113: =VLOOKUP(C107,eventno,9,FALSE) -> 34 | B113: 5 | C113: 6 | D113: =IF($AA$42="",Distance!$B$754," ") -> 77 | E113: Katie Ward | F113: Leeds C | G113: 5.15 | I113: =VLOOKUP(K107,eventno,9,FALSE) -> 7.85 | J113: 5 | K113: 3 | L113: =IF($AA$43="",Distance!$B$786," ") -> 88 | M113: Felicity Edwards | N113: York | O113: 4.71 | AB113: 1 | AC113: 4 | AD113: =IF(OR(S113=0,S113="",T113=0,T113="",W113=0,W113="",LEFT(W113,1)="D"),0,VLOOKUP(S113,points,2,FALSE)) -> 0
A114: =VLOOKUP(C107,eventno,10,FALSE) -> 29.6 | B114: 6 | C114: 4 | D114: =IF($AA$42="",Distance!$B$755," ") -> 99 | E114: Bethany Sharp | F114: Wake | G114: 8.82 | I114: =VLOOKUP(K107,eventno,10,FALSE) -> 7.35 | J114: 6 | K114: 6 | L114: =IF($AA$43="",Distance!$B$787," ") -> 77 | M114: Millie Bradbury | N114: Leeds C | O114: 3.75 | AB114: 3 | AC114: 1 | AD114: =IF(OR(S114=0,S114="",T114=0,T114="",W114=0,W114="",LEFT(W114,1)="D"),0,VLOOKUP(S114,points,2,FALSE)) -> 0
A115: =VLOOKUP(C107,eventno,11,FALSE) -> 24.9 | I115: =VLOOKUP(K107,eventno,11,FALSE) -> 6.55 | AB115: 0 | AC115: 0 | AD115: =IF(OR(S115=0,S115="",T115=0,T115="",W115=0,W115="",LEFT(W115,1)="D"),0,VLOOKUP(S115,points,2,FALSE)) -> 0

Sheet Relay (Match 1)
B1: =CONCATENATE(MatchDay!C3,", ",MatchDay!C7) -> Northern Premier East, Thornes Park Stadium, Wakefield | G1: =MatchDay!C5 -> Sunday 8th May 2011 | K1: Points | M1: =MatchDay!E11 -> Wake | N1: =MatchDay!E13 -> York | O1: =MatchDay!E15 -> Leeds C | P1: Scored | Q1: Validations
K2: Col 1 | M2: =SUMIF($H$10:$H$208,M$1,$K$10:$K$208) -> 50 | N2: =SUMIF($H$10:$H$208,N$1,$K$10:$K$208) -> 25 | O2: =SUMIF($H$10:$H$208,O$1,$K$10:$K$208) -> 48 | P2: =COUNTIF($K$11:$K$208,"6") -> 9 | R2: Track (Match 2)
B3: Club | E3: Match Points | F3: Posn (League Points) | G3: Match Statistics | I3: Events | Q3: =MatchDay!B11 -> 9
B4: =MatchDay!C11 -> Wakefield | E4: ='Track (Match 1)'!E4 -> 678 | F4: =CONCATENATE('Track (Match 1)'!F4, " (",'Track (Match 1)'!G4,")") -> 1 (3) | G4: ='Track (Match 1)'!K4 -> New League Records | H4: ='Track (Match 1)'!L4 -> 0 | I4: ='Track (Match 1)'!S4 -> Scored | J4: ='Track (Match 1)'!T4 -> 82 | P4: Cancelled | Q4: =MatchDay!B13 -> 8 | R4: Field (Match 2)
B5: =MatchDay!C13 -> City of York | E5: ='Track (Match 1)'!E5 -> 402 | F5: =CONCATENATE('Track (Match 1)'!F5, " (",'Track (Match 1)'!G5,")") -> 3 (1) | G5: ='Track (Match 1)'!K5 -> = League Records | H5: ='Track (Match 1)'!L5 -> 0 | I5: Not Held | J5: ='Track (Match 1)'!T5 -> 0 | P5: =COUNTIF($C$11:$C$208,"101")+COUNTIF($C$11:$C$208,"102")+COUNTIF($C$11:$C$208,"103") -> 0 | Q5: =MatchDay!B15 -> 7
B6: =MatchDay!C15 -> Leeds City | E6: ='Track (Match 1)'!E6 -> 560 | F6: =CONCATENATE('Track (Match 1)'!F6, " (",'Track (Match 1)'!G6,")") -> 2 (2) | G6: ='Track (Match 1)'!K6 -> Grade 1 | H6: ='Track (Match 1)'!L6 -> 5 | I6: Not Scored | J6: ='Track (Match 1)'!T6 -> 0 | Q6: =CONCATENATE(Q3,Q3) -> 99 | R6: Relay Match 2
G7: Grade 2 | H7: ='Track (Match 1)'!N4 -> 13 | Q7: =CONCATENATE(Q4,Q4) -> 88
B8: Boys | D8: ='Track (Match 1)'!Q4 -> 82 | G8: Grade 3 | H8: ='Track (Match 1)'!N5 -> 22 | Q8: =CONCATENATE(Q5,Q5) -> 77
B9: Girls | D9: ='Track (Match 1)'!Q5 -> 81 | G9: Grade 4 | H9: ='Track (Match 1)'!N6 -> 37 | Q9: 101
Q10: 102
A11: =VLOOKUP(B11,eventno,5,FALSE) -> F | B11: T38 | C11: =VLOOKUP(B11,eventno,4,FALSE) -> U17W 4 x 100m Relay | H11: =IF(A14="W","Wind =","") ->  | J11: =IF(OR(I13=0,I13="",A15=0,A15=""),"",IF(A13="T",IF(I13<A15,"LR",IF(I13=A15,"LR=","")))) ->  | K11: =IF(OR(B11=0,B11="",C11=0,C11="",I11=0,I11="",LEFT(I11,1)="D"),0,VLOOKUP(B11,points,2,FALSE)) -> 0 | Q11: 103
A12: =IF(A11="M",VLOOKUP(B11,males,15,FALSE),VLOOKUP(B11,females,15,FALSE)) -> 21 | B12: Posn | C12: Bib | D12: Leg 1 | E12: Leg 2 | F12: Leg 3 | G12: Leg 4 | H12: Club | I12: Perf | Q12: 104
A13: =LEFT(B11,1) -> T | B13: 1 | C13: 9 | D13: =IF(OR(C13=0,C13=""),"",IF(A11="F",HLOOKUP(C13,females,A12,FALSE),IF(A11="M",HLOOKUP(C13,males,A12,FALSE),""))) -> Bethany Porter | E13: =IF(OR(C13=0,C13="",D13="Event Cancelled",D13="No Competitors Declared"),"",IF(A11="F",HLOOKUP(S13,females,A12,FALSE),IF(A11="M",HLOOKUP(S13,males,A12,FALSE),""))) -> Zoe Kerins | F13: =IF(OR(C13=0,C13="",D13="Event Cancelled",D13="No Competitors Declared"),"",IF(A11="F",HLOOKUP(C13,females,A12+1,FALSE),IF(A11="M",HLOOKUP(C13,males,A12+1,FALSE),""))) -> Bethany Sharp | G13: =IF(OR(C13=0,C13="",D13="Event Cancelled",D13="No Competitors Declared"),"",IF(A11="F",HLOOKUP(S13,females,A12+1,FALSE),IF(A11="M",HLOOKUP(S13,males,A12+1,FALSE),""))) -> Grace Eyles | H13: =IF(OR(C13=0,C13="",ISERROR(VLOOKUP(C13,match_teams,4,FALSE)=TRUE)),"",VLOOKUP(C13,match_teams,4,FALSE)) -> Wake | I13: 50.94 | K13: 6 | S13: =IF(T(C13)="",C13*11,CONCATENATE(C13,C13)) -> 99
A14: =VLOOKUP(B11,eventno,6,FALSE) -> 0 | B14: 2 | C14: 7 | D14: =IF(OR(C14=0,C14=""),"",IF(A11="F",HLOOKUP(C14,females,A12,FALSE),IF(A11="M",HLOOKUP(C14,males,A12,FALSE),""))) -> Melody Peterson | E14: =IF(OR(C14=0,C14=""),"",IF(A11="F",HLOOKUP(S14,females,A12,FALSE),IF(A11="M",HLOOKUP(S14,males,A12,FALSE),""))) -> Hannah Ukandu | F14: =IF(OR(C14=0,C14=""),"",IF(A11="F",HLOOKUP(C14,females,A12+1,FALSE),IF(A11="M",HLOOKUP(C14,males,A12+1,FALSE),""))) -> India Wilson | G14: =IF(OR(C14=0,C14=""),"",IF(A11="F",HLOOKUP(S14,females,A12+1,FALSE),IF(A11="M",HLOOKUP(S14,males,A12+1,FALSE),""))) -> Amena Abdelaziz | H14: =IF(OR(C14=0,C14="",ISERROR(VLOOKUP(C14,match_teams,4,FALSE)=TRUE)),"",VLOOKUP(C14,match_teams,4,FALSE)) -> Leeds C | I14: 53.85 | K14: 5 | S14: =IF(T(C14)="",C14*11,CONCATENATE(C14,C14)) -> 77
A15: =VLOOKUP(B11,eventno,7,FALSE) -> 47.97 | B15: 3 | C15: 8 | D15: =IF(OR(C15=0,C15=""),"",IF(A11="F",HLOOKUP(C15,females,A12,FALSE),IF(A11="M",HLOOKUP(C15,males,A12,FALSE),""))) -> Megan Savage | E15: =IF(OR(C15=0,C15=""),"",IF(A11="F",HLOOKUP(S15,females,A12,FALSE),IF(A11="M",HLOOKUP(S15,males,A12,FALSE),""))) -> Emily Haigh | F15: =IF(OR(C15=0,C15=""),"",IF(A11="F",HLOOKUP(C15,females,A12+1,FALSE),IF(A11="M",HLOOKUP(C15,males,A12+1,FALSE),""))) -> Polly Morris | G15: =IF(OR(C15=0,C15=""),"",IF(A11="F",HLOOKUP(S15,females,A12+1,FALSE),IF(A11="M",HLOOKUP(S15,males,A12+1,FALSE),""))) -> Olivia Swain | H15: =IF(OR(C15=0,C15="",ISERROR(VLOOKUP(C15,match_teams,4,FALSE)=TRUE)),"",VLOOKUP(C15,match_teams,4,FALSE)) -> York | I15: 55.43 | K15: 4 | S15: =IF(T(C15)="",C15*11,CONCATENATE(C15,C15)) -> 88
K16: 0
A17: =VLOOKUP(B17,eventno,5,FALSE) -> M | B17: T39 | C17: =VLOOKUP(B17,eventno,4,FALSE) -> U17M 4 x 100m Relay | H17: =IF(A20="W","Wind =","") ->  | J17: =IF(OR(I19=0,I19="",A21=0,A21=""),"",IF(A19="T",IF(I19<A21,"LR",IF(I19=A21,"LR=","")))) ->  | K17: 0
A18: =IF(A17="M",VLOOKUP(B17,males,15,FALSE),VLOOKUP(B17,females,15,FALSE)) -> 21 | B18: Posn | C18: Bib | D18: Leg 1 | E18: Leg 2 | F18: Leg 3 | G18: Leg 4 | H18: Club | I18: Perf
A19: =LEFT(B17,1) -> T | B19: 1 | C19: 9 | D19: =IF(OR(C19=0,C19=""),"",IF(A17="F",HLOOKUP(C19,females,A18,FALSE),IF(A17="M",HLOOKUP(C19,males,A18,FALSE),""))) -> Andrew Lorkins | E19: =IF(OR(C19=0,C19="",D19="Event Cancelled",D19="No Competitors Declared"),"",IF(A17="F",HLOOKUP(S19,females,A18,FALSE),IF(A17="M",HLOOKUP(S19,males,A18,FALSE),""))) -> George Brown | F19: =IF(OR(C19=0,C19="",D19="Event Cancelled",D19="No Competitors Declared"),"",IF(A17="F",HLOOKUP(C19,females,A18+1,FALSE),IF(A17="M",HLOOKUP(C19,males,A18+1,FALSE),""))) -> James McBorrough | G19: =IF(OR(C19=0,C19="",D19="Event Cancelled",D19="No Competitors Declared"),"",IF(A17="F",HLOOKUP(S19,females,A18+1,FALSE),IF(A17="M",HLOOKUP(S19,males,A18+1,FALSE),""))) -> Oliver Edmunds | H19: =IF(OR(C19=0,C19="",ISERROR(VLOOKUP(C19,match_teams,4,FALSE)=TRUE)),"",VLOOKUP(C19,match_teams,4,FALSE)) -> Wake | I19: 47.34 | K19: 6 | S19: =IF(T(C19)="",C19*11,CONCATENATE(C19,C19)) -> 99
A20: =VLOOKUP(B17,eventno,6,FALSE) -> 0 | B20: 2 | C20: 7 | D20: =IF(OR(C20=0,C20=""),"",IF(A17="F",HLOOKUP(C20,females,A18,FALSE),IF(A17="M",HLOOKUP(C20,males,A18,FALSE),""))) -> Aqib Javed | E20: =IF(OR(C20=0,C20=""),"",IF(A17="F",HLOOKUP(S20,females,A18,FALSE),IF(A17="M",HLOOKUP(S20,males,A18,FALSE),""))) -> Connor Morley | F20: =IF(OR(C20=0,C20=""),"",IF(A17="F",HLOOKUP(C20,females,A18+1,FALSE),IF(A17="M",HLOOKUP(C20,males,A18+1,FALSE),""))) -> Lamar Lewis | G20: =IF(OR(C20=0,C20=""),"",IF(A17="F",HLOOKUP(S20,females,A18+1,FALSE),IF(A17="M",HLOOKUP(S20,males,A18+1,FALSE),""))) -> Elliott Hurley | H20: =IF(OR(C20=0,C20="",ISERROR(VLOOKUP(C20,match_teams,4,FALSE)=TRUE)),"",VLOOKUP(C20,match_teams,4,FALSE)) -> Leeds C | I20: 47.6 | K20: 5 | S20: =IF(T(C20)="",C20*11,CONCATENATE(C20,C20)) -> 77
A21: =VLOOKUP(B17,eventno,7,FALSE) -> 41.92 | B21: 3 | C21: 8 | D21: =IF(OR(C21=0,C21=""),"",IF(A17="F",HLOOKUP(C21,females,A18,FALSE),IF(A17="M",HLOOKUP(C21,males,A18,FALSE),""))) -> Adam Robinson | E21: =IF(OR(C21=0,C21=""),"",IF(A17="F",HLOOKUP(S21,females,A18,FALSE),IF(A17="M",HLOOKUP(S21,males,A18,FALSE),""))) -> Peirre Weller | F21: =IF(OR(C21=0,C21=""),"",IF(A17="F",HLOOKUP(C21,females,A18+1,FALSE),IF(A17="M",HLOOKUP(C21,males,A18+1,FALSE),""))) -> James Stanton | G21: =IF(OR(C21=0,C21=""),"",IF(A17="F",HLOOKUP(S21,females,A18+1,FALSE),IF(A17="M",HLOOKUP(S21,males,A18+1,FALSE),""))) -> Ash Hart | H21: =IF(OR(C21=0,C21="",ISERROR(VLOOKUP(C21,match_teams,4,FALSE)=TRUE)),"",VLOOKUP(C21,match_teams,4,FALSE)) -> York | I21: 49.96 | K21: 4 | S21: =IF(T(C21)="",C21*11,CONCATENATE(C21,C21)) -> 88
K22: 0
A23: =VLOOKUP(B23,eventno,5,FALSE) -> F | B23: T40 | C23: =VLOOKUP(B23,eventno,4,FALSE) -> U15G 4 x 100m Relay | H23: =IF(A26="W","Wind =","") ->  | J23: =IF(OR(I25=0,I25="",A27=0,A27=""),"",IF(A25="T",IF(I25<A27,"LR",IF(I25=A27,"LR=","")))) ->  | K23: 0
A24: =IF(A23="M",VLOOKUP(B23,males,15,FALSE),VLOOKUP(B23,females,15,FALSE)) -> 23 | B24: Posn | C24: Bib | D24: Leg 1 | E24: Leg 2 | F24: Leg 3 | G24: Leg 4 | H24: Club | I24: Perf
A25: =LEFT(B23,1) -> T | B25: 1 | C25: 9 | D25: =IF(OR(C25=0,C25=""),"",IF(A23="F",HLOOKUP(C25,females,A24,FALSE),IF(A23="M",HLOOKUP(C25,males,A24,FALSE),""))) -> Sophie Woollin | E25: =IF(OR(C25=0,C25="",D25="Event Cancelled",D25="No Competitors Declared"),"",IF(A23="F",HLOOKUP(S25,females,A24,FALSE),IF(A23="M",HLOOKUP(S25,males,A24,FALSE),""))) -> Jessica Fisher | F25: =IF(OR(C25=0,C25="",D25="Event Cancelled",D25="No Competitors Declared"),"",IF(A23="F",HLOOKUP(C25,females,A24+1,FALSE),IF(A23="M",HLOOKUP(C25,males,A24+1,FALSE),""))) -> Jessica Eyles | G25: =IF(OR(C25=0,C25="",D25="Event Cancelled",D25="No Competitors Declared"),"",IF(A23="F",HLOOKUP(S25,females,A24+1,FALSE),IF(A23="M",HLOOKUP(S25,males,A24+1,FALSE),""))) -> Holly Marshall | H25: =IF(OR(C25=0,C25="",ISERROR(VLOOKUP(C25,match_teams,4,FALSE)=TRUE)),"",VLOOKUP(C25,match_teams,4,FALSE)) -> Wake | I25: 53.42 | K25: 6 | S25: =IF(T(C25)="",C25*11,CONCATENATE(C25,C25)) -> 99
A26: =VLOOKUP(B23,eventno,6,FALSE) -> 0 | B26: 2 | C26: 7 | D26: =IF(OR(C26=0,C26=""),"",IF(A23="F",HLOOKUP(C26,females,A24,FALSE),IF(A23="M",HLOOKUP(C26,males,A24,FALSE),""))) -> Melissa Fletcher | E26: =IF(OR(C26=0,C26=""),"",IF(A23="F",HLOOKUP(S26,females,A24,FALSE),IF(A23="M",HLOOKUP(S26,males,A24,FALSE),""))) -> Molly Yearby | F26: =IF(OR(C26=0,C26=""),"",IF(A23="F",HLOOKUP(C26,females,A24+1,FALSE),IF(A23="M",HLOOKUP(C26,males,A24+1,FALSE),""))) -> Sian Gilmartin-Green | G26: =IF(OR(C26=0,C26=""),"",IF(A23="F",HLOOKUP(S26,females,A24+1,FALSE),IF(A23="M",HLOOKUP(S26,males,A24+1,FALSE),""))) -> Caoimhe Crampton | H26: =IF(OR(C26=0,C26="",ISERROR(VLOOKUP(C26,match_teams,4,FALSE)=TRUE)),"",VLOOKUP(C26,match_teams,4,FALSE)) -> Leeds C | I26: 53.9 | K26: 5 | S26: =IF(T(C26)="",C26*11,CONCATENATE(C26,C26)) -> 77
A27: =VLOOKUP(B23,eventno,7,FALSE) -> 49.13 | B27: 3 | C27: 8 | D27: =IF(OR(C27=0,C27=""),"",IF(A23="F",HLOOKUP(C27,females,A24,FALSE),IF(A23="M",HLOOKUP(C27,males,A24,FALSE),""))) -> Anna Richardson | E27: =IF(OR(C27=0,C27=""),"",IF(A23="F",HLOOKUP(S27,females,A24,FALSE),IF(A23="M",HLOOKUP(S27,males,A24,FALSE),""))) -> Josie Parry | F27: =IF(OR(C27=0,C27=""),"",IF(A23="F",HLOOKUP(C27,females,A24+1,FALSE),IF(A23="M",HLOOKUP(C27,males,A24+1,FALSE),""))) -> Chelsea Walker | G27: =IF(OR(C27=0,C27=""),"",IF(A23="F",HLOOKUP(S27,females,A24+1,FALSE),IF(A23="M",HLOOKUP(S27,males,A24+1,FALSE),""))) -> Chloe Hopper | H27: =IF(OR(C27=0,C27="",ISERROR(VLOOKUP(C27,match_teams,4,FALSE)=TRUE)),"",VLOOKUP(C27,match_teams,4,FALSE)) -> York | I27: 54.23 | K27: 4 | S27: =IF(T(C27)="",C27*11,CONCATENATE(C27,C27)) -> 88
K28: 0
A29: =VLOOKUP(B29,eventno,5,FALSE) -> M | B29: T41 | C29: =VLOOKUP(B29,eventno,4,FALSE) -> U15B 4 x 100m Relay | H29: =IF(A32="W","Wind =","") ->  | J29: =IF(OR(I31=0,I31="",A33=0,A33=""),"",IF(A31="T",IF(I31<A33,"LR",IF(I31=A33,"LR=","")))) ->  | K29: 0
A30: =IF(A29="M",VLOOKUP(B29,males,15,FALSE),VLOOKUP(B29,females,15,FALSE)) -> 23 | B30: Posn | C30: Bib | D30: Leg 1 | E30: Leg 2 | F30: Leg 3 | G30: Leg 4 | H30: Club | I30: Perf
A31: =LEFT(B29,1) -> T | B31: 1 | C31: 7 | D31: =IF(OR(C31=0,C31=""),"",IF(A29="F",HLOOKUP(C31,females,A30,FALSE),IF(A29="M",HLOOKUP(C31,males,A30,FALSE),""))) -> Jacob Fincham-Dukes | E31: =IF(OR(C31=0,C31="",D31="Event Cancelled",D31="No Competitors Declared"),"",IF(A29="F",HLOOKUP(S31,females,A30,FALSE),IF(A29="M",HLOOKUP(S31,males,A30,FALSE),""))) -> Thomas Harrison | F31: =IF(OR(C31=0,C31="",D31="Event Cancelled",D31="No Competitors Declared"),"",IF(A29="F",HLOOKUP(C31,females,A30+1,FALSE),IF(A29="M",HLOOKUP(C31,males,A30+1,FALSE),""))) -> Jack Gape | G31: =IF(OR(C31=0,C31="",D31="Event Cancelled",D31="No Competitors Declared"),"",IF(A29="F",HLOOKUP(S31,females,A30+1,FALSE),IF(A29="M",HLOOKUP(S31,males,A30+1,FALSE),""))) -> Finlay Fuller | H31: =IF(OR(C31=0,C31="",ISERROR(VLOOKUP(C31,match_teams,4,FALSE)=TRUE)),"",VLOOKUP(C31,match_teams,4,FALSE)) -> Leeds C | I31: 50.13 | K31: 6 | S31: =IF(T(C31)="",C31*11,CONCATENATE(C31,C31)) -> 77
A32: =VLOOKUP(B29,eventno,6,FALSE) -> 0 | B32: 2 | C32: 9 | D32: =IF(OR(C32=0,C32=""),"",IF(A29="F",HLOOKUP(C32,females,A30,FALSE),IF(A29="M",HLOOKUP(C32,males,A30,FALSE),""))) -> Patrick Thackray | E32: =IF(OR(C32=0,C32=""),"",IF(A29="F",HLOOKUP(S32,females,A30,FALSE),IF(A29="M",HLOOKUP(S32,males,A30,FALSE),""))) -> Robert Sanderson | F32: =IF(OR(C32=0,C32=""),"",IF(A29="F",HLOOKUP(C32,females,A30+1,FALSE),IF(A29="M",HLOOKUP(C32,males,A30+1,FALSE),""))) -> Logan Gibb | G32: =IF(OR(C32=0,C32=""),"",IF(A29="F",HLOOKUP(S32,females,A30+1,FALSE),IF(A29="M",HLOOKUP(S32,males,A30+1,FALSE),""))) -> George Heppinstall | H32: =IF(OR(C32=0,C32="",ISERROR(VLOOKUP(C32,match_teams,4,FALSE)=TRUE)),"",VLOOKUP(C32,match_teams,4,FALSE)) -> Wake | I32: 53.41 | K32: 5 | S32: =IF(T(C32)="",C32*11,CONCATENATE(C32,C32)) -> 99
A33: =VLOOKUP(B29,eventno,7,FALSE) -> 44.8 | B33: 3 | C33: 8 | D33: =IF(OR(C33=0,C33=""),"",IF(A29="F",HLOOKUP(C33,females,A30,FALSE),IF(A29="M",HLOOKUP(C33,males,A30,FALSE),""))) -> Chris Searle | E33: =IF(OR(C33=0,C33=""),"",IF(A29="F",HLOOKUP(S33,females,A30,FALSE),IF(A29="M",HLOOKUP(S33,males,A30,FALSE),""))) -> Luke Nichols | F33: =IF(OR(C33=0,C33=""),"",IF(A29="F",HLOOKUP(C33,females,A30+1,FALSE),IF(A29="M",HLOOKUP(C33,males,A30+1,FALSE),""))) -> Tom Hobson | G33: =IF(OR(C33=0,C33=""),"",IF(A29="F",HLOOKUP(S33,females,A30+1,FALSE),IF(A29="M",HLOOKUP(S33,males,A30+1,FALSE),""))) -> Matthew Richardson | H33: =IF(OR(C33=0,C33="",ISERROR(VLOOKUP(C33,match_teams,4,FALSE)=TRUE)),"",VLOOKUP(C33,match_teams,4,FALSE)) -> York | I33: 53.56 | K33: 4 | S33: =IF(T(C33)="",C33*11,CONCATENATE(C33,C33)) -> 88
K34: 0
A35: =VLOOKUP(B35,eventno,5,FALSE) -> F | B35: T42 | C35: =VLOOKUP(B35,eventno,4,FALSE) -> U13G 4 x 100m Relay | H35: =IF(A38="W","Wind =","") ->  | J35: =IF(OR(I37=0,I37="",A39=0,A39=""),"",IF(A37="T",IF(I37<A39,"LR",IF(I37=A39,"LR=","")))) ->  | K35: 0
A36: =IF(A35="M",VLOOKUP(B35,males,15,FALSE),VLOOKUP(B35,females,15,FALSE)) -> 25 | B36: Posn | C36: Bib | D36: Leg 1 | E36: Leg 2 | F36: Leg 3 | G36: Leg 4 | H36: Club | I36: Perf
A37: =LEFT(B35,1) -> T | B37: 1 | C37: 9 | D37: =IF(OR(C37=0,C37=""),"",IF(A35="F",HLOOKUP(C37,females,A36,FALSE),IF(A35="M",HLOOKUP(C37,males,A36,FALSE),""))) -> Charlotte Sampson | E37: =IF(OR(C37=0,C37="",D37="Event Cancelled",D37="No Competitors Declared"),"",IF(A35="F",HLOOKUP(S37,females,A36,FALSE),IF(A35="M",HLOOKUP(S37,males,A36,FALSE),""))) -> Niamh Docherty | F37: =IF(OR(C37=0,C37="",D37="Event Cancelled",D37="No Competitors Declared"),"",IF(A35="F",HLOOKUP(C37,females,A36+1,FALSE),IF(A35="M",HLOOKUP(C37,males,A36+1,FALSE),""))) -> Madeleine Gerrard | G37: =IF(OR(C37=0,C37="",D37="Event Cancelled",D37="No Competitors Declared"),"",IF(A35="F",HLOOKUP(S37,females,A36+1,FALSE),IF(A35="M",HLOOKUP(S37,males,A36+1,FALSE),""))) -> Georgia Green | H37: =IF(OR(C37=0,C37="",ISERROR(VLOOKUP(C37,match_teams,4,FALSE)=TRUE)),"",VLOOKUP(C37,match_teams,4,FALSE)) -> Wake | I37: 61.31 | K37: 6 | S37: =IF(T(C37)="",C37*11,CONCATENATE(C37,C37)) -> 99
A38: =VLOOKUP(B35,eventno,6,FALSE) -> 0 | B38: 2 | C38: 8 | D38: =IF(OR(C38=0,C38=""),"",IF(A35="F",HLOOKUP(C38,females,A36,FALSE),IF(A35="M",HLOOKUP(C38,males,A36,FALSE),""))) -> Annabel Ashton | E38: =IF(OR(C38=0,C38=""),"",IF(A35="F",HLOOKUP(S38,females,A36,FALSE),IF(A35="M",HLOOKUP(S38,males,A36,FALSE),""))) -> Charlotte Stamp | F38: =IF(OR(C38=0,C38=""),"",IF(A35="F",HLOOKUP(C38,females,A36+1,FALSE),IF(A35="M",HLOOKUP(C38,males,A36+1,FALSE),""))) -> Georgie Hogarth | G38: =IF(OR(C38=0,C38=""),"",IF(A35="F",HLOOKUP(S38,females,A36+1,FALSE),IF(A35="M",HLOOKUP(S38,males,A36+1,FALSE),""))) -> Lucy Hadaway | H38: =IF(OR(C38=0,C38="",ISERROR(VLOOKUP(C38,match_teams,4,FALSE)=TRUE)),"",VLOOKUP(C38,match_teams,4,FALSE)) -> York | I38: 62.63 | K38: 5 | S38: =IF(T(C38)="",C38*11,CONCATENATE(C38,C38)) -> 88
A39: =VLOOKUP(B35,eventno,7,FALSE) -> 52.1 | B39: 3 | C39: 7 | D39: =IF(OR(C39=0,C39=""),"",IF(A35="F",HLOOKUP(C39,females,A36,FALSE),IF(A35="M",HLOOKUP(C39,males,A36,FALSE),""))) -> Chloe Brooks | E39: =IF(OR(C39=0,C39=""),"",IF(A35="F",HLOOKUP(S39,females,A36,FALSE),IF(A35="M",HLOOKUP(S39,males,A36,FALSE),""))) -> Lois Fish | F39: =IF(OR(C39=0,C39=""),"",IF(A35="F",HLOOKUP(C39,females,A36+1,FALSE),IF(A35="M",HLOOKUP(C39,males,A36+1,FALSE),""))) -> Millie Bradbury | G39: =IF(OR(C39=0,C39=""),"",IF(A35="F",HLOOKUP(S39,females,A36+1,FALSE),IF(A35="M",HLOOKUP(S39,males,A36+1,FALSE),""))) -> Megan Sanders | H39: =IF(OR(C39=0,C39="",ISERROR(VLOOKUP(C39,match_teams,4,FALSE)=TRUE)),"",VLOOKUP(C39,match_teams,4,FALSE)) -> Leeds C | I39: 66.01 | K39: 4 | S39: =IF(T(C39)="",C39*11,CONCATENATE(C39,C39)) -> 77
K40: 0
A41: =VLOOKUP(B41,eventno,5,FALSE) -> M | B41: T43 | C41: =VLOOKUP(B41,eventno,4,FALSE) -> U13B 4 x 100m Relay | H41: =IF(A44="W","Wind =","") ->  | J41: =IF(OR(I43=0,I43="",A45=0,A45=""),"",IF(A43="T",IF(I43<A45,"LR",IF(I43=A45,"LR=","")))) ->  | K41: 0
A42: =IF(A41="M",VLOOKUP(B41,males,15,FALSE),VLOOKUP(B41,females,15,FALSE)) -> 25 | B42: Posn | C42: Bib | D42: Leg 1 | E42: Leg 2 | F42: Leg 3 | G42: Leg 4 | H42: Club | I42: Perf
A43: =LEFT(B41,1) -> T | B43: 1 | C43: 7 | D43: =IF(OR(C43=0,C43=""),"",IF(A41="F",HLOOKUP(C43,females,A42,FALSE),IF(A41="M",HLOOKUP(C43,males,A42,FALSE),""))) -> Lewis Renton | E43: =IF(OR(C43=0,C43="",D43="Event Cancelled",D43="No Competitors Declared"),"",IF(A41="F",HLOOKUP(S43,females,A42,FALSE),IF(A41="M",HLOOKUP(S43,males,A42,FALSE),""))) -> Mitchell Cox | F43: =IF(OR(C43=0,C43="",D43="Event Cancelled",D43="No Competitors Declared"),"",IF(A41="F",HLOOKUP(C43,females,A42+1,FALSE),IF(A41="M",HLOOKUP(C43,males,A42+1,FALSE),""))) -> Dominic Peterson | G43: =IF(OR(C43=0,C43="",D43="Event Cancelled",D43="No Competitors Declared"),"",IF(A41="F",HLOOKUP(S43,females,A42+1,FALSE),IF(A41="M",HLOOKUP(S43,males,A42+1,FALSE),""))) -> Billy Dawson | H43: =IF(OR(C43=0,C43="",ISERROR(VLOOKUP(C43,match_teams,4,FALSE)=TRUE)),"",VLOOKUP(C43,match_teams,4,FALSE)) -> Leeds C | I43: 56.52 | K43: =IF(OR(B43=0,B43="",C43=0,C43="",I43=0,I43="",LEFT(I43,1)="D"),0,VLOOKUP(B43,points,2,FALSE)) -> 6 | S43: =IF(T(C43)="",C43*11,CONCATENATE(C43,C43)) -> 77
A44: =VLOOKUP(B41,eventno,6,FALSE) -> 0 | B44: 2 | C44: 9 | D44: =IF(OR(C44=0,C44=""),"",IF(A41="F",HLOOKUP(C44,females,A42,FALSE),IF(A41="M",HLOOKUP(C44,males,A42,FALSE),""))) -> Harry England | E44: =IF(OR(C44=0,C44=""),"",IF(A41="F",HLOOKUP(S44,females,A42,FALSE),IF(A41="M",HLOOKUP(S44,males,A42,FALSE),""))) -> Alexander Rogers | F44: =IF(OR(C44=0,C44=""),"",IF(A41="F",HLOOKUP(C44,females,A42+1,FALSE),IF(A41="M",HLOOKUP(C44,males,A42+1,FALSE),""))) -> Carter Bower-Stead | G44: =IF(OR(C44=0,C44=""),"",IF(A41="F",HLOOKUP(S44,females,A42+1,FALSE),IF(A41="M",HLOOKUP(S44,males,A42+1,FALSE),""))) -> Barnaby Drew | H44: =IF(OR(C44=0,C44="",ISERROR(VLOOKUP(C44,match_teams,4,FALSE)=TRUE)),"",VLOOKUP(C44,match_teams,4,FALSE)) -> Wake | I44: 57.56 | K44: 5 | S44: =IF(T(C44)="",C44*11,CONCATENATE(C44,C44)) -> 99
A45: =VLOOKUP(B41,eventno,7,FALSE) -> 49.9 | B45: 3 | D45: =IF(OR(C45=0,C45=""),"",IF(A41="F",HLOOKUP(C45,females,A42,FALSE),IF(A41="M",HLOOKUP(C45,males,A42,FALSE),""))) ->  | E45: =IF(OR(C45=0,C45=""),"",IF(A41="F",HLOOKUP(S45,females,A42,FALSE),IF(A41="M",HLOOKUP(S45,males,A42,FALSE),""))) ->  | F45: =IF(OR(C45=0,C45=""),"",IF(A41="F",HLOOKUP(C45,females,A42+1,FALSE),IF(A41="M",HLOOKUP(C45,males,A42+1,FALSE),""))) ->  | G45: =IF(OR(C45=0,C45=""),"",IF(A41="F",HLOOKUP(S45,females,A42+1,FALSE),IF(A41="M",HLOOKUP(S45,males,A42+1,FALSE),""))) ->  | H45: =IF(OR(C45=0,C45="",ISERROR(VLOOKUP(C45,match_teams,4,FALSE)=TRUE)),"",VLOOKUP(C45,match_teams,4,FALSE)) ->  | K45: 0 | S45: =IF(T(C45)="",C45*11,CONCATENATE(C45,C45)) -> 0
K46: 0
A47: =VLOOKUP(B47,eventno,5,FALSE) -> F | B47: T44 | C47: =VLOOKUP(B47,eventno,4,FALSE) -> U17W 4 x 300m Relay | H47: =IF(A50="W","Wind =","") ->  | J47: =IF(OR(I49=0,I49="",A51=0,A51=""),"",IF(A49="T",IF(I49<A51,"LR",IF(I49=A51,"LR=","")))) ->  | K47: 0
A48: =IF(A47="M",VLOOKUP(B47,males,15,FALSE),VLOOKUP(B47,females,15,FALSE)) -> 30 | B48: Posn | C48: Bib | D48: Leg 1 | E48: Leg 2 | F48: Leg 3 | G48: Leg 4 | H48: Club | I48: Perf
A49: =LEFT(B47,1) -> T | B49: 1 | C49: 9 | D49: =IF(OR(C49=0,C49=""),"",IF(A47="F",HLOOKUP(C49,females,A48,FALSE),IF(A47="M",HLOOKUP(C49,males,A48,FALSE),""))) -> Dannielle Anderson | E49: =IF(OR(C49=0,C49="",D49="Event Cancelled",D49="No Competitors Declared"),"",IF(A47="F",HLOOKUP(S49,females,A48,FALSE),IF(A47="M",HLOOKUP(S49,males,A48,FALSE),""))) -> Olivia Radcliffe | F49: =IF(OR(C49=0,C49="",D49="Event Cancelled",D49="No Competitors Declared"),"",IF(A47="F",HLOOKUP(C49,females,A48+1,FALSE),IF(A47="M",HLOOKUP(C49,males,A48+1,FALSE),""))) -> Leanne Barraclough | G49: =IF(OR(C49=0,C49="",D49="Event Cancelled",D49="No Competitors Declared"),"",IF(A47="F",HLOOKUP(S49,females,A48+1,FALSE),IF(A47="M",HLOOKUP(S49,males,A48+1,FALSE),""))) -> Emily Wadge | H49: =IF(OR(C49=0,C49="",ISERROR(VLOOKUP(C49,match_teams,4,FALSE)=TRUE)),"",VLOOKUP(C49,match_teams,4,FALSE)) -> Wake | I49: 00:03:09.520 | K49: 6 | S49: =IF(T(C49)="",C49*11,CONCATENATE(C49,C49)) -> 99
A50: =VLOOKUP(B47,eventno,6,FALSE) -> 0 | B50: 2 | C50: 7 | D50: =IF(OR(C50=0,C50=""),"",IF(A47="F",HLOOKUP(C50,females,A48,FALSE),IF(A47="M",HLOOKUP(C50,males,A48,FALSE),""))) -> Katie Ward | E50: =IF(OR(C50=0,C50=""),"",IF(A47="F",HLOOKUP(S50,females,A48,FALSE),IF(A47="M",HLOOKUP(S50,males,A48,FALSE),""))) -> Ellie Dooley | F50: =IF(OR(C50=0,C50=""),"",IF(A47="F",HLOOKUP(C50,females,A48+1,FALSE),IF(A47="M",HLOOKUP(C50,males,A48+1,FALSE),""))) -> India Wilson | G50: =IF(OR(C50=0,C50=""),"",IF(A47="F",HLOOKUP(S50,females,A48+1,FALSE),IF(A47="M",HLOOKUP(S50,males,A48+1,FALSE),""))) -> Georgia Yearby | H50: =IF(OR(C50=0,C50="",ISERROR(VLOOKUP(C50,match_teams,4,FALSE)=TRUE)),"",VLOOKUP(C50,match_teams,4,FALSE)) -> Leeds C | I50: 00:03:09.800 | K50: 5 | S50: =IF(T(C50)="",C50*11,CONCATENATE(C50,C50)) -> 77
A51: =VLOOKUP(B47,eventno,7,FALSE) -> 0.001887731481 | B51: 3 | D51: =IF(OR(C51=0,C51=""),"",IF(A47="F",HLOOKUP(C51,females,A48,FALSE),IF(A47="M",HLOOKUP(C51,males,A48,FALSE),""))) ->  | E51: =IF(OR(C51=0,C51=""),"",IF(A47="F",HLOOKUP(S51,females,A48,FALSE),IF(A47="M",HLOOKUP(S51,males,A48,FALSE),""))) ->  | F51: =IF(OR(C51=0,C51=""),"",IF(A47="F",HLOOKUP(C51,females,A48+1,FALSE),IF(A47="M",HLOOKUP(C51,males,A48+1,FALSE),""))) ->  | G51: =IF(OR(C51=0,C51=""),"",IF(A47="F",HLOOKUP(S51,females,A48+1,FALSE),IF(A47="M",HLOOKUP(S51,males,A48+1,FALSE),""))) ->  | H51: =IF(OR(C51=0,C51="",ISERROR(VLOOKUP(C51,match_teams,4,FALSE)=TRUE)),"",VLOOKUP(C51,match_teams,4,FALSE)) ->  | K51: 0 | S51: =IF(T(C51)="",C51*11,CONCATENATE(C51,C51)) -> 0
K52: 0
A53: =VLOOKUP(B53,eventno,5,FALSE) -> M | B53: T46 | C53: =VLOOKUP(B53,eventno,4,FALSE) -> U15B 4 x 400m Relay | H53: =IF(A56="W","Wind =","") ->  | J53: =IF(OR(I55=0,I55="",A57=0,A57=""),"",IF(A55="T",IF(I55<A57,"LR",IF(I55=A57,"LR=","")))) ->  | K53: 0
A54: =IF(A53="M",VLOOKUP(B53,males,15,FALSE),VLOOKUP(B53,females,15,FALSE)) -> 28 | B54: Posn | C54: Bib | D54: Leg 1 | E54: Leg 2 | F54: Leg 3 | G54: Leg 4 | H54: Club | I54: Perf
A55: =LEFT(B53,1) -> T | B55: 1 | C55: 7 | D55: =IF(OR(C55=0,C55=""),"",IF(A53="F",HLOOKUP(C55,females,A54,FALSE),IF(A53="M",HLOOKUP(C55,males,A54,FALSE),""))) -> Kieran Savage | E55: =IF(OR(C55=0,C55="",D55="Event Cancelled",D55="No Competitors Declared"),"",IF(A53="F",HLOOKUP(S55,females,A54,FALSE),IF(A53="M",HLOOKUP(S55,males,A54,FALSE),""))) -> John Hubball | F55: =IF(OR(C55=0,C55="",D55="Event Cancelled",D55="No Competitors Declared"),"",IF(A53="F",HLOOKUP(C55,females,A54+1,FALSE),IF(A53="M",HLOOKUP(C55,males,A54+1,FALSE),""))) -> Ben Tootle | G55: =IF(OR(C55=0,C55="",D55="Event Cancelled",D55="No Competitors Declared"),"",IF(A53="F",HLOOKUP(S55,females,A54+1,FALSE),IF(A53="M",HLOOKUP(S55,males,A54+1,FALSE),""))) -> Jack Allison | H55: =IF(OR(C55=0,C55="",ISERROR(VLOOKUP(C55,match_teams,4,FALSE)=TRUE)),"",VLOOKUP(C55,match_teams,4,FALSE)) -> Leeds C | I55: 00:04:06.820 | K55: 6 | S55: =IF(T(C55)="",C55*11,CONCATENATE(C55,C55)) -> 77
A56: =VLOOKUP(B53,eventno,6,FALSE) -> 0 | B56: 2 | C56: 9 | D56: =IF(OR(C56=0,C56=""),"",IF(A53="F",HLOOKUP(C56,females,A54,FALSE),IF(A53="M",HLOOKUP(C56,males,A54,FALSE),""))) -> Sam Convery | E56: =IF(OR(C56=0,C56=""),"",IF(A53="F",HLOOKUP(S56,females,A54,FALSE),IF(A53="M",HLOOKUP(S56,males,A54,FALSE),""))) -> Ben Read | F56: =IF(OR(C56=0,C56=""),"",IF(A53="F",HLOOKUP(C56,females,A54+1,FALSE),IF(A53="M",HLOOKUP(C56,males,A54+1,FALSE),""))) -> Andrew Jones | G56: =IF(OR(C56=0,C56=""),"",IF(A53="F",HLOOKUP(S56,females,A54+1,FALSE),IF(A53="M",HLOOKUP(S56,males,A54+1,FALSE),""))) -> William Ingram | H56: =IF(OR(C56=0,C56="",ISERROR(VLOOKUP(C56,match_teams,4,FALSE)=TRUE)),"",VLOOKUP(C56,match_teams,4,FALSE)) -> Wake | I56: 00:04:17.850 | K56: 5 | S56: =IF(T(C56)="",C56*11,CONCATENATE(C56,C56)) -> 99
A57: =VLOOKUP(B53,eventno,7,FALSE) -> 0.002484953704 | B57: 3 | C57: 8 | D57: =IF(OR(C57=0,C57=""),"",IF(A53="F",HLOOKUP(C57,females,A54,FALSE),IF(A53="M",HLOOKUP(C57,males,A54,FALSE),""))) -> Phil Nesom | E57: =IF(OR(C57=0,C57=""),"",IF(A53="F",HLOOKUP(S57,females,A54,FALSE),IF(A53="M",HLOOKUP(S57,males,A54,FALSE),""))) -> Tom Wood | F57: =IF(OR(C57=0,C57=""),"",IF(A53="F",HLOOKUP(C57,females,A54+1,FALSE),IF(A53="M",HLOOKUP(C57,males,A54+1,FALSE),""))) -> Ben Lewis | G57: =IF(OR(C57=0,C57=""),"",IF(A53="F",HLOOKUP(S57,females,A54+1,FALSE),IF(A53="M",HLOOKUP(S57,males,A54+1,FALSE),""))) -> James Wright | H57: =IF(OR(C57=0,C57="",ISERROR(VLOOKUP(C57,match_teams,4,FALSE)=TRUE)),"",VLOOKUP(C57,match_teams,4,FALSE)) -> York | I57: 00:04:34.320 | K57: 4 | S57: =IF(T(C57)="",C57*11,CONCATENATE(C57,C57)) -> 88
K58: 0
A59: =VLOOKUP(B59,eventno,5,FALSE) -> M | B59: T47 | C59: =VLOOKUP(B59,eventno,4,FALSE) -> U17M 4 x 400m Relay | H59: =IF(A62="W","Wind =","") ->  | J59: =IF(OR(I61=0,I61="",A63=0,A63=""),"",IF(A61="T",IF(I61<A63,"LR",IF(I61=A63,"LR=","")))) ->  | K59: 0
A60: =IF(A59="M",VLOOKUP(B59,males,15,FALSE),VLOOKUP(B59,females,15,FALSE)) -> 30 | B60: Posn | C60: Bib | D60: Leg 1 | E60: Leg 2 | F60: Leg 3 | G60: Leg 4 | H60: Club | I60: Perf
A61: =LEFT(B59,1) -> T | B61: 1 | C61: 7 | D61: =IF(OR(C61=0,C61=""),"",IF(A59="F",HLOOKUP(C61,females,A60,FALSE),IF(A59="M",HLOOKUP(C61,males,A60,FALSE),""))) -> Matthew Campleman | E61: =IF(OR(C61=0,C61="",D61="Event Cancelled",D61="No Competitors Declared"),"",IF(A59="F",HLOOKUP(S61,females,A60,FALSE),IF(A59="M",HLOOKUP(S61,males,A60,FALSE),""))) -> Liam Braithwaite | F61: =IF(OR(C61=0,C61="",D61="Event Cancelled",D61="No Competitors Declared"),"",IF(A59="F",HLOOKUP(C61,females,A60+1,FALSE),IF(A59="M",HLOOKUP(C61,males,A60+1,FALSE),""))) -> Sean Flanagan | G61: =IF(OR(C61=0,C61="",D61="Event Cancelled",D61="No Competitors Declared"),"",IF(A59="F",HLOOKUP(S61,females,A60+1,FALSE),IF(A59="M",HLOOKUP(S61,males,A60+1,FALSE),""))) -> Luke Cooper | H61: =IF(OR(C61=0,C61="",ISERROR(VLOOKUP(C61,match_teams,4,FALSE)=TRUE)),"",VLOOKUP(C61,match_teams,4,FALSE)) -> Leeds C | I61: 00:03:46.300 | K61: 6 | S61: =IF(T(C61)="",C61*11,CONCATENATE(C61,C61)) -> 77
A62: =VLOOKUP(B59,eventno,6,FALSE) -> 0 | B62: 2 | C62: 9 | D62: =IF(OR(C62=0,C62=""),"",IF(A59="F",HLOOKUP(C62,females,A60,FALSE),IF(A59="M",HLOOKUP(C62,males,A60,FALSE),""))) -> Jake Worton | E62: =IF(OR(C62=0,C62=""),"",IF(A59="F",HLOOKUP(S62,females,A60,FALSE),IF(A59="M",HLOOKUP(S62,males,A60,FALSE),""))) -> Matthew O'Connnor | F62: =IF(OR(C62=0,C62=""),"",IF(A59="F",HLOOKUP(C62,females,A60+1,FALSE),IF(A59="M",HLOOKUP(C62,males,A60+1,FALSE),""))) -> Steven Eastwood | G62: =IF(OR(C62=0,C62=""),"",IF(A59="F",HLOOKUP(S62,females,A60+1,FALSE),IF(A59="M",HLOOKUP(S62,males,A60+1,FALSE),""))) -> Jack Mitchell | H62: =IF(OR(C62=0,C62="",ISERROR(VLOOKUP(C62,match_teams,4,FALSE)=TRUE)),"",VLOOKUP(C62,match_teams,4,FALSE)) -> Wake | I62: 00:03:48.210 | K62: 5 | S62: =IF(T(C62)="",C62*11,CONCATENATE(C62,C62)) -> 99
A63: =VLOOKUP(B59,eventno,7,FALSE) -> 0.002345949074 | B63: 3 | D63: =IF(OR(C63=0,C63=""),"",IF(A59="F",HLOOKUP(C63,females,A60,FALSE),IF(A59="M",HLOOKUP(C63,males,A60,FALSE),""))) ->  | E63: =IF(OR(C63=0,C63=""),"",IF(A59="F",HLOOKUP(S63,females,A60,FALSE),IF(A59="M",HLOOKUP(S63,males,A60,FALSE),""))) ->  | F63: =IF(OR(C63=0,C63=""),"",IF(A59="F",HLOOKUP(C63,females,A60+1,FALSE),IF(A59="M",HLOOKUP(C63,males,A60+1,FALSE),""))) ->  | G63: =IF(OR(C63=0,C63=""),"",IF(A59="F",HLOOKUP(S63,females,A60+1,FALSE),IF(A59="M",HLOOKUP(S63,males,A60+1,FALSE),""))) ->  | H63: =IF(OR(C63=0,C63="",ISERROR(VLOOKUP(C63,match_teams,4,FALSE)=TRUE)),"",VLOOKUP(C63,match_teams,4,FALSE)) ->  | K63: 0 | S63: =IF(T(C63)="",C63*11,CONCATENATE(C63,C63)) -> 0

Sheet Boys (Match 1)
B1: TRACK | C1: FIELD | H1: RELAY | V1: TRACK | W1: FIELD | AB1: RELAY | AP1: TRACK | AQ1: FIELD | AV1: RELAY
B2: =MatchDay!C11 -> Wakefield | C2: Sprint H | D2: 800m | E2: 100m | F2: 3000m | G2: 400mH | H2: 200m | I2: 1500m | J2: 400m | K2: 1500m S/C | L2: 4x100m R | M2: 4x400m R | N2: Long J | O2: Triple J | P2: High J | Q2: Pole V | R2: Shot | S2: Discus | T2: Javelin | U2: Hammer | V2: =MatchDay!C13 -> City of York | W2: Sprint H | X2: 800m | Y2: 100m | Z2: 3000m | AA2: 400mH | AB2: 200m | AC2: 1500m | AD2: 400m | AE2: 1500m S/C | AF2: 4x100m R | AG2: 4x400m R | AH2: Long J | AI2: Triple J | AJ2: High J | AK2: Pole V | AL2: Shot | AM2: Discus | AN2: Javelin | AO2: Hammer | AP2: =MatchDay!C15 -> Leeds City | AQ2: Sprint H | AR2: 800m | AS2: 100m | AT2: 3000m | AU2: 400mH | AV2: 200m | AW2: 1500m | AX2: 400m | AY2: 1500m S/C | AZ2: 4x100m R | BA2: 4x400m R | BB2: Long J | BC2: Triple J | BD2: High J | BE2: Pole V | BF2: Shot | BG2: Discus | BH2: Javelin | BI2: Hammer | BM2: Event No | BN2: Age G | BQ2: =B2 -> Wakefield | BS2: =V2 -> City of York | BU2: =AP2 -> Leeds City
B3: =CONCATENATE(Handbook!$Y$1," Athletes") -> U13B Athletes | V3: =B3 -> U13B Athletes | AP3: =B3 -> U13B Athletes | BK3: A | BQ3: =MatchDay!B11 -> 9 | BR3: =MatchDay!B38 -> 99 | BS3: =MatchDay!B13 -> 8 | BT3: =MatchDay!B40 -> 88 | BU3: =MatchDay!B15 -> 7 | BV3: =MatchDay!B42 -> 77 | BW3: 101 | BX3: 102 | BY3: 103 | CA3: Row
A4: 1 | B4: Dylan Roberts | C4: A | P4: A | R4: A | V4: Matt Hobson | Y4: A | AF4: 2 | AH4: A | AL4: A | AP4: Alex Booth | AW4: A | BD4: A | BF4: B | BK4: B | BL4: U13B 75m H | BM4: =VLOOKUP(BL4,eventno2,13,FALSE) -> T2 | BN4: =VLOOKUP($BM4,eventno,2,FALSE) -> U13B | BO4: =VLOOKUP($BM4,eventno,3,FALSE) -> 75m H | BQ4: =IF(COUNTIF($C$4:$C$20,"A")=0,"-",INDIRECT(CONCATENATE("B",MATCH("A",$C$1:$C$20,0)))) -> Dylan Roberts | BR4: =IF(COUNTIF($C$4:$C$20,"B")=0,"-",INDIRECT(CONCATENATE("B",MATCH("B",$C$1:$C$20,0)))) -> Harry England | BS4: =IF(COUNTIF($W$4:$W$20,"A")=0,"-",INDIRECT(CONCATENATE("V",MATCH("A",$W$1:$W$20,0)))) -> Alex Botterill | BT4: =IF(COUNTIF($W$4:$W$20,"B")=0,"-",INDIRECT(CONCATENATE("V",MATCH("B",$W$1:$W$20,0)))) -> - | BU4: =IF(COUNTIF($AQ$4:$AQ$20,"A")=0,"-",INDIRECT(CONCATENATE("AP",MATCH("A",$AQ$1:$AQ$20,0)))) -> Owen Sage | BV4: =IF(COUNTIF($AQ$4:$AQ$20,"B")=0,"-",INDIRECT(CONCATENATE("AP",MATCH("B",$AQ$1:$AQ$20,0)))) -> Khalil Abdelaziz | BW4: Event Cancelled | BX4: No Competitors | BY4: Opening Height Not Cleared | CA4: 2
A5: 2 | B5: Harry England | C5: B | E5: A | L5: 1 | N5: A | V5: Alex Botterill | W5: A | X5: A | AB5: A | AF5: 1 | AP5: Billy Dawson | AR5: A | AV5: B | AZ5: 4 | BL5: U15B 80m H | BM5: T5 | BN5: =VLOOKUP(BM5,eventno,2,FALSE) -> U15B | BO5: 80m H | BQ5: =IF(COUNTIF($C$24:$C$48,"A")=0,"-",INDIRECT(CONCATENATE("B",MATCH("A",$C$21:$C$48,0)+20))) -> Patrick Thackray | BR5: =IF(COUNTIF($C$24:$C$48,"B")=0,"-",INDIRECT(CONCATENATE("B",MATCH("B",$C$21:$C$48,0)+20))) -> Declan Sheehan | BS5: =IF(COUNTIF($W$24:$W$48,"A")=0,"-",INDIRECT(CONCATENATE("V",MATCH("A",$W$21:$W$48,0)+20))) -> Tom Wood | BT5: =IF(COUNTIF($W$24:$W$48,"B")=0,"-",INDIRECT(CONCATENATE("V",MATCH("B",$W$21:$W$48,0)+20))) -> Phil Nesom | BU5: =IF(COUNTIF($AQ$24:$AQ$48,"A")=0,"-",INDIRECT(CONCATENATE("AP",MATCH("A",$AQ$21:$AQ$48,0)+20))) -> Jacob Fincham-Dukes | BV5: =IF(COUNTIF($AQ$24:$AQ$48,"B")=0,"-",INDIRECT(CONCATENATE("AP",MATCH("B",$AQ$21:$AQ$48,0)+20))) -> Jack Gape | BW5: Event Cancelled | BX5: No Competitors | BY5: Opening Height Not Cleared | CA5: 3
A6: 3 | B6: Carter Bower-Stead | D6: A | H6: B | L6: 3 | P6: B | V6: George Mumford | AP6: Dominic Peterson | AS6: B | AW6: B | AZ6: 3 | BK6: 1 | BL6: U17M 100m H | BM6: T6 | BN6: U17M | BO6: 100m H | BQ6: =IF(COUNTIF($C$52:$C$77,"A")=0,"-",INDIRECT(CONCATENATE("B",MATCH("A",$C$49:$C$77,0)+48))) -> George Brown | BR6: =IF(COUNTIF($C$52:$C$77,"B")=0,"-",INDIRECT(CONCATENATE("B",MATCH("B",$C$49:$C$77,0)+48))) -> - | BS6: =IF(COUNTIF($W$52:$W$77,"A")=0,"-",INDIRECT(CONCATENATE("V",MATCH("A",$W$49:$W$77,0)+48))) -> Adam Robinson | BT6: =IF(COUNTIF($W$52:$W$77,"B")=0,"-",INDIRECT(CONCATENATE("V",MATCH("B",$W$49:$W$77,0)+48))) -> - | BU6: =IF(COUNTIF($AQ$52:$AQ$77,"A")=0,"-",INDIRECT(CONCATENATE("AP",MATCH("A",$AQ$49:$AQ$77,0)+48))) -> Matthew Campleman | BV6: =IF(COUNTIF($AQ$52:$AQ$77,"B")=0,"-",INDIRECT(CONCATENATE("AP",MATCH("B",$AQ$49:$AQ$77,0)+48))) -> Andrew Russell | BW6: Event Cancelled | BX6: No Competitors | BY6: Opening Height Not Cleared | CA6: 4
A7: 4 | B7: Alexander Rogers | H7: A | L7: 2 | V7: Issac Clarke | AP7: Khalil Abdelaziz | AQ7: B | BB7: B | BK7: 2 | BL7: U13B 800m | BM7: T10 | BN7: U13B | BO7: 800m | BQ7: =IF(COUNTIF($D$4:$D$20,"A")=0,"-",INDIRECT(CONCATENATE("B",MATCH("A",$D$1:$D$20,0)))) -> Carter Bower-Stead | BR7: =IF(COUNTIF($D$4:$D$20,"B")=0,"-",INDIRECT(CONCATENATE("B",MATCH("B",$D$1:$D$20,0)))) -> - | BS7: =IF(COUNTIF($X$4:$X$20,"A")=0,"-",INDIRECT(CONCATENATE("V",MATCH("A",$X$1:$X$20,0)))) -> Alex Botterill | BT7: =IF(COUNTIF($X$4:$X$20,"B")=0,"-",INDIRECT(CONCATENATE("V",MATCH("B",$X$1:$X$20,0)))) -> - | BU7: =IF(COUNTIF($AR$4:$AR$20,"A")=0,"-",INDIRECT(CONCATENATE("AP",MATCH("A",$AR$1:$AR$20,0)))) -> Billy Dawson | BV7: =IF(COUNTIF($AR$4:$AR$20,"B")=0,"-",INDIRECT(CONCATENATE("AP",MATCH("B",$AR$1:$AR$20,0)))) -> Owen Sage | BW7: Event Cancelled | BX7: No Competitors | BY7: Opening Height Not Cleared | CA7: 5
A8: 5 | B8: Edward Dunbavin | E8: B | I8: A | AP8: Lewis Renton | AS8: A | AV8: A | AZ8: 1 | BB8: A | BK8: 3 | BL8: U15B 800m | BM8: T11 | BN8: U15B | BO8: 800m | BQ8: =IF(COUNTIF($D$24:$D$48,"A")=0,"-",INDIRECT(CONCATENATE("B",MATCH("A",$D$21:$D$48,0)+20))) -> Sam Convery | BR8: =IF(COUNTIF($D$24:$D$48,"B")=0,"-",INDIRECT(CONCATENATE("B",MATCH("B",$D$21:$D$48,0)+20))) -> Ben Read | BS8: =IF(COUNTIF($X$24:$X$48,"A")=0,"-",INDIRECT(CONCATENATE("V",MATCH("A",$X$21:$X$48,0)+20))) -> Phil Nesom | BT8: =IF(COUNTIF($X$24:$X$48,"B")=0,"-",INDIRECT(CONCATENATE("V",MATCH("B",$X$21:$X$48,0)+20))) -> Tom Hobson | BU8: =IF(COUNTIF($AR$24:$AR$48,"A")=0,"-",INDIRECT(CONCATENATE("AP",MATCH("A",$AR$21:$AR$48,0)+20))) -> John Hubball | BV8: =IF(COUNTIF($AR$24:$AR$48,"B")=0,"-",INDIRECT(CONCATENATE("AP",MATCH("B",$AR$21:$AR$48,0)+20))) -> Jack Allison | BW8: Event Cancelled | BX8: No Competitors | BY8: Opening Height Not Cleared | CA8: 6
A9: 6 | B9: Barnaby Drew | L9: 4 | N9: B | R9: B | AP9: Mitchell Cox | AZ9: 2 | BK9: 4 | BL9: U17M 800m | BM9: T12 | BN9: U17M | BO9: 800m | BQ9: =IF(COUNTIF($D$52:$D$77,"A")=0,"-",INDIRECT(CONCATENATE("B",MATCH("A",$D$49:$D$77,0)+48))) -> Matthew O'Connnor | BR9: =IF(COUNTIF($D$52:$D$77,"B")=0,"-",INDIRECT(CONCATENATE("B",MATCH("B",$D$49:$D$77,0)+48))) -> James Saxton | BS9: =IF(COUNTIF($X$52:$X$77,"A")=0,"-",INDIRECT(CONCATENATE("V",MATCH("A",$X$49:$X$77,0)+48))) -> Peirre Weller | BT9: =IF(COUNTIF($X$52:$X$77,"B")=0,"-",INDIRECT(CONCATENATE("V",MATCH("B",$X$49:$X$77,0)+48))) -> - | BU9: =IF(COUNTIF($AR$52:$AR$77,"A")=0,"-",INDIRECT(CONCATENATE("AP",MATCH("A",$AR$49:$AR$77,0)+48))) -> Luke Cooper | BV9: =IF(COUNTIF($AR$52:$AR$77,"B")=0,"-",INDIRECT(CONCATENATE("AP",MATCH("B",$AR$49:$AR$77,0)+48))) -> - | BW9: Event Cancelled | BX9: No Competitors | BY9: Opening Height Not Cleared | CA9: 7
A10: 7 | AP10: Owen Sage | AQ10: A | AR10: B | BF10: A | BL10: U17M 100m | BM10: T16 | BN10: U17M | BO10: 100m | BQ10: =IF(COUNTIF($E$52:$E$77,"A")=0,"-",INDIRECT(CONCATENATE("B",MATCH("A",$E$49:$E$77,0)+48))) -> James McBorrough | BR10: =IF(COUNTIF($E$52:$E$77,"B")=0,"-",INDIRECT(CONCATENATE("B",MATCH("B",$E$49:$E$77,0)+48))) -> Oliver Edmunds | BS10: =IF(COUNTIF($Y$52:$Y$77,"A")=0,"-",INDIRECT(CONCATENATE("V",MATCH("A",$Y$49:$Y$77,0)+48))) -> Ash Hart | BT10: =IF(COUNTIF($Y$52:$Y$77,"B")=0,"-",INDIRECT(CONCATENATE("V",MATCH("B",$Y$49:$Y$77,0)+48))) -> James Stanton | BU10: =IF(COUNTIF($AS$52:$AS$77,"A")=0,"-",INDIRECT(CONCATENATE("AP",MATCH("A",$AS$49:$AS$77,0)+48))) -> Elliott Hurley | BV10: =IF(COUNTIF($AS$52:$AS$77,"B")=0,"-",INDIRECT(CONCATENATE("AP",MATCH("B",$AS$49:$AS$77,0)+48))) -> Lamar Lewis | BW10: Event Cancelled | BX10: No Competitors | BY10: Opening Height Not Cleared | CA10: 8
A11: 8 | AP11: Jack Hirst | BL11: U15B 100m | BM11: T17 | BN11: U15B | BO11: 100m | BQ11: =IF(COUNTIF($E$24:$E$48,"A")=0,"-",INDIRECT(CONCATENATE("B",MATCH("A",$E$21:$E$48,0)+20))) -> Declan Sheehan | BR11: =IF(COUNTIF($E$24:$E$48,"B")=0,"-",INDIRECT(CONCATENATE("B",MATCH("B",$E$21:$E$48,0)+20))) -> Robert Sanderson | BS11: =IF(COUNTIF($Y$24:$Y$48,"A")=0,"-",INDIRECT(CONCATENATE("V",MATCH("A",$Y$21:$Y$48,0)+20))) -> Chris Searle | BT11: =IF(COUNTIF($Y$24:$Y$48,"B")=0,"-",INDIRECT(CONCATENATE("V",MATCH("B",$Y$21:$Y$48,0)+20))) -> Luke Nichols | BU11: =IF(COUNTIF($AS$24:$AS$48,"A")=0,"-",INDIRECT(CONCATENATE("AP",MATCH("A",$AS$21:$AS$48,0)+20))) -> Jack Gape | BV11: =IF(COUNTIF($AS$24:$AS$48,"B")=0,"-",INDIRECT(CONCATENATE("AP",MATCH("B",$AS$21:$AS$48,0)+20))) -> Finlay Fuller | BW11: Event Cancelled | BX11: No Competitors | BY11: Opening Height Not Cleared | CA11: 9
A12: 9 | BL12: U13B 100m | BM12: T18 | BN12: U13B | BO12: 100m | BQ12: =IF(COUNTIF($E$4:$E$20,"A")=0,"-",INDIRECT(CONCATENATE("B",MATCH("A",$E$1:$E$20,0)))) -> Harry England | BR12: =IF(COUNTIF($E$4:$E$20,"B")=0,"-",INDIRECT(CONCATENATE("B",MATCH("B",$E$1:$E$20,0)))) -> Edward Dunbavin | BS12: =IF(COUNTIF($Y$4:$Y$20,"A")=0,"-",INDIRECT(CONCATENATE("V",MATCH("A",$Y$1:$Y$20,0)))) -> Matt Hobson | BT12: =IF(COUNTIF($Y$4:$Y$20,"B")=0,"-",INDIRECT(CONCATENATE("V",MATCH("B",$Y$1:$Y$20,0)))) -> - | BU12: =IF(COUNTIF($AS$4:$AS$20,"A")=0,"-",INDIRECT(CONCATENATE("AP",MATCH("A",$AS$1:$AS$20,0)))) -> Lewis Renton | BV12: =IF(COUNTIF($AS$4:$AS$20,"B")=0,"-",INDIRECT(CONCATENATE("AP",MATCH("B",$AS$1:$AS$20,0)))) -> Dominic Peterson | BW12: Event Cancelled | BX12: No Competitors | BY12: Opening Height Not Cleared | CA12: 10
A13: 10 | BL13: U17M 3000m | BM13: T19 | BN13: U17M | BO13: 3000m | BQ13: =IF(COUNTIF($F$52:$F$77,"A")=0,"-",INDIRECT(CONCATENATE("B",MATCH("A",$F$49:$F$77,0)+48))) -> Jack Mitchell | BR13: =IF(COUNTIF($F$52:$F$77,"B")=0,"-",INDIRECT(CONCATENATE("B",MATCH("B",$F$49:$F$77,0)+48))) -> - | BS13: =IF(COUNTIF($Z$52:$Z$77,"A")=0,"-",INDIRECT(CONCATENATE("V",MATCH("A",$Z$49:$Z$77,0)+48))) -> - | BT13: =IF(COUNTIF($Z$52:$Z$77,"B")=0,"-",INDIRECT(CONCATENATE("V",MATCH("B",$Z$49:$Z$77,0)+48))) -> - | BU13: =IF(COUNTIF($AT$52:$AT$77,"A")=0,"-",INDIRECT(CONCATENATE("AP",MATCH("A",$AT$49:$AT$77,0)+48))) -> Daniel Harrison | BV13: =IF(COUNTIF($AT$52:$AT$77,"B")=0,"-",INDIRECT(CONCATENATE("AP",MATCH("B",$AT$49:$AT$77,0)+48))) -> - | BW13: Event Cancelled | BX13: No Competitors | BY13: Opening Height Not Cleared | CA13: 11
A14: 11 | BL14: U17M 400m H | BM14: T22 | BN14: U17M | BO14: 400m H | BQ14: =IF(COUNTIF($G$52:$G$77,"A")=0,"-",INDIRECT(CONCATENATE("B",MATCH("A",$G$49:$G$77,0)+48))) -> George Brown | BR14: =IF(COUNTIF($G$52:$G$77,"B")=0,"-",INDIRECT(CONCATENATE("B",MATCH("B",$G$49:$G$77,0)+48))) -> Oliver Edmunds | BS14: =IF(COUNTIF($AA$52:$AA$77,"A")=0,"-",INDIRECT(CONCATENATE("V",MATCH("A",$AA$49:$AA$77,0)+48))) -> James Stanton | BT14: =IF(COUNTIF($AA$52:$AA$77,"B")=0,"-",INDIRECT(CONCATENATE("V",MATCH("B",$AA$49:$AA$77,0)+48))) -> - | BU14: =IF(COUNTIF($AU$52:$AU$77,"A")=0,"-",INDIRECT(CONCATENATE("AP",MATCH("A",$AU$49:$AU$77,0)+48))) -> - | BV14: =IF(COUNTIF($AU$52:$AU$77,"B")=0,"-",INDIRECT(CONCATENATE("AP",MATCH("B",$AU$49:$AU$77,0)+48))) -> - | BW14: Event Cancelled | BX14: No Competitors | BY14: Opening Height Not Cleared | CA14: 12
A15: 12 | BL15: U13B 200m | BM15: T24 | BN15: U13B | BO15: 200m | BQ15: =IF(COUNTIF($H$4:$H$20,"A")=0,"-",INDIRECT(CONCATENATE("B",MATCH("A",$H$1:$H$20,0)))) -> Alexander Rogers | BR15: =IF(COUNTIF($H$4:$H$20,"B")=0,"-",INDIRECT(CONCATENATE("B",MATCH("B",$H$1:$H$20,0)))) -> Carter Bower-Stead | BS15: =IF(COUNTIF($AB$4:$AB$20,"A")=0,"-",INDIRECT(CONCATENATE("V",MATCH("A",$AB$1:$AB$20,0)))) -> Alex Botterill | BT15: =IF(COUNTIF($AB$4:$AB$20,"B")=0,"-",INDIRECT(CONCATENATE("V",MATCH("B",$AB$1:$AB$20,0)))) -> - | BU15: =IF(COUNTIF($AV$4:$AV$20,"A")=0,"-",INDIRECT(CONCATENATE("AP",MATCH("A",$AV$1:$AV$20,0)))) -> Lewis Renton | BV15: =IF(COUNTIF($AV$4:$AV$20,"B")=0,"-",INDIRECT(CONCATENATE("AP",MATCH("B",$AV$1:$AV$20,0)))) -> Billy Dawson | BW15: Event Cancelled | BX15: No Competitors | BY15: Opening Height Not Cleared | CA15: 13
A16: 13 | BL16: U15B 200m | BM16: T26 | BN16: U15B | BO16: 200m | BQ16: =IF(COUNTIF($H$24:$H$48,"A")=0,"-",INDIRECT(CONCATENATE("B",MATCH("A",$H$21:$H$48,0)+20))) -> Patrick Thackray | BR16: =IF(COUNTIF($H$24:$H$48,"B")=0,"-",INDIRECT(CONCATENATE("B",MATCH("B",$H$21:$H$48,0)+20))) -> Ben Read | BS16: =IF(COUNTIF($AB$24:$AB$48,"A")=0,"-",INDIRECT(CONCATENATE("V",MATCH("A",$AB$21:$AB$48,0)+20))) -> Chris Searle | BT16: =IF(COUNTIF($AB$24:$AB$48,"B")=0,"-",INDIRECT(CONCATENATE("V",MATCH("B",$AB$21:$AB$48,0)+20))) -> Tom Hobson | BU16: =IF(COUNTIF($AV$24:$AV$48,"A")=0,"-",INDIRECT(CONCATENATE("AP",MATCH("A",$AV$21:$AV$48,0)+20))) -> Finlay Fuller | BV16: =IF(COUNTIF($AV$24:$AV$48,"B")=0,"-",INDIRECT(CONCATENATE("AP",MATCH("B",$AV$21:$AV$48,0)+20))) -> Thomas Harrison | BW16: Event Cancelled | BX16: No Competitors | BY16: Opening Height Not Cleared | CA16: 14
A17: 14 | BL17: U17M 200m | BM17: T28 | BN17: U17M | BO17: 200m | BQ17: =IF(COUNTIF($H$52:$H$77,"A")=0,"-",INDIRECT(CONCATENATE("B",MATCH("A",$H$49:$H$77,0)+48))) -> James McBorrough | BR17: =IF(COUNTIF($H$52:$H$77,"B")=0,"-",INDIRECT(CONCATENATE("B",MATCH("B",$H$49:$H$77,0)+48))) -> Oliver Edmunds | BS17: =IF(COUNTIF($AB$52:$AB$77,"A")=0,"-",INDIRECT(CONCATENATE("V",MATCH("A",$AB$49:$AB$77,0)+48))) -> - | BT17: =IF(COUNTIF($AB$52:$AB$77,"B")=0,"-",INDIRECT(CONCATENATE("V",MATCH("B",$AB$49:$AB$77,0)+48))) -> - | BU17: =IF(COUNTIF($AV$52:$AV$77,"A")=0,"-",INDIRECT(CONCATENATE("AP",MATCH("A",$AV$49:$AV$77,0)+48))) -> Aqib Javed | BV17: =IF(COUNTIF($AV$52:$AV$77,"B")=0,"-",INDIRECT(CONCATENATE("AP",MATCH("B",$AV$49:$AV$77,0)+48))) -> Liam Braithwaite | BW17: Event Cancelled | BX17: No Competitors | BY17: Opening Height Not Cleared | CA17: 15
A18: 15 | BL18: U13B 1500m | BM18: T30 | BN18: U13B | BO18: 1500m | BQ18: =IF(COUNTIF($I$4:$I$20,"A")=0,"-",INDIRECT(CONCATENATE("B",MATCH("A",$I$1:$I$20,0)))) -> Edward Dunbavin | BR18: =IF(COUNTIF($I$4:$I$20,"B")=0,"-",INDIRECT(CONCATENATE("B",MATCH("B",$I$1:$I$20,0)))) -> - | BS18: =IF(COUNTIF($AC$4:$AC$20,"A")=0,"-",INDIRECT(CONCATENATE("V",MATCH("A",$AC$1:$AC$20,0)))) -> - | BT18: =IF(COUNTIF($AC$4:$AC$20,"B")=0,"-",INDIRECT(CONCATENATE("V",MATCH("B",$AC$1:$AC$20,0)))) -> - | BU18: =IF(COUNTIF($AW$4:$AW$20,"A")=0,"-",INDIRECT(CONCATENATE("AP",MATCH("A",$AW$1:$AW$20,0)))) -> Alex Booth | BV18: =IF(COUNTIF($AW$4:$AW$20,"B")=0,"-",INDIRECT(CONCATENATE("AP",MATCH("B",$AW$1:$AW$20,0)))) -> Dominic Peterson | BW18: Event Cancelled | BX18: No Competitors | BY18: Opening Height Not Cleared | CA18: 16
A19: 16 | BL19: U15B 1500m | BM19: T32 | BN19: U15B | BO19: 1500m | BQ19: =IF(COUNTIF($I$24:$I$48,"A")=0,"-",INDIRECT(CONCATENATE("B",MATCH("A",$I$21:$I$48,0)+20))) -> William Ingram | BR19: =IF(COUNTIF($I$24:$I$48,"B")=0,"-",INDIRECT(CONCATENATE("B",MATCH("B",$I$21:$I$48,0)+20))) -> George Heppinstall | BS19: =IF(COUNTIF($AC$24:$AC$48,"A")=0,"-",INDIRECT(CONCATENATE("V",MATCH("A",$AC$21:$AC$48,0)+20))) -> Ben Lewis | BT19: =IF(COUNTIF($AC$24:$AC$48,"B")=0,"-",INDIRECT(CONCATENATE("V",MATCH("B",$AC$21:$AC$48,0)+20))) -> James Wright | BU19: =IF(COUNTIF($AW$24:$AW$48,"A")=0,"-",INDIRECT(CONCATENATE("AP",MATCH("A",$AW$21:$AW$48,0)+20))) -> Ben Tootle | BV19: =IF(COUNTIF($AW$24:$AW$48,"B")=0,"-",INDIRECT(CONCATENATE("AP",MATCH("B",$AW$21:$AW$48,0)+20))) -> Kieran Savage | BW19: Event Cancelled | BX19: No Competitors | BY19: Opening Height Not Cleared | CA19: 17
A20: 17 | BL20: U17M 1500m | BM20: T34 | BN20: U17M | BO20: 1500m | BQ20: =IF(COUNTIF($I$52:$I$77,"A")=0,"-",INDIRECT(CONCATENATE("B",MATCH("A",$I$49:$I$77,0)+48))) -> Steven Eastwood | BR20: =IF(COUNTIF($I$52:$I$77,"B")=0,"-",INDIRECT(CONCATENATE("B",MATCH("B",$I$49:$I$77,0)+48))) -> Daniel Franks | BS20: =IF(COUNTIF($AC$52:$AC$77,"A")=0,"-",INDIRECT(CONCATENATE("V",MATCH("A",$AC$49:$AC$77,0)+48))) -> - | BT20: =IF(COUNTIF($AC$52:$AC$77,"B")=0,"-",INDIRECT(CONCATENATE("V",MATCH("B",$AC$49:$AC$77,0)+48))) -> - | BU20: =IF(COUNTIF($AW$52:$AW$77,"A")=0,"-",INDIRECT(CONCATENATE("AP",MATCH("A",$AW$49:$AW$77,0)+48))) -> Sean Flanagan | BV20: =IF(COUNTIF($AW$52:$AW$77,"B")=0,"-",INDIRECT(CONCATENATE("AP",MATCH("B",$AW$49:$AW$77,0)+48))) -> Daniel Harrison | BW20: Event Cancelled | BX20: No Competitors | BY20: Opening Height Not Cleared | CA20: 18
BL21: U15B 400m | BM21: T36 | BN21: U15B | BO21: 400m | BQ21: =IF(COUNTIF($J$24:$J$48,"A")=0,"-",INDIRECT(CONCATENATE("B",MATCH("A",$J$21:$J$48,0)+20))) -> Robert Sanderson | BR21: =IF(COUNTIF($J$24:$J$48,"B")=0,"-",INDIRECT(CONCATENATE("B",MATCH("B",$J$21:$J$48,0)+20))) -> Logan Gibb | BS21: =IF(COUNTIF($AD$24:$AD$48,"A")=0,"-",INDIRECT(CONCATENATE("V",MATCH("A",$AD$21:$AD$48,0)+20))) -> Tom Wood | BT21: =IF(COUNTIF($AD$24:$AD$48,"B")=0,"-",INDIRECT(CONCATENATE("V",MATCH("B",$AD$21:$AD$48,0)+20))) -> Phil Nesom | BU21: =IF(COUNTIF($AX$24:$AX$48,"A")=0,"-",INDIRECT(CONCATENATE("AP",MATCH("A",$AX$21:$AX$48,0)+20))) -> Jack Allison | BV21: =IF(COUNTIF($AX$24:$AX$48,"B")=0,"-",INDIRECT(CONCATENATE("AP",MATCH("B",$AX$21:$AX$48,0)+20))) -> John Hubball | BW21: Event Cancelled | BX21: No Competitors | BY21: Opening Height Not Cleared | CA21: 19
BL22: U17M 400m | BM22: T37 | BN22: U17M | BO22: 400m | BQ22: =IF(COUNTIF($J$52:$J$77,"A")=0,"-",INDIRECT(CONCATENATE("B",MATCH("A",$J$49:$J$77,0)+48))) -> Matthew O'Connnor | BR22: =IF(COUNTIF($J$52:$J$77,"B")=0,"-",INDIRECT(CONCATENATE("B",MATCH("B",$J$49:$J$77,0)+48))) -> James Saxton | BS22: =IF(COUNTIF($AD$52:$AD$77,"A")=0,"-",INDIRECT(CONCATENATE("V",MATCH("A",$AD$49:$AD$77,0)+48))) -> Ash Hart | BT22: =IF(COUNTIF($AD$52:$AD$77,"B")=0,"-",INDIRECT(CONCATENATE("V",MATCH("B",$AD$49:$AD$77,0)+48))) -> Peirre Weller | BU22: =IF(COUNTIF($AX$52:$AX$77,"A")=0,"-",INDIRECT(CONCATENATE("AP",MATCH("A",$AX$49:$AX$77,0)+48))) -> Luke Cooper | BV22: =IF(COUNTIF($AX$52:$AX$77,"B")=0,"-",INDIRECT(CONCATENATE("AP",MATCH("B",$AX$49:$AX$77,0)+48))) -> Liam Braithwaite | BW22: Event Cancelled | BX22: No Competitors | BY22: Opening Height Not Cleared | CA22: 20
B23: =CONCATENATE(Handbook!$Z$1," Athletes") -> U15B Athletes | V23: =B23 -> U15B Athletes | AP23: =B23 -> U15B Athletes | BL23: U17M 4 x 100m Relay | BM23: T39 | BN23: U17M | BO23: 4 x 100m Relay | BQ23: =IF(COUNTIF($L$52:$L$77,"1")=0,"-",INDIRECT(CONCATENATE("B",MATCH(1,$L$49:$L$77,0)+48))) -> Andrew Lorkins | BR23: =IF(COUNTIF($L$52:$L$77,"2")=0,"-",INDIRECT(CONCATENATE("B",MATCH(2,$L$49:$L$77,0)+48))) -> George Brown | BS23: =IF(COUNTIF($AF$52:$AF$77,"1")=0,"-",INDIRECT(CONCATENATE("V",MATCH(1,$AF$49:$AF$77,0)+48))) -> Adam Robinson | BT23: =IF(COUNTIF($AF$52:$AF$77,"2")=0,"-",INDIRECT(CONCATENATE("V",MATCH(2,$AF$49:$AF$77,0)+48))) -> Peirre Weller | BU23: =IF(COUNTIF($AZ$52:$AZ$77,"1")=0,"-",INDIRECT(CONCATENATE("AP",MATCH(1,$AZ$49:$AZ$77,0)+48))) -> Aqib Javed | BV23: =IF(COUNTIF($AZ$52:$AZ$77,"2")=0,"-",INDIRECT(CONCATENATE("AP",MATCH(2,$AZ$49:$AZ$77,0)+48))) -> Connor Morley | BW23: Event Cancelled | BX23: No Competitors | BY23: Opening Height Not Cleared | CA23: 21
A24: 18 | B24: Patrick Thackray | C24: A | H24: A | L24: 1 | T24: A | V24: Luke Nichols | Y24: B | AF24: 2 | AM24: A | AN24: B | AP24: Ben Tootle | AW24: A | BA24: 3 | BQ24: =IF(COUNTIF($L$52:$L$77,"3")=0,"-",INDIRECT(CONCATENATE("B",MATCH(3,$L$49:$L$77,0)+48))) -> James McBorrough | BR24: =IF(COUNTIF($L$52:$L$77,"4")=0,"-",INDIRECT(CONCATENATE("B",MATCH(4,$L$49:$L$77,0)+48))) -> Oliver Edmunds | BS24: =IF(COUNTIF($AF$52:$AF$77,"3")=0,"-",INDIRECT(CONCATENATE("V",MATCH(3,$AF$49:$AF$77,0)+48))) -> James Stanton | BT24: =IF(COUNTIF($AF$52:$AF$77,"4")=0,"-",INDIRECT(CONCATENATE("V",MATCH(4,$AF$49:$AF$77,0)+48))) -> Ash Hart | BU24: =IF(COUNTIF($AZ$52:$AZ$77,"3")=0,"-",INDIRECT(CONCATENATE("AP",MATCH(3,$AZ$49:$AZ$77,0)+48))) -> Lamar Lewis | BV24: =IF(COUNTIF($AZ$52:$AZ$77,"4")=0,"-",INDIRECT(CONCATENATE("AP",MATCH(4,$AZ$49:$AZ$77,0)+48))) -> Elliott Hurley | BW24: Event Cancelled | BX24: No Competitors | BY24: Opening Height Not Cleared | CA24: 22
A25: 19 | B25: Declan Sheehan | C25: B | E25: A | N25: A | V25: Ben Lewis | AC25: A | AG25: 3 | AO25: B | AP25: Dominic Owens | BL25: U15B 4 x 100m Relay | BM25: =VLOOKUP(BL25,eventno2,13,FALSE) -> T41 | BN25: =VLOOKUP(BM25,eventno,2,FALSE) -> U15B | BO25: =VLOOKUP($BM25,eventno,3,FALSE) -> 4 x 100m Relay | BQ25: =IF(COUNTIF($L$24:$L$48,"1")=0,"-",INDIRECT(CONCATENATE("B",MATCH(1,$L$21:$L$48,0)+20))) -> Patrick Thackray | BR25: =IF(COUNTIF($L$24:$L$48,"2")=0,"-",INDIRECT(CONCATENATE("B",MATCH(2,$L$21:$L$48,0)+20))) -> Robert Sanderson | BS25: =IF(COUNTIF($AF$24:$AF$48,"1")=0,"-",INDIRECT(CONCATENATE("V",MATCH(1,$AF$21:$AF$48,0)+20))) -> Chris Searle | BT25: =IF(COUNTIF($AF$24:$AF$48,"2")=0,"-",INDIRECT(CONCATENATE("V",MATCH(2,$AF$21:$AF$48,0)+20))) -> Luke Nichols | BU25: =IF(COUNTIF($AZ$24:$AZ$48,"1")=0,"-",INDIRECT(CONCATENATE("AP",MATCH(1,$AZ$21:$AZ$48,0)+20))) -> Jacob Fincham-Dukes | BV25: =IF(COUNTIF($AZ$24:$AZ$48,"2")=0,"-",INDIRECT(CONCATENATE("AP",MATCH(2,$AZ$21:$AZ$48,0)+20))) -> Thomas Harrison | BW25: Event Cancelled | BX25: No Competitors | BY25: Opening Height Not Cleared | CA25: 23
A26: 20 | B26: Sam Convery | D26: A | M26: 1 | T26: B | V26: James Wright | AC26: B | AG26: 4 | AJ26: A | AP26: Finlay Fuller | AS26: B | AV26: A | AZ26: 4 | BB26: A | BQ26: =IF(COUNTIF($L$24:$L$48,"3")=0,"-",INDIRECT(CONCATENATE("B",MATCH(3,$L$21:$L$48,0)+20))) -> Logan Gibb | BR26: =IF(COUNTIF($L$24:$L$48,"4")=0,"-",INDIRECT(CONCATENATE("B",MATCH(4,$L$21:$L$48,0)+20))) -> George Heppinstall | BS26: =IF(COUNTIF($AF$24:$AF$48,"3")=0,"-",INDIRECT(CONCATENATE("V",MATCH(3,$AF$21:$AF$48,0)+20))) -> Tom Hobson | BT26: =IF(COUNTIF($AF$24:$AF$48,"4")=0,"-",INDIRECT(CONCATENATE("V",MATCH(4,$AF$21:$AF$48,0)+20))) -> Matthew Richardson | BU26: =IF(COUNTIF($AZ$24:$AZ$48,"3")=0,"-",INDIRECT(CONCATENATE("AP",MATCH(3,$AZ$21:$AZ$48,0)+20))) -> Jack Gape | BV26: =IF(COUNTIF($AZ$24:$AZ$48,"4")=0,"-",INDIRECT(CONCATENATE("AP",MATCH(4,$AZ$21:$AZ$48,0)+20))) -> Finlay Fuller | BW26: Event Cancelled | BX26: No Competitors | BY26: Opening Height Not Cleared | CA26: 24
A27: 21 | B27: Ben Read | D27: B | H27: B | M27: 2 | N27: B | V27: Jonny Swain | AL27: A | AN27: A | AO27: A | AP27: George Armstrong | BG27: A | BH27: A | BI27: A | BL27: U13B 4 x 100m Relay | BM27: =VLOOKUP(BL27,eventno2,13,FALSE) -> T43 | BN27: =VLOOKUP(BM27,eventno,2,FALSE) -> U13B | BO27: =VLOOKUP($BM27,eventno,3,FALSE) -> 4 x 100m Relay | BQ27: =IF(COUNTIF($L$4:$L$20,"1")=0,"-",INDIRECT(CONCATENATE("B",MATCH(1,$L$1:$L$20,0)))) -> Harry England | BR27: =IF(COUNTIF($L$4:$L$20,"2")=0,"-",INDIRECT(CONCATENATE("B",MATCH(2,$L$1:$L$20,0)))) -> Alexander Rogers | BS27: =IF(COUNTIF($AF$4:$AF$20,"1")=0,"-",INDIRECT(CONCATENATE("V",MATCH(1,$AF$1:$AF$20,0)))) -> Alex Botterill | BT27: =IF(COUNTIF($AF$4:$AF$20,"2")=0,"-",INDIRECT(CONCATENATE("V",MATCH(2,$AF$1:$AF$20,0)))) -> Matt Hobson | BU27: =IF(COUNTIF($AZ$4:$AZ$20,"1")=0,"-",INDIRECT(CONCATENATE("AP",MATCH(1,$AZ$1:$AZ$20,0)))) -> Lewis Renton | BV27: =IF(COUNTIF($AZ$4:$AZ$20,"2")=0,"-",INDIRECT(CONCATENATE("AP",MATCH(2,$AZ$1:$AZ$20,0)))) -> Mitchell Cox | BW27: Event Cancelled | BX27: No Competitors | BY27: Opening Height Not Cleared | CA27: 25
A28: 22 | B28: Robert Sanderson | E28: B | J28: A | L28: 2 | V28: Chris Searle | Y28: A | AB28: A | AF28: 1 | AH28: A | AP28: Harris Hameed | BF28: A | BG28: B | BI28: B | BQ28: =IF(COUNTIF($L$4:$L$20,"3")=0,"-",INDIRECT(CONCATENATE("B",MATCH(3,$L$1:$L$20,0)))) -> Carter Bower-Stead | BR28: =IF(COUNTIF($L$4:$L$20,"4")=0,"-",INDIRECT(CONCATENATE("B",MATCH(4,$L$1:$L$20,0)))) -> Barnaby Drew | BS28: =IF(COUNTIF($AF$4:$AF$20,"3")=0,"-",INDIRECT(CONCATENATE("V",MATCH(3,$AF$1:$AF$20,0)))) -> - | BT28: =IF(COUNTIF($AF$4:$AF$20,"4")=0,"-",INDIRECT(CONCATENATE("V",MATCH(4,$AF$1:$AF$20,0)))) -> - | BU28: =IF(COUNTIF($AZ$4:$AZ$20,"3")=0,"-",INDIRECT(CONCATENATE("AP",MATCH(3,$AZ$1:$AZ$20,0)))) -> Dominic Peterson | BV28: =IF(COUNTIF($AZ$4:$AZ$20,"4")=0,"-",INDIRECT(CONCATENATE("AP",MATCH(4,$AZ$1:$AZ$20,0)))) -> Billy Dawson | BW28: Event Cancelled | BX28: No Competitors | BY28: Opening Height Not Cleared | CA28: 26
A29: 23 | B29: William Ingram | I29: A | M29: 4 | R29: A | U29: B | V29: Tom Hobson | X29: B | AB29: B | AF29: 3 | AP29: Jack Allison | AR29: B | AX29: A | BA29: 4 | BL29: U17M 1500m S/Chase | BM29: =VLOOKUP(BL29,eventno2,13,FALSE) -> T45 | BN29: =VLOOKUP(BM29,eventno,2,FALSE) -> U17M | BO29: =VLOOKUP($BM29,eventno,3,FALSE) -> 1500m S/Chase | BQ29: =IF(COUNTIF($K$52:$K$77,"A")=0,"-",INDIRECT(CONCATENATE("B",MATCH("A",$K$49:$K$77,0)+48))) -> Jake Worton | BR29: =IF(COUNTIF($K$52:$K$77,"B")=0,"-",INDIRECT(CONCATENATE("B",MATCH("B",$K$49:$K$77,0)+48))) -> Jordan Turner | BS29: =IF(COUNTIF($AE$52:$AE$77,"A")=0,"-",INDIRECT(CONCATENATE("V",MATCH("A",$AE$49:$AE$77,0)+48))) -> - | BT29: =IF(COUNTIF($AE$52:$AE$77,"B")=0,"-",INDIRECT(CONCATENATE("V",MATCH("B",$AE$49:$AE$77,0)+48))) -> - | BU29: =IF(COUNTIF($AY$52:$AY$77,"A")=0,"-",INDIRECT(CONCATENATE("AP",MATCH("A",$AY$49:$AY$77,0)+48))) -> - | BV29: =IF(COUNTIF($AY$52:$AY$77,"B")=0,"-",INDIRECT(CONCATENATE("AP",MATCH("B",$AY$49:$AY$77,0)+48))) -> - | BW29: Event Cancelled | BX29: No Competitors | BY29: Opening Height Not Cleared | CA29: 27
A30: 24 | B30: George Heppinstall | I30: B | L30: 4 | P30: B | S30: B | V30: Tom Wood | W30: A | AD30: A | AG30: 2 | AP30: Jack Gape | AQ30: B | AS30: A | AZ30: 3 | BD30: B | BL30: U15B 4 x 400m Relay | BM30: =VLOOKUP(BL30,eventno2,13,FALSE) -> T46 | BN30: =VLOOKUP(BM30,eventno,2,FALSE) -> U15B | BO30: =VLOOKUP($BM30,eventno,3,FALSE) -> 4 x 400m Relay | BQ30: =IF(COUNTIF($M$24:$M$48,"1")=0,"-",INDIRECT(CONCATENATE("B",MATCH(1,$M$21:$M$48,0)+20))) -> Sam Convery | BR30: =IF(COUNTIF($M$24:$M$48,"2")=0,"-",INDIRECT(CONCATENATE("B",MATCH(2,$M$21:$M$48,0)+20))) -> Ben Read | BS30: =IF(COUNTIF($AG$24:$AG$48,"1")=0,"-",INDIRECT(CONCATENATE("V",MATCH(1,$AG$21:$AG$48,0)+20))) -> Phil Nesom | BT30: =IF(COUNTIF($AG$24:$AG$48,"2")=0,"-",INDIRECT(CONCATENATE("V",MATCH(2,$AG$21:$AG$48,0)+20))) -> Tom Wood | BU30: =IF(COUNTIF($BA$24:$BA$48,"1")=0,"-",INDIRECT(CONCATENATE("AP",MATCH(1,$BA$21:$BA$48,0)+20))) -> Kieran Savage | BV30: =IF(COUNTIF($BA$24:$BA$48,"2")=0,"-",INDIRECT(CONCATENATE("AP",MATCH(2,$BA$21:$BA$48,0)+20))) -> John Hubball | BW30: Event Cancelled | BX30: No Competitors | BY30: Opening Height Not Cleared | CA30: 28
A31: 25 | B31: Logan Gibb | J31: B | L31: 3 | V31: Phil Nesom | W31: B | X31: A | AD31: B | AG31: 1 | AP31: Jacob Fincham-Dukes | AQ31: A | AZ31: 1 | BD31: A | BQ31: =IF(COUNTIF($M$24:$M$48,"3")=0,"-",INDIRECT(CONCATENATE("B",MATCH(3,$M$21:$M$48,0)+20))) -> Andrew Jones | BR31: =IF(COUNTIF($M$24:$M$48,"4")=0,"-",INDIRECT(CONCATENATE("B",MATCH(4,$M$21:$M$48,0)+20))) -> William Ingram | BS31: =IF(COUNTIF($AG$24:$AG$48,"3")=0,"-",INDIRECT(CONCATENATE("V",MATCH(3,$AG$21:$AG$48,0)+20))) -> Ben Lewis | BT31: =IF(COUNTIF($AG$24:$AG$48,"4")=0,"-",INDIRECT(CONCATENATE("V",MATCH(4,$AG$21:$AG$48,0)+20))) -> James Wright | BU31: =IF(COUNTIF($BA$24:$BA$48,"3")=0,"-",INDIRECT(CONCATENATE("AP",MATCH(3,$BA$21:$BA$48,0)+20))) -> Ben Tootle | BV31: =IF(COUNTIF($BA$24:$BA$48,"4")=0,"-",INDIRECT(CONCATENATE("AP",MATCH(4,$BA$21:$BA$48,0)+20))) -> Jack Allison | BW31: Event Cancelled | BX31: No Competitors | BY31: Opening Height Not Cleared | CA31: 29
A32: 26 | B32: Adam Lofthouse | R32: B | V32: Matthew Richardson | AF32: 4 | AH32: B | AJ32: B | AL32: B | AP32: John Hubball | AR32: A | AX32: B | BA32: 2 | BL32: U17M 4 x 400m Relay | BM32: =VLOOKUP(BL32,eventno2,13,FALSE) -> T47 | BN32: =VLOOKUP(BM32,eventno,2,FALSE) -> U17M | BO32: =VLOOKUP($BM32,eventno,3,FALSE) -> 4 x 400m Relay | BQ32: =IF(COUNTIF($M$52:$M$77,"1")=0,"-",INDIRECT(CONCATENATE("B",MATCH(1,$M$49:$M$77,0)+48))) -> Jake Worton | BR32: =IF(COUNTIF($M$52:$M$77,"2")=0,"-",INDIRECT(CONCATENATE("B",MATCH(2,$M$49:$M$77,0)+48))) -> Matthew O'Connnor | BS32: =IF(COUNTIF($AG$52:$AG$77,"1")=0,"-",INDIRECT(CONCATENATE("V",MATCH(1,$AG$49:$AG$77,0)+48))) -> - | BT32: =IF(COUNTIF($AG$52:$AG$77,"2")=0,"-",INDIRECT(CONCATENATE("V",MATCH(2,$AG$49:$AG$77,0)+48))) -> - | BU32: =IF(COUNTIF($BA$52:$BA$77,"1")=0,"-",INDIRECT(CONCATENATE("AP",MATCH(1,$BA$49:$BA$77,0)+48))) -> Matthew Campleman | BV32: =IF(COUNTIF($BA$52:$BA$77,"2")=0,"-",INDIRECT(CONCATENATE("AP",MATCH(2,$BA$49:$BA$77,0)+48))) -> Liam Braithwaite | BW32: Event Cancelled | BX32: No Competitors | BY32: Opening Height Not Cleared | CA32: 30
A33: 27 | B33: Andrew Jones | M33: 3 | Q33: A | S33: A | U33: A | V33: Alex Christie | AP33: Jonathan Webster | BE33: A | BQ33: =IF(COUNTIF($M$52:$M$77,"3")=0,"-",INDIRECT(CONCATENATE("B",MATCH(3,$M$49:$M$77,0)+48))) -> Steven Eastwood | BR33: =IF(COUNTIF($M$52:$M$77,"4")=0,"-",INDIRECT(CONCATENATE("B",MATCH(4,$M$49:$M$77,0)+48))) -> Jack Mitchell | BS33: =IF(COUNTIF($AG$52:$AG$77,"3")=0,"-",INDIRECT(CONCATENATE("V",MATCH(3,$AG$49:$AG$77,0)+48))) -> - | BT33: =IF(COUNTIF($AG$52:$AG$77,"4")=0,"-",INDIRECT(CONCATENATE("V",MATCH(4,$AG$49:$AG$77,0)+48))) -> - | BU33: =IF(COUNTIF($BA$52:$BA$77,"3")=0,"-",INDIRECT(CONCATENATE("AP",MATCH(3,$BA$49:$BA$77,0)+48))) -> Sean Flanagan | BV33: =IF(COUNTIF($BA$52:$BA$77,"4")=0,"-",INDIRECT(CONCATENATE("AP",MATCH(4,$BA$49:$BA$77,0)+48))) -> Luke Cooper | BW33: Event Cancelled | BX33: No Competitors | BY33: Opening Height Not Cleared | CA33: 31
A34: 28 | AP34: Kieran Savage | AW34: B | BA34: 1 | BH34: B | BL34: U13B Long Jump | BM34: =VLOOKUP(BL34,eventno2,13,FALSE) -> F1 | BN34: =VLOOKUP(BM34,eventno,2,FALSE) -> U13B | BO34: =VLOOKUP($BM34,eventno,3,FALSE) -> Long Jump | BQ34: =IF(COUNTIF($N$4:$N$20,"A")=0,"-",INDIRECT(CONCATENATE("B",MATCH("A",$N$1:$N$20,0)))) -> Harry England | BR34: =IF(COUNTIF($N$4:$N$20,"B")=0,"-",INDIRECT(CONCATENATE("B",MATCH("B",$N$1:$N$20,0)))) -> Barnaby Drew | BS34: =IF(COUNTIF($AH$4:$AH$20,"A")=0,"-",INDIRECT(CONCATENATE("V",MATCH("A",$AH$1:$AH$20,0)))) -> Matt Hobson | BT34: =IF(COUNTIF($AH$4:$AH$20,"B")=0,"-",INDIRECT(CONCATENATE("V",MATCH("B",$AH$1:$AH$20,0)))) -> - | BU34: =IF(COUNTIF($BB$4:$BB$20,"A")=0,"-",INDIRECT(CONCATENATE("AP",MATCH("A",$BB$1:$BB$20,0)))) -> Lewis Renton | BV34: =IF(COUNTIF($BB$4:$BB$20,"B")=0,"-",INDIRECT(CONCATENATE("AP",MATCH("B",$BB$1:$BB$20,0)))) -> Khalil Abdelaziz | BW34: Event Cancelled | BX34: No Competitors | BY34: Opening Height Not Cleared | CA34: 32
A35: 29 | AP35: Louie Hurley | BL35: U17M High Jump | BM35: F2 | BN35: U17M | BO35: High Jump | BQ35: =IF(COUNTIF($P$52:$P$77,"A")=0,"-",INDIRECT(CONCATENATE("B",MATCH("A",$P$49:$P$77,0)+48))) -> Mark Stringer | BR35: =IF(COUNTIF($P$52:$P$77,"B")=0,"-",INDIRECT(CONCATENATE("B",MATCH("B",$P$49:$P$77,0)+48))) -> - | BS35: =IF(COUNTIF($AJ$52:$AJ$77,"A")=0,"-",INDIRECT(CONCATENATE("V",MATCH("A",$AJ$49:$AJ$77,0)+48))) -> - | BT35: =IF(COUNTIF($AJ$52:$AJ$77,"B")=0,"-",INDIRECT(CONCATENATE("V",MATCH("B",$AJ$49:$AJ$77,0)+48))) -> - | BU35: =IF(COUNTIF($BD$52:$BD$77,"A")=0,"-",INDIRECT(CONCATENATE("AP",MATCH("A",$BD$49:$BD$77,0)+48))) -> Connor Morley | BV35: =IF(COUNTIF($BD$52:$BD$77,"B")=0,"-",INDIRECT(CONCATENATE("AP",MATCH("B",$BD$49:$BD$77,0)+48))) -> Dylan Bradley | BW35: Event Cancelled | BX35: No Competitors | BY35: Opening Height Not Cleared | CA35: 33
A36: 30 | AP36: Thomas Harrison | AV36: B | AZ36: 2 | BB36: B | BF36: B | BL36: U15B High Jump | BM36: F3 | BN36: U15B | BO36: High Jump | BQ36: =IF(COUNTIF($P$24:$P$48,"A")=0,"-",INDIRECT(CONCATENATE("B",MATCH("A",$P$21:$P$48,0)+20))) -> - | BR36: =IF(COUNTIF($P$24:$P$48,"B")=0,"-",INDIRECT(CONCATENATE("B",MATCH("B",$P$21:$P$48,0)+20))) -> George Heppinstall | BS36: =IF(COUNTIF($AJ$24:$AJ$48,"A")=0,"-",INDIRECT(CONCATENATE("V",MATCH("A",$AJ$21:$AJ$48,0)+20))) -> James Wright | BT36: =IF(COUNTIF($AJ$24:$AJ$48,"B")=0,"-",INDIRECT(CONCATENATE("V",MATCH("B",$AJ$21:$AJ$48,0)+20))) -> Matthew Richardson | BU36: =IF(COUNTIF($BD$24:$BD$48,"A")=0,"-",INDIRECT(CONCATENATE("AP",MATCH("A",$BD$21:$BD$48,0)+20))) -> Jacob Fincham-Dukes | BV36: =IF(COUNTIF($BD$24:$BD$48,"B")=0,"-",INDIRECT(CONCATENATE("AP",MATCH("B",$BD$21:$BD$48,0)+20))) -> Jack Gape | BW36: Event Cancelled | BX36: No Competitors | BY36: Opening Height Not Cleared | CA36: 34
A37: 31 | BL37: U15B Hammer | BM37: F4 | BN37: U15B | BO37: Hammer | BQ37: =IF(COUNTIF($U$24:$U$48,"A")=0,"-",INDIRECT(CONCATENATE("B",MATCH("A",$U$21:$U$48,0)+20))) -> Andrew Jones | BR37: =IF(COUNTIF($U$24:$U$48,"B")=0,"-",INDIRECT(CONCATENATE("B",MATCH("B",$U$21:$U$48,0)+20))) -> William Ingram | BS37: =IF(COUNTIF($AO$24:$AO$48,"A")=0,"-",INDIRECT(CONCATENATE("V",MATCH("A",$AO$21:$AO$48,0)+20))) -> Jonny Swain | BT37: =IF(COUNTIF($AO$24:$AO$48,"B")=0,"-",INDIRECT(CONCATENATE("V",MATCH("B",$AO$21:$AO$48,0)+20))) -> Ben Lewis | BU37: =IF(COUNTIF($BI$24:$BI$48,"A")=0,"-",INDIRECT(CONCATENATE("AP",MATCH("A",$BI$21:$BI$48,0)+20))) -> George Armstrong | BV37: =IF(COUNTIF($BI$24:$BI$48,"B")=0,"-",INDIRECT(CONCATENATE("AP",MATCH("B",$BI$21:$BI$48,0)+20))) -> Harris Hameed | BW37: Event Cancelled | BX37: No Competitors | BY37: Opening Height Not Cleared | CA37: 35
A38: 32 | BL38: U17M Hammer | BM38: F5 | BN38: U17M | BO38: Hammer | BQ38: =IF(COUNTIF($U$52:$U$77,"A")=0,"-",INDIRECT(CONCATENATE("B",MATCH("A",$U$49:$U$77,0)+48))) -> Kieran Thackray | BR38: =IF(COUNTIF($U$52:$U$77,"B")=0,"-",INDIRECT(CONCATENATE("B",MATCH("B",$U$49:$U$77,0)+48))) -> Michael Jones | BS38: =IF(COUNTIF($AO$52:$AO$77,"A")=0,"-",INDIRECT(CONCATENATE("V",MATCH("A",$AO$49:$AO$77,0)+48))) -> - | BT38: =IF(COUNTIF($AO$52:$AO$77,"B")=0,"-",INDIRECT(CONCATENATE("V",MATCH("B",$AO$49:$AO$77,0)+48))) -> - | BU38: =IF(COUNTIF($BI$52:$BI$77,"A")=0,"-",INDIRECT(CONCATENATE("AP",MATCH("A",$BI$49:$BI$77,0)+48))) -> Max Ansell-Wood | BV38: =IF(COUNTIF($BI$52:$BI$77,"B")=0,"-",INDIRECT(CONCATENATE("AP",MATCH("B",$BI$49:$BI$77,0)+48))) -> Lamar Lewis | BW38: Event Cancelled | BX38: No Competitors | BY38: Opening Height Not Cleared | CA38: 36
A39: 33 | BL39: U15B Shot | BM39: F8 | BN39: U15B | BO39: Shot | BQ39: =IF(COUNTIF($R$24:$R$48,"A")=0,"-",INDIRECT(CONCATENATE("B",MATCH("A",$R$21:$R$48,0)+20))) -> William Ingram | BR39: =IF(COUNTIF($R$24:$R$48,"B")=0,"-",INDIRECT(CONCATENATE("B",MATCH("B",$R$21:$R$48,0)+20))) -> Adam Lofthouse | BS39: =IF(COUNTIF($AL$24:$AL$48,"A")=0,"-",INDIRECT(CONCATENATE("V",MATCH("A",$AL$21:$AL$48,0)+20))) -> Jonny Swain | BT39: =IF(COUNTIF($AL$24:$AL$48,"B")=0,"-",INDIRECT(CONCATENATE("V",MATCH("B",$AL$21:$AL$48,0)+20))) -> Matthew Richardson | BU39: =IF(COUNTIF($BF$24:$BF$48,"A")=0,"-",INDIRECT(CONCATENATE("AP",MATCH("A",$BF$21:$BF$48,0)+20))) -> Harris Hameed | BV39: =IF(COUNTIF($BF$24:$BF$48,"B")=0,"-",INDIRECT(CONCATENATE("AP",MATCH("B",$BF$21:$BF$48,0)+20))) -> Thomas Harrison | BW39: Event Cancelled | BX39: No Competitors | BY39: Opening Height Not Cleared | CA39: 37
A40: 34 | BL40: U15B Javelin | BM40: F10 | BN40: U15B | BO40: Javelin | BQ40: =IF(COUNTIF($T$24:$T$48,"A")=0,"-",INDIRECT(CONCATENATE("B",MATCH("A",$T$21:$T$48,0)+20))) -> Patrick Thackray | BR40: =IF(COUNTIF($T$24:$T$48,"B")=0,"-",INDIRECT(CONCATENATE("B",MATCH("B",$T$21:$T$48,0)+20))) -> Sam Convery | BS40: =IF(COUNTIF($AN$24:$AN$48,"A")=0,"-",INDIRECT(CONCATENATE("V",MATCH("A",$AN$21:$AN$48,0)+20))) -> Jonny Swain | BT40: =IF(COUNTIF($AN$24:$AN$48,"B")=0,"-",INDIRECT(CONCATENATE("V",MATCH("B",$AN$21:$AN$48,0)+20))) -> Luke Nichols | BU40: =IF(COUNTIF($BH$24:$BH$48,"A")=0,"-",INDIRECT(CONCATENATE("AP",MATCH("A",$BH$21:$BH$48,0)+20))) -> George Armstrong | BV40: =IF(COUNTIF($BH$24:$BH$48,"B")=0,"-",INDIRECT(CONCATENATE("AP",MATCH("B",$BH$21:$BH$48,0)+20))) -> Kieran Savage | BW40: Event Cancelled | BX40: No Competitors | BY40: Opening Height Not Cleared | CA40: 38
A41: 35 | BL41: U17M Javelin | BM41: F11 | BN41: U17M | BO41: Javelin | BQ41: =IF(COUNTIF($T$52:$T$77,"A")=0,"-",INDIRECT(CONCATENATE("B",MATCH("A",$T$49:$T$77,0)+48))) -> Ethan Plumb | BR41: =IF(COUNTIF($T$52:$T$77,"B")=0,"-",INDIRECT(CONCATENATE("B",MATCH("B",$T$49:$T$77,0)+48))) -> Andrew Lorkins | BS41: =IF(COUNTIF($AN$52:$AN$77,"A")=0,"-",INDIRECT(CONCATENATE("V",MATCH("A",$AN$49:$AN$77,0)+48))) -> - | BT41: =IF(COUNTIF($AN$52:$AN$77,"B")=0,"-",INDIRECT(CONCATENATE("V",MATCH("B",$AN$49:$AN$77,0)+48))) -> - | BU41: =IF(COUNTIF($BH$52:$BH$77,"A")=0,"-",INDIRECT(CONCATENATE("AP",MATCH("A",$BH$49:$BH$77,0)+48))) -> Matthew Campleman | BV41: =IF(COUNTIF($BH$52:$BH$77,"B")=0,"-",INDIRECT(CONCATENATE("AP",MATCH("B",$BH$49:$BH$77,0)+48))) -> Andrew Russell | BW41: Event Cancelled | BX41: No Competitors | BY41: Opening Height Not Cleared | CA41: 39
A42: 36 | BL42: U13B High Jump | BM42: F12 | BN42: U13B | BO42: High Jump | BQ42: =IF(COUNTIF($P$4:$P$20,"A")=0,"-",INDIRECT(CONCATENATE("B",MATCH("A",$P$1:$P$20,0)))) -> Dylan Roberts | BR42: =IF(COUNTIF($P$4:$P$20,"B")=0,"-",INDIRECT(CONCATENATE("B",MATCH("B",$P$1:$P$20,0)))) -> Carter Bower-Stead | BS42: =IF(COUNTIF($AJ$4:$AJ$20,"A")=0,"-",INDIRECT(CONCATENATE("V",MATCH("A",$AJ$1:$AJ$20,0)))) -> - | BT42: =IF(COUNTIF($AJ$4:$AJ$20,"B")=0,"-",INDIRECT(CONCATENATE("V",MATCH("B",$AJ$1:$AJ$20,0)))) -> - | BU42: =IF(COUNTIF($BD$4:$BD$20,"A")=0,"-",INDIRECT(CONCATENATE("AP",MATCH("A",$BD$1:$BD$20,0)))) -> Alex Booth | BV42: =IF(COUNTIF($BD$4:$BD$20,"B")=0,"-",INDIRECT(CONCATENATE("AP",MATCH("B",$BD$1:$BD$20,0)))) -> - | BW42: Event Cancelled | BX42: No Competitors | BY42: Opening Height Not Cleared | CA42: 40
A43: 37 | BL43: U15B Pole Vault | BM43: F14 | BN43: U15B | BO43: Pole Vault | BQ43: =IF(COUNTIF($Q$24:$Q$48,"A")=0,"-",INDIRECT(CONCATENATE("B",MATCH("A",$Q$21:$Q$48,0)+20))) -> Andrew Jones | BR43: =IF(COUNTIF($Q$24:$Q$48,"B")=0,"-",INDIRECT(CONCATENATE("B",MATCH("B",$Q$21:$Q$48,0)+20))) -> - | BS43: =IF(COUNTIF($AK$24:$AK$48,"A")=0,"-",INDIRECT(CONCATENATE("V",MATCH("A",$AK$21:$AK$48,0)+20))) -> - | BT43: =IF(COUNTIF($AK$24:$AK$48,"B")=0,"-",INDIRECT(CONCATENATE("V",MATCH("B",$AK$21:$AK$48,0)+20))) -> - | BU43: =IF(COUNTIF($BE$24:$BE$48,"A")=0,"-",INDIRECT(CONCATENATE("AP",MATCH("A",$BE$21:$BE$48,0)+20))) -> Jonathan Webster | BV43: =IF(COUNTIF($BE$24:$BE$48,"B")=0,"-",INDIRECT(CONCATENATE("AP",MATCH("B",$BE$21:$BE$48,0)+20))) -> - | BW43: Event Cancelled | BX43: No Competitors | BY43: Opening Height Not Cleared | CA43: 41
A44: 38 | BL44: U17M Pole Vault | BM44: F15 | BN44: U17M | BO44: Pole Vault | BQ44: =IF(COUNTIF($Q$52:$Q$77,"A")=0,"-",INDIRECT(CONCATENATE("B",MATCH("A",$Q$49:$Q$77,0)+48))) -> Michael Jones | BR44: =IF(COUNTIF($Q$52:$Q$77,"B")=0,"-",INDIRECT(CONCATENATE("B",MATCH("B",$Q$49:$Q$77,0)+48))) -> - | BS44: =IF(COUNTIF($AK$52:$AK$77,"A")=0,"-",INDIRECT(CONCATENATE("V",MATCH("A",$AK$49:$AK$77,0)+48))) -> - | BT44: =IF(COUNTIF($AK$52:$AK$77,"B")=0,"-",INDIRECT(CONCATENATE("V",MATCH("B",$AK$49:$AK$77,0)+48))) -> - | BU44: =IF(COUNTIF($BE$52:$BE$77,"A")=0,"-",INDIRECT(CONCATENATE("AP",MATCH("A",$BE$49:$BE$77,0)+48))) -> Andrew Russell | BV44: =IF(COUNTIF($BE$52:$BE$77,"B")=0,"-",INDIRECT(CONCATENATE("AP",MATCH("B",$BE$49:$BE$77,0)+48))) -> - | BW44: Event Cancelled | BX44: No Competitors | BY44: Opening Height Not Cleared | CA44: 42
A45: 39 | BL45: U17M Long Jump | BM45: F19 | BN45: U17M | BO45: Long Jump | BQ45: =IF(COUNTIF($N$52:$N$77,"A")=0,"-",INDIRECT(CONCATENATE("B",MATCH("A",$N$49:$N$77,0)+48))) -> Jake Worton | BR45: =IF(COUNTIF($N$52:$N$77,"B")=0,"-",INDIRECT(CONCATENATE("B",MATCH("B",$N$49:$N$77,0)+48))) -> Andrew Lorkins | BS45: =IF(COUNTIF($AH$52:$AH$77,"A")=0,"-",INDIRECT(CONCATENATE("V",MATCH("A",$AH$49:$AH$77,0)+48))) -> Adam Robinson | BT45: =IF(COUNTIF($AH$52:$AH$77,"B")=0,"-",INDIRECT(CONCATENATE("V",MATCH("B",$AH$49:$AH$77,0)+48))) -> Peirre Weller | BU45: =IF(COUNTIF($BB$52:$BB$77,"A")=0,"-",INDIRECT(CONCATENATE("AP",MATCH("A",$BB$49:$BB$77,0)+48))) -> Elliott Hurley | BV45: =IF(COUNTIF($BB$52:$BB$77,"B")=0,"-",INDIRECT(CONCATENATE("AP",MATCH("B",$BB$49:$BB$77,0)+48))) -> Matthew Campleman | BW45: Event Cancelled | BX45: No Competitors | BY45: Opening Height Not Cleared | CA45: 43
A46: 40 | BL46: U13B Shot | BM46: F22 | BN46: U13B | BO46: Shot | BQ46: =IF(COUNTIF($R$4:$R$20,"A")=0,"-",INDIRECT(CONCATENATE("B",MATCH("A",$R$1:$R$20,0)))) -> Dylan Roberts | BR46: =IF(COUNTIF($R$4:$R$20,"B")=0,"-",INDIRECT(CONCATENATE("B",MATCH("B",$R$1:$R$20,0)))) -> Barnaby Drew | BS46: =IF(COUNTIF($AL$4:$AL$20,"A")=0,"-",INDIRECT(CONCATENATE("V",MATCH("A",$AL$1:$AL$20,0)))) -> Matt Hobson | BT46: =IF(COUNTIF($AL$4:$AL$20,"B")=0,"-",INDIRECT(CONCATENATE("V",MATCH("B",$AL$1:$AL$20,0)))) -> - | BU46: =IF(COUNTIF($BF$4:$BF$20,"A")=0,"-",INDIRECT(CONCATENATE("AP",MATCH("A",$BF$1:$BF$20,0)))) -> Owen Sage | BV46: =IF(COUNTIF($BF$4:$BF$20,"B")=0,"-",INDIRECT(CONCATENATE("AP",MATCH("B",$BF$1:$BF$20,0)))) -> Alex Booth | BW46: Event Cancelled | BX46: No Competitors | BY46: Opening Height Not Cleared | CA46: 44
A47: 41 | BL47: U15B Long Jump | BM47: F25 | BN47: U15B | BO47: Long Jump | BQ47: =IF(COUNTIF($N$24:$N$48,"A")=0,"-",INDIRECT(CONCATENATE("B",MATCH("A",$N$21:$N$48,0)+20))) -> Declan Sheehan | BR47: =IF(COUNTIF($N$24:$N$48,"B")=0,"-",INDIRECT(CONCATENATE("B",MATCH("B",$N$21:$N$48,0)+20))) -> Ben Read | BS47: =IF(COUNTIF($AH$24:$AH$48,"A")=0,"-",INDIRECT(CONCATENATE("V",MATCH("A",$AH$21:$AH$48,0)+20))) -> Chris Searle | BT47: =IF(COUNTIF($AH$24:$AH$48,"B")=0,"-",INDIRECT(CONCATENATE("V",MATCH("B",$AH$21:$AH$48,0)+20))) -> Matthew Richardson | BU47: =IF(COUNTIF($BB$24:$BB$48,"A")=0,"-",INDIRECT(CONCATENATE("AP",MATCH("A",$BB$21:$BB$48,0)+20))) -> Finlay Fuller | BV47: =IF(COUNTIF($BB$24:$BB$48,"B")=0,"-",INDIRECT(CONCATENATE("AP",MATCH("B",$BB$21:$BB$48,0)+20))) -> Thomas Harrison | BW47: Event Cancelled | BX47: No Competitors | BY47: Opening Height Not Cleared | CA47: 45
A48: 42 | BL48: U15B Discus | BM48: F26 | BN48: U15B | BO48: Discus | BQ48: =IF(COUNTIF($S$24:$S$48,"A")=0,"-",INDIRECT(CONCATENATE("B",MATCH("A",$S$21:$S$48,0)+20))) -> Andrew Jones | BR48: =IF(COUNTIF($S$24:$S$48,"B")=0,"-",INDIRECT(CONCATENATE("B",MATCH("B",$S$21:$S$48,0)+20))) -> George Heppinstall | BS48: =IF(COUNTIF($AM$24:$AM$48,"A")=0,"-",INDIRECT(CONCATENATE("V",MATCH("A",$AM$21:$AM$48,0)+20))) -> Luke Nichols | BT48: =IF(COUNTIF($AM$24:$AM$48,"B")=0,"-",INDIRECT(CONCATENATE("V",MATCH("B",$AM$21:$AM$48,0)+20))) -> - | BU48: =IF(COUNTIF($BG$24:$BG$48,"A")=0,"-",INDIRECT(CONCATENATE("AP",MATCH("A",$BG$21:$BG$48,0)+20))) -> George Armstrong | BV48: =IF(COUNTIF($BG$24:$BG$48,"B")=0,"-",INDIRECT(CONCATENATE("AP",MATCH("B",$BG$21:$BG$48,0)+20))) -> Harris Hameed | BW48: Event Cancelled | BX48: No Competitors | BY48: Opening Height Not Cleared | CA48: 46
BL49: U17M Discus | BM49: F27 | BN49: U17M | BO49: Discus | BQ49: =IF(COUNTIF($S$52:$S$77,"A")=0,"-",INDIRECT(CONCATENATE("B",MATCH("A",$S$49:$S$77,0)+48))) -> Kieran Thackray | BR49: =IF(COUNTIF($S$52:$S$77,"B")=0,"-",INDIRECT(CONCATENATE("B",MATCH("B",$S$49:$S$77,0)+48))) -> Ethan Plumb | BS49: =IF(COUNTIF($AM$52:$AM$77,"A")=0,"-",INDIRECT(CONCATENATE("V",MATCH("A",$AM$49:$AM$77,0)+48))) -> Adam Robinson | BT49: =IF(COUNTIF($AM$52:$AM$77,"B")=0,"-",INDIRECT(CONCATENATE("V",MATCH("B",$AM$49:$AM$77,0)+48))) -> - | BU49: =IF(COUNTIF($BG$52:$BG$77,"A")=0,"-",INDIRECT(CONCATENATE("AP",MATCH("A",$BG$49:$BG$77,0)+48))) -> Connor Morley | BV49: =IF(COUNTIF($BG$52:$BG$77,"B")=0,"-",INDIRECT(CONCATENATE("AP",MATCH("B",$BG$49:$BG$77,0)+48))) -> Max Ansell-Wood | BW49: Event Cancelled | BX49: No Competitors | BY49: Opening Height Not Cleared | CA49: 47
BL50: U17M Shot | BM50: F30 | BN50: U17M | BO50: Shot | BQ50: =IF(COUNTIF($R$52:$R$77,"A")=0,"-",INDIRECT(CONCATENATE("B",MATCH("A",$R$49:$R$77,0)+48))) -> Kieran Thackray | BR50: =IF(COUNTIF($R$52:$R$77,"B")=0,"-",INDIRECT(CONCATENATE("B",MATCH("B",$R$49:$R$77,0)+48))) -> Andrew Lorkins | BS50: =IF(COUNTIF($AL$52:$AL$77,"A")=0,"-",INDIRECT(CONCATENATE("V",MATCH("A",$AL$49:$AL$77,0)+48))) -> - | BT50: =IF(COUNTIF($AL$52:$AL$77,"B")=0,"-",INDIRECT(CONCATENATE("V",MATCH("B",$AL$49:$AL$77,0)+48))) -> - | BU50: =IF(COUNTIF($BF$52:$BF$77,"A")=0,"-",INDIRECT(CONCATENATE("AP",MATCH("A",$BF$49:$BF$77,0)+48))) -> Dylan Bradley | BV50: =IF(COUNTIF($BF$52:$BF$77,"B")=0,"-",INDIRECT(CONCATENATE("AP",MATCH("B",$BF$49:$BF$77,0)+48))) -> - | BW50: Event Cancelled | BX50: No Competitors | BY50: Opening Height Not Cleared | CA50: 48
B51: =CONCATENATE(Handbook!$AA$1," Athletes") -> U17M Athletes | V51: =B51 -> U17M Athletes | AP51: =B51 -> U17M Athletes | BL51: U17M Triple Jump | BM51: F31 | BN51: U17M | BO51: Triple Jump | BQ51: =IF(COUNTIF($O$52:$O$77,"A")=0,"-",INDIRECT(CONCATENATE("B",MATCH("A",$O$49:$O$77,0)+48))) -> George Brown | BR51: =IF(COUNTIF($O$52:$O$77,"B")=0,"-",INDIRECT(CONCATENATE("B",MATCH("B",$O$49:$O$77,0)+48))) -> - | BS51: =IF(COUNTIF($AI$52:$AI$77,"A")=0,"-",INDIRECT(CONCATENATE("V",MATCH("A",$AI$49:$AI$77,0)+48))) -> James Stanton | BT51: =IF(COUNTIF($AI$52:$AI$77,"B")=0,"-",INDIRECT(CONCATENATE("V",MATCH("B",$AI$49:$AI$77,0)+48))) -> - | BU51: =IF(COUNTIF($BC$52:$BC$77,"A")=0,"-",INDIRECT(CONCATENATE("AP",MATCH("A",$BC$49:$BC$77,0)+48))) -> Max Ansell-Wood | BV51: =IF(COUNTIF($BC$52:$BC$77,"B")=0,"-",INDIRECT(CONCATENATE("AP",MATCH("B",$BC$49:$BC$77,0)+48))) -> - | BW51: Event Cancelled | BX51: No Competitors | BY51: Opening Height Not Cleared | CA51: 49
A52: 43 | B52: George Brown | C52: A | G52: A | L52: 2 | O52: A | V52: Ash Hart | Y52: A | AD52: A | AF52: 4 | AP52: Andrew Russell | AQ52: B | BE52: A | BH52: B
A53: 44 | B53: Matthew O'Connnor | D53: A | J53: A | M53: 2 | V53: Adam Robinson | W53: A | AF53: 1 | AH53: A | AM53: A | AP53: Aqib Javed | AV53: A | AZ53: 1
A54: 45 | B54: James Saxton | D54: B | J54: B | V54: Peirre Weller | X54: A | AD54: B | AF54: 2 | AH54: B | AP54: Connor Morley | AZ54: 2 | BD54: A | BG54: A
A55: 46 | B55: Jack Mitchell | F55: A | M55: 4 | V55: James Stanton | Y55: B | AA55: A | AF55: 3 | AI55: A | AP55: Daniel Harrison | AT55: A | AW55: B
A56: 47 | B56: James McBorrough | E56: A | H56: A | L56: 3 | AP56: Dylan Bradley | BD56: B | BF56: A
A57: 48 | B57: Steven Eastwood | I57: A | M57: 3 | AP57: Elliott Hurley | AS57: A | AZ57: 4 | BB57: A
A58: 49 | B58: Daniel Franks | I58: B | AP58: Lamar Lewis | AS58: B | AZ58: 3 | BI58: B
A59: 50 | B59: Oliver Edmunds | E59: B | G59: B | H59: B | L59: 4 | AP59: Liam Braithwaite | AV59: B | AX59: B | BA59: 2
A60: 51 | B60: Jake Worton | K60: A | M60: 1 | N60: A | AP60: Luke Cooper | AR60: A | AX60: A | BA60: 4
A61: 52 | B61: Mark Stringer | P61: A | AP61: Matthew Campleman | AQ61: A | BA61: 1 | BB61: B | BH61: A
A62: 53 | B62: Kieran Thackray | R62: A | S62: A | U62: A | AP62: Max Ansell-Wood | BC62: A | BG62: B | BI62: A
A63: 54 | B63: Michael Jones | Q63: A | U63: B | AP63: Sean Flanagan | AW63: A | BA63: 3
A64: 55 | B64: Ethan Plumb | S64: B | T64: A
A65: 56 | B65: Andrew Lorkins | L65: 1 | N65: B | R65: B | T65: B
A66: 57
A67: 58 | B67: Jordan Turner | K67: B
A68: 59
A69: 60
A70: 61
A71: 62
A72: 63
A73: 64
A74: 65
A75: 66
A76: 67
A77: 68
A78: 69

Sheet Girls (Match 1)
B1: TRACK | C1: FIELD | H1: RELAY | V1: TRACK | W1: FIELD | AB1: RELAY | AP1: TRACK | AQ1: FIELD | AV1: RELAY
B2: =MatchDay!C11 -> Wakefield | C2: Sprint H | D2: 800m | E2: 75m/100m | F2: 3000m | G2: 300mH | H2: 150/200m | I2: 1500m | J2: 300m | K2: 1500m S/C | L2: 4x100m R | M2: 4x300m R | N2: Long J | O2: Triple J | P2: High J | Q2: Pole V | R2: Shot | S2: Discus | T2: Javelin | U2: Hammer | V2: =MatchDay!C13 -> City of York | W2: Sprint H | X2: 800m | Y2: 75m/100m | Z2: 3000m | AA2: 300mH | AB2: 150/200m | AC2: 1500m | AD2: 300m | AE2: 1500m S/C | AF2: 4x100m R | AG2: 4x300m R | AH2: Long J | AI2: Triple J | AJ2: High J | AK2: Pole V | AL2: Shot | AM2: Discus | AN2: Javelin | AO2: Hammer | AP2: =MatchDay!C15 -> Leeds City | AQ2: Sprint H | AR2: 800m | AS2: 75m/100m | AT2: 3000m | AU2: 300mH | AV2: 150/200m | AW2: 1500m | AX2: 300m | AY2: 1500m S/C | AZ2: 4x100m R | BA2: 4x300m R | BB2: Long J | BC2: Triple J | BD2: High J | BE2: Pole V | BF2: Shot | BG2: Discus | BH2: Javelin | BI2: Hammer | BM2: Event No | BN2: Age G | BQ2: =B2 -> Wakefield | BS2: =V2 -> City of York | BU2: =AP2 -> Leeds City
B3: =CONCATENATE(Handbook!$V$1," Athletes") -> U13G Athletes | V3: =B3 -> U13G Athletes | AP3: =B3 -> U13G Athletes | BK3: A | BQ3: =MatchDay!B11 -> 9 | BR3: =MatchDay!B38 -> 99 | BS3: =MatchDay!B13 -> 8 | BT3: =MatchDay!B40 -> 88 | BU3: =MatchDay!B15 -> 7 | BV3: =MatchDay!B42 -> 77 | BW3: 101 | BX3: 102 | BY3: 103 | CA3: Row
A4: 1 | B4: Charlotte Sampson | C4: A | E4: B | L4: 1 | V4: Charlotte Stamp | W4: B | AB4: B | AF4: 2 | AH4: B | AP4: Chloe Brooks | AS4: B | AV4: B | AZ4: 1 | BK4: B | BL4: U13G 70m H | BM4: T1 | BN4: =VLOOKUP($BM4,eventno,2,FALSE) -> U13G | BO4: =VLOOKUP($BM4,eventno,3,FALSE) -> 70m H | BQ4: =IF(COUNTIF($C$4:$C$20,"A")=0,"-",INDIRECT(CONCATENATE("B",MATCH("A",$C$1:$C$20,0)))) -> Charlotte Sampson | BR4: =IF(COUNTIF($C$4:$C$20,"B")=0,"-",INDIRECT(CONCATENATE("B",MATCH("B",$C$1:$C$20,0)))) -> Niamh Docherty | BS4: =IF(COUNTIF($W$4:$W$20,"A")=0,"-",INDIRECT(CONCATENATE("V",MATCH("A",$W$1:$W$20,0)))) -> Rachel White | BT4: =IF(COUNTIF($W$4:$W$20,"B")=0,"-",INDIRECT(CONCATENATE("V",MATCH("B",$W$1:$W$20,0)))) -> Charlotte Stamp | BU4: =IF(COUNTIF($AQ$4:$AQ$20,"A")=0,"-",INDIRECT(CONCATENATE("AP",MATCH("A",$AQ$1:$AQ$20,0)))) -> Jessica Barker | BV4: =IF(COUNTIF($AQ$4:$AQ$20,"B")=0,"-",INDIRECT(CONCATENATE("AP",MATCH("B",$AQ$1:$AQ$20,0)))) -> Megan Sanders | BW4: Event Cancelled | BX4: No Competitors | BY4: Opening Height Not Cleared | CA4: 2
A5: 2 | B5: Niamh Docherty | C5: B | D5: B | L5: 2 | V5: Rachel White | W5: A | Y5: A | AL5: A | AP5: Jessica Barker | AQ5: A | BL5: U15G 75m H | BM5: T3 | BN5: =VLOOKUP(BM5,eventno,2,FALSE) -> U15G | BO5: 75m H | BQ5: =IF(COUNTIF($C$24:$C$48,"A")=0,"-",INDIRECT(CONCATENATE("B",MATCH("A",$C$21:$C$48,0)+20))) -> - | BR5: =IF(COUNTIF($C$24:$C$48,"B")=0,"-",INDIRECT(CONCATENATE("B",MATCH("B",$C$21:$C$48,0)+20))) -> - | BS5: =IF(COUNTIF($W$24:$W$48,"A")=0,"-",INDIRECT(CONCATENATE("V",MATCH("A",$W$21:$W$48,0)+20))) -> Josie Parry | BT5: =IF(COUNTIF($W$24:$W$48,"B")=0,"-",INDIRECT(CONCATENATE("V",MATCH("B",$W$21:$W$48,0)+20))) -> Chelsea Walker | BU5: =IF(COUNTIF($AQ$24:$AQ$48,"A")=0,"-",INDIRECT(CONCATENATE("AP",MATCH("A",$AQ$21:$AQ$48,0)+20))) -> Melissa Fletcher | BV5: =IF(COUNTIF($AQ$24:$AQ$48,"B")=0,"-",INDIRECT(CONCATENATE("AP",MATCH("B",$AQ$21:$AQ$48,0)+20))) -> Caoimhe Crampton | BW5: Event Cancelled | BX5: No Competitors | BY5: Opening Height Not Cleared | CA5: 3
A6: 3 | B6: Madeleine Gerrard | E6: A | H6: A | L6: 3 | V6: Lucy Hadaway | AB6: A | AF6: 4 | AH6: A | AP6: Jessie Mogridge | AR6: B | AS6: A | AV6: A | BK6: 1 | BL6: U17W 80m H | BM6: T4 | BN6: U17W | BO6: 80m H | BQ6: =IF(COUNTIF($C$52:$C$77,"A")=0,"-",INDIRECT(CONCATENATE("B",MATCH("A",$C$49:$C$77,0)+48))) -> Bethany Porter | BR6: =IF(COUNTIF($C$52:$C$77,"B")=0,"-",INDIRECT(CONCATENATE("B",MATCH("B",$C$49:$C$77,0)+48))) -> Dannielle Anderson | BS6: =IF(COUNTIF($W$52:$W$77,"A")=0,"-",INDIRECT(CONCATENATE("V",MATCH("A",$W$49:$W$77,0)+48))) -> Megan Savage | BT6: =IF(COUNTIF($W$52:$W$77,"B")=0,"-",INDIRECT(CONCATENATE("V",MATCH("B",$W$49:$W$77,0)+48))) -> Polly Morris | BU6: =IF(COUNTIF($AQ$52:$AQ$77,"A")=0,"-",INDIRECT(CONCATENATE("AP",MATCH("A",$AQ$49:$AQ$77,0)+48))) -> Hannah Ukandu | BV6: =IF(COUNTIF($AQ$52:$AQ$77,"B")=0,"-",INDIRECT(CONCATENATE("AP",MATCH("B",$AQ$49:$AQ$77,0)+48))) -> Melody Peterson | BW6: Event Cancelled | BX6: No Competitors | BY6: Opening Height Not Cleared | CA6: 4
A7: 4 | B7: Georgia Green | H7: B | L7: 4 | V7: Annabel Ashton | Y7: B | AF7: 1 | AJ7: B | AP7: Lois Fish | AR7: A | AZ7: 2 | BF7: A | BK7: 2 | BL7: U17W 800m | BM7: T7 | BN7: U17W | BO7: 800m | BQ7: =IF(COUNTIF($D$52:$D$77,"A")=0,"-",INDIRECT(CONCATENATE("B",MATCH("A",$D$49:$D$77,0)+48))) -> Zoe Kerins | BR7: =IF(COUNTIF($D$52:$D$77,"B")=0,"-",INDIRECT(CONCATENATE("B",MATCH("B",$D$49:$D$77,0)+48))) -> Olivia Radcliffe | BS7: =IF(COUNTIF($X$52:$X$77,"A")=0,"-",INDIRECT(CONCATENATE("V",MATCH("A",$X$49:$X$77,0)+48))) -> Kate Harris | BT7: =IF(COUNTIF($X$52:$X$77,"B")=0,"-",INDIRECT(CONCATENATE("V",MATCH("B",$X$49:$X$77,0)+48))) -> - | BU7: =IF(COUNTIF($AR$52:$AR$77,"A")=0,"-",INDIRECT(CONCATENATE("AP",MATCH("A",$AR$49:$AR$77,0)+48))) -> Georgia Yearby | BV7: =IF(COUNTIF($AR$52:$AR$77,"B")=0,"-",INDIRECT(CONCATENATE("AP",MATCH("B",$AR$49:$AR$77,0)+48))) -> - | BW7: Event Cancelled | BX7: No Competitors | BY7: Opening Height Not Cleared | CA7: 5
A8: 5 | B8: Beth Oates | I8: A | V8: Nicole Grenier | X8: A | AP8: Megan Sanders | AQ8: B | AZ8: 4 | BB8: B | BD8: A | BK8: 3 | BL8: U15G 800m | BM8: T8 | BN8: U15G | BO8: 800m | BQ8: =IF(COUNTIF($D$24:$D$48,"A")=0,"-",INDIRECT(CONCATENATE("B",MATCH("A",$D$21:$D$48,0)+20))) -> Sophie Woollin | BR8: =IF(COUNTIF($D$24:$D$48,"B")=0,"-",INDIRECT(CONCATENATE("B",MATCH("B",$D$21:$D$48,0)+20))) -> Rebecca Firth | BS8: =IF(COUNTIF($X$24:$X$48,"A")=0,"-",INDIRECT(CONCATENATE("V",MATCH("A",$X$21:$X$48,0)+20))) -> Georgie Fenny | BT8: =IF(COUNTIF($X$24:$X$48,"B")=0,"-",INDIRECT(CONCATENATE("V",MATCH("B",$X$21:$X$48,0)+20))) -> Libby Brown | BU8: =IF(COUNTIF($AR$24:$AR$48,"A")=0,"-",INDIRECT(CONCATENATE("AP",MATCH("A",$AR$21:$AR$48,0)+20))) -> Nicola Sawyer | BV8: =IF(COUNTIF($AR$24:$AR$48,"B")=0,"-",INDIRECT(CONCATENATE("AP",MATCH("B",$AR$21:$AR$48,0)+20))) -> Jemma Ibbetson | BW8: Event Cancelled | BX8: No Competitors | BY8: Opening Height Not Cleared | CA8: 6
A9: 6 | B9: Olivia Theaker | D9: A | V9: Georgie Hogarth | AC9: A | AF9: 3 | AP9: Millie Bradbury | AZ9: 3 | BB9: A | BF9: B | BK9: 4 | BL9: U13G 800m | BM9: T9 | BN9: U13G | BO9: 800m | BQ9: =IF(COUNTIF($D$4:$D$20,"A")=0,"-",INDIRECT(CONCATENATE("B",MATCH("A",$D$1:$D$20,0)))) -> Olivia Theaker | BR9: =IF(COUNTIF($D$4:$D$20,"B")=0,"-",INDIRECT(CONCATENATE("B",MATCH("B",$D$1:$D$20,0)))) -> Niamh Docherty | BS9: =IF(COUNTIF($X$4:$X$20,"A")=0,"-",INDIRECT(CONCATENATE("V",MATCH("A",$X$1:$X$20,0)))) -> Nicole Grenier | BT9: =IF(COUNTIF($X$4:$X$20,"B")=0,"-",INDIRECT(CONCATENATE("V",MATCH("B",$X$1:$X$20,0)))) -> - | BU9: =IF(COUNTIF($AR$4:$AR$20,"A")=0,"-",INDIRECT(CONCATENATE("AP",MATCH("A",$AR$1:$AR$20,0)))) -> Lois Fish | BV9: =IF(COUNTIF($AR$4:$AR$20,"B")=0,"-",INDIRECT(CONCATENATE("AP",MATCH("B",$AR$1:$AR$20,0)))) -> Jessie Mogridge | BW9: Event Cancelled | BX9: No Competitors | BY9: Opening Height Not Cleared | CA9: 7
A10: 7 | B10: Laura Sanderson | I10: B | V10: Felicity Edwards | AC10: B | AJ10: A | AL10: B | BL10: U13G 75m | BM10: T13 | BN10: U13G | BO10: 75m | BQ10: =IF(COUNTIF($E$4:$E$20,"A")=0,"-",INDIRECT(CONCATENATE("B",MATCH("A",$E$1:$E$20,0)))) -> Madeleine Gerrard | BR10: =IF(COUNTIF($E$4:$E$20,"B")=0,"-",INDIRECT(CONCATENATE("B",MATCH("B",$E$1:$E$20,0)))) -> Charlotte Sampson | BS10: =IF(COUNTIF($Y$4:$Y$20,"A")=0,"-",INDIRECT(CONCATENATE("V",MATCH("A",$Y$1:$Y$20,0)))) -> Rachel White | BT10: =IF(COUNTIF($Y$4:$Y$20,"B")=0,"-",INDIRECT(CONCATENATE("V",MATCH("B",$Y$1:$Y$20,0)))) -> Annabel Ashton | BU10: =IF(COUNTIF($AS$4:$AS$20,"A")=0,"-",INDIRECT(CONCATENATE("AP",MATCH("A",$AS$1:$AS$20,0)))) -> Jessie Mogridge | BV10: =IF(COUNTIF($AS$4:$AS$20,"B")=0,"-",INDIRECT(CONCATENATE("AP",MATCH("B",$AS$1:$AS$20,0)))) -> Chloe Brooks | BW10: Event Cancelled | BX10: No Competitors | BY10: Opening Height Not Cleared | CA10: 8
A11: 8 | B11: Jessica Matthews | N11: A | R11: A | BL11: U17W 100m | BM11: T14 | BN11: U17W | BO11: 100m | BQ11: =IF(COUNTIF($E$52:$E$77,"A")=0,"-",INDIRECT(CONCATENATE("B",MATCH("A",$E$49:$E$77,0)+48))) -> Grace Eyles | BR11: =IF(COUNTIF($E$52:$E$77,"B")=0,"-",INDIRECT(CONCATENATE("B",MATCH("B",$E$49:$E$77,0)+48))) -> Emily Wadge | BS11: =IF(COUNTIF($Y$52:$Y$77,"A")=0,"-",INDIRECT(CONCATENATE("V",MATCH("A",$Y$49:$Y$77,0)+48))) -> Emily Haigh | BT11: =IF(COUNTIF($Y$52:$Y$77,"B")=0,"-",INDIRECT(CONCATENATE("V",MATCH("B",$Y$49:$Y$77,0)+48))) -> - | BU11: =IF(COUNTIF($AS$52:$AS$77,"A")=0,"-",INDIRECT(CONCATENATE("AP",MATCH("A",$AS$49:$AS$77,0)+48))) -> India Wilson | BV11: =IF(COUNTIF($AS$52:$AS$77,"B")=0,"-",INDIRECT(CONCATENATE("AP",MATCH("B",$AS$49:$AS$77,0)+48))) -> Melody Peterson | BW11: Event Cancelled | BX11: No Competitors | BY11: Opening Height Not Cleared | CA11: 9
A12: 9 | B12: Ella Liefeith | N12: B | P12: B | BL12: U15G 100m | BM12: T15 | BN12: U15G | BO12: 100m | BQ12: =IF(COUNTIF($E$24:$E$48,"A")=0,"-",INDIRECT(CONCATENATE("B",MATCH("A",$E$21:$E$48,0)+20))) -> Jessica Fisher | BR12: =IF(COUNTIF($E$24:$E$48,"B")=0,"-",INDIRECT(CONCATENATE("B",MATCH("B",$E$21:$E$48,0)+20))) -> Lauren Higson | BS12: =IF(COUNTIF($Y$24:$Y$48,"A")=0,"-",INDIRECT(CONCATENATE("V",MATCH("A",$Y$21:$Y$48,0)+20))) -> Chloe Hopper | BT12: =IF(COUNTIF($Y$24:$Y$48,"B")=0,"-",INDIRECT(CONCATENATE("V",MATCH("B",$Y$21:$Y$48,0)+20))) -> Jenny Harrison | BU12: =IF(COUNTIF($AS$24:$AS$48,"A")=0,"-",INDIRECT(CONCATENATE("AP",MATCH("A",$AS$21:$AS$48,0)+20))) -> Molly Yearby | BV12: =IF(COUNTIF($AS$24:$AS$48,"B")=0,"-",INDIRECT(CONCATENATE("AP",MATCH("B",$AS$21:$AS$48,0)+20))) -> Sian Gilmartin-Green | BW12: Event Cancelled | BX12: No Competitors | BY12: Opening Height Not Cleared | CA12: 10
A13: 10 | B13: Abigail Cove-Mullins | R13: B | BL13: U17W 3000m | BM13: T20 | BN13: U17W | BO13: 3000m | BQ13: =IF(COUNTIF($F$52:$F$77,"A")=0,"-",INDIRECT(CONCATENATE("B",MATCH("A",$F$49:$F$77,0)+48))) -> Jessica Timmins | BR13: =IF(COUNTIF($F$52:$F$77,"B")=0,"-",INDIRECT(CONCATENATE("B",MATCH("B",$F$49:$F$77,0)+48))) -> - | BS13: =IF(COUNTIF($Z$52:$Z$77,"A")=0,"-",INDIRECT(CONCATENATE("V",MATCH("A",$Z$49:$Z$77,0)+48))) -> Katy Wood | BT13: =IF(COUNTIF($Z$52:$Z$77,"B")=0,"-",INDIRECT(CONCATENATE("V",MATCH("B",$Z$49:$Z$77,0)+48))) -> - | BU13: =IF(COUNTIF($AT$52:$AT$77,"A")=0,"-",INDIRECT(CONCATENATE("AP",MATCH("A",$AT$49:$AT$77,0)+48))) -> Ellie Dooley | BV13: =IF(COUNTIF($AT$52:$AT$77,"B")=0,"-",INDIRECT(CONCATENATE("AP",MATCH("B",$AT$49:$AT$77,0)+48))) -> - | BW13: Event Cancelled | BX13: No Competitors | BY13: Opening Height Not Cleared | CA13: 11
A14: 11 | BL14: U17W 300m H | BM14: T21 | BN14: U17W | BO14: 300m H | BQ14: =IF(COUNTIF($G$52:$G$77,"A")=0,"-",INDIRECT(CONCATENATE("B",MATCH("A",$G$49:$G$77,0)+48))) -> Bethany Sharp | BR14: =IF(COUNTIF($G$52:$G$77,"B")=0,"-",INDIRECT(CONCATENATE("B",MATCH("B",$G$49:$G$77,0)+48))) -> Leanne Barraclough | BS14: =IF(COUNTIF($AA$52:$AA$77,"A")=0,"-",INDIRECT(CONCATENATE("V",MATCH("A",$AA$49:$AA$77,0)+48))) -> Megan Savage | BT14: =IF(COUNTIF($AA$52:$AA$77,"B")=0,"-",INDIRECT(CONCATENATE("V",MATCH("B",$AA$49:$AA$77,0)+48))) -> - | BU14: =IF(COUNTIF($AU$52:$AU$77,"A")=0,"-",INDIRECT(CONCATENATE("AP",MATCH("A",$AU$49:$AU$77,0)+48))) -> - | BV14: =IF(COUNTIF($AU$52:$AU$77,"B")=0,"-",INDIRECT(CONCATENATE("AP",MATCH("B",$AU$49:$AU$77,0)+48))) -> - | BW14: Event Cancelled | BX14: No Competitors | BY14: Opening Height Not Cleared | CA14: 12
A15: 12 | BL15: U13G 150m | BM15: T23 | BN15: U13G | BO15: 150m | BQ15: =IF(COUNTIF($H$4:$H$20,"A")=0,"-",INDIRECT(CONCATENATE("B",MATCH("A",$H$1:$H$20,0)))) -> Madeleine Gerrard | BR15: =IF(COUNTIF($H$4:$H$20,"B")=0,"-",INDIRECT(CONCATENATE("B",MATCH("B",$H$1:$H$20,0)))) -> Georgia Green | BS15: =IF(COUNTIF($AB$4:$AB$20,"A")=0,"-",INDIRECT(CONCATENATE("V",MATCH("A",$AB$1:$AB$20,0)))) -> Lucy Hadaway | BT15: =IF(COUNTIF($AB$4:$AB$20,"B")=0,"-",INDIRECT(CONCATENATE("V",MATCH("B",$AB$1:$AB$20,0)))) -> Charlotte Stamp | BU15: =IF(COUNTIF($AV$4:$AV$20,"A")=0,"-",INDIRECT(CONCATENATE("AP",MATCH("A",$AV$1:$AV$20,0)))) -> Jessie Mogridge | BV15: =IF(COUNTIF($AV$4:$AV$20,"B")=0,"-",INDIRECT(CONCATENATE("AP",MATCH("B",$AV$1:$AV$20,0)))) -> Chloe Brooks | BW15: Event Cancelled | BX15: No Competitors | BY15: Opening Height Not Cleared | CA15: 13
A16: 13 | BL16: U15G 200m | BM16: T25 | BN16: U15G | BO16: 200m | BQ16: =IF(COUNTIF($H$24:$H$48,"A")=0,"-",INDIRECT(CONCATENATE("B",MATCH("A",$H$21:$H$48,0)+20))) -> Holly Marshall | BR16: =IF(COUNTIF($H$24:$H$48,"B")=0,"-",INDIRECT(CONCATENATE("B",MATCH("B",$H$21:$H$48,0)+20))) -> Jessica Eyles | BS16: =IF(COUNTIF($AB$24:$AB$48,"A")=0,"-",INDIRECT(CONCATENATE("V",MATCH("A",$AB$21:$AB$48,0)+20))) -> Jade Kerrison | BT16: =IF(COUNTIF($AB$24:$AB$48,"B")=0,"-",INDIRECT(CONCATENATE("V",MATCH("B",$AB$21:$AB$48,0)+20))) -> Anna Richardson | BU16: =IF(COUNTIF($AV$24:$AV$48,"A")=0,"-",INDIRECT(CONCATENATE("AP",MATCH("A",$AV$21:$AV$48,0)+20))) -> Molly Yearby | BV16: =IF(COUNTIF($AV$24:$AV$48,"B")=0,"-",INDIRECT(CONCATENATE("AP",MATCH("B",$AV$21:$AV$48,0)+20))) -> Caoimhe Crampton | BW16: Event Cancelled | BX16: No Competitors | BY16: Opening Height Not Cleared | CA16: 14
A17: 14 | BL17: U17W 200m | BM17: T27 | BN17: U17W | BO17: 200m | BQ17: =IF(COUNTIF($H$52:$H$77,"A")=0,"-",INDIRECT(CONCATENATE("B",MATCH("A",$H$49:$H$77,0)+48))) -> Zoe Kerins | BR17: =IF(COUNTIF($H$52:$H$77,"B")=0,"-",INDIRECT(CONCATENATE("B",MATCH("B",$H$49:$H$77,0)+48))) -> Emily Wadge | BS17: =IF(COUNTIF($AB$52:$AB$77,"A")=0,"-",INDIRECT(CONCATENATE("V",MATCH("A",$AB$49:$AB$77,0)+48))) -> Emily Haigh | BT17: =IF(COUNTIF($AB$52:$AB$77,"B")=0,"-",INDIRECT(CONCATENATE("V",MATCH("B",$AB$49:$AB$77,0)+48))) -> - | BU17: =IF(COUNTIF($AV$52:$AV$77,"A")=0,"-",INDIRECT(CONCATENATE("AP",MATCH("A",$AV$49:$AV$77,0)+48))) -> India Wilson | BV17: =IF(COUNTIF($AV$52:$AV$77,"B")=0,"-",INDIRECT(CONCATENATE("AP",MATCH("B",$AV$49:$AV$77,0)+48))) -> Katie Ward | BW17: Event Cancelled | BX17: No Competitors | BY17: Opening Height Not Cleared | CA17: 15
A18: 15 | BL18: U13G 1200m | BM18: T29 | BN18: U13G | BO18: 1200m | BQ18: =IF(COUNTIF($I$4:$I$20,"A")=0,"-",INDIRECT(CONCATENATE("B",MATCH("A",$I$1:$I$20,0)))) -> Beth Oates | BR18: =IF(COUNTIF($I$4:$I$20,"B")=0,"-",INDIRECT(CONCATENATE("B",MATCH("B",$I$1:$I$20,0)))) -> Laura Sanderson | BS18: =IF(COUNTIF($AC$4:$AC$20,"A")=0,"-",INDIRECT(CONCATENATE("V",MATCH("A",$AC$1:$AC$20,0)))) -> Georgie Hogarth | BT18: =IF(COUNTIF($AC$4:$AC$20,"B")=0,"-",INDIRECT(CONCATENATE("V",MATCH("B",$AC$1:$AC$20,0)))) -> Felicity Edwards | BU18: =IF(COUNTIF($AW$4:$AW$20,"A")=0,"-",INDIRECT(CONCATENATE("AP",MATCH("A",$AW$1:$AW$20,0)))) -> - | BV18: =IF(COUNTIF($AW$4:$AW$20,"B")=0,"-",INDIRECT(CONCATENATE("AP",MATCH("B",$AW$1:$AW$20,0)))) -> - | BW18: Event Cancelled | BX18: No Competitors | BY18: Opening Height Not Cleared | CA18: 16
